Workbook

Sheet Series Table
B1: 2017/2018 Winter Series | F1: Fan Fawr | H1: Sugar Loaf | J1: Night Sugar | L1: Blorenge | N1: Skirrid | P1: Craig Yr Allt | R1: Hatterall Hammer | T1: Sugar Loaf 7
A2: Pos | B2: Name | C2: Club | D2: Cat. | E2: Total | F2: Time | G2: Score | H2: Time | I2: Score | J2: Time | K2: Score | L2: Time | M2: Score | N2: Time | O2: Score | P2: Time | Q2: Score | R2: Time | S2: Score | T2: Time | U2: Score | V2: Competed | W2: Ave (Best 5)
A3: 1 | B3: Andrew Tuckey | C3: Bridgend AC | D3: M40 | E3: =SUM(LARGE((S3,G3,I3,K3,M3,O3,Q3,U3),{1,2,3,4,5})) -> 506.8689801 | F3: =IFERROR(VLOOKUP(B3,INDIRECT("'"&$F$1&"'!"&"$C$2:$G$200"),4,FALSE),"") ->  | G3: =IFERROR(VLOOKUP(B3,INDIRECT("'"&$F$1&"'!"&"$C$2:$G$200"),5,FALSE),0) -> 0 | H3: =IFERROR(VLOOKUP(B3,INDIRECT("'"&$H$1&"'!"&"$C$2:$G$200"),4,FALSE),"") -> 0.0303587963 | I3: =IFERROR(VLOOKUP(B3,INDIRECT("'"&$H$1&"'!"&"$C$2:$G$200"),5,FALSE),0) -> 101.8117841 | J3: =IFERROR(VLOOKUP(B3,INDIRECT("'"&$J$1&"'!"&"$C$2:$G$200"),4,FALSE),"") ->  | K3: =IFERROR(VLOOKUP(B3,INDIRECT("'"&$J$1&"'!"&"$C$2:$G$200"),5,FALSE),0) -> 0 | L3: =IFERROR(VLOOKUP(B3,INDIRECT("'"&$L$1&"'!"&"$C$2:$G$200"),4,FALSE),"") -> 0.01880787037 | M3: =IFERROR(VLOOKUP(B3,INDIRECT("'"&$L$1&"'!"&"$C$2:$G$200"),5,FALSE),0) -> 99.51768489 | N3: =IFERROR(VLOOKUP(B3,INDIRECT("'"&$N$1&"'!"&"$C$2:$G$200"),4,FALSE),"") ->  | O3: =IFERROR(VLOOKUP(B3,INDIRECT("'"&$N$1&"'!"&"$C$2:$G$200"),5,FALSE),0) -> 0 | P3: =IFERROR(VLOOKUP(B3,INDIRECT("'"&$P$1&"'!"&"$C$2:$G$200"),4,FALSE),"") -> 0.02171296296 | Q3: =IFERROR(VLOOKUP(B3,INDIRECT("'"&$P$1&"'!"&"$C$2:$G$200"),5,FALSE),0) -> 100.3611642 | R3: =IFERROR(VLOOKUP(B3,INDIRECT("'"&$R$1&"'!"&"$C$2:$G$200"),4,FALSE),"") -> 0.01899305556 | S3: =IFERROR(VLOOKUP(B3,INDIRECT("'"&$R$1&"'!"&"$C$2:$G$200"),5,FALSE),0) -> 106.7189632 | T3: =IFERROR(VLOOKUP(B3,INDIRECT("'"&$T$1&"'!"&"$C$2:$G$200"),4,FALSE),"") -> 0.0369212963 | U3: =IFERROR(VLOOKUP(B3,INDIRECT("'"&$T$1&"'!"&"$C$2:$G$200"),5,FALSE),0) -> 98.45938375 | V3: =8-COUNTIF(F3:U3,"") -> 5 | W3: =E3/IF(V3>4,5,V3) -> 101.373796
A4: 2 | B4: Peter Ryder | C4: Brycheiniog | D4: SM | E4: =SUM(LARGE((S4,G4,I4,K4,M4,O4,Q4,U4),{1,2,3,4,5})) -> 506.4808481 | F4: =IFERROR(VLOOKUP(B4,INDIRECT("'"&$F$1&"'!"&"$C$2:$G$200"),4,FALSE),"") ->  | G4: =IFERROR(VLOOKUP(B4,INDIRECT("'"&$F$1&"'!"&"$C$2:$G$200"),5,FALSE),0) -> 0 | H4: =IFERROR(VLOOKUP(B4,INDIRECT("'"&$H$1&"'!"&"$C$2:$G$200"),4,FALSE),"") -> 0.03012731481 | I4: =IFERROR(VLOOKUP(B4,INDIRECT("'"&$H$1&"'!"&"$C$2:$G$200"),5,FALSE),0) -> 102.5604552 | J4: =IFERROR(VLOOKUP(B4,INDIRECT("'"&$J$1&"'!"&"$C$2:$G$200"),4,FALSE),"") ->  | K4: =IFERROR(VLOOKUP(B4,INDIRECT("'"&$J$1&"'!"&"$C$2:$G$200"),5,FALSE),0) -> 0 | L4: =IFERROR(VLOOKUP(B4,INDIRECT("'"&$L$1&"'!"&"$C$2:$G$200"),4,FALSE),"") -> 0.01929398148 | M4: =IFERROR(VLOOKUP(B4,INDIRECT("'"&$L$1&"'!"&"$C$2:$G$200"),5,FALSE),0) -> 96.92060351 | N4: =IFERROR(VLOOKUP(B4,INDIRECT("'"&$N$1&"'!"&"$C$2:$G$200"),4,FALSE),"") ->  | O4: =IFERROR(VLOOKUP(B4,INDIRECT("'"&$N$1&"'!"&"$C$2:$G$200"),5,FALSE),0) -> 0 | P4: =IFERROR(VLOOKUP(B4,INDIRECT("'"&$P$1&"'!"&"$C$2:$G$200"),4,FALSE),"") -> 0.02083333333 | Q4: =IFERROR(VLOOKUP(B4,INDIRECT("'"&$P$1&"'!"&"$C$2:$G$200"),5,FALSE),0) -> 104.3977055 | R4: =IFERROR(VLOOKUP(B4,INDIRECT("'"&$R$1&"'!"&"$C$2:$G$200"),4,FALSE),"") -> 0.01986111111 | S4: =IFERROR(VLOOKUP(B4,INDIRECT("'"&$R$1&"'!"&"$C$2:$G$200"),5,FALSE),0) -> 102.4556617 | T4: =IFERROR(VLOOKUP(B4,INDIRECT("'"&$T$1&"'!"&"$C$2:$G$200"),4,FALSE),"") -> 0.03630787037 | U4: =IFERROR(VLOOKUP(B4,INDIRECT("'"&$T$1&"'!"&"$C$2:$G$200"),5,FALSE),0) -> 100.1464222 | V4: =8-COUNTIF(F4:U4,"") -> 5 | W4: =E4/IF(V4>4,5,V4) -> 101.2961696
A5: 3 | B5: Alex Lewis | C5: Neath Harriers | D5: SM | E5: =SUM(LARGE((S5,G5,I5,K5,M5,O5,Q5,U5),{1,2,3,4,5})) -> 472.443429 | F5: =IFERROR(VLOOKUP(B5,INDIRECT("'"&$F$1&"'!"&"$C$2:$G$200"),4,FALSE),"") -> 0.01450231481 | G5: =IFERROR(VLOOKUP(B5,INDIRECT("'"&$F$1&"'!"&"$C$2:$G$200"),5,FALSE),0) -> 101.0424893 | H5: =IFERROR(VLOOKUP(B5,INDIRECT("'"&$H$1&"'!"&"$C$2:$G$200"),4,FALSE),"") -> 0.03497685185 | I5: =IFERROR(VLOOKUP(B5,INDIRECT("'"&$H$1&"'!"&"$C$2:$G$200"),5,FALSE),0) -> 86.87579546 | J5: =IFERROR(VLOOKUP(B5,INDIRECT("'"&$J$1&"'!"&"$C$2:$G$200"),4,FALSE),"") ->  | K5: =IFERROR(VLOOKUP(B5,INDIRECT("'"&$J$1&"'!"&"$C$2:$G$200"),5,FALSE),0) -> 0 | L5: =IFERROR(VLOOKUP(B5,INDIRECT("'"&$L$1&"'!"&"$C$2:$G$200"),4,FALSE),"") -> 0.02043981481 | M5: =IFERROR(VLOOKUP(B5,INDIRECT("'"&$L$1&"'!"&"$C$2:$G$200"),5,FALSE),0) -> 90.7989117 | N5: =IFERROR(VLOOKUP(B5,INDIRECT("'"&$N$1&"'!"&"$C$2:$G$200"),4,FALSE),"") -> 0.0237962963 | O5: =IFERROR(VLOOKUP(B5,INDIRECT("'"&$N$1&"'!"&"$C$2:$G$200"),5,FALSE),0) -> 94.36909166 | P5: =IFERROR(VLOOKUP(B5,INDIRECT("'"&$P$1&"'!"&"$C$2:$G$200"),4,FALSE),"") -> 0.02334490741 | Q5: =IFERROR(VLOOKUP(B5,INDIRECT("'"&$P$1&"'!"&"$C$2:$G$200"),5,FALSE),0) -> 92.87231782 | R5: =IFERROR(VLOOKUP(B5,INDIRECT("'"&$R$1&"'!"&"$C$2:$G$200"),4,FALSE),"") -> 0.02171296296 | S5: =IFERROR(VLOOKUP(B5,INDIRECT("'"&$R$1&"'!"&"$C$2:$G$200"),5,FALSE),0) -> 93.36061846 | T5: =IFERROR(VLOOKUP(B5,INDIRECT("'"&$T$1&"'!"&"$C$2:$G$200"),4,FALSE),"") -> 0.04203703704 | U5: =IFERROR(VLOOKUP(B5,INDIRECT("'"&$T$1&"'!"&"$C$2:$G$200"),5,FALSE),0) -> 84.39011968 | V5: =8-COUNTIF(F5:U5,"") -> 7 | W5: =E5/IF(V5>4,5,V5) -> 94.4886858
A6: 4 | B6: Dan Sandford | C6: Forest Of Dean AC | D6: M40 | E6: =SUM(LARGE((S6,G6,I6,K6,M6,O6,Q6,U6),{1,2,3,4,5})) -> 469.7867797 | F6: =IFERROR(VLOOKUP(B6,INDIRECT("'"&$F$1&"'!"&"$C$2:$G$200"),4,FALSE),"") -> 0.01429398148 | G6: =IFERROR(VLOOKUP(B6,INDIRECT("'"&$F$1&"'!"&"$C$2:$G$200"),5,FALSE),0) -> 102.4640657 | H6: =IFERROR(VLOOKUP(B6,INDIRECT("'"&$H$1&"'!"&"$C$2:$G$200"),4,FALSE),"") -> 0.03325231481 | I6: =IFERROR(VLOOKUP(B6,INDIRECT("'"&$H$1&"'!"&"$C$2:$G$200"),5,FALSE),0) -> 92.45339522 | J6: =IFERROR(VLOOKUP(B6,INDIRECT("'"&$J$1&"'!"&"$C$2:$G$200"),4,FALSE),"") ->  | K6: =IFERROR(VLOOKUP(B6,INDIRECT("'"&$J$1&"'!"&"$C$2:$G$200"),5,FALSE),0) -> 0 | L6: =IFERROR(VLOOKUP(B6,INDIRECT("'"&$L$1&"'!"&"$C$2:$G$200"),4,FALSE),"") -> 0.02053240741 | M6: =IFERROR(VLOOKUP(B6,INDIRECT("'"&$L$1&"'!"&"$C$2:$G$200"),5,FALSE),0) -> 90.30422953 | N6: =IFERROR(VLOOKUP(B6,INDIRECT("'"&$N$1&"'!"&"$C$2:$G$200"),4,FALSE),"") -> 0.02431712963 | O6: =IFERROR(VLOOKUP(B6,INDIRECT("'"&$N$1&"'!"&"$C$2:$G$200"),5,FALSE),0) -> 92.05713111 | P6: =IFERROR(VLOOKUP(B6,INDIRECT("'"&$P$1&"'!"&"$C$2:$G$200"),4,FALSE),"") -> 0.02421296296 | Q6: =IFERROR(VLOOKUP(B6,INDIRECT("'"&$P$1&"'!"&"$C$2:$G$200"),5,FALSE),0) -> 88.88888889 | R6: =IFERROR(VLOOKUP(B6,INDIRECT("'"&$R$1&"'!"&"$C$2:$G$200"),4,FALSE),"") -> 0.02188657407 | S6: =IFERROR(VLOOKUP(B6,INDIRECT("'"&$R$1&"'!"&"$C$2:$G$200"),5,FALSE),0) -> 92.50795816 | T6: =IFERROR(VLOOKUP(B6,INDIRECT("'"&$T$1&"'!"&"$C$2:$G$200"),4,FALSE),"") ->  | U6: =IFERROR(VLOOKUP(B6,INDIRECT("'"&$T$1&"'!"&"$C$2:$G$200"),5,FALSE),0) -> 0 | V6: =8-COUNTIF(F6:U6,"") -> 6 | W6: =E6/IF(V6>4,5,V6) -> 93.95735595
A7: 5 | B7: Ian Whistance | C7: Mynydd Du | D7: M40 | E7: =SUM(LARGE((S7,G7,I7,K7,M7,O7,Q7,U7),{1,2,3,4,5})) -> 444.7532024 | F7: =IFERROR(VLOOKUP(B7,INDIRECT("'"&$F$1&"'!"&"$C$2:$G$200"),4,FALSE),"") -> 0.01550925926 | G7: =IFERROR(VLOOKUP(B7,INDIRECT("'"&$F$1&"'!"&"$C$2:$G$200"),5,FALSE),0) -> 94.17153688 | H7: =IFERROR(VLOOKUP(B7,INDIRECT("'"&$H$1&"'!"&"$C$2:$G$200"),4,FALSE),"") -> 0.03569444444 | I7: =IFERROR(VLOOKUP(B7,INDIRECT("'"&$H$1&"'!"&"$C$2:$G$200"),5,FALSE),0) -> 84.55491503 | J7: =IFERROR(VLOOKUP(B7,INDIRECT("'"&$J$1&"'!"&"$C$2:$G$200"),4,FALSE),"") ->  | K7: =IFERROR(VLOOKUP(B7,INDIRECT("'"&$J$1&"'!"&"$C$2:$G$200"),5,FALSE),0) -> 0 | L7: =IFERROR(VLOOKUP(B7,INDIRECT("'"&$L$1&"'!"&"$C$2:$G$200"),4,FALSE),"") -> 0.0215162037 | M7: =IFERROR(VLOOKUP(B7,INDIRECT("'"&$L$1&"'!"&"$C$2:$G$200"),5,FALSE),0) -> 85.04823151 | N7: =IFERROR(VLOOKUP(B7,INDIRECT("'"&$N$1&"'!"&"$C$2:$G$200"),4,FALSE),"") -> 0.02490740741 | O7: =IFERROR(VLOOKUP(B7,INDIRECT("'"&$N$1&"'!"&"$C$2:$G$200"),5,FALSE),0) -> 89.43690917 | P7: =IFERROR(VLOOKUP(B7,INDIRECT("'"&$P$1&"'!"&"$C$2:$G$200"),4,FALSE),"") ->  | Q7: =IFERROR(VLOOKUP(B7,INDIRECT("'"&$P$1&"'!"&"$C$2:$G$200"),5,FALSE),0) -> 0 | R7: =IFERROR(VLOOKUP(B7,INDIRECT("'"&$R$1&"'!"&"$C$2:$G$200"),4,FALSE),"") -> 0.02208333333 | S7: =IFERROR(VLOOKUP(B7,INDIRECT("'"&$R$1&"'!"&"$C$2:$G$200"),5,FALSE),0) -> 91.54160982 | T7: =IFERROR(VLOOKUP(B7,INDIRECT("'"&$T$1&"'!"&"$C$2:$G$200"),4,FALSE),"") ->  | U7: =IFERROR(VLOOKUP(B7,INDIRECT("'"&$T$1&"'!"&"$C$2:$G$200"),5,FALSE),0) -> 0 | V7: =8-COUNTIF(F7:U7,"") -> 5 | W7: =E7/IF(V7>4,5,V7) -> 88.95064048
A8: 6 | B8: Helen Brown | C8: Mynydd Du | D8: F40 | E8: =SUM(LARGE((S8,G8,I8,K8,M8,O8,Q8,U8),{1,2,3,4,5})) -> 439.3890846 | F8: =IFERROR(VLOOKUP(B8,INDIRECT("'"&$F$1&"'!"&"$C$2:$G$200"),4,FALSE),"") -> 0.01505787037 | G8: =IFERROR(VLOOKUP(B8,INDIRECT("'"&$F$1&"'!"&"$C$2:$G$200"),5,FALSE),0) -> 97.25161902 | H8: =IFERROR(VLOOKUP(B8,INDIRECT("'"&$H$1&"'!"&"$C$2:$G$200"),4,FALSE),"") ->  | I8: =IFERROR(VLOOKUP(B8,INDIRECT("'"&$H$1&"'!"&"$C$2:$G$200"),5,FALSE),0) -> 0 | J8: =IFERROR(VLOOKUP(B8,INDIRECT("'"&$J$1&"'!"&"$C$2:$G$200"),4,FALSE),"") ->  | K8: =IFERROR(VLOOKUP(B8,INDIRECT("'"&$J$1&"'!"&"$C$2:$G$200"),5,FALSE),0) -> 0 | L8: =IFERROR(VLOOKUP(B8,INDIRECT("'"&$L$1&"'!"&"$C$2:$G$200"),4,FALSE),"") -> 0.02209490741 | M8: =IFERROR(VLOOKUP(B8,INDIRECT("'"&$L$1&"'!"&"$C$2:$G$200"),5,FALSE),0) -> 81.95646797 | N8: =IFERROR(VLOOKUP(B8,INDIRECT("'"&$N$1&"'!"&"$C$2:$G$200"),4,FALSE),"") -> 0.02524305556 | O8: =IFERROR(VLOOKUP(B8,INDIRECT("'"&$N$1&"'!"&"$C$2:$G$200"),5,FALSE),0) -> 87.94697904 | P8: =IFERROR(VLOOKUP(B8,INDIRECT("'"&$P$1&"'!"&"$C$2:$G$200"),4,FALSE),"") -> 0.02488425926 | Q8: =IFERROR(VLOOKUP(B8,INDIRECT("'"&$P$1&"'!"&"$C$2:$G$200"),5,FALSE),0) -> 85.80837051 | R8: =IFERROR(VLOOKUP(B8,INDIRECT("'"&$R$1&"'!"&"$C$2:$G$200"),4,FALSE),"") -> 0.023125 | S8: =IFERROR(VLOOKUP(B8,INDIRECT("'"&$R$1&"'!"&"$C$2:$G$200"),5,FALSE),0) -> 86.42564802 | T8: =IFERROR(VLOOKUP(B8,INDIRECT("'"&$T$1&"'!"&"$C$2:$G$200"),4,FALSE),"") ->  | U8: =IFERROR(VLOOKUP(B8,INDIRECT("'"&$T$1&"'!"&"$C$2:$G$200"),5,FALSE),0) -> 0 | V8: =8-COUNTIF(F8:U8,"") -> 5 | W8: =E8/IF(V8>4,5,V8) -> 87.87781691
A9: 7 | B9: John Aggleton | C9: MDC | D9: M60 | E9: =SUM(LARGE((S9,G9,I9,K9,M9,O9,Q9,U9),{1,2,3,4,5})) -> 409.2093811 | F9: =IFERROR(VLOOKUP(B9,INDIRECT("'"&$F$1&"'!"&"$C$2:$G$200"),4,FALSE),"") -> 0.01571759259 | G9: =IFERROR(VLOOKUP(B9,INDIRECT("'"&$F$1&"'!"&"$C$2:$G$200"),5,FALSE),0) -> 92.74996051 | H9: =IFERROR(VLOOKUP(B9,INDIRECT("'"&$H$1&"'!"&"$C$2:$G$200"),4,FALSE),"") -> 0.0366087963 | I9: =IFERROR(VLOOKUP(B9,INDIRECT("'"&$H$1&"'!"&"$C$2:$G$200"),5,FALSE),0) -> 81.59766415 | J9: =IFERROR(VLOOKUP(B9,INDIRECT("'"&$J$1&"'!"&"$C$2:$G$200"),4,FALSE),"") ->  | K9: =IFERROR(VLOOKUP(B9,INDIRECT("'"&$J$1&"'!"&"$C$2:$G$200"),5,FALSE),0) -> 0 | L9: =IFERROR(VLOOKUP(B9,INDIRECT("'"&$L$1&"'!"&"$C$2:$G$200"),4,FALSE),"") -> 0.02293981481 | M9: =IFERROR(VLOOKUP(B9,INDIRECT("'"&$L$1&"'!"&"$C$2:$G$200"),5,FALSE),0) -> 77.4424932 | N9: =IFERROR(VLOOKUP(B9,INDIRECT("'"&$N$1&"'!"&"$C$2:$G$200"),4,FALSE),"") -> 0.02716435185 | O9: =IFERROR(VLOOKUP(B9,INDIRECT("'"&$N$1&"'!"&"$C$2:$G$200"),5,FALSE),0) -> 79.41841348 | P9: =IFERROR(VLOOKUP(B9,INDIRECT("'"&$P$1&"'!"&"$C$2:$G$200"),4,FALSE),"") -> 0.02658564815 | Q9: =IFERROR(VLOOKUP(B9,INDIRECT("'"&$P$1&"'!"&"$C$2:$G$200"),5,FALSE),0) -> 78.0008498 | R9: =IFERROR(VLOOKUP(B9,INDIRECT("'"&$R$1&"'!"&"$C$2:$G$200"),4,FALSE),"") ->  | S9: =IFERROR(VLOOKUP(B9,INDIRECT("'"&$R$1&"'!"&"$C$2:$G$200"),5,FALSE),0) -> 0 | T9: =IFERROR(VLOOKUP(B9,INDIRECT("'"&$T$1&"'!"&"$C$2:$G$200"),4,FALSE),"") ->  | U9: =IFERROR(VLOOKUP(B9,INDIRECT("'"&$T$1&"'!"&"$C$2:$G$200"),5,FALSE),0) -> 0 | V9: =8-COUNTIF(F9:U9,"") -> 5 | W9: =E9/IF(V9>4,5,V9) -> 81.84187623
A10: 8 | B10: Niki Morgan | C10: Mynydd Du | D10: F50 | E10: =SUM(LARGE((S10,G10,I10,K10,M10,O10,Q10,U10),{1,2,3,4,5})) -> 402.3778775 | F10: =IFERROR(VLOOKUP(B10,INDIRECT("'"&$F$1&"'!"&"$C$2:$G$200"),4,FALSE),"") -> 0.01648148148 | G10: =IFERROR(VLOOKUP(B10,INDIRECT("'"&$F$1&"'!"&"$C$2:$G$200"),5,FALSE),0) -> 87.53751382 | H10: =IFERROR(VLOOKUP(B10,INDIRECT("'"&$H$1&"'!"&"$C$2:$G$200"),4,FALSE),"") -> 0.03748842593 | I10: =IFERROR(VLOOKUP(B10,INDIRECT("'"&$H$1&"'!"&"$C$2:$G$200"),5,FALSE),0) -> 78.75271393 | J10: =IFERROR(VLOOKUP(B10,INDIRECT("'"&$J$1&"'!"&"$C$2:$G$200"),4,FALSE),"") ->  | K10: =IFERROR(VLOOKUP(B10,INDIRECT("'"&$J$1&"'!"&"$C$2:$G$200"),5,FALSE),0) -> 0 | L10: =IFERROR(VLOOKUP(B10,INDIRECT("'"&$L$1&"'!"&"$C$2:$G$200"),4,FALSE),"") -> 0.02458333333 | M10: =IFERROR(VLOOKUP(B10,INDIRECT("'"&$L$1&"'!"&"$C$2:$G$200"),5,FALSE),0) -> 68.66188474 | N10: =IFERROR(VLOOKUP(B10,INDIRECT("'"&$N$1&"'!"&"$C$2:$G$200"),4,FALSE),"") -> 0.02737268519 | O10: =IFERROR(VLOOKUP(B10,INDIRECT("'"&$N$1&"'!"&"$C$2:$G$200"),5,FALSE),0) -> 78.49362926 | P10: =IFERROR(VLOOKUP(B10,INDIRECT("'"&$P$1&"'!"&"$C$2:$G$200"),4,FALSE),"") -> 0.02655092593 | Q10: =IFERROR(VLOOKUP(B10,INDIRECT("'"&$P$1&"'!"&"$C$2:$G$200"),5,FALSE),0) -> 78.16018696 | R10: =IFERROR(VLOOKUP(B10,INDIRECT("'"&$R$1&"'!"&"$C$2:$G$200"),4,FALSE),"") -> 0.02454861111 | S10: =IFERROR(VLOOKUP(B10,INDIRECT("'"&$R$1&"'!"&"$C$2:$G$200"),5,FALSE),0) -> 79.43383356 | T10: =IFERROR(VLOOKUP(B10,INDIRECT("'"&$T$1&"'!"&"$C$2:$G$200"),4,FALSE),"") -> 0.04614583333 | U10: =IFERROR(VLOOKUP(B10,INDIRECT("'"&$T$1&"'!"&"$C$2:$G$200"),5,FALSE),0) -> 73.09014515 | V10: =8-COUNTIF(F10:U10,"") -> 7 | W10: =E10/IF(V10>4,5,V10) -> 80.47557551
A11: 9 | B11: Matthew Haynes | C11: Builth & District RC | D11: M40 | E11: =SUM(LARGE((S11,G11,I11,K11,M11,O11,Q11,U11),{1,2,3,4,5})) -> 398.2801221 | F11: =IFERROR(VLOOKUP(B11,INDIRECT("'"&$F$1&"'!"&"$C$2:$G$200"),4,FALSE),"") -> 0.01628472222 | G11: =IFERROR(VLOOKUP(B11,INDIRECT("'"&$F$1&"'!"&"$C$2:$G$200"),5,FALSE),0) -> 88.88011373 | H11: =IFERROR(VLOOKUP(B11,INDIRECT("'"&$H$1&"'!"&"$C$2:$G$200"),4,FALSE),"") -> 0.03902777778 | I11: =IFERROR(VLOOKUP(B11,INDIRECT("'"&$H$1&"'!"&"$C$2:$G$200"),5,FALSE),0) -> 73.77405106 | J11: =IFERROR(VLOOKUP(B11,INDIRECT("'"&$J$1&"'!"&"$C$2:$G$200"),4,FALSE),"") ->  | K11: =IFERROR(VLOOKUP(B11,INDIRECT("'"&$J$1&"'!"&"$C$2:$G$200"),5,FALSE),0) -> 0 | L11: =IFERROR(VLOOKUP(B11,INDIRECT("'"&$L$1&"'!"&"$C$2:$G$200"),4,FALSE),"") ->  | M11: =IFERROR(VLOOKUP(B11,INDIRECT("'"&$L$1&"'!"&"$C$2:$G$200"),5,FALSE),0) -> 0 | N11: =IFERROR(VLOOKUP(B11,INDIRECT("'"&$N$1&"'!"&"$C$2:$G$200"),4,FALSE),"") -> 0.02708333333 | O11: =IFERROR(VLOOKUP(B11,INDIRECT("'"&$N$1&"'!"&"$C$2:$G$200"),5,FALSE),0) -> 79.77805179 | P11: =IFERROR(VLOOKUP(B11,INDIRECT("'"&$P$1&"'!"&"$C$2:$G$200"),4,FALSE),"") -> 0.02712962963 | Q11: =IFERROR(VLOOKUP(B11,INDIRECT("'"&$P$1&"'!"&"$C$2:$G$200"),5,FALSE),0) -> 75.50456767 | R11: =IFERROR(VLOOKUP(B11,INDIRECT("'"&$R$1&"'!"&"$C$2:$G$200"),4,FALSE),"") -> 0.02436342593 | S11: =IFERROR(VLOOKUP(B11,INDIRECT("'"&$R$1&"'!"&"$C$2:$G$200"),5,FALSE),0) -> 80.34333788 | T11: =IFERROR(VLOOKUP(B11,INDIRECT("'"&$T$1&"'!"&"$C$2:$G$200"),4,FALSE),"") -> 0.04721064815 | U11: =IFERROR(VLOOKUP(B11,INDIRECT("'"&$T$1&"'!"&"$C$2:$G$200"),5,FALSE),0) -> 70.16170104 | V11: =8-COUNTIF(F11:U11,"") -> 6 | W11: =E11/IF(V11>4,5,V11) -> 79.65602442
A12: 10 | B12: Andy Horlick | C12: Forest Of Dean AC | D12: M40 | E12: =SUM(LARGE((S12,G12,I12,K12,M12,O12,Q12,U12),{1,2,3,4,5})) -> 397.5684782 | F12: =IFERROR(VLOOKUP(B12,INDIRECT("'"&$F$1&"'!"&"$C$2:$G$200"),4,FALSE),"") ->  | G12: =IFERROR(VLOOKUP(B12,INDIRECT("'"&$F$1&"'!"&"$C$2:$G$200"),5,FALSE),0) -> 0 | H12: =IFERROR(VLOOKUP(B12,INDIRECT("'"&$H$1&"'!"&"$C$2:$G$200"),4,FALSE),"") ->  | I12: =IFERROR(VLOOKUP(B12,INDIRECT("'"&$H$1&"'!"&"$C$2:$G$200"),5,FALSE),0) -> 0 | J12: =IFERROR(VLOOKUP(B12,INDIRECT("'"&$J$1&"'!"&"$C$2:$G$200"),4,FALSE),"") ->  | K12: =IFERROR(VLOOKUP(B12,INDIRECT("'"&$J$1&"'!"&"$C$2:$G$200"),5,FALSE),0) -> 0 | L12: =IFERROR(VLOOKUP(B12,INDIRECT("'"&$L$1&"'!"&"$C$2:$G$200"),4,FALSE),"") -> 0.02372685185 | M12: =IFERROR(VLOOKUP(B12,INDIRECT("'"&$L$1&"'!"&"$C$2:$G$200"),5,FALSE),0) -> 73.23769478 | N12: =IFERROR(VLOOKUP(B12,INDIRECT("'"&$N$1&"'!"&"$C$2:$G$200"),4,FALSE),"") -> 0.02710648148 | O12: =IFERROR(VLOOKUP(B12,INDIRECT("'"&$N$1&"'!"&"$C$2:$G$200"),5,FALSE),0) -> 79.67529799 | P12: =IFERROR(VLOOKUP(B12,INDIRECT("'"&$P$1&"'!"&"$C$2:$G$200"),4,FALSE),"") -> 0.02594907407 | Q12: =IFERROR(VLOOKUP(B12,INDIRECT("'"&$P$1&"'!"&"$C$2:$G$200"),5,FALSE),0) -> 80.92203102 | R12: =IFERROR(VLOOKUP(B12,INDIRECT("'"&$R$1&"'!"&"$C$2:$G$200"),4,FALSE),"") -> 0.02288194444 | S12: =IFERROR(VLOOKUP(B12,INDIRECT("'"&$R$1&"'!"&"$C$2:$G$200"),5,FALSE),0) -> 87.61937244 | T12: =IFERROR(VLOOKUP(B12,INDIRECT("'"&$T$1&"'!"&"$C$2:$G$200"),4,FALSE),"") -> 0.0450462963 | U12: =IFERROR(VLOOKUP(B12,INDIRECT("'"&$T$1&"'!"&"$C$2:$G$200"),5,FALSE),0) -> 76.114082 | V12: =8-COUNTIF(F12:U12,"") -> 5 | W12: =E12/IF(V12>4,5,V12) -> 79.51369564
A13: 11 | B13: Katie Ironside | C13: MDC | D13: SF | E13: =SUM(LARGE((S13,G13,I13,K13,M13,O13,Q13,U13),{1,2,3,4,5})) -> 393.2988426 | F13: =IFERROR(VLOOKUP(B13,INDIRECT("'"&$F$1&"'!"&"$C$2:$G$200"),4,FALSE),"") ->  | G13: =IFERROR(VLOOKUP(B13,INDIRECT("'"&$F$1&"'!"&"$C$2:$G$200"),5,FALSE),0) -> 0 | H13: =IFERROR(VLOOKUP(B13,INDIRECT("'"&$H$1&"'!"&"$C$2:$G$200"),4,FALSE),"") -> 0.03701388889 | I13: =IFERROR(VLOOKUP(B13,INDIRECT("'"&$H$1&"'!"&"$C$2:$G$200"),5,FALSE),0) -> 80.28748971 | J13: =IFERROR(VLOOKUP(B13,INDIRECT("'"&$J$1&"'!"&"$C$2:$G$200"),4,FALSE),"") ->  | K13: =IFERROR(VLOOKUP(B13,INDIRECT("'"&$J$1&"'!"&"$C$2:$G$200"),5,FALSE),0) -> 0 | L13: =IFERROR(VLOOKUP(B13,INDIRECT("'"&$L$1&"'!"&"$C$2:$G$200"),4,FALSE),"") ->  | M13: =IFERROR(VLOOKUP(B13,INDIRECT("'"&$L$1&"'!"&"$C$2:$G$200"),5,FALSE),0) -> 0 | N13: =IFERROR(VLOOKUP(B13,INDIRECT("'"&$N$1&"'!"&"$C$2:$G$200"),4,FALSE),"") -> 0.02728009259 | O13: =IFERROR(VLOOKUP(B13,INDIRECT("'"&$N$1&"'!"&"$C$2:$G$200"),5,FALSE),0) -> 78.90464447 | P13: =IFERROR(VLOOKUP(B13,INDIRECT("'"&$P$1&"'!"&"$C$2:$G$200"),4,FALSE),"") -> 0.02603009259 | Q13: =IFERROR(VLOOKUP(B13,INDIRECT("'"&$P$1&"'!"&"$C$2:$G$200"),5,FALSE),0) -> 80.55024432 | R13: =IFERROR(VLOOKUP(B13,INDIRECT("'"&$R$1&"'!"&"$C$2:$G$200"),4,FALSE),"") -> 0.02359953704 | S13: =IFERROR(VLOOKUP(B13,INDIRECT("'"&$R$1&"'!"&"$C$2:$G$200"),5,FALSE),0) -> 84.0950432 | T13: =IFERROR(VLOOKUP(B13,INDIRECT("'"&$T$1&"'!"&"$C$2:$G$200"),4,FALSE),"") -> 0.04746527778 | U13: =IFERROR(VLOOKUP(B13,INDIRECT("'"&$T$1&"'!"&"$C$2:$G$200"),5,FALSE),0) -> 69.46142093 | V13: =8-COUNTIF(F13:U13,"") -> 5 | W13: =E13/IF(V13>4,5,V13) -> 78.65976853
A14: 12 | B14: Paul Tucker | C14: Mynydd Du | D14: M50 | E14: =SUM(LARGE((S14,G14,I14,K14,M14,O14,Q14,U14),{1,2,3,4,5})) -> 384.5958579 | F14: =IFERROR(VLOOKUP(B14,INDIRECT("'"&$F$1&"'!"&"$C$2:$G$200"),4,FALSE),"") ->  | G14: =IFERROR(VLOOKUP(B14,INDIRECT("'"&$F$1&"'!"&"$C$2:$G$200"),5,FALSE),0) -> 0 | H14: =IFERROR(VLOOKUP(B14,INDIRECT("'"&$H$1&"'!"&"$C$2:$G$200"),4,FALSE),"") ->  | I14: =IFERROR(VLOOKUP(B14,INDIRECT("'"&$H$1&"'!"&"$C$2:$G$200"),5,FALSE),0) -> 0 | J14: =IFERROR(VLOOKUP(B14,INDIRECT("'"&$J$1&"'!"&"$C$2:$G$200"),4,FALSE),"") ->  | K14: =IFERROR(VLOOKUP(B14,INDIRECT("'"&$J$1&"'!"&"$C$2:$G$200"),5,FALSE),0) -> 0 | L14: =IFERROR(VLOOKUP(B14,INDIRECT("'"&$L$1&"'!"&"$C$2:$G$200"),4,FALSE),"") -> 0.02215277778 | M14: =IFERROR(VLOOKUP(B14,INDIRECT("'"&$L$1&"'!"&"$C$2:$G$200"),5,FALSE),0) -> 81.64729162 | N14: =IFERROR(VLOOKUP(B14,INDIRECT("'"&$N$1&"'!"&"$C$2:$G$200"),4,FALSE),"") -> 0.02616898148 | O14: =IFERROR(VLOOKUP(B14,INDIRECT("'"&$N$1&"'!"&"$C$2:$G$200"),5,FALSE),0) -> 83.83682696 | P14: =IFERROR(VLOOKUP(B14,INDIRECT("'"&$P$1&"'!"&"$C$2:$G$200"),4,FALSE),"") -> 0.02756944444 | Q14: =IFERROR(VLOOKUP(B14,INDIRECT("'"&$P$1&"'!"&"$C$2:$G$200"),5,FALSE),0) -> 73.486297 | R14: =IFERROR(VLOOKUP(B14,INDIRECT("'"&$R$1&"'!"&"$C$2:$G$200"),4,FALSE),"") -> 0.02575231481 | S14: =IFERROR(VLOOKUP(B14,INDIRECT("'"&$R$1&"'!"&"$C$2:$G$200"),5,FALSE),0) -> 73.52205548 | T14: =IFERROR(VLOOKUP(B14,INDIRECT("'"&$T$1&"'!"&"$C$2:$G$200"),4,FALSE),"") -> 0.04650462963 | U14: =IFERROR(VLOOKUP(B14,INDIRECT("'"&$T$1&"'!"&"$C$2:$G$200"),5,FALSE),0) -> 72.10338681 | V14: =8-COUNTIF(F14:U14,"") -> 5 | W14: =E14/IF(V14>4,5,V14) -> 76.91917157
A15: 13 | B15: Simon Blease | C15: Brycheiniog | D15: M50 | E15: =SUM(LARGE((S15,G15,I15,K15,M15,O15,Q15,U15),{1,2,3,4,5})) -> 384.563016 | F15: =IFERROR(VLOOKUP(B15,INDIRECT("'"&$F$1&"'!"&"$C$2:$G$200"),4,FALSE),"") -> 0.01659722222 | G15: =IFERROR(VLOOKUP(B15,INDIRECT("'"&$F$1&"'!"&"$C$2:$G$200"),5,FALSE),0) -> 86.74774917 | H15: =IFERROR(VLOOKUP(B15,INDIRECT("'"&$H$1&"'!"&"$C$2:$G$200"),4,FALSE),"") -> 0.0393287037 | I15: =IFERROR(VLOOKUP(B15,INDIRECT("'"&$H$1&"'!"&"$C$2:$G$200"),5,FALSE),0) -> 72.80077862 | J15: =IFERROR(VLOOKUP(B15,INDIRECT("'"&$J$1&"'!"&"$C$2:$G$200"),4,FALSE),"") ->  | K15: =IFERROR(VLOOKUP(B15,INDIRECT("'"&$J$1&"'!"&"$C$2:$G$200"),5,FALSE),0) -> 0 | L15: =IFERROR(VLOOKUP(B15,INDIRECT("'"&$L$1&"'!"&"$C$2:$G$200"),4,FALSE),"") ->  | M15: =IFERROR(VLOOKUP(B15,INDIRECT("'"&$L$1&"'!"&"$C$2:$G$200"),5,FALSE),0) -> 0 | N15: =IFERROR(VLOOKUP(B15,INDIRECT("'"&$N$1&"'!"&"$C$2:$G$200"),4,FALSE),"") -> 0.0281712963 | O15: =IFERROR(VLOOKUP(B15,INDIRECT("'"&$N$1&"'!"&"$C$2:$G$200"),5,FALSE),0) -> 74.9486231 | P15: =IFERROR(VLOOKUP(B15,INDIRECT("'"&$P$1&"'!"&"$C$2:$G$200"),4,FALSE),"") -> 0.02770833333 | Q15: =IFERROR(VLOOKUP(B15,INDIRECT("'"&$P$1&"'!"&"$C$2:$G$200"),5,FALSE),0) -> 72.84894837 | R15: =IFERROR(VLOOKUP(B15,INDIRECT("'"&$R$1&"'!"&"$C$2:$G$200"),4,FALSE),"") -> 0.025 | S15: =IFERROR(VLOOKUP(B15,INDIRECT("'"&$R$1&"'!"&"$C$2:$G$200"),5,FALSE),0) -> 77.21691678 | T15: =IFERROR(VLOOKUP(B15,INDIRECT("'"&$T$1&"'!"&"$C$2:$G$200"),4,FALSE),"") ->  | U15: =IFERROR(VLOOKUP(B15,INDIRECT("'"&$T$1&"'!"&"$C$2:$G$200"),5,FALSE),0) -> 0 | V15: =8-COUNTIF(F15:U15,"") -> 5 | W15: =E15/IF(V15>4,5,V15) -> 76.91260321
A16: 14 | B16: Peter Nugent | C16: Wye Valley Runners | D16: SM | E16: =SUM(LARGE((S16,G16,I16,K16,M16,O16,Q16,U16),{1,2,3,4,5})) -> 369.1752221 | F16: =IFERROR(VLOOKUP(B16,INDIRECT("'"&$F$1&"'!"&"$C$2:$G$200"),4,FALSE),"") -> 0.01530092593 | G16: =IFERROR(VLOOKUP(B16,INDIRECT("'"&$F$1&"'!"&"$C$2:$G$200"),5,FALSE),0) -> 95.59311325 | H16: =IFERROR(VLOOKUP(B16,INDIRECT("'"&$H$1&"'!"&"$C$2:$G$200"),4,FALSE),"") -> 0.03417824074 | I16: =IFERROR(VLOOKUP(B16,INDIRECT("'"&$H$1&"'!"&"$C$2:$G$200"),5,FALSE),0) -> 89.45871079 | J16: =IFERROR(VLOOKUP(B16,INDIRECT("'"&$J$1&"'!"&"$C$2:$G$200"),4,FALSE),"") ->  | K16: =IFERROR(VLOOKUP(B16,INDIRECT("'"&$J$1&"'!"&"$C$2:$G$200"),5,FALSE),0) -> 0 | L16: =IFERROR(VLOOKUP(B16,INDIRECT("'"&$L$1&"'!"&"$C$2:$G$200"),4,FALSE),"") ->  | M16: =IFERROR(VLOOKUP(B16,INDIRECT("'"&$L$1&"'!"&"$C$2:$G$200"),5,FALSE),0) -> 0 | N16: =IFERROR(VLOOKUP(B16,INDIRECT("'"&$N$1&"'!"&"$C$2:$G$200"),4,FALSE),"") -> 0.02390046296 | O16: =IFERROR(VLOOKUP(B16,INDIRECT("'"&$N$1&"'!"&"$C$2:$G$200"),5,FALSE),0) -> 93.90669955 | P16: =IFERROR(VLOOKUP(B16,INDIRECT("'"&$P$1&"'!"&"$C$2:$G$200"),4,FALSE),"") -> 0.02392361111 | Q16: =IFERROR(VLOOKUP(B16,INDIRECT("'"&$P$1&"'!"&"$C$2:$G$200"),5,FALSE),0) -> 90.21669853 | R16: =IFERROR(VLOOKUP(B16,INDIRECT("'"&$R$1&"'!"&"$C$2:$G$200"),4,FALSE),"") ->  | S16: =IFERROR(VLOOKUP(B16,INDIRECT("'"&$R$1&"'!"&"$C$2:$G$200"),5,FALSE),0) -> 0 | T16: =IFERROR(VLOOKUP(B16,INDIRECT("'"&$T$1&"'!"&"$C$2:$G$200"),4,FALSE),"") ->  | U16: =IFERROR(VLOOKUP(B16,INDIRECT("'"&$T$1&"'!"&"$C$2:$G$200"),5,FALSE),0) -> 0 | V16: =8-COUNTIF(F16:U16,"") -> 4 | W16: =E16/IF(V16>4,5,V16) -> 92.29380553
A17: 15 | B17: Mike Fawcett | C17: Wye Valley Runners | D17: M50 | E17: =SUM(LARGE((S17,G17,I17,K17,M17,O17,Q17,U17),{1,2,3,4,5})) -> 358.213234 | F17: =IFERROR(VLOOKUP(B17,INDIRECT("'"&$F$1&"'!"&"$C$2:$G$200"),4,FALSE),"") ->  | G17: =IFERROR(VLOOKUP(B17,INDIRECT("'"&$F$1&"'!"&"$C$2:$G$200"),5,FALSE),0) -> 0 | H17: =IFERROR(VLOOKUP(B17,INDIRECT("'"&$H$1&"'!"&"$C$2:$G$200"),4,FALSE),"") -> 0.03454861111 | I17: =IFERROR(VLOOKUP(B17,INDIRECT("'"&$H$1&"'!"&"$C$2:$G$200"),5,FALSE),0) -> 88.26083701 | J17: =IFERROR(VLOOKUP(B17,INDIRECT("'"&$J$1&"'!"&"$C$2:$G$200"),4,FALSE),"") ->  | K17: =IFERROR(VLOOKUP(B17,INDIRECT("'"&$J$1&"'!"&"$C$2:$G$200"),5,FALSE),0) -> 0 | L17: =IFERROR(VLOOKUP(B17,INDIRECT("'"&$L$1&"'!"&"$C$2:$G$200"),4,FALSE),"") ->  | M17: =IFERROR(VLOOKUP(B17,INDIRECT("'"&$L$1&"'!"&"$C$2:$G$200"),5,FALSE),0) -> 0 | N17: =IFERROR(VLOOKUP(B17,INDIRECT("'"&$N$1&"'!"&"$C$2:$G$200"),4,FALSE),"") -> 0.02407407407 | O17: =IFERROR(VLOOKUP(B17,INDIRECT("'"&$N$1&"'!"&"$C$2:$G$200"),5,FALSE),0) -> 93.13604603 | P17: =IFERROR(VLOOKUP(B17,INDIRECT("'"&$P$1&"'!"&"$C$2:$G$200"),4,FALSE),"") ->  | Q17: =IFERROR(VLOOKUP(B17,INDIRECT("'"&$P$1&"'!"&"$C$2:$G$200"),5,FALSE),0) -> 0 | R17: =IFERROR(VLOOKUP(B17,INDIRECT("'"&$R$1&"'!"&"$C$2:$G$200"),4,FALSE),"") -> 0.02142361111 | S17: =IFERROR(VLOOKUP(B17,INDIRECT("'"&$R$1&"'!"&"$C$2:$G$200"),5,FALSE),0) -> 94.78171896 | T17: =IFERROR(VLOOKUP(B17,INDIRECT("'"&$T$1&"'!"&"$C$2:$G$200"),4,FALSE),"") -> 0.04289351852 | U17: =IFERROR(VLOOKUP(B17,INDIRECT("'"&$T$1&"'!"&"$C$2:$G$200"),5,FALSE),0) -> 82.03463203 | V17: =8-COUNTIF(F17:U17,"") -> 4 | W17: =E17/IF(V17>4,5,V17) -> 89.55330851
A18: 16 | B18: Evan Ryan | C18: Mynydd Du | D18: SM | E18: =SUM(LARGE((S18,G18,I18,K18,M18,O18,Q18,U18),{1,2,3,4,5})) -> 347.6919805 | F18: =IFERROR(VLOOKUP(B18,INDIRECT("'"&$F$1&"'!"&"$C$2:$G$200"),4,FALSE),"") ->  | G18: =IFERROR(VLOOKUP(B18,INDIRECT("'"&$F$1&"'!"&"$C$2:$G$200"),5,FALSE),0) -> 0 | H18: =IFERROR(VLOOKUP(B18,INDIRECT("'"&$H$1&"'!"&"$C$2:$G$200"),4,FALSE),"") -> 0.0384837963 | I18: =IFERROR(VLOOKUP(B18,INDIRECT("'"&$H$1&"'!"&"$C$2:$G$200"),5,FALSE),0) -> 75.53342817 | J18: =IFERROR(VLOOKUP(B18,INDIRECT("'"&$J$1&"'!"&"$C$2:$G$200"),4,FALSE),"") ->  | K18: =IFERROR(VLOOKUP(B18,INDIRECT("'"&$J$1&"'!"&"$C$2:$G$200"),5,FALSE),0) -> 0 | L18: =IFERROR(VLOOKUP(B18,INDIRECT("'"&$L$1&"'!"&"$C$2:$G$200"),4,FALSE),"") -> 0.02365740741 | M18: =IFERROR(VLOOKUP(B18,INDIRECT("'"&$L$1&"'!"&"$C$2:$G$200"),5,FALSE),0) -> 73.60870641 | N18: =IFERROR(VLOOKUP(B18,INDIRECT("'"&$N$1&"'!"&"$C$2:$G$200"),4,FALSE),"") -> 0.02829861111 | O18: =IFERROR(VLOOKUP(B18,INDIRECT("'"&$N$1&"'!"&"$C$2:$G$200"),5,FALSE),0) -> 74.38347719 | P18: =IFERROR(VLOOKUP(B18,INDIRECT("'"&$P$1&"'!"&"$C$2:$G$200"),4,FALSE),"") ->  | Q18: =IFERROR(VLOOKUP(B18,INDIRECT("'"&$P$1&"'!"&"$C$2:$G$200"),5,FALSE),0) -> 0 | R18: =IFERROR(VLOOKUP(B18,INDIRECT("'"&$R$1&"'!"&"$C$2:$G$200"),4,FALSE),"") -> 0.02758101852 | S18: =IFERROR(VLOOKUP(B18,INDIRECT("'"&$R$1&"'!"&"$C$2:$G$200"),5,FALSE),0) -> 64.54070032 | T18: =IFERROR(VLOOKUP(B18,INDIRECT("'"&$T$1&"'!"&"$C$2:$G$200"),4,FALSE),"") -> 0.05104166667 | U18: =IFERROR(VLOOKUP(B18,INDIRECT("'"&$T$1&"'!"&"$C$2:$G$200"),5,FALSE),0) -> 59.62566845 | V18: =8-COUNTIF(F18:U18,"") -> 5 | W18: =E18/IF(V18>4,5,V18) -> 69.53839611
A19: 17 | B19: Dominic Shields | C19: San Domenico | D19: M50 | E19: =SUM(LARGE((S19,G19,I19,K19,M19,O19,Q19,U19),{1,2,3,4,5})) -> 343.6096682 | F19: =IFERROR(VLOOKUP(B19,INDIRECT("'"&$F$1&"'!"&"$C$2:$G$200"),4,FALSE),"") -> 0.01799768519 | G19: =IFERROR(VLOOKUP(B19,INDIRECT("'"&$F$1&"'!"&"$C$2:$G$200"),5,FALSE),0) -> 77.1915969 | H19: =IFERROR(VLOOKUP(B19,INDIRECT("'"&$H$1&"'!"&"$C$2:$G$200"),4,FALSE),"") -> 0.04206018519 | I19: =IFERROR(VLOOKUP(B19,INDIRECT("'"&$H$1&"'!"&"$C$2:$G$200"),5,FALSE),0) -> 63.96645953 | J19: =IFERROR(VLOOKUP(B19,INDIRECT("'"&$J$1&"'!"&"$C$2:$G$200"),4,FALSE),"") ->  | K19: =IFERROR(VLOOKUP(B19,INDIRECT("'"&$J$1&"'!"&"$C$2:$G$200"),5,FALSE),0) -> 0 | L19: =IFERROR(VLOOKUP(B19,INDIRECT("'"&$L$1&"'!"&"$C$2:$G$200"),4,FALSE),"") -> 0.02559027778 | M19: =IFERROR(VLOOKUP(B19,INDIRECT("'"&$L$1&"'!"&"$C$2:$G$200"),5,FALSE),0) -> 63.28221618 | N19: =IFERROR(VLOOKUP(B19,INDIRECT("'"&$N$1&"'!"&"$C$2:$G$200"),4,FALSE),"") -> 0.02907407407 | O19: =IFERROR(VLOOKUP(B19,INDIRECT("'"&$N$1&"'!"&"$C$2:$G$200"),5,FALSE),0) -> 70.94122483 | P19: =IFERROR(VLOOKUP(B19,INDIRECT("'"&$P$1&"'!"&"$C$2:$G$200"),4,FALSE),"") -> 0.02871527778 | Q19: =IFERROR(VLOOKUP(B19,INDIRECT("'"&$P$1&"'!"&"$C$2:$G$200"),5,FALSE),0) -> 68.22817081 | R19: =IFERROR(VLOOKUP(B19,INDIRECT("'"&$R$1&"'!"&"$C$2:$G$200"),4,FALSE),"") ->  | S19: =IFERROR(VLOOKUP(B19,INDIRECT("'"&$R$1&"'!"&"$C$2:$G$200"),5,FALSE),0) -> 0 | T19: =IFERROR(VLOOKUP(B19,INDIRECT("'"&$T$1&"'!"&"$C$2:$G$200"),4,FALSE),"") ->  | U19: =IFERROR(VLOOKUP(B19,INDIRECT("'"&$T$1&"'!"&"$C$2:$G$200"),5,FALSE),0) -> 0 | V19: =8-COUNTIF(F19:U19,"") -> 5 | W19: =E19/IF(V19>4,5,V19) -> 68.72193365
A20: 18 | B20: Chris Medcalf | C20: San Domenico | D20: M40 | E20: =SUM(LARGE((S20,G20,I20,K20,M20,O20,Q20,U20),{1,2,3,4,5})) -> 337.3795913 | F20: =IFERROR(VLOOKUP(B20,INDIRECT("'"&$F$1&"'!"&"$C$2:$G$200"),4,FALSE),"") -> 0.01585648148 | G20: =IFERROR(VLOOKUP(B20,INDIRECT("'"&$F$1&"'!"&"$C$2:$G$200"),5,FALSE),0) -> 91.80224293 | H20: =IFERROR(VLOOKUP(B20,INDIRECT("'"&$H$1&"'!"&"$C$2:$G$200"),4,FALSE),"") -> 0.03611111111 | I20: =IFERROR(VLOOKUP(B20,INDIRECT("'"&$H$1&"'!"&"$C$2:$G$200"),5,FALSE),0) -> 83.20730703 | J20: =IFERROR(VLOOKUP(B20,INDIRECT("'"&$J$1&"'!"&"$C$2:$G$200"),4,FALSE),"") ->  | K20: =IFERROR(VLOOKUP(B20,INDIRECT("'"&$J$1&"'!"&"$C$2:$G$200"),5,FALSE),0) -> 0 | L20: =IFERROR(VLOOKUP(B20,INDIRECT("'"&$L$1&"'!"&"$C$2:$G$200"),4,FALSE),"") ->  | M20: =IFERROR(VLOOKUP(B20,INDIRECT("'"&$L$1&"'!"&"$C$2:$G$200"),5,FALSE),0) -> 0 | N20: =IFERROR(VLOOKUP(B20,INDIRECT("'"&$N$1&"'!"&"$C$2:$G$200"),4,FALSE),"") ->  | O20: =IFERROR(VLOOKUP(B20,INDIRECT("'"&$N$1&"'!"&"$C$2:$G$200"),5,FALSE),0) -> 0 | P20: =IFERROR(VLOOKUP(B20,INDIRECT("'"&$P$1&"'!"&"$C$2:$G$200"),4,FALSE),"") -> 0.02708333333 | Q20: =IFERROR(VLOOKUP(B20,INDIRECT("'"&$P$1&"'!"&"$C$2:$G$200"),5,FALSE),0) -> 75.71701721 | R20: =IFERROR(VLOOKUP(B20,INDIRECT("'"&$R$1&"'!"&"$C$2:$G$200"),4,FALSE),"") -> 0.0230787037 | S20: =IFERROR(VLOOKUP(B20,INDIRECT("'"&$R$1&"'!"&"$C$2:$G$200"),5,FALSE),0) -> 86.6530241 | T20: =IFERROR(VLOOKUP(B20,INDIRECT("'"&$T$1&"'!"&"$C$2:$G$200"),4,FALSE),"") ->  | U20: =IFERROR(VLOOKUP(B20,INDIRECT("'"&$T$1&"'!"&"$C$2:$G$200"),5,FALSE),0) -> 0 | V20: =8-COUNTIF(F20:U20,"") -> 4 | W20: =E20/IF(V20>4,5,V20) -> 84.34489782
A21: 19 | B21: Steven Hepton | C21: Mynydd Du | D21: SM | E21: =SUM(LARGE((S21,G21,I21,K21,M21,O21,Q21,U21),{1,2,3,4,5})) -> 336.5808846 | F21: =IFERROR(VLOOKUP(B21,INDIRECT("'"&$F$1&"'!"&"$C$2:$G$200"),4,FALSE),"") ->  | G21: =IFERROR(VLOOKUP(B21,INDIRECT("'"&$F$1&"'!"&"$C$2:$G$200"),5,FALSE),0) -> 0 | H21: =IFERROR(VLOOKUP(B21,INDIRECT("'"&$H$1&"'!"&"$C$2:$G$200"),4,FALSE),"") ->  | I21: =IFERROR(VLOOKUP(B21,INDIRECT("'"&$H$1&"'!"&"$C$2:$G$200"),5,FALSE),0) -> 0 | J21: =IFERROR(VLOOKUP(B21,INDIRECT("'"&$J$1&"'!"&"$C$2:$G$200"),4,FALSE),"") ->  | K21: =IFERROR(VLOOKUP(B21,INDIRECT("'"&$J$1&"'!"&"$C$2:$G$200"),5,FALSE),0) -> 0 | L21: =IFERROR(VLOOKUP(B21,INDIRECT("'"&$L$1&"'!"&"$C$2:$G$200"),4,FALSE),"") -> 0.0221412037 | M21: =IFERROR(VLOOKUP(B21,INDIRECT("'"&$L$1&"'!"&"$C$2:$G$200"),5,FALSE),0) -> 81.70912689 | N21: =IFERROR(VLOOKUP(B21,INDIRECT("'"&$N$1&"'!"&"$C$2:$G$200"),4,FALSE),"") -> 0.02528935185 | O21: =IFERROR(VLOOKUP(B21,INDIRECT("'"&$N$1&"'!"&"$C$2:$G$200"),5,FALSE),0) -> 87.74147143 | P21: =IFERROR(VLOOKUP(B21,INDIRECT("'"&$P$1&"'!"&"$C$2:$G$200"),4,FALSE),"") ->  | Q21: =IFERROR(VLOOKUP(B21,INDIRECT("'"&$P$1&"'!"&"$C$2:$G$200"),5,FALSE),0) -> 0 | R21: =IFERROR(VLOOKUP(B21,INDIRECT("'"&$R$1&"'!"&"$C$2:$G$200"),4,FALSE),"") -> 0.0228125 | S21: =IFERROR(VLOOKUP(B21,INDIRECT("'"&$R$1&"'!"&"$C$2:$G$200"),5,FALSE),0) -> 87.96043656 | T21: =IFERROR(VLOOKUP(B21,INDIRECT("'"&$T$1&"'!"&"$C$2:$G$200"),4,FALSE),"") -> 0.04393518519 | U21: =IFERROR(VLOOKUP(B21,INDIRECT("'"&$T$1&"'!"&"$C$2:$G$200"),5,FALSE),0) -> 79.16984976 | V21: =8-COUNTIF(F21:U21,"") -> 4 | W21: =E21/IF(V21>4,5,V21) -> 84.14522116
A22: 20 | B22: Andy Stott | C22: MDC | D22: M50 | E22: =SUM(LARGE((S22,G22,I22,K22,M22,O22,Q22,U22),{1,2,3,4,5})) -> 332.7034955 | F22: =IFERROR(VLOOKUP(B22,INDIRECT("'"&$F$1&"'!"&"$C$2:$G$200"),4,FALSE),"") ->  | G22: =IFERROR(VLOOKUP(B22,INDIRECT("'"&$F$1&"'!"&"$C$2:$G$200"),5,FALSE),0) -> 0 | H22: =IFERROR(VLOOKUP(B22,INDIRECT("'"&$H$1&"'!"&"$C$2:$G$200"),4,FALSE),"") -> 0.03991898148 | I22: =IFERROR(VLOOKUP(B22,INDIRECT("'"&$H$1&"'!"&"$C$2:$G$200"),5,FALSE),0) -> 70.89166729 | J22: =IFERROR(VLOOKUP(B22,INDIRECT("'"&$J$1&"'!"&"$C$2:$G$200"),4,FALSE),"") ->  | K22: =IFERROR(VLOOKUP(B22,INDIRECT("'"&$J$1&"'!"&"$C$2:$G$200"),5,FALSE),0) -> 0 | L22: =IFERROR(VLOOKUP(B22,INDIRECT("'"&$L$1&"'!"&"$C$2:$G$200"),4,FALSE),"") -> 0.02575231481 | M22: =IFERROR(VLOOKUP(B22,INDIRECT("'"&$L$1&"'!"&"$C$2:$G$200"),5,FALSE),0) -> 62.41652238 | N22: =IFERROR(VLOOKUP(B22,INDIRECT("'"&$N$1&"'!"&"$C$2:$G$200"),4,FALSE),"") -> 0.0299537037 | O22: =IFERROR(VLOOKUP(B22,INDIRECT("'"&$N$1&"'!"&"$C$2:$G$200"),5,FALSE),0) -> 67.03658035 | P22: =IFERROR(VLOOKUP(B22,INDIRECT("'"&$P$1&"'!"&"$C$2:$G$200"),4,FALSE),"") ->  | Q22: =IFERROR(VLOOKUP(B22,INDIRECT("'"&$P$1&"'!"&"$C$2:$G$200"),5,FALSE),0) -> 0 | R22: =IFERROR(VLOOKUP(B22,INDIRECT("'"&$R$1&"'!"&"$C$2:$G$200"),4,FALSE),"") -> 0.02592592593 | S22: =IFERROR(VLOOKUP(B22,INDIRECT("'"&$R$1&"'!"&"$C$2:$G$200"),5,FALSE),0) -> 72.66939518 | T22: =IFERROR(VLOOKUP(B22,INDIRECT("'"&$T$1&"'!"&"$C$2:$G$200"),4,FALSE),"") -> 0.05101851852 | U22: =IFERROR(VLOOKUP(B22,INDIRECT("'"&$T$1&"'!"&"$C$2:$G$200"),5,FALSE),0) -> 59.68933028 | V22: =8-COUNTIF(F22:U22,"") -> 5 | W22: =E22/IF(V22>4,5,V22) -> 66.5406991
A23: 21 | B23: Ed Goldsmith | C23: Unaffiliated | D23: SM | E23: =SUM(LARGE((S23,G23,I23,K23,M23,O23,Q23,U23),{1,2,3,4,5})) -> 324.050058 | F23: =IFERROR(VLOOKUP(B23,INDIRECT("'"&$F$1&"'!"&"$C$2:$G$200"),4,FALSE),"") -> 0.01753472222 | G23: =IFERROR(VLOOKUP(B23,INDIRECT("'"&$F$1&"'!"&"$C$2:$G$200"),5,FALSE),0) -> 80.3506555 | H23: =IFERROR(VLOOKUP(B23,INDIRECT("'"&$H$1&"'!"&"$C$2:$G$200"),4,FALSE),"") -> 0.04010416667 | I23: =IFERROR(VLOOKUP(B23,INDIRECT("'"&$H$1&"'!"&"$C$2:$G$200"),5,FALSE),0) -> 70.2927304 | J23: =IFERROR(VLOOKUP(B23,INDIRECT("'"&$J$1&"'!"&"$C$2:$G$200"),4,FALSE),"") ->  | K23: =IFERROR(VLOOKUP(B23,INDIRECT("'"&$J$1&"'!"&"$C$2:$G$200"),5,FALSE),0) -> 0 | L23: =IFERROR(VLOOKUP(B23,INDIRECT("'"&$L$1&"'!"&"$C$2:$G$200"),4,FALSE),"") -> 0.02724537037 | M23: =IFERROR(VLOOKUP(B23,INDIRECT("'"&$L$1&"'!"&"$C$2:$G$200"),5,FALSE),0) -> 54.43977245 | N23: =IFERROR(VLOOKUP(B23,INDIRECT("'"&$N$1&"'!"&"$C$2:$G$200"),4,FALSE),"") -> 0.03140046296 | O23: =IFERROR(VLOOKUP(B23,INDIRECT("'"&$N$1&"'!"&"$C$2:$G$200"),5,FALSE),0) -> 60.61446774 | P23: =IFERROR(VLOOKUP(B23,INDIRECT("'"&$P$1&"'!"&"$C$2:$G$200"),4,FALSE),"") ->  | Q23: =IFERROR(VLOOKUP(B23,INDIRECT("'"&$P$1&"'!"&"$C$2:$G$200"),5,FALSE),0) -> 0 | R23: =IFERROR(VLOOKUP(B23,INDIRECT("'"&$R$1&"'!"&"$C$2:$G$200"),4,FALSE),"") ->  | S23: =IFERROR(VLOOKUP(B23,INDIRECT("'"&$R$1&"'!"&"$C$2:$G$200"),5,FALSE),0) -> 0 | T23: =IFERROR(VLOOKUP(B23,INDIRECT("'"&$T$1&"'!"&"$C$2:$G$200"),4,FALSE),"") -> 0.05150462963 | U23: =IFERROR(VLOOKUP(B23,INDIRECT("'"&$T$1&"'!"&"$C$2:$G$200"),5,FALSE),0) -> 58.35243188 | V23: =8-COUNTIF(F23:U23,"") -> 5 | W23: =E23/IF(V23>4,5,V23) -> 64.81001159
A24: 22 | B24: Alan Stanley | C24: Unaffiliated | D24: M50 | E24: =SUM(LARGE((S24,G24,I24,K24,M24,O24,Q24,U24),{1,2,3,4,5})) -> 312.7651187 | F24: =IFERROR(VLOOKUP(B24,INDIRECT("'"&$F$1&"'!"&"$C$2:$G$200"),4,FALSE),"") ->  | G24: =IFERROR(VLOOKUP(B24,INDIRECT("'"&$F$1&"'!"&"$C$2:$G$200"),5,FALSE),0) -> 0 | H24: =IFERROR(VLOOKUP(B24,INDIRECT("'"&$H$1&"'!"&"$C$2:$G$200"),4,FALSE),"") -> 0.04327546296 | I24: =IFERROR(VLOOKUP(B24,INDIRECT("'"&$H$1&"'!"&"$C$2:$G$200"),5,FALSE),0) -> 60.03593621 | J24: =IFERROR(VLOOKUP(B24,INDIRECT("'"&$J$1&"'!"&"$C$2:$G$200"),4,FALSE),"") ->  | K24: =IFERROR(VLOOKUP(B24,INDIRECT("'"&$J$1&"'!"&"$C$2:$G$200"),5,FALSE),0) -> 0 | L24: =IFERROR(VLOOKUP(B24,INDIRECT("'"&$L$1&"'!"&"$C$2:$G$200"),4,FALSE),"") ->  | M24: =IFERROR(VLOOKUP(B24,INDIRECT("'"&$L$1&"'!"&"$C$2:$G$200"),5,FALSE),0) -> 0 | N24: =IFERROR(VLOOKUP(B24,INDIRECT("'"&$N$1&"'!"&"$C$2:$G$200"),4,FALSE),"") -> 0.0308912037 | O24: =IFERROR(VLOOKUP(B24,INDIRECT("'"&$N$1&"'!"&"$C$2:$G$200"),5,FALSE),0) -> 62.87505138 | P24: =IFERROR(VLOOKUP(B24,INDIRECT("'"&$P$1&"'!"&"$C$2:$G$200"),4,FALSE),"") -> 0.02979166667 | Q24: =IFERROR(VLOOKUP(B24,INDIRECT("'"&$P$1&"'!"&"$C$2:$G$200"),5,FALSE),0) -> 63.28871893 | R24: =IFERROR(VLOOKUP(B24,INDIRECT("'"&$R$1&"'!"&"$C$2:$G$200"),4,FALSE),"") -> 0.02625 | S24: =IFERROR(VLOOKUP(B24,INDIRECT("'"&$R$1&"'!"&"$C$2:$G$200"),5,FALSE),0) -> 71.07776262 | T24: =IFERROR(VLOOKUP(B24,INDIRECT("'"&$T$1&"'!"&"$C$2:$G$200"),4,FALSE),"") -> 0.0525462963 | U24: =IFERROR(VLOOKUP(B24,INDIRECT("'"&$T$1&"'!"&"$C$2:$G$200"),5,FALSE),0) -> 55.48764961 | V24: =8-COUNTIF(F24:U24,"") -> 5 | W24: =E24/IF(V24>4,5,V24) -> 62.55302375
A25: 23 | B25: Rona Davies | C25: Mynydd Du | D25: F50 | E25: =SUM(LARGE((S25,G25,I25,K25,M25,O25,Q25,U25),{1,2,3,4,5})) -> 310.2881545 | F25: =IFERROR(VLOOKUP(B25,INDIRECT("'"&$F$1&"'!"&"$C$2:$G$200"),4,FALSE),"") ->  | G25: =IFERROR(VLOOKUP(B25,INDIRECT("'"&$F$1&"'!"&"$C$2:$G$200"),5,FALSE),0) -> 0 | H25: =IFERROR(VLOOKUP(B25,INDIRECT("'"&$H$1&"'!"&"$C$2:$G$200"),4,FALSE),"") ->  | I25: =IFERROR(VLOOKUP(B25,INDIRECT("'"&$H$1&"'!"&"$C$2:$G$200"),5,FALSE),0) -> 0 | J25: =IFERROR(VLOOKUP(B25,INDIRECT("'"&$J$1&"'!"&"$C$2:$G$200"),4,FALSE),"") ->  | K25: =IFERROR(VLOOKUP(B25,INDIRECT("'"&$J$1&"'!"&"$C$2:$G$200"),5,FALSE),0) -> 0 | L25: =IFERROR(VLOOKUP(B25,INDIRECT("'"&$L$1&"'!"&"$C$2:$G$200"),4,FALSE),"") -> 0.02552083333 | M25: =IFERROR(VLOOKUP(B25,INDIRECT("'"&$L$1&"'!"&"$C$2:$G$200"),5,FALSE),0) -> 63.6532278 | N25: =IFERROR(VLOOKUP(B25,INDIRECT("'"&$N$1&"'!"&"$C$2:$G$200"),4,FALSE),"") -> 0.02993055556 | O25: =IFERROR(VLOOKUP(B25,INDIRECT("'"&$N$1&"'!"&"$C$2:$G$200"),5,FALSE),0) -> 67.13933416 | P25: =IFERROR(VLOOKUP(B25,INDIRECT("'"&$P$1&"'!"&"$C$2:$G$200"),4,FALSE),"") -> 0.02939814815 | Q25: =IFERROR(VLOOKUP(B25,INDIRECT("'"&$P$1&"'!"&"$C$2:$G$200"),5,FALSE),0) -> 65.09454005 | R25: =IFERROR(VLOOKUP(B25,INDIRECT("'"&$R$1&"'!"&"$C$2:$G$200"),4,FALSE),"") -> 0.02775462963 | S25: =IFERROR(VLOOKUP(B25,INDIRECT("'"&$R$1&"'!"&"$C$2:$G$200"),5,FALSE),0) -> 63.68804002 | T25: =IFERROR(VLOOKUP(B25,INDIRECT("'"&$T$1&"'!"&"$C$2:$G$200"),4,FALSE),"") -> 0.05428240741 | U25: =IFERROR(VLOOKUP(B25,INDIRECT("'"&$T$1&"'!"&"$C$2:$G$200"),5,FALSE),0) -> 50.71301248 | V25: =8-COUNTIF(F25:U25,"") -> 5 | W25: =E25/IF(V25>4,5,V25) -> 62.0576309
A26: 24 | B26: Naomi Prosser | C26: Hereford Couriers | D26: SF | E26: =SUM(LARGE((S26,G26,I26,K26,M26,O26,Q26,U26),{1,2,3,4,5})) -> 300.2013679 | F26: =IFERROR(VLOOKUP(B26,INDIRECT("'"&$F$1&"'!"&"$C$2:$G$200"),4,FALSE),"") -> 0.0175 | G26: =IFERROR(VLOOKUP(B26,INDIRECT("'"&$F$1&"'!"&"$C$2:$G$200"),5,FALSE),0) -> 80.5875849 | H26: =IFERROR(VLOOKUP(B26,INDIRECT("'"&$H$1&"'!"&"$C$2:$G$200"),4,FALSE),"") -> 0.04020833333 | I26: =IFERROR(VLOOKUP(B26,INDIRECT("'"&$H$1&"'!"&"$C$2:$G$200"),5,FALSE),0) -> 69.9558284 | J26: =IFERROR(VLOOKUP(B26,INDIRECT("'"&$J$1&"'!"&"$C$2:$G$200"),4,FALSE),"") ->  | K26: =IFERROR(VLOOKUP(B26,INDIRECT("'"&$J$1&"'!"&"$C$2:$G$200"),5,FALSE),0) -> 0 | L26: =IFERROR(VLOOKUP(B26,INDIRECT("'"&$L$1&"'!"&"$C$2:$G$200"),4,FALSE),"") ->  | M26: =IFERROR(VLOOKUP(B26,INDIRECT("'"&$L$1&"'!"&"$C$2:$G$200"),5,FALSE),0) -> 0 | N26: =IFERROR(VLOOKUP(B26,INDIRECT("'"&$N$1&"'!"&"$C$2:$G$200"),4,FALSE),"") -> 0.02912037037 | O26: =IFERROR(VLOOKUP(B26,INDIRECT("'"&$N$1&"'!"&"$C$2:$G$200"),5,FALSE),0) -> 70.73571722 | P26: =IFERROR(VLOOKUP(B26,INDIRECT("'"&$P$1&"'!"&"$C$2:$G$200"),4,FALSE),"") ->  | Q26: =IFERROR(VLOOKUP(B26,INDIRECT("'"&$P$1&"'!"&"$C$2:$G$200"),5,FALSE),0) -> 0 | R26: =IFERROR(VLOOKUP(B26,INDIRECT("'"&$R$1&"'!"&"$C$2:$G$200"),4,FALSE),"") -> 0.02465277778 | S26: =IFERROR(VLOOKUP(B26,INDIRECT("'"&$R$1&"'!"&"$C$2:$G$200"),5,FALSE),0) -> 78.92223738 | T26: =IFERROR(VLOOKUP(B26,INDIRECT("'"&$T$1&"'!"&"$C$2:$G$200"),4,FALSE),"") ->  | U26: =IFERROR(VLOOKUP(B26,INDIRECT("'"&$T$1&"'!"&"$C$2:$G$200"),5,FALSE),0) -> 0 | V26: =8-COUNTIF(F26:U26,"") -> 4 | W26: =E26/IF(V26>4,5,V26) -> 75.05034198
A27: 25 | B27: Nick Dallimore | C27: MDC | D27: M60 | E27: =SUM(LARGE((S27,G27,I27,K27,M27,O27,Q27,U27),{1,2,3,4,5})) -> 287.8245507 | F27: =IFERROR(VLOOKUP(B27,INDIRECT("'"&$F$1&"'!"&"$C$2:$G$200"),4,FALSE),"") ->  | G27: =IFERROR(VLOOKUP(B27,INDIRECT("'"&$F$1&"'!"&"$C$2:$G$200"),5,FALSE),0) -> 0 | H27: =IFERROR(VLOOKUP(B27,INDIRECT("'"&$H$1&"'!"&"$C$2:$G$200"),4,FALSE),"") ->  | I27: =IFERROR(VLOOKUP(B27,INDIRECT("'"&$H$1&"'!"&"$C$2:$G$200"),5,FALSE),0) -> 0 | J27: =IFERROR(VLOOKUP(B27,INDIRECT("'"&$J$1&"'!"&"$C$2:$G$200"),4,FALSE),"") ->  | K27: =IFERROR(VLOOKUP(B27,INDIRECT("'"&$J$1&"'!"&"$C$2:$G$200"),5,FALSE),0) -> 0 | L27: =IFERROR(VLOOKUP(B27,INDIRECT("'"&$L$1&"'!"&"$C$2:$G$200"),4,FALSE),"") -> 0.02365740741 | M27: =IFERROR(VLOOKUP(B27,INDIRECT("'"&$L$1&"'!"&"$C$2:$G$200"),5,FALSE),0) -> 73.60870641 | N27: =IFERROR(VLOOKUP(B27,INDIRECT("'"&$N$1&"'!"&"$C$2:$G$200"),4,FALSE),"") -> 0.02835648148 | O27: =IFERROR(VLOOKUP(B27,INDIRECT("'"&$N$1&"'!"&"$C$2:$G$200"),5,FALSE),0) -> 74.12659268 | P27: =IFERROR(VLOOKUP(B27,INDIRECT("'"&$P$1&"'!"&"$C$2:$G$200"),4,FALSE),"") ->  | Q27: =IFERROR(VLOOKUP(B27,INDIRECT("'"&$P$1&"'!"&"$C$2:$G$200"),5,FALSE),0) -> 0 | R27: =IFERROR(VLOOKUP(B27,INDIRECT("'"&$R$1&"'!"&"$C$2:$G$200"),4,FALSE),"") -> 0.02532407407 | S27: =IFERROR(VLOOKUP(B27,INDIRECT("'"&$R$1&"'!"&"$C$2:$G$200"),5,FALSE),0) -> 75.62528422 | T27: =IFERROR(VLOOKUP(B27,INDIRECT("'"&$T$1&"'!"&"$C$2:$G$200"),4,FALSE),"") -> 0.04928240741 | U27: =IFERROR(VLOOKUP(B27,INDIRECT("'"&$T$1&"'!"&"$C$2:$G$200"),5,FALSE),0) -> 64.46396741 | V27: =8-COUNTIF(F27:U27,"") -> 4 | W27: =E27/IF(V27>4,5,V27) -> 71.95613768
A28: 26 | B28: John Jaspers | C28: Unaffiliated | D28: M40 | E28: =SUM(LARGE((S28,G28,I28,K28,M28,O28,Q28,U28),{1,2,3,4,5})) -> 285.1470243 | F28: =IFERROR(VLOOKUP(B28,INDIRECT("'"&$F$1&"'!"&"$C$2:$G$200"),4,FALSE),"") -> 0.02078703704 | G28: =IFERROR(VLOOKUP(B28,INDIRECT("'"&$F$1&"'!"&"$C$2:$G$200"),5,FALSE),0) -> 58.15826884 | H28: =IFERROR(VLOOKUP(B28,INDIRECT("'"&$H$1&"'!"&"$C$2:$G$200"),4,FALSE),"") -> 0.04493055556 | I28: =IFERROR(VLOOKUP(B28,INDIRECT("'"&$H$1&"'!"&"$C$2:$G$200"),5,FALSE),0) -> 54.68293779 | J28: =IFERROR(VLOOKUP(B28,INDIRECT("'"&$J$1&"'!"&"$C$2:$G$200"),4,FALSE),"") ->  | K28: =IFERROR(VLOOKUP(B28,INDIRECT("'"&$J$1&"'!"&"$C$2:$G$200"),5,FALSE),0) -> 0 | L28: =IFERROR(VLOOKUP(B28,INDIRECT("'"&$L$1&"'!"&"$C$2:$G$200"),4,FALSE),"") ->  | M28: =IFERROR(VLOOKUP(B28,INDIRECT("'"&$L$1&"'!"&"$C$2:$G$200"),5,FALSE),0) -> 0 | N28: =IFERROR(VLOOKUP(B28,INDIRECT("'"&$N$1&"'!"&"$C$2:$G$200"),4,FALSE),"") -> 0.03440972222 | O28: =IFERROR(VLOOKUP(B28,INDIRECT("'"&$N$1&"'!"&"$C$2:$G$200"),5,FALSE),0) -> 47.25647349 | P28: =IFERROR(VLOOKUP(B28,INDIRECT("'"&$P$1&"'!"&"$C$2:$G$200"),4,FALSE),"") -> 0.03255787037 | Q28: =IFERROR(VLOOKUP(B28,INDIRECT("'"&$P$1&"'!"&"$C$2:$G$200"),5,FALSE),0) -> 50.59485872 | R28: =IFERROR(VLOOKUP(B28,INDIRECT("'"&$R$1&"'!"&"$C$2:$G$200"),4,FALSE),"") -> 0.0271412037 | S28: =IFERROR(VLOOKUP(B28,INDIRECT("'"&$R$1&"'!"&"$C$2:$G$200"),5,FALSE),0) -> 66.70077308 | T28: =IFERROR(VLOOKUP(B28,INDIRECT("'"&$T$1&"'!"&"$C$2:$G$200"),4,FALSE),"") -> 0.05271990741 | U28: =IFERROR(VLOOKUP(B28,INDIRECT("'"&$T$1&"'!"&"$C$2:$G$200"),5,FALSE),0) -> 55.01018589 | V28: =8-COUNTIF(F28:U28,"") -> 6 | W28: =E28/IF(V28>4,5,V28) -> 57.02940486
A29: 27 | B29: Michael Lai | C29: UBOC | D29: MU23 | E29: =SUM(LARGE((S29,G29,I29,K29,M29,O29,Q29,U29),{1,2,3,4,5})) -> 278.8178129 | F29: =IFERROR(VLOOKUP(B29,INDIRECT("'"&$F$1&"'!"&"$C$2:$G$200"),4,FALSE),"") ->  | G29: =IFERROR(VLOOKUP(B29,INDIRECT("'"&$F$1&"'!"&"$C$2:$G$200"),5,FALSE),0) -> 0 | H29: =IFERROR(VLOOKUP(B29,INDIRECT("'"&$H$1&"'!"&"$C$2:$G$200"),4,FALSE),"") ->  | I29: =IFERROR(VLOOKUP(B29,INDIRECT("'"&$H$1&"'!"&"$C$2:$G$200"),5,FALSE),0) -> 0 | J29: =IFERROR(VLOOKUP(B29,INDIRECT("'"&$J$1&"'!"&"$C$2:$G$200"),4,FALSE),"") ->  | K29: =IFERROR(VLOOKUP(B29,INDIRECT("'"&$J$1&"'!"&"$C$2:$G$200"),5,FALSE),0) -> 0 | L29: =IFERROR(VLOOKUP(B29,INDIRECT("'"&$L$1&"'!"&"$C$2:$G$200"),4,FALSE),"") -> 0.02024305556 | M29: =IFERROR(VLOOKUP(B29,INDIRECT("'"&$L$1&"'!"&"$C$2:$G$200"),5,FALSE),0) -> 91.8501113 | N29: =IFERROR(VLOOKUP(B29,INDIRECT("'"&$N$1&"'!"&"$C$2:$G$200"),4,FALSE),"") -> 0.02340277778 | O29: =IFERROR(VLOOKUP(B29,INDIRECT("'"&$N$1&"'!"&"$C$2:$G$200"),5,FALSE),0) -> 96.11590629 | P29: =IFERROR(VLOOKUP(B29,INDIRECT("'"&$P$1&"'!"&"$C$2:$G$200"),4,FALSE),"") ->  | Q29: =IFERROR(VLOOKUP(B29,INDIRECT("'"&$P$1&"'!"&"$C$2:$G$200"),5,FALSE),0) -> 0 | R29: =IFERROR(VLOOKUP(B29,INDIRECT("'"&$R$1&"'!"&"$C$2:$G$200"),4,FALSE),"") ->  | S29: =IFERROR(VLOOKUP(B29,INDIRECT("'"&$R$1&"'!"&"$C$2:$G$200"),5,FALSE),0) -> 0 | T29: =IFERROR(VLOOKUP(B29,INDIRECT("'"&$T$1&"'!"&"$C$2:$G$200"),4,FALSE),"") -> 0.0396875 | U29: =IFERROR(VLOOKUP(B29,INDIRECT("'"&$T$1&"'!"&"$C$2:$G$200"),5,FALSE),0) -> 90.85179526 | V29: =8-COUNTIF(F29:U29,"") -> 3 | W29: =E29/IF(V29>4,5,V29) -> 92.93927095
A30: 28 | B30: Andrew Stephens | C30: Monross Trailblazers | D30: M40 | E30: =SUM(LARGE((S30,G30,I30,K30,M30,O30,Q30,U30),{1,2,3,4,5})) -> 270.9444773 | F30: =IFERROR(VLOOKUP(B30,INDIRECT("'"&$F$1&"'!"&"$C$2:$G$200"),4,FALSE),"") ->  | G30: =IFERROR(VLOOKUP(B30,INDIRECT("'"&$F$1&"'!"&"$C$2:$G$200"),5,FALSE),0) -> 0 | H30: =IFERROR(VLOOKUP(B30,INDIRECT("'"&$H$1&"'!"&"$C$2:$G$200"),4,FALSE),"") ->  | I30: =IFERROR(VLOOKUP(B30,INDIRECT("'"&$H$1&"'!"&"$C$2:$G$200"),5,FALSE),0) -> 0 | J30: =IFERROR(VLOOKUP(B30,INDIRECT("'"&$J$1&"'!"&"$C$2:$G$200"),4,FALSE),"") ->  | K30: =IFERROR(VLOOKUP(B30,INDIRECT("'"&$J$1&"'!"&"$C$2:$G$200"),5,FALSE),0) -> 0 | L30: =IFERROR(VLOOKUP(B30,INDIRECT("'"&$L$1&"'!"&"$C$2:$G$200"),4,FALSE),"") -> 0.02076388889 | M30: =IFERROR(VLOOKUP(B30,INDIRECT("'"&$L$1&"'!"&"$C$2:$G$200"),5,FALSE),0) -> 89.06752412 | N30: =IFERROR(VLOOKUP(B30,INDIRECT("'"&$N$1&"'!"&"$C$2:$G$200"),4,FALSE),"") -> 0.02400462963 | O30: =IFERROR(VLOOKUP(B30,INDIRECT("'"&$N$1&"'!"&"$C$2:$G$200"),5,FALSE),0) -> 93.44430744 | P30: =IFERROR(VLOOKUP(B30,INDIRECT("'"&$P$1&"'!"&"$C$2:$G$200"),4,FALSE),"") ->  | Q30: =IFERROR(VLOOKUP(B30,INDIRECT("'"&$P$1&"'!"&"$C$2:$G$200"),5,FALSE),0) -> 0 | R30: =IFERROR(VLOOKUP(B30,INDIRECT("'"&$R$1&"'!"&"$C$2:$G$200"),4,FALSE),"") ->  | S30: =IFERROR(VLOOKUP(B30,INDIRECT("'"&$R$1&"'!"&"$C$2:$G$200"),5,FALSE),0) -> 0 | T30: =IFERROR(VLOOKUP(B30,INDIRECT("'"&$T$1&"'!"&"$C$2:$G$200"),4,FALSE),"") -> 0.04056712963 | U30: =IFERROR(VLOOKUP(B30,INDIRECT("'"&$T$1&"'!"&"$C$2:$G$200"),5,FALSE),0) -> 88.43264579 | V30: =8-COUNTIF(F30:U30,"") -> 3 | W30: =E30/IF(V30>4,5,V30) -> 90.31482578
A31: 29 | B31: Daniel Lewis | C31: Wye Valley Runners | D31: M40 | E31: =SUM(LARGE((S31,G31,I31,K31,M31,O31,Q31,U31),{1,2,3,4,5})) -> 265.4655799 | F31: =IFERROR(VLOOKUP(B31,INDIRECT("'"&$F$1&"'!"&"$C$2:$G$200"),4,FALSE),"") -> 0.0150462963 | G31: =IFERROR(VLOOKUP(B31,INDIRECT("'"&$F$1&"'!"&"$C$2:$G$200"),5,FALSE),0) -> 97.33059548 | H31: =IFERROR(VLOOKUP(B31,INDIRECT("'"&$H$1&"'!"&"$C$2:$G$200"),4,FALSE),"") -> 0.03488425926 | I31: =IFERROR(VLOOKUP(B31,INDIRECT("'"&$H$1&"'!"&"$C$2:$G$200"),5,FALSE),0) -> 87.17526391 | J31: =IFERROR(VLOOKUP(B31,INDIRECT("'"&$J$1&"'!"&"$C$2:$G$200"),4,FALSE),"") ->  | K31: =IFERROR(VLOOKUP(B31,INDIRECT("'"&$J$1&"'!"&"$C$2:$G$200"),5,FALSE),0) -> 0 | L31: =IFERROR(VLOOKUP(B31,INDIRECT("'"&$L$1&"'!"&"$C$2:$G$200"),4,FALSE),"") ->  | M31: =IFERROR(VLOOKUP(B31,INDIRECT("'"&$L$1&"'!"&"$C$2:$G$200"),5,FALSE),0) -> 0 | N31: =IFERROR(VLOOKUP(B31,INDIRECT("'"&$N$1&"'!"&"$C$2:$G$200"),4,FALSE),"") -> 0.02681712963 | O31: =IFERROR(VLOOKUP(B31,INDIRECT("'"&$N$1&"'!"&"$C$2:$G$200"),5,FALSE),0) -> 80.95972051 | P31: =IFERROR(VLOOKUP(B31,INDIRECT("'"&$P$1&"'!"&"$C$2:$G$200"),4,FALSE),"") ->  | Q31: =IFERROR(VLOOKUP(B31,INDIRECT("'"&$P$1&"'!"&"$C$2:$G$200"),5,FALSE),0) -> 0 | R31: =IFERROR(VLOOKUP(B31,INDIRECT("'"&$R$1&"'!"&"$C$2:$G$200"),4,FALSE),"") ->  | S31: =IFERROR(VLOOKUP(B31,INDIRECT("'"&$R$1&"'!"&"$C$2:$G$200"),5,FALSE),0) -> 0 | T31: =IFERROR(VLOOKUP(B31,INDIRECT("'"&$T$1&"'!"&"$C$2:$G$200"),4,FALSE),"") ->  | U31: =IFERROR(VLOOKUP(B31,INDIRECT("'"&$T$1&"'!"&"$C$2:$G$200"),5,FALSE),0) -> 0 | V31: =8-COUNTIF(F31:U31,"") -> 3 | W31: =E31/IF(V31>4,5,V31) -> 88.48852663
A32: 30 | B32: Jay Goulding | C32: Taff Ely Triathlon | D32: M40 | E32: =SUM(LARGE((S32,G32,I32,K32,M32,O32,Q32,U32),{1,2,3,4,5})) -> 265.2772389 | F32: =IFERROR(VLOOKUP(B32,INDIRECT("'"&$F$1&"'!"&"$C$2:$G$200"),4,FALSE),"") -> 0.01497685185 | G32: =IFERROR(VLOOKUP(B32,INDIRECT("'"&$F$1&"'!"&"$C$2:$G$200"),5,FALSE),0) -> 97.80445427 | H32: =IFERROR(VLOOKUP(B32,INDIRECT("'"&$H$1&"'!"&"$C$2:$G$200"),4,FALSE),"") ->  | I32: =IFERROR(VLOOKUP(B32,INDIRECT("'"&$H$1&"'!"&"$C$2:$G$200"),5,FALSE),0) -> 0 | J32: =IFERROR(VLOOKUP(B32,INDIRECT("'"&$J$1&"'!"&"$C$2:$G$200"),4,FALSE),"") ->  | K32: =IFERROR(VLOOKUP(B32,INDIRECT("'"&$J$1&"'!"&"$C$2:$G$200"),5,FALSE),0) -> 0 | L32: =IFERROR(VLOOKUP(B32,INDIRECT("'"&$L$1&"'!"&"$C$2:$G$200"),4,FALSE),"") -> 0.0224537037 | M32: =IFERROR(VLOOKUP(B32,INDIRECT("'"&$L$1&"'!"&"$C$2:$G$200"),5,FALSE),0) -> 80.03957457 | N32: =IFERROR(VLOOKUP(B32,INDIRECT("'"&$N$1&"'!"&"$C$2:$G$200"),4,FALSE),"") -> 0.0253587963 | O32: =IFERROR(VLOOKUP(B32,INDIRECT("'"&$N$1&"'!"&"$C$2:$G$200"),5,FALSE),0) -> 87.43321003 | P32: =IFERROR(VLOOKUP(B32,INDIRECT("'"&$P$1&"'!"&"$C$2:$G$200"),4,FALSE),"") ->  | Q32: =IFERROR(VLOOKUP(B32,INDIRECT("'"&$P$1&"'!"&"$C$2:$G$200"),5,FALSE),0) -> 0 | R32: =IFERROR(VLOOKUP(B32,INDIRECT("'"&$R$1&"'!"&"$C$2:$G$200"),4,FALSE),"") ->  | S32: =IFERROR(VLOOKUP(B32,INDIRECT("'"&$R$1&"'!"&"$C$2:$G$200"),5,FALSE),0) -> 0 | T32: =IFERROR(VLOOKUP(B32,INDIRECT("'"&$T$1&"'!"&"$C$2:$G$200"),4,FALSE),"") ->  | U32: =IFERROR(VLOOKUP(B32,INDIRECT("'"&$T$1&"'!"&"$C$2:$G$200"),5,FALSE),0) -> 0 | V32: =8-COUNTIF(F32:U32,"") -> 3 | W32: =E32/IF(V32>4,5,V32) -> 88.42574629
A33: 31 | B33: Harri Like | C33: Pont-y-Pwl and District | D33: SF | E33: =SUM(LARGE((S33,G33,I33,K33,M33,O33,Q33,U33),{1,2,3,4,5})) -> 264.7918977 | F33: =IFERROR(VLOOKUP(B33,INDIRECT("'"&$F$1&"'!"&"$C$2:$G$200"),4,FALSE),"") ->  | G33: =IFERROR(VLOOKUP(B33,INDIRECT("'"&$F$1&"'!"&"$C$2:$G$200"),5,FALSE),0) -> 0 | H33: =IFERROR(VLOOKUP(B33,INDIRECT("'"&$H$1&"'!"&"$C$2:$G$200"),4,FALSE),"") -> 0.04199074074 | I33: =IFERROR(VLOOKUP(B33,INDIRECT("'"&$H$1&"'!"&"$C$2:$G$200"),5,FALSE),0) -> 64.19106087 | J33: =IFERROR(VLOOKUP(B33,INDIRECT("'"&$J$1&"'!"&"$C$2:$G$200"),4,FALSE),"") ->  | K33: =IFERROR(VLOOKUP(B33,INDIRECT("'"&$J$1&"'!"&"$C$2:$G$200"),5,FALSE),0) -> 0 | L33: =IFERROR(VLOOKUP(B33,INDIRECT("'"&$L$1&"'!"&"$C$2:$G$200"),4,FALSE),"") ->  | M33: =IFERROR(VLOOKUP(B33,INDIRECT("'"&$L$1&"'!"&"$C$2:$G$200"),5,FALSE),0) -> 0 | N33: =IFERROR(VLOOKUP(B33,INDIRECT("'"&$N$1&"'!"&"$C$2:$G$200"),4,FALSE),"") -> 0.03130787037 | O33: =IFERROR(VLOOKUP(B33,INDIRECT("'"&$N$1&"'!"&"$C$2:$G$200"),5,FALSE),0) -> 61.02548294 | P33: =IFERROR(VLOOKUP(B33,INDIRECT("'"&$P$1&"'!"&"$C$2:$G$200"),4,FALSE),"") ->  | Q33: =IFERROR(VLOOKUP(B33,INDIRECT("'"&$P$1&"'!"&"$C$2:$G$200"),5,FALSE),0) -> 0 | R33: =IFERROR(VLOOKUP(B33,INDIRECT("'"&$R$1&"'!"&"$C$2:$G$200"),4,FALSE),"") -> 0.02553240741 | S33: =IFERROR(VLOOKUP(B33,INDIRECT("'"&$R$1&"'!"&"$C$2:$G$200"),5,FALSE),0) -> 74.60209186 | T33: =IFERROR(VLOOKUP(B33,INDIRECT("'"&$T$1&"'!"&"$C$2:$G$200"),4,FALSE),"") -> 0.04909722222 | U33: =IFERROR(VLOOKUP(B33,INDIRECT("'"&$T$1&"'!"&"$C$2:$G$200"),5,FALSE),0) -> 64.97326203 | V33: =8-COUNTIF(F33:U33,"") -> 4 | W33: =E33/IF(V33>4,5,V33) -> 66.19797443
A34: 32 | B34: Julian Boon | C34: Forest Of Dean AC | D34: M40 | E34: =SUM(LARGE((S34,G34,I34,K34,M34,O34,Q34,U34),{1,2,3,4,5})) -> 264.6728699 | F34: =IFERROR(VLOOKUP(B34,INDIRECT("'"&$F$1&"'!"&"$C$2:$G$200"),4,FALSE),"") -> 0.01565972222 | G34: =IFERROR(VLOOKUP(B34,INDIRECT("'"&$F$1&"'!"&"$C$2:$G$200"),5,FALSE),0) -> 93.14484284 | H34: =IFERROR(VLOOKUP(B34,INDIRECT("'"&$H$1&"'!"&"$C$2:$G$200"),4,FALSE),"") ->  | I34: =IFERROR(VLOOKUP(B34,INDIRECT("'"&$H$1&"'!"&"$C$2:$G$200"),5,FALSE),0) -> 0 | J34: =IFERROR(VLOOKUP(B34,INDIRECT("'"&$J$1&"'!"&"$C$2:$G$200"),4,FALSE),"") ->  | K34: =IFERROR(VLOOKUP(B34,INDIRECT("'"&$J$1&"'!"&"$C$2:$G$200"),5,FALSE),0) -> 0 | L34: =IFERROR(VLOOKUP(B34,INDIRECT("'"&$L$1&"'!"&"$C$2:$G$200"),4,FALSE),"") -> 0.02137731481 | M34: =IFERROR(VLOOKUP(B34,INDIRECT("'"&$L$1&"'!"&"$C$2:$G$200"),5,FALSE),0) -> 85.79025476 | N34: =IFERROR(VLOOKUP(B34,INDIRECT("'"&$N$1&"'!"&"$C$2:$G$200"),4,FALSE),"") -> 0.02574074074 | O34: =IFERROR(VLOOKUP(B34,INDIRECT("'"&$N$1&"'!"&"$C$2:$G$200"),5,FALSE),0) -> 85.7377723 | P34: =IFERROR(VLOOKUP(B34,INDIRECT("'"&$P$1&"'!"&"$C$2:$G$200"),4,FALSE),"") ->  | Q34: =IFERROR(VLOOKUP(B34,INDIRECT("'"&$P$1&"'!"&"$C$2:$G$200"),5,FALSE),0) -> 0 | R34: =IFERROR(VLOOKUP(B34,INDIRECT("'"&$R$1&"'!"&"$C$2:$G$200"),4,FALSE),"") ->  | S34: =IFERROR(VLOOKUP(B34,INDIRECT("'"&$R$1&"'!"&"$C$2:$G$200"),5,FALSE),0) -> 0 | T34: =IFERROR(VLOOKUP(B34,INDIRECT("'"&$T$1&"'!"&"$C$2:$G$200"),4,FALSE),"") ->  | U34: =IFERROR(VLOOKUP(B34,INDIRECT("'"&$T$1&"'!"&"$C$2:$G$200"),5,FALSE),0) -> 0 | V34: =8-COUNTIF(F34:U34,"") -> 3 | W34: =E34/IF(V34>4,5,V34) -> 88.22428997
A35: 33 | B35: Ian Luke | C35: Poole Runners | D35: M40 | E35: =SUM(LARGE((S35,G35,I35,K35,M35,O35,Q35,U35),{1,2,3,4,5})) -> 261.9128928 | F35: =IFERROR(VLOOKUP(B35,INDIRECT("'"&$F$1&"'!"&"$C$2:$G$200"),4,FALSE),"") ->  | G35: =IFERROR(VLOOKUP(B35,INDIRECT("'"&$F$1&"'!"&"$C$2:$G$200"),5,FALSE),0) -> 0 | H35: =IFERROR(VLOOKUP(B35,INDIRECT("'"&$H$1&"'!"&"$C$2:$G$200"),4,FALSE),"") ->  | I35: =IFERROR(VLOOKUP(B35,INDIRECT("'"&$H$1&"'!"&"$C$2:$G$200"),5,FALSE),0) -> 0 | J35: =IFERROR(VLOOKUP(B35,INDIRECT("'"&$J$1&"'!"&"$C$2:$G$200"),4,FALSE),"") ->  | K35: =IFERROR(VLOOKUP(B35,INDIRECT("'"&$J$1&"'!"&"$C$2:$G$200"),5,FALSE),0) -> 0 | L35: =IFERROR(VLOOKUP(B35,INDIRECT("'"&$L$1&"'!"&"$C$2:$G$200"),4,FALSE),"") -> 0.02243055556 | M35: =IFERROR(VLOOKUP(B35,INDIRECT("'"&$L$1&"'!"&"$C$2:$G$200"),5,FALSE),0) -> 80.16324512 | N35: =IFERROR(VLOOKUP(B35,INDIRECT("'"&$N$1&"'!"&"$C$2:$G$200"),4,FALSE),"") -> 0.02436342593 | O35: =IFERROR(VLOOKUP(B35,INDIRECT("'"&$N$1&"'!"&"$C$2:$G$200"),5,FALSE),0) -> 91.85162351 | P35: =IFERROR(VLOOKUP(B35,INDIRECT("'"&$P$1&"'!"&"$C$2:$G$200"),4,FALSE),"") -> 0.02399305556 | Q35: =IFERROR(VLOOKUP(B35,INDIRECT("'"&$P$1&"'!"&"$C$2:$G$200"),5,FALSE),0) -> 89.89802422 | R35: =IFERROR(VLOOKUP(B35,INDIRECT("'"&$R$1&"'!"&"$C$2:$G$200"),4,FALSE),"") ->  | S35: =IFERROR(VLOOKUP(B35,INDIRECT("'"&$R$1&"'!"&"$C$2:$G$200"),5,FALSE),0) -> 0 | T35: =IFERROR(VLOOKUP(B35,INDIRECT("'"&$T$1&"'!"&"$C$2:$G$200"),4,FALSE),"") ->  | U35: =IFERROR(VLOOKUP(B35,INDIRECT("'"&$T$1&"'!"&"$C$2:$G$200"),5,FALSE),0) -> 0 | V35: =8-COUNTIF(F35:U35,"") -> 3 | W35: =E35/IF(V35>4,5,V35) -> 87.30429761
A36: 34 | B36: Tom Turner | C36: Unaffiliated | D36: SM | E36: =SUM(LARGE((S36,G36,I36,K36,M36,O36,Q36,U36),{1,2,3,4,5})) -> 255.7230532 | F36: =IFERROR(VLOOKUP(B36,INDIRECT("'"&$F$1&"'!"&"$C$2:$G$200"),4,FALSE),"") ->  | G36: =IFERROR(VLOOKUP(B36,INDIRECT("'"&$F$1&"'!"&"$C$2:$G$200"),5,FALSE),0) -> 0 | H36: =IFERROR(VLOOKUP(B36,INDIRECT("'"&$H$1&"'!"&"$C$2:$G$200"),4,FALSE),"") ->  | I36: =IFERROR(VLOOKUP(B36,INDIRECT("'"&$H$1&"'!"&"$C$2:$G$200"),5,FALSE),0) -> 0 | J36: =IFERROR(VLOOKUP(B36,INDIRECT("'"&$J$1&"'!"&"$C$2:$G$200"),4,FALSE),"") ->  | K36: =IFERROR(VLOOKUP(B36,INDIRECT("'"&$J$1&"'!"&"$C$2:$G$200"),5,FALSE),0) -> 0 | L36: =IFERROR(VLOOKUP(B36,INDIRECT("'"&$L$1&"'!"&"$C$2:$G$200"),4,FALSE),"") ->  | M36: =IFERROR(VLOOKUP(B36,INDIRECT("'"&$L$1&"'!"&"$C$2:$G$200"),5,FALSE),0) -> 0 | N36: =IFERROR(VLOOKUP(B36,INDIRECT("'"&$N$1&"'!"&"$C$2:$G$200"),4,FALSE),"") -> 0.02667824074 | O36: =IFERROR(VLOOKUP(B36,INDIRECT("'"&$N$1&"'!"&"$C$2:$G$200"),5,FALSE),0) -> 81.57624332 | P36: =IFERROR(VLOOKUP(B36,INDIRECT("'"&$P$1&"'!"&"$C$2:$G$200"),4,FALSE),"") ->  | Q36: =IFERROR(VLOOKUP(B36,INDIRECT("'"&$P$1&"'!"&"$C$2:$G$200"),5,FALSE),0) -> 0 | R36: =IFERROR(VLOOKUP(B36,INDIRECT("'"&$R$1&"'!"&"$C$2:$G$200"),4,FALSE),"") -> 0.02251157407 | S36: =IFERROR(VLOOKUP(B36,INDIRECT("'"&$R$1&"'!"&"$C$2:$G$200"),5,FALSE),0) -> 89.43838108 | T36: =IFERROR(VLOOKUP(B36,INDIRECT("'"&$T$1&"'!"&"$C$2:$G$200"),4,FALSE),"") -> 0.0419212963 | U36: =IFERROR(VLOOKUP(B36,INDIRECT("'"&$T$1&"'!"&"$C$2:$G$200"),5,FALSE),0) -> 84.70842883 | V36: =8-COUNTIF(F36:U36,"") -> 3 | W36: =E36/IF(V36>4,5,V36) -> 85.24101774
A37: 35 | B37: Shaun Styles | C37: Griffithstown Harriers | D37: SM | E37: =SUM(LARGE((S37,G37,I37,K37,M37,O37,Q37,U37),{1,2,3,4,5})) -> 254.5034778 | F37: =IFERROR(VLOOKUP(B37,INDIRECT("'"&$F$1&"'!"&"$C$2:$G$200"),4,FALSE),"") ->  | G37: =IFERROR(VLOOKUP(B37,INDIRECT("'"&$F$1&"'!"&"$C$2:$G$200"),5,FALSE),0) -> 0 | H37: =IFERROR(VLOOKUP(B37,INDIRECT("'"&$H$1&"'!"&"$C$2:$G$200"),4,FALSE),"") ->  | I37: =IFERROR(VLOOKUP(B37,INDIRECT("'"&$H$1&"'!"&"$C$2:$G$200"),5,FALSE),0) -> 0 | J37: =IFERROR(VLOOKUP(B37,INDIRECT("'"&$J$1&"'!"&"$C$2:$G$200"),4,FALSE),"") ->  | K37: =IFERROR(VLOOKUP(B37,INDIRECT("'"&$J$1&"'!"&"$C$2:$G$200"),5,FALSE),0) -> 0 | L37: =IFERROR(VLOOKUP(B37,INDIRECT("'"&$L$1&"'!"&"$C$2:$G$200"),4,FALSE),"") -> 0.02199074074 | M37: =IFERROR(VLOOKUP(B37,INDIRECT("'"&$L$1&"'!"&"$C$2:$G$200"),5,FALSE),0) -> 82.51298541 | N37: =IFERROR(VLOOKUP(B37,INDIRECT("'"&$N$1&"'!"&"$C$2:$G$200"),4,FALSE),"") -> 0.02516203704 | O37: =IFERROR(VLOOKUP(B37,INDIRECT("'"&$N$1&"'!"&"$C$2:$G$200"),5,FALSE),0) -> 88.30661734 | P37: =IFERROR(VLOOKUP(B37,INDIRECT("'"&$P$1&"'!"&"$C$2:$G$200"),4,FALSE),"") -> 0.02534722222 | Q37: =IFERROR(VLOOKUP(B37,INDIRECT("'"&$P$1&"'!"&"$C$2:$G$200"),5,FALSE),0) -> 83.68387508 | R37: =IFERROR(VLOOKUP(B37,INDIRECT("'"&$R$1&"'!"&"$C$2:$G$200"),4,FALSE),"") ->  | S37: =IFERROR(VLOOKUP(B37,INDIRECT("'"&$R$1&"'!"&"$C$2:$G$200"),5,FALSE),0) -> 0 | T37: =IFERROR(VLOOKUP(B37,INDIRECT("'"&$T$1&"'!"&"$C$2:$G$200"),4,FALSE),"") ->  | U37: =IFERROR(VLOOKUP(B37,INDIRECT("'"&$T$1&"'!"&"$C$2:$G$200"),5,FALSE),0) -> 0 | V37: =8-COUNTIF(F37:U37,"") -> 3 | W37: =E37/IF(V37>4,5,V37) -> 84.83449261
A38: 36 | B38: Jamie Cattle | C38: Taff Ely Triathlon | D38: M40 | E38: =SUM(LARGE((S38,G38,I38,K38,M38,O38,Q38,U38),{1,2,3,4,5})) -> 254.2142001 | F38: =IFERROR(VLOOKUP(B38,INDIRECT("'"&$F$1&"'!"&"$C$2:$G$200"),4,FALSE),"") -> 0.01619212963 | G38: =IFERROR(VLOOKUP(B38,INDIRECT("'"&$F$1&"'!"&"$C$2:$G$200"),5,FALSE),0) -> 89.51192545 | H38: =IFERROR(VLOOKUP(B38,INDIRECT("'"&$H$1&"'!"&"$C$2:$G$200"),4,FALSE),"") ->  | I38: =IFERROR(VLOOKUP(B38,INDIRECT("'"&$H$1&"'!"&"$C$2:$G$200"),5,FALSE),0) -> 0 | J38: =IFERROR(VLOOKUP(B38,INDIRECT("'"&$J$1&"'!"&"$C$2:$G$200"),4,FALSE),"") ->  | K38: =IFERROR(VLOOKUP(B38,INDIRECT("'"&$J$1&"'!"&"$C$2:$G$200"),5,FALSE),0) -> 0 | L38: =IFERROR(VLOOKUP(B38,INDIRECT("'"&$L$1&"'!"&"$C$2:$G$200"),4,FALSE),"") ->  | M38: =IFERROR(VLOOKUP(B38,INDIRECT("'"&$L$1&"'!"&"$C$2:$G$200"),5,FALSE),0) -> 0 | N38: =IFERROR(VLOOKUP(B38,INDIRECT("'"&$N$1&"'!"&"$C$2:$G$200"),4,FALSE),"") -> 0.02614583333 | O38: =IFERROR(VLOOKUP(B38,INDIRECT("'"&$N$1&"'!"&"$C$2:$G$200"),5,FALSE),0) -> 83.93958076 | P38: =IFERROR(VLOOKUP(B38,INDIRECT("'"&$P$1&"'!"&"$C$2:$G$200"),4,FALSE),"") -> 0.0259837963 | Q38: =IFERROR(VLOOKUP(B38,INDIRECT("'"&$P$1&"'!"&"$C$2:$G$200"),5,FALSE),0) -> 80.76269386 | R38: =IFERROR(VLOOKUP(B38,INDIRECT("'"&$R$1&"'!"&"$C$2:$G$200"),4,FALSE),"") ->  | S38: =IFERROR(VLOOKUP(B38,INDIRECT("'"&$R$1&"'!"&"$C$2:$G$200"),5,FALSE),0) -> 0 | T38: =IFERROR(VLOOKUP(B38,INDIRECT("'"&$T$1&"'!"&"$C$2:$G$200"),4,FALSE),"") ->  | U38: =IFERROR(VLOOKUP(B38,INDIRECT("'"&$T$1&"'!"&"$C$2:$G$200"),5,FALSE),0) -> 0 | V38: =8-COUNTIF(F38:U38,"") -> 3 | W38: =E38/IF(V38>4,5,V38) -> 84.73806669
A39: 37 | B39: Les Williams | C39: Eryri | D39: M70 | E39: =SUM(LARGE((S39,G39,I39,K39,M39,O39,Q39,U39),{1,2,3,4,5})) -> 250.8911102 | F39: =IFERROR(VLOOKUP(B39,INDIRECT("'"&$F$1&"'!"&"$C$2:$G$200"),4,FALSE),"") -> 0.02034722222 | G39: =IFERROR(VLOOKUP(B39,INDIRECT("'"&$F$1&"'!"&"$C$2:$G$200"),5,FALSE),0) -> 61.15937451 | H39: =IFERROR(VLOOKUP(B39,INDIRECT("'"&$H$1&"'!"&"$C$2:$G$200"),4,FALSE),"") -> 0.04678240741 | I39: =IFERROR(VLOOKUP(B39,INDIRECT("'"&$H$1&"'!"&"$C$2:$G$200"),5,FALSE),0) -> 48.69356892 | J39: =IFERROR(VLOOKUP(B39,INDIRECT("'"&$J$1&"'!"&"$C$2:$G$200"),4,FALSE),"") ->  | K39: =IFERROR(VLOOKUP(B39,INDIRECT("'"&$J$1&"'!"&"$C$2:$G$200"),5,FALSE),0) -> 0 | L39: =IFERROR(VLOOKUP(B39,INDIRECT("'"&$L$1&"'!"&"$C$2:$G$200"),4,FALSE),"") -> 0.03030092593 | M39: =IFERROR(VLOOKUP(B39,INDIRECT("'"&$L$1&"'!"&"$C$2:$G$200"),5,FALSE),0) -> 38.11526094 | N39: =IFERROR(VLOOKUP(B39,INDIRECT("'"&$N$1&"'!"&"$C$2:$G$200"),4,FALSE),"") -> 0.03549768519 | O39: =IFERROR(VLOOKUP(B39,INDIRECT("'"&$N$1&"'!"&"$C$2:$G$200"),5,FALSE),0) -> 42.4270448 | P39: =IFERROR(VLOOKUP(B39,INDIRECT("'"&$P$1&"'!"&"$C$2:$G$200"),4,FALSE),"") -> 0.03366898148 | Q39: =IFERROR(VLOOKUP(B39,INDIRECT("'"&$P$1&"'!"&"$C$2:$G$200"),5,FALSE),0) -> 45.49606968 | R39: =IFERROR(VLOOKUP(B39,INDIRECT("'"&$R$1&"'!"&"$C$2:$G$200"),4,FALSE),"") -> 0.02990740741 | S39: =IFERROR(VLOOKUP(B39,INDIRECT("'"&$R$1&"'!"&"$C$2:$G$200"),5,FALSE),0) -> 53.1150523 | T39: =IFERROR(VLOOKUP(B39,INDIRECT("'"&$T$1&"'!"&"$C$2:$G$200"),4,FALSE),"") -> 0.06001157407 | U39: =IFERROR(VLOOKUP(B39,INDIRECT("'"&$T$1&"'!"&"$C$2:$G$200"),5,FALSE),0) -> 34.95670996 | V39: =8-COUNTIF(F39:U39,"") -> 7 | W39: =E39/IF(V39>4,5,V39) -> 50.17822204
A40: 38 | B40: Robert Pritchard | C40: Monross Trailblazers | D40: SM | E40: =SUM(LARGE((S40,G40,I40,K40,M40,O40,Q40,U40),{1,2,3,4,5})) -> 248.2481658 | F40: =IFERROR(VLOOKUP(B40,INDIRECT("'"&$F$1&"'!"&"$C$2:$G$200"),4,FALSE),"") ->  | G40: =IFERROR(VLOOKUP(B40,INDIRECT("'"&$F$1&"'!"&"$C$2:$G$200"),5,FALSE),0) -> 0 | H40: =IFERROR(VLOOKUP(B40,INDIRECT("'"&$H$1&"'!"&"$C$2:$G$200"),4,FALSE),"") -> 0.03690972222 | I40: =IFERROR(VLOOKUP(B40,INDIRECT("'"&$H$1&"'!"&"$C$2:$G$200"),5,FALSE),0) -> 80.6243917 | J40: =IFERROR(VLOOKUP(B40,INDIRECT("'"&$J$1&"'!"&"$C$2:$G$200"),4,FALSE),"") ->  | K40: =IFERROR(VLOOKUP(B40,INDIRECT("'"&$J$1&"'!"&"$C$2:$G$200"),5,FALSE),0) -> 0 | L40: =IFERROR(VLOOKUP(B40,INDIRECT("'"&$L$1&"'!"&"$C$2:$G$200"),4,FALSE),"") ->  | M40: =IFERROR(VLOOKUP(B40,INDIRECT("'"&$L$1&"'!"&"$C$2:$G$200"),5,FALSE),0) -> 0 | N40: =IFERROR(VLOOKUP(B40,INDIRECT("'"&$N$1&"'!"&"$C$2:$G$200"),4,FALSE),"") ->  | O40: =IFERROR(VLOOKUP(B40,INDIRECT("'"&$N$1&"'!"&"$C$2:$G$200"),5,FALSE),0) -> 0 | P40: =IFERROR(VLOOKUP(B40,INDIRECT("'"&$P$1&"'!"&"$C$2:$G$200"),4,FALSE),"") ->  | Q40: =IFERROR(VLOOKUP(B40,INDIRECT("'"&$P$1&"'!"&"$C$2:$G$200"),5,FALSE),0) -> 0 | R40: =IFERROR(VLOOKUP(B40,INDIRECT("'"&$R$1&"'!"&"$C$2:$G$200"),4,FALSE),"") -> 0.02240740741 | S40: =IFERROR(VLOOKUP(B40,INDIRECT("'"&$R$1&"'!"&"$C$2:$G$200"),5,FALSE),0) -> 89.94997726 | T40: =IFERROR(VLOOKUP(B40,INDIRECT("'"&$T$1&"'!"&"$C$2:$G$200"),4,FALSE),"") -> 0.04447916667 | U40: =IFERROR(VLOOKUP(B40,INDIRECT("'"&$T$1&"'!"&"$C$2:$G$200"),5,FALSE),0) -> 77.67379679 | V40: =8-COUNTIF(F40:U40,"") -> 3 | W40: =E40/IF(V40>4,5,V40) -> 82.74938859
A41: 39 | B41: Gavin Fisher | C41: Unaffiliated | D41: M50 | E41: =SUM(LARGE((S41,G41,I41,K41,M41,O41,Q41,U41),{1,2,3,4,5})) -> 244.3187276 | F41: =IFERROR(VLOOKUP(B41,INDIRECT("'"&$F$1&"'!"&"$C$2:$G$200"),4,FALSE),"") ->  | G41: =IFERROR(VLOOKUP(B41,INDIRECT("'"&$F$1&"'!"&"$C$2:$G$200"),5,FALSE),0) -> 0 | H41: =IFERROR(VLOOKUP(B41,INDIRECT("'"&$H$1&"'!"&"$C$2:$G$200"),4,FALSE),"") -> 0.03737268519 | I41: =IFERROR(VLOOKUP(B41,INDIRECT("'"&$H$1&"'!"&"$C$2:$G$200"),5,FALSE),0) -> 79.12704949 | J41: =IFERROR(VLOOKUP(B41,INDIRECT("'"&$J$1&"'!"&"$C$2:$G$200"),4,FALSE),"") ->  | K41: =IFERROR(VLOOKUP(B41,INDIRECT("'"&$J$1&"'!"&"$C$2:$G$200"),5,FALSE),0) -> 0 | L41: =IFERROR(VLOOKUP(B41,INDIRECT("'"&$L$1&"'!"&"$C$2:$G$200"),4,FALSE),"") -> 0.02310185185 | M41: =IFERROR(VLOOKUP(B41,INDIRECT("'"&$L$1&"'!"&"$C$2:$G$200"),5,FALSE),0) -> 76.57679941 | N41: =IFERROR(VLOOKUP(B41,INDIRECT("'"&$N$1&"'!"&"$C$2:$G$200"),4,FALSE),"") -> 0.02509259259 | O41: =IFERROR(VLOOKUP(B41,INDIRECT("'"&$N$1&"'!"&"$C$2:$G$200"),5,FALSE),0) -> 88.61487875 | P41: =IFERROR(VLOOKUP(B41,INDIRECT("'"&$P$1&"'!"&"$C$2:$G$200"),4,FALSE),"") ->  | Q41: =IFERROR(VLOOKUP(B41,INDIRECT("'"&$P$1&"'!"&"$C$2:$G$200"),5,FALSE),0) -> 0 | R41: =IFERROR(VLOOKUP(B41,INDIRECT("'"&$R$1&"'!"&"$C$2:$G$200"),4,FALSE),"") ->  | S41: =IFERROR(VLOOKUP(B41,INDIRECT("'"&$R$1&"'!"&"$C$2:$G$200"),5,FALSE),0) -> 0 | T41: =IFERROR(VLOOKUP(B41,INDIRECT("'"&$T$1&"'!"&"$C$2:$G$200"),4,FALSE),"") ->  | U41: =IFERROR(VLOOKUP(B41,INDIRECT("'"&$T$1&"'!"&"$C$2:$G$200"),5,FALSE),0) -> 0 | V41: =8-COUNTIF(F41:U41,"") -> 3 | W41: =E41/IF(V41>4,5,V41) -> 81.43957588
A42: 40 | B42: Mark Sims | C42: Brecon AC | D42: M60 | E42: =SUM(LARGE((S42,G42,I42,K42,M42,O42,Q42,U42),{1,2,3,4,5})) -> 244.0859947 | F42: =IFERROR(VLOOKUP(B42,INDIRECT("'"&$F$1&"'!"&"$C$2:$G$200"),4,FALSE),"") -> 0.01865740741 | G42: =IFERROR(VLOOKUP(B42,INDIRECT("'"&$F$1&"'!"&"$C$2:$G$200"),5,FALSE),0) -> 72.6899384 | H42: =IFERROR(VLOOKUP(B42,INDIRECT("'"&$H$1&"'!"&"$C$2:$G$200"),4,FALSE),"") -> 0.04142361111 | I42: =IFERROR(VLOOKUP(B42,INDIRECT("'"&$H$1&"'!"&"$C$2:$G$200"),5,FALSE),0) -> 66.02530508 | J42: =IFERROR(VLOOKUP(B42,INDIRECT("'"&$J$1&"'!"&"$C$2:$G$200"),4,FALSE),"") ->  | K42: =IFERROR(VLOOKUP(B42,INDIRECT("'"&$J$1&"'!"&"$C$2:$G$200"),5,FALSE),0) -> 0 | L42: =IFERROR(VLOOKUP(B42,INDIRECT("'"&$L$1&"'!"&"$C$2:$G$200"),4,FALSE),"") -> 0.02722222222 | M42: =IFERROR(VLOOKUP(B42,INDIRECT("'"&$L$1&"'!"&"$C$2:$G$200"),5,FALSE),0) -> 54.56344299 | N42: =IFERROR(VLOOKUP(B42,INDIRECT("'"&$N$1&"'!"&"$C$2:$G$200"),4,FALSE),"") ->  | O42: =IFERROR(VLOOKUP(B42,INDIRECT("'"&$N$1&"'!"&"$C$2:$G$200"),5,FALSE),0) -> 0 | P42: =IFERROR(VLOOKUP(B42,INDIRECT("'"&$P$1&"'!"&"$C$2:$G$200"),4,FALSE),"") -> 0.03251157407 | Q42: =IFERROR(VLOOKUP(B42,INDIRECT("'"&$P$1&"'!"&"$C$2:$G$200"),5,FALSE),0) -> 50.80730826 | R42: =IFERROR(VLOOKUP(B42,INDIRECT("'"&$R$1&"'!"&"$C$2:$G$200"),4,FALSE),"") ->  | S42: =IFERROR(VLOOKUP(B42,INDIRECT("'"&$R$1&"'!"&"$C$2:$G$200"),5,FALSE),0) -> 0 | T42: =IFERROR(VLOOKUP(B42,INDIRECT("'"&$T$1&"'!"&"$C$2:$G$200"),4,FALSE),"") ->  | U42: =IFERROR(VLOOKUP(B42,INDIRECT("'"&$T$1&"'!"&"$C$2:$G$200"),5,FALSE),0) -> 0 | V42: =8-COUNTIF(F42:U42,"") -> 4 | W42: =E42/IF(V42>4,5,V42) -> 61.02149868
A43: 41 | B43: Richard Cronin | C43: MDC | D43: SM | E43: =SUM(LARGE((S43,G43,I43,K43,M43,O43,Q43,U43),{1,2,3,4,5})) -> 243.9684583 | F43: =IFERROR(VLOOKUP(B43,INDIRECT("'"&$F$1&"'!"&"$C$2:$G$200"),4,FALSE),"") ->  | G43: =IFERROR(VLOOKUP(B43,INDIRECT("'"&$F$1&"'!"&"$C$2:$G$200"),5,FALSE),0) -> 0 | H43: =IFERROR(VLOOKUP(B43,INDIRECT("'"&$H$1&"'!"&"$C$2:$G$200"),4,FALSE),"") -> 0.03805555556 | I43: =IFERROR(VLOOKUP(B43,INDIRECT("'"&$H$1&"'!"&"$C$2:$G$200"),5,FALSE),0) -> 76.91846972 | J43: =IFERROR(VLOOKUP(B43,INDIRECT("'"&$J$1&"'!"&"$C$2:$G$200"),4,FALSE),"") ->  | K43: =IFERROR(VLOOKUP(B43,INDIRECT("'"&$J$1&"'!"&"$C$2:$G$200"),5,FALSE),0) -> 0 | L43: =IFERROR(VLOOKUP(B43,INDIRECT("'"&$L$1&"'!"&"$C$2:$G$200"),4,FALSE),"") -> 0.02802083333 | M43: =IFERROR(VLOOKUP(B43,INDIRECT("'"&$L$1&"'!"&"$C$2:$G$200"),5,FALSE),0) -> 50.2968093 | N43: =IFERROR(VLOOKUP(B43,INDIRECT("'"&$N$1&"'!"&"$C$2:$G$200"),4,FALSE),"") -> 0.03267361111 | O43: =IFERROR(VLOOKUP(B43,INDIRECT("'"&$N$1&"'!"&"$C$2:$G$200"),5,FALSE),0) -> 54.96300863 | P43: =IFERROR(VLOOKUP(B43,INDIRECT("'"&$P$1&"'!"&"$C$2:$G$200"),4,FALSE),"") ->  | Q43: =IFERROR(VLOOKUP(B43,INDIRECT("'"&$P$1&"'!"&"$C$2:$G$200"),5,FALSE),0) -> 0 | R43: =IFERROR(VLOOKUP(B43,INDIRECT("'"&$R$1&"'!"&"$C$2:$G$200"),4,FALSE),"") ->  | S43: =IFERROR(VLOOKUP(B43,INDIRECT("'"&$R$1&"'!"&"$C$2:$G$200"),5,FALSE),0) -> 0 | U43: =IFERROR(VLOOKUP(B43,INDIRECT("'"&$T$1&"'!"&"$C$2:$G$200"),5,FALSE),0) -> 61.79017061 | V43: =8-COUNTIF(F43:U43,"") -> 3 | W43: =E43/IF(V43>4,5,V43) -> 81.32281942
A44: 42 | B44: Bev Tucker | C44: Mynydd Du | D44: F50 | E44: =SUM(LARGE((S44,G44,I44,K44,M44,O44,Q44,U44),{1,2,3,4,5})) -> 240.85008 | F44: =IFERROR(VLOOKUP(B44,INDIRECT("'"&$F$1&"'!"&"$C$2:$G$200"),4,FALSE),"") ->  | G44: =IFERROR(VLOOKUP(B44,INDIRECT("'"&$F$1&"'!"&"$C$2:$G$200"),5,FALSE),0) -> 0 | H44: =IFERROR(VLOOKUP(B44,INDIRECT("'"&$H$1&"'!"&"$C$2:$G$200"),4,FALSE),"") ->  | I44: =IFERROR(VLOOKUP(B44,INDIRECT("'"&$H$1&"'!"&"$C$2:$G$200"),5,FALSE),0) -> 0 | J44: =IFERROR(VLOOKUP(B44,INDIRECT("'"&$J$1&"'!"&"$C$2:$G$200"),4,FALSE),"") ->  | K44: =IFERROR(VLOOKUP(B44,INDIRECT("'"&$J$1&"'!"&"$C$2:$G$200"),5,FALSE),0) -> 0 | L44: =IFERROR(VLOOKUP(B44,INDIRECT("'"&$L$1&"'!"&"$C$2:$G$200"),4,FALSE),"") -> 0.02784722222 | M44: =IFERROR(VLOOKUP(B44,INDIRECT("'"&$L$1&"'!"&"$C$2:$G$200"),5,FALSE),0) -> 51.22433836 | N44: =IFERROR(VLOOKUP(B44,INDIRECT("'"&$N$1&"'!"&"$C$2:$G$200"),4,FALSE),"") -> 0.03341435185 | O44: =IFERROR(VLOOKUP(B44,INDIRECT("'"&$N$1&"'!"&"$C$2:$G$200"),5,FALSE),0) -> 51.67488697 | P44: =IFERROR(VLOOKUP(B44,INDIRECT("'"&$P$1&"'!"&"$C$2:$G$200"),4,FALSE),"") -> 0.03418981481 | Q44: =IFERROR(VLOOKUP(B44,INDIRECT("'"&$P$1&"'!"&"$C$2:$G$200"),5,FALSE),0) -> 43.10601232 | R44: =IFERROR(VLOOKUP(B44,INDIRECT("'"&$R$1&"'!"&"$C$2:$G$200"),4,FALSE),"") -> 0.03021990741 | S44: =IFERROR(VLOOKUP(B44,INDIRECT("'"&$R$1&"'!"&"$C$2:$G$200"),5,FALSE),0) -> 51.58026376 | T44: =IFERROR(VLOOKUP(B44,INDIRECT("'"&$T$1&"'!"&"$C$2:$G$200"),4,FALSE),"") -> 0.05699074074 | U44: =IFERROR(VLOOKUP(B44,INDIRECT("'"&$T$1&"'!"&"$C$2:$G$200"),5,FALSE),0) -> 43.26457856 | V44: =8-COUNTIF(F44:U44,"") -> 5 | W44: =E44/IF(V44>4,5,V44) -> 48.17001599
A45: 43 | B45: Andy Creber | C45: Chepstow Harriers | D45: M50 | E45: =SUM(LARGE((S45,G45,I45,K45,M45,O45,Q45,U45),{1,2,3,4,5})) -> 239.9094788 | F45: =IFERROR(VLOOKUP(B45,INDIRECT("'"&$F$1&"'!"&"$C$2:$G$200"),4,FALSE),"") -> 0.01634259259 | G45: =IFERROR(VLOOKUP(B45,INDIRECT("'"&$F$1&"'!"&"$C$2:$G$200"),5,FALSE),0) -> 88.4852314 | H45: =IFERROR(VLOOKUP(B45,INDIRECT("'"&$H$1&"'!"&"$C$2:$G$200"),4,FALSE),"") ->  | I45: =IFERROR(VLOOKUP(B45,INDIRECT("'"&$H$1&"'!"&"$C$2:$G$200"),5,FALSE),0) -> 0 | J45: =IFERROR(VLOOKUP(B45,INDIRECT("'"&$J$1&"'!"&"$C$2:$G$200"),4,FALSE),"") ->  | K45: =IFERROR(VLOOKUP(B45,INDIRECT("'"&$J$1&"'!"&"$C$2:$G$200"),5,FALSE),0) -> 0 | L45: =IFERROR(VLOOKUP(B45,INDIRECT("'"&$L$1&"'!"&"$C$2:$G$200"),4,FALSE),"") -> 0.02291666667 | M45: =IFERROR(VLOOKUP(B45,INDIRECT("'"&$L$1&"'!"&"$C$2:$G$200"),5,FALSE),0) -> 77.56616374 | N45: =IFERROR(VLOOKUP(B45,INDIRECT("'"&$N$1&"'!"&"$C$2:$G$200"),4,FALSE),"") ->  | O45: =IFERROR(VLOOKUP(B45,INDIRECT("'"&$N$1&"'!"&"$C$2:$G$200"),5,FALSE),0) -> 0 | P45: =IFERROR(VLOOKUP(B45,INDIRECT("'"&$P$1&"'!"&"$C$2:$G$200"),4,FALSE),"") -> 0.02748842593 | Q45: =IFERROR(VLOOKUP(B45,INDIRECT("'"&$P$1&"'!"&"$C$2:$G$200"),5,FALSE),0) -> 73.85808371 | R45: =IFERROR(VLOOKUP(B45,INDIRECT("'"&$R$1&"'!"&"$C$2:$G$200"),4,FALSE),"") ->  | S45: =IFERROR(VLOOKUP(B45,INDIRECT("'"&$R$1&"'!"&"$C$2:$G$200"),5,FALSE),0) -> 0 | T45: =IFERROR(VLOOKUP(B45,INDIRECT("'"&$T$1&"'!"&"$C$2:$G$200"),4,FALSE),"") ->  | U45: =IFERROR(VLOOKUP(B45,INDIRECT("'"&$T$1&"'!"&"$C$2:$G$200"),5,FALSE),0) -> 0 | V45: =8-COUNTIF(F45:U45,"") -> 3 | W45: =E45/IF(V45>4,5,V45) -> 79.96982628
A46: 44 | B46: James Boyle | C46: Chepstow Harriers | D46: M50 | E46: =SUM(LARGE((S46,G46,I46,K46,M46,O46,Q46,U46),{1,2,3,4,5})) -> 233.7761868 | F46: =IFERROR(VLOOKUP(B46,INDIRECT("'"&$F$1&"'!"&"$C$2:$G$200"),4,FALSE),"") ->  | G46: =IFERROR(VLOOKUP(B46,INDIRECT("'"&$F$1&"'!"&"$C$2:$G$200"),5,FALSE),0) -> 0 | H46: =IFERROR(VLOOKUP(B46,INDIRECT("'"&$H$1&"'!"&"$C$2:$G$200"),4,FALSE),"") ->  | I46: =IFERROR(VLOOKUP(B46,INDIRECT("'"&$H$1&"'!"&"$C$2:$G$200"),5,FALSE),0) -> 0 | J46: =IFERROR(VLOOKUP(B46,INDIRECT("'"&$J$1&"'!"&"$C$2:$G$200"),4,FALSE),"") ->  | K46: =IFERROR(VLOOKUP(B46,INDIRECT("'"&$J$1&"'!"&"$C$2:$G$200"),5,FALSE),0) -> 0 | L46: =IFERROR(VLOOKUP(B46,INDIRECT("'"&$L$1&"'!"&"$C$2:$G$200"),4,FALSE),"") -> 0.02300925926 | M46: =IFERROR(VLOOKUP(B46,INDIRECT("'"&$L$1&"'!"&"$C$2:$G$200"),5,FALSE),0) -> 77.07148157 | N46: =IFERROR(VLOOKUP(B46,INDIRECT("'"&$N$1&"'!"&"$C$2:$G$200"),4,FALSE),"") -> 0.02631944444 | O46: =IFERROR(VLOOKUP(B46,INDIRECT("'"&$N$1&"'!"&"$C$2:$G$200"),5,FALSE),0) -> 83.16892725 | P46: =IFERROR(VLOOKUP(B46,INDIRECT("'"&$P$1&"'!"&"$C$2:$G$200"),4,FALSE),"") ->  | Q46: =IFERROR(VLOOKUP(B46,INDIRECT("'"&$P$1&"'!"&"$C$2:$G$200"),5,FALSE),0) -> 0 | R46: =IFERROR(VLOOKUP(B46,INDIRECT("'"&$R$1&"'!"&"$C$2:$G$200"),4,FALSE),"") ->  | S46: =IFERROR(VLOOKUP(B46,INDIRECT("'"&$R$1&"'!"&"$C$2:$G$200"),5,FALSE),0) -> 0 | T46: =IFERROR(VLOOKUP(B46,INDIRECT("'"&$T$1&"'!"&"$C$2:$G$200"),4,FALSE),"") -> 0.0459837963 | U46: =IFERROR(VLOOKUP(B46,INDIRECT("'"&$T$1&"'!"&"$C$2:$G$200"),5,FALSE),0) -> 73.53577795 | V46: =8-COUNTIF(F46:U46,"") -> 3 | W46: =E46/IF(V46>4,5,V46) -> 77.92539559
A47: 45 | B47: Caroline Dallimore | C47: MDC | D47: F60 | E47: =SUM(LARGE((S47,G47,I47,K47,M47,O47,Q47,U47),{1,2,3,4,5})) -> 222.009687 | F47: =IFERROR(VLOOKUP(B47,INDIRECT("'"&$F$1&"'!"&"$C$2:$G$200"),4,FALSE),"") ->  | G47: =IFERROR(VLOOKUP(B47,INDIRECT("'"&$F$1&"'!"&"$C$2:$G$200"),5,FALSE),0) -> 0 | H47: =IFERROR(VLOOKUP(B47,INDIRECT("'"&$H$1&"'!"&"$C$2:$G$200"),4,FALSE),"") -> 0.04710648148 | I47: =IFERROR(VLOOKUP(B47,INDIRECT("'"&$H$1&"'!"&"$C$2:$G$200"),5,FALSE),0) -> 47.64542936 | J47: =IFERROR(VLOOKUP(B47,INDIRECT("'"&$J$1&"'!"&"$C$2:$G$200"),4,FALSE),"") ->  | K47: =IFERROR(VLOOKUP(B47,INDIRECT("'"&$J$1&"'!"&"$C$2:$G$200"),5,FALSE),0) -> 0 | L47: =IFERROR(VLOOKUP(B47,INDIRECT("'"&$L$1&"'!"&"$C$2:$G$200"),4,FALSE),"") -> 0.02949074074 | M47: =IFERROR(VLOOKUP(B47,INDIRECT("'"&$L$1&"'!"&"$C$2:$G$200"),5,FALSE),0) -> 42.4437299 | N47: =IFERROR(VLOOKUP(B47,INDIRECT("'"&$N$1&"'!"&"$C$2:$G$200"),4,FALSE),"") -> 0.03490740741 | O47: =IFERROR(VLOOKUP(B47,INDIRECT("'"&$N$1&"'!"&"$C$2:$G$200"),5,FALSE),0) -> 45.04726675 | P47: =IFERROR(VLOOKUP(B47,INDIRECT("'"&$P$1&"'!"&"$C$2:$G$200"),4,FALSE),"") ->  | Q47: =IFERROR(VLOOKUP(B47,INDIRECT("'"&$P$1&"'!"&"$C$2:$G$200"),5,FALSE),0) -> 0 | R47: =IFERROR(VLOOKUP(B47,INDIRECT("'"&$R$1&"'!"&"$C$2:$G$200"),4,FALSE),"") -> 0.03100694444 | S47: =IFERROR(VLOOKUP(B47,INDIRECT("'"&$R$1&"'!"&"$C$2:$G$200"),5,FALSE),0) -> 47.7148704 | T47: =IFERROR(VLOOKUP(B47,INDIRECT("'"&$T$1&"'!"&"$C$2:$G$200"),4,FALSE),"") -> 0.0584837963 | U47: =IFERROR(VLOOKUP(B47,INDIRECT("'"&$T$1&"'!"&"$C$2:$G$200"),5,FALSE),0) -> 39.15839063 | V47: =8-COUNTIF(F47:U47,"") -> 5 | W47: =E47/IF(V47>4,5,V47) -> 44.40193741
A48: 46 | B48: Simon Daniel | C48: Bristol Up and Running | D48: M40 | E48: =SUM(LARGE((S48,G48,I48,K48,M48,O48,Q48,U48),{1,2,3,4,5})) -> 220.1751763 | F48: =IFERROR(VLOOKUP(B48,INDIRECT("'"&$F$1&"'!"&"$C$2:$G$200"),4,FALSE),"") ->  | G48: =IFERROR(VLOOKUP(B48,INDIRECT("'"&$F$1&"'!"&"$C$2:$G$200"),5,FALSE),0) -> 0 | H48: =IFERROR(VLOOKUP(B48,INDIRECT("'"&$H$1&"'!"&"$C$2:$G$200"),4,FALSE),"") ->  | I48: =IFERROR(VLOOKUP(B48,INDIRECT("'"&$H$1&"'!"&"$C$2:$G$200"),5,FALSE),0) -> 0 | J48: =IFERROR(VLOOKUP(B48,INDIRECT("'"&$J$1&"'!"&"$C$2:$G$200"),4,FALSE),"") ->  | K48: =IFERROR(VLOOKUP(B48,INDIRECT("'"&$J$1&"'!"&"$C$2:$G$200"),5,FALSE),0) -> 0 | L48: =IFERROR(VLOOKUP(B48,INDIRECT("'"&$L$1&"'!"&"$C$2:$G$200"),4,FALSE),"") -> 0.0244212963 | M48: =IFERROR(VLOOKUP(B48,INDIRECT("'"&$L$1&"'!"&"$C$2:$G$200"),5,FALSE),0) -> 69.52757853 | N48: =IFERROR(VLOOKUP(B48,INDIRECT("'"&$N$1&"'!"&"$C$2:$G$200"),4,FALSE),"") -> 0.02769675926 | O48: =IFERROR(VLOOKUP(B48,INDIRECT("'"&$N$1&"'!"&"$C$2:$G$200"),5,FALSE),0) -> 77.05507604 | P48: =IFERROR(VLOOKUP(B48,INDIRECT("'"&$P$1&"'!"&"$C$2:$G$200"),4,FALSE),"") -> 0.0275462963 | Q48: =IFERROR(VLOOKUP(B48,INDIRECT("'"&$P$1&"'!"&"$C$2:$G$200"),5,FALSE),0) -> 73.59252178 | R48: =IFERROR(VLOOKUP(B48,INDIRECT("'"&$R$1&"'!"&"$C$2:$G$200"),4,FALSE),"") ->  | S48: =IFERROR(VLOOKUP(B48,INDIRECT("'"&$R$1&"'!"&"$C$2:$G$200"),5,FALSE),0) -> 0 | T48: =IFERROR(VLOOKUP(B48,INDIRECT("'"&$T$1&"'!"&"$C$2:$G$200"),4,FALSE),"") ->  | U48: =IFERROR(VLOOKUP(B48,INDIRECT("'"&$T$1&"'!"&"$C$2:$G$200"),5,FALSE),0) -> 0 | V48: =8-COUNTIF(F48:U48,"") -> 3 | W48: =E48/IF(V48>4,5,V48) -> 73.39172545
A49: 47 | B49: Mike Harris | C49: Westbury Harriers | D49: M60 | E49: =SUM(LARGE((S49,G49,I49,K49,M49,O49,Q49,U49),{1,2,3,4,5})) -> 219.5631146 | F49: =IFERROR(VLOOKUP(B49,INDIRECT("'"&$F$1&"'!"&"$C$2:$G$200"),4,FALSE),"") ->  | G49: =IFERROR(VLOOKUP(B49,INDIRECT("'"&$F$1&"'!"&"$C$2:$G$200"),5,FALSE),0) -> 0 | H49: =IFERROR(VLOOKUP(B49,INDIRECT("'"&$H$1&"'!"&"$C$2:$G$200"),4,FALSE),"") -> 0.04309027778 | I49: =IFERROR(VLOOKUP(B49,INDIRECT("'"&$H$1&"'!"&"$C$2:$G$200"),5,FALSE),0) -> 60.6348731 | J49: =IFERROR(VLOOKUP(B49,INDIRECT("'"&$J$1&"'!"&"$C$2:$G$200"),4,FALSE),"") ->  | K49: =IFERROR(VLOOKUP(B49,INDIRECT("'"&$J$1&"'!"&"$C$2:$G$200"),5,FALSE),0) -> 0 | L49: =IFERROR(VLOOKUP(B49,INDIRECT("'"&$L$1&"'!"&"$C$2:$G$200"),4,FALSE),"") -> 0.02804398148 | M49: =IFERROR(VLOOKUP(B49,INDIRECT("'"&$L$1&"'!"&"$C$2:$G$200"),5,FALSE),0) -> 50.17313876 | N49: =IFERROR(VLOOKUP(B49,INDIRECT("'"&$N$1&"'!"&"$C$2:$G$200"),4,FALSE),"") -> 0.03503472222 | O49: =IFERROR(VLOOKUP(B49,INDIRECT("'"&$N$1&"'!"&"$C$2:$G$200"),5,FALSE),0) -> 44.48212084 | P49: =IFERROR(VLOOKUP(B49,INDIRECT("'"&$P$1&"'!"&"$C$2:$G$200"),4,FALSE),"") ->  | Q49: =IFERROR(VLOOKUP(B49,INDIRECT("'"&$P$1&"'!"&"$C$2:$G$200"),5,FALSE),0) -> 0 | R49: =IFERROR(VLOOKUP(B49,INDIRECT("'"&$R$1&"'!"&"$C$2:$G$200"),4,FALSE),"") ->  | S49: =IFERROR(VLOOKUP(B49,INDIRECT("'"&$R$1&"'!"&"$C$2:$G$200"),5,FALSE),0) -> 0 | U49: =IFERROR(VLOOKUP(B49,INDIRECT("'"&$T$1&"'!"&"$C$2:$G$200"),5,FALSE),0) -> 64.27298192 | V49: =8-COUNTIF(F49:U49,"") -> 3 | W49: =E49/IF(V49>4,5,V49) -> 73.18770487
A50: 48 | B50: Gary Hughes | C50: Mynydd Du | D50: SM | E50: =SUM(LARGE((S50,G50,I50,K50,M50,O50,Q50,U50),{1,2,3,4,5})) -> 204.7559852 | F50: =IFERROR(VLOOKUP(B50,INDIRECT("'"&$F$1&"'!"&"$C$2:$G$200"),4,FALSE),"") ->  | G50: =IFERROR(VLOOKUP(B50,INDIRECT("'"&$F$1&"'!"&"$C$2:$G$200"),5,FALSE),0) -> 0 | H50: =IFERROR(VLOOKUP(B50,INDIRECT("'"&$H$1&"'!"&"$C$2:$G$200"),4,FALSE),"") -> 0.04060185185 | I50: =IFERROR(VLOOKUP(B50,INDIRECT("'"&$H$1&"'!"&"$C$2:$G$200"),5,FALSE),0) -> 68.68308752 | J50: =IFERROR(VLOOKUP(B50,INDIRECT("'"&$J$1&"'!"&"$C$2:$G$200"),4,FALSE),"") ->  | K50: =IFERROR(VLOOKUP(B50,INDIRECT("'"&$J$1&"'!"&"$C$2:$G$200"),5,FALSE),0) -> 0 | L50: =IFERROR(VLOOKUP(B50,INDIRECT("'"&$L$1&"'!"&"$C$2:$G$200"),4,FALSE),"") ->  | M50: =IFERROR(VLOOKUP(B50,INDIRECT("'"&$L$1&"'!"&"$C$2:$G$200"),5,FALSE),0) -> 0 | N50: =IFERROR(VLOOKUP(B50,INDIRECT("'"&$N$1&"'!"&"$C$2:$G$200"),4,FALSE),"") -> 0.02967592593 | O50: =IFERROR(VLOOKUP(B50,INDIRECT("'"&$N$1&"'!"&"$C$2:$G$200"),5,FALSE),0) -> 68.26962598 | P50: =IFERROR(VLOOKUP(B50,INDIRECT("'"&$P$1&"'!"&"$C$2:$G$200"),4,FALSE),"") -> 0.02880787037 | Q50: =IFERROR(VLOOKUP(B50,INDIRECT("'"&$P$1&"'!"&"$C$2:$G$200"),5,FALSE),0) -> 67.80327172 | R50: =IFERROR(VLOOKUP(B50,INDIRECT("'"&$R$1&"'!"&"$C$2:$G$200"),4,FALSE),"") ->  | S50: =IFERROR(VLOOKUP(B50,INDIRECT("'"&$R$1&"'!"&"$C$2:$G$200"),5,FALSE),0) -> 0 | T50: =IFERROR(VLOOKUP(B50,INDIRECT("'"&$T$1&"'!"&"$C$2:$G$200"),4,FALSE),"") ->  | U50: =IFERROR(VLOOKUP(B50,INDIRECT("'"&$T$1&"'!"&"$C$2:$G$200"),5,FALSE),0) -> 0 | V50: =8-COUNTIF(F50:U50,"") -> 3 | W50: =E50/IF(V50>4,5,V50) -> 68.25199507
A51: 49 | B51: Paul Murrin | C51: Chepstow Harriers | D51: M40 | E51: =SUM(LARGE((S51,G51,I51,K51,M51,O51,Q51,U51),{1,2,3,4,5})) -> 202.5435874 | F51: =IFERROR(VLOOKUP(B51,INDIRECT("'"&$F$1&"'!"&"$C$2:$G$200"),4,FALSE),"") ->  | G51: =IFERROR(VLOOKUP(B51,INDIRECT("'"&$F$1&"'!"&"$C$2:$G$200"),5,FALSE),0) -> 0 | H51: =IFERROR(VLOOKUP(B51,INDIRECT("'"&$H$1&"'!"&"$C$2:$G$200"),4,FALSE),"") ->  | I51: =IFERROR(VLOOKUP(B51,INDIRECT("'"&$H$1&"'!"&"$C$2:$G$200"),5,FALSE),0) -> 0 | J51: =IFERROR(VLOOKUP(B51,INDIRECT("'"&$J$1&"'!"&"$C$2:$G$200"),4,FALSE),"") ->  | K51: =IFERROR(VLOOKUP(B51,INDIRECT("'"&$J$1&"'!"&"$C$2:$G$200"),5,FALSE),0) -> 0 | L51: =IFERROR(VLOOKUP(B51,INDIRECT("'"&$L$1&"'!"&"$C$2:$G$200"),4,FALSE),"") -> 0.01849537037 | M51: =IFERROR(VLOOKUP(B51,INDIRECT("'"&$L$1&"'!"&"$C$2:$G$200"),5,FALSE),0) -> 101.1872372 | N51: =IFERROR(VLOOKUP(B51,INDIRECT("'"&$N$1&"'!"&"$C$2:$G$200"),4,FALSE),"") -> 0.02222222222 | O51: =IFERROR(VLOOKUP(B51,INDIRECT("'"&$N$1&"'!"&"$C$2:$G$200"),5,FALSE),0) -> 101.3563502 | P51: =IFERROR(VLOOKUP(B51,INDIRECT("'"&$P$1&"'!"&"$C$2:$G$200"),4,FALSE),"") ->  | Q51: =IFERROR(VLOOKUP(B51,INDIRECT("'"&$P$1&"'!"&"$C$2:$G$200"),5,FALSE),0) -> 0 | R51: =IFERROR(VLOOKUP(B51,INDIRECT("'"&$R$1&"'!"&"$C$2:$G$200"),4,FALSE),"") ->  | S51: =IFERROR(VLOOKUP(B51,INDIRECT("'"&$R$1&"'!"&"$C$2:$G$200"),5,FALSE),0) -> 0 | T51: =IFERROR(VLOOKUP(B51,INDIRECT("'"&$T$1&"'!"&"$C$2:$G$200"),4,FALSE),"") ->  | U51: =IFERROR(VLOOKUP(B51,INDIRECT("'"&$T$1&"'!"&"$C$2:$G$200"),5,FALSE),0) -> 0 | V51: =8-COUNTIF(F51:U51,"") -> 2 | W51: =E51/IF(V51>4,5,V51) -> 101.2717937
A52: 50 | B52: Daniel Bodman | C52: Aberdare | D52: SM | E52: =SUM(LARGE((S52,G52,I52,K52,M52,O52,Q52,U52),{1,2,3,4,5})) -> 201.5163566 | F52: =IFERROR(VLOOKUP(B52,INDIRECT("'"&$F$1&"'!"&"$C$2:$G$200"),4,FALSE),"") ->  | G52: =IFERROR(VLOOKUP(B52,INDIRECT("'"&$F$1&"'!"&"$C$2:$G$200"),5,FALSE),0) -> 0 | H52: =IFERROR(VLOOKUP(B52,INDIRECT("'"&$H$1&"'!"&"$C$2:$G$200"),4,FALSE),"") ->  | I52: =IFERROR(VLOOKUP(B52,INDIRECT("'"&$H$1&"'!"&"$C$2:$G$200"),5,FALSE),0) -> 0 | J52: =IFERROR(VLOOKUP(B52,INDIRECT("'"&$J$1&"'!"&"$C$2:$G$200"),4,FALSE),"") ->  | K52: =IFERROR(VLOOKUP(B52,INDIRECT("'"&$J$1&"'!"&"$C$2:$G$200"),5,FALSE),0) -> 0 | L52: =IFERROR(VLOOKUP(B52,INDIRECT("'"&$L$1&"'!"&"$C$2:$G$200"),4,FALSE),"") ->  | M52: =IFERROR(VLOOKUP(B52,INDIRECT("'"&$L$1&"'!"&"$C$2:$G$200"),5,FALSE),0) -> 0 | N52: =IFERROR(VLOOKUP(B52,INDIRECT("'"&$N$1&"'!"&"$C$2:$G$200"),4,FALSE),"") ->  | O52: =IFERROR(VLOOKUP(B52,INDIRECT("'"&$N$1&"'!"&"$C$2:$G$200"),5,FALSE),0) -> 0 | P52: =IFERROR(VLOOKUP(B52,INDIRECT("'"&$P$1&"'!"&"$C$2:$G$200"),4,FALSE),"") -> 0.0215625 | Q52: =IFERROR(VLOOKUP(B52,INDIRECT("'"&$P$1&"'!"&"$C$2:$G$200"),5,FALSE),0) -> 101.0516252 | R52: =IFERROR(VLOOKUP(B52,INDIRECT("'"&$R$1&"'!"&"$C$2:$G$200"),4,FALSE),"") ->  | S52: =IFERROR(VLOOKUP(B52,INDIRECT("'"&$R$1&"'!"&"$C$2:$G$200"),5,FALSE),0) -> 0 | T52: =IFERROR(VLOOKUP(B52,INDIRECT("'"&$T$1&"'!"&"$C$2:$G$200"),4,FALSE),"") -> 0.03619212963 | U52: =IFERROR(VLOOKUP(B52,INDIRECT("'"&$T$1&"'!"&"$C$2:$G$200"),5,FALSE),0) -> 100.4647313 | V52: =8-COUNTIF(F52:U52,"") -> 2 | W52: =E52/IF(V52>4,5,V52) -> 100.7581783
A53: 51 | B53: Duncan Loughrey | C53: Unaffiliated | D53: M50 | E53: =SUM(LARGE((S53,G53,I53,K53,M53,O53,Q53,U53),{1,2,3,4,5})) -> 201.0478607 | F53: =IFERROR(VLOOKUP(B53,INDIRECT("'"&$F$1&"'!"&"$C$2:$G$200"),4,FALSE),"") ->  | G53: =IFERROR(VLOOKUP(B53,INDIRECT("'"&$F$1&"'!"&"$C$2:$G$200"),5,FALSE),0) -> 0 | H53: =IFERROR(VLOOKUP(B53,INDIRECT("'"&$H$1&"'!"&"$C$2:$G$200"),4,FALSE),"") -> 0.04078703704 | I53: =IFERROR(VLOOKUP(B53,INDIRECT("'"&$H$1&"'!"&"$C$2:$G$200"),5,FALSE),0) -> 68.08415063 | J53: =IFERROR(VLOOKUP(B53,INDIRECT("'"&$J$1&"'!"&"$C$2:$G$200"),4,FALSE),"") ->  | K53: =IFERROR(VLOOKUP(B53,INDIRECT("'"&$J$1&"'!"&"$C$2:$G$200"),5,FALSE),0) -> 0 | L53: =IFERROR(VLOOKUP(B53,INDIRECT("'"&$L$1&"'!"&"$C$2:$G$200"),4,FALSE),"") ->  | M53: =IFERROR(VLOOKUP(B53,INDIRECT("'"&$L$1&"'!"&"$C$2:$G$200"),5,FALSE),0) -> 0 | N53: =IFERROR(VLOOKUP(B53,INDIRECT("'"&$N$1&"'!"&"$C$2:$G$200"),4,FALSE),"") -> 0.02899305556 | O53: =IFERROR(VLOOKUP(B53,INDIRECT("'"&$N$1&"'!"&"$C$2:$G$200"),5,FALSE),0) -> 71.30086313 | P53: =IFERROR(VLOOKUP(B53,INDIRECT("'"&$P$1&"'!"&"$C$2:$G$200"),4,FALSE),"") ->  | Q53: =IFERROR(VLOOKUP(B53,INDIRECT("'"&$P$1&"'!"&"$C$2:$G$200"),5,FALSE),0) -> 0 | R53: =IFERROR(VLOOKUP(B53,INDIRECT("'"&$R$1&"'!"&"$C$2:$G$200"),4,FALSE),"") ->  | S53: =IFERROR(VLOOKUP(B53,INDIRECT("'"&$R$1&"'!"&"$C$2:$G$200"),5,FALSE),0) -> 0 | U53: =IFERROR(VLOOKUP(B53,INDIRECT("'"&$T$1&"'!"&"$C$2:$G$200"),5,FALSE),0) -> 61.66284696 | V53: =8-COUNTIF(F53:U53,"") -> 2 | W53: =E53/IF(V53>4,5,V53) -> 100.5239304
A54: 52 | B54: Neil Grant | C54: Chepstow Harriers | D54: M60 | E54: =SUM(LARGE((S54,G54,I54,K54,M54,O54,Q54,U54),{1,2,3,4,5})) -> 200.1736943 | F54: =IFERROR(VLOOKUP(B54,INDIRECT("'"&$F$1&"'!"&"$C$2:$G$200"),4,FALSE),"") ->  | G54: =IFERROR(VLOOKUP(B54,INDIRECT("'"&$F$1&"'!"&"$C$2:$G$200"),5,FALSE),0) -> 0 | H54: =IFERROR(VLOOKUP(B54,INDIRECT("'"&$H$1&"'!"&"$C$2:$G$200"),4,FALSE),"") -> 0.04127314815 | I54: =IFERROR(VLOOKUP(B54,INDIRECT("'"&$H$1&"'!"&"$C$2:$G$200"),5,FALSE),0) -> 66.5119413 | J54: =IFERROR(VLOOKUP(B54,INDIRECT("'"&$J$1&"'!"&"$C$2:$G$200"),4,FALSE),"") ->  | K54: =IFERROR(VLOOKUP(B54,INDIRECT("'"&$J$1&"'!"&"$C$2:$G$200"),5,FALSE),0) -> 0 | L54: =IFERROR(VLOOKUP(B54,INDIRECT("'"&$L$1&"'!"&"$C$2:$G$200"),4,FALSE),"") ->  | M54: =IFERROR(VLOOKUP(B54,INDIRECT("'"&$L$1&"'!"&"$C$2:$G$200"),5,FALSE),0) -> 0 | N54: =IFERROR(VLOOKUP(B54,INDIRECT("'"&$N$1&"'!"&"$C$2:$G$200"),4,FALSE),"") -> 0.02905092593 | O54: =IFERROR(VLOOKUP(B54,INDIRECT("'"&$N$1&"'!"&"$C$2:$G$200"),5,FALSE),0) -> 71.04397863 | P54: =IFERROR(VLOOKUP(B54,INDIRECT("'"&$P$1&"'!"&"$C$2:$G$200"),4,FALSE),"") ->  | Q54: =IFERROR(VLOOKUP(B54,INDIRECT("'"&$P$1&"'!"&"$C$2:$G$200"),5,FALSE),0) -> 0 | R54: =IFERROR(VLOOKUP(B54,INDIRECT("'"&$R$1&"'!"&"$C$2:$G$200"),4,FALSE),"") ->  | S54: =IFERROR(VLOOKUP(B54,INDIRECT("'"&$R$1&"'!"&"$C$2:$G$200"),5,FALSE),0) -> 0 | T54: =IFERROR(VLOOKUP(B54,INDIRECT("'"&$T$1&"'!"&"$C$2:$G$200"),4,FALSE),"") -> 0.0499537037 | U54: =IFERROR(VLOOKUP(B54,INDIRECT("'"&$T$1&"'!"&"$C$2:$G$200"),5,FALSE),0) -> 62.61777438 | V54: =8-COUNTIF(F54:U54,"") -> 3 | W54: =E54/IF(V54>4,5,V54) -> 66.72456477
A55: 53 | B55: Matt Grantham | C55: Micky Morris Racing Team | D55: MU23 | E55: =SUM(LARGE((S55,G55,I55,K55,M55,O55,Q55,U55),{1,2,3,4,5})) -> 197.5925795 | F55: =IFERROR(VLOOKUP(B55,INDIRECT("'"&$F$1&"'!"&"$C$2:$G$200"),4,FALSE),"") -> 0.01445601852 | G55: =IFERROR(VLOOKUP(B55,INDIRECT("'"&$F$1&"'!"&"$C$2:$G$200"),5,FALSE),0) -> 101.3583952 | H55: =IFERROR(VLOOKUP(B55,INDIRECT("'"&$H$1&"'!"&"$C$2:$G$200"),4,FALSE),"") -> 0.03208333333 | I55: =IFERROR(VLOOKUP(B55,INDIRECT("'"&$H$1&"'!"&"$C$2:$G$200"),5,FALSE),0) -> 96.23418432 | J55: =IFERROR(VLOOKUP(B55,INDIRECT("'"&$J$1&"'!"&"$C$2:$G$200"),4,FALSE),"") ->  | K55: =IFERROR(VLOOKUP(B55,INDIRECT("'"&$J$1&"'!"&"$C$2:$G$200"),5,FALSE),0) -> 0 | L55: =IFERROR(VLOOKUP(B55,INDIRECT("'"&$L$1&"'!"&"$C$2:$G$200"),4,FALSE),"") ->  | M55: =IFERROR(VLOOKUP(B55,INDIRECT("'"&$L$1&"'!"&"$C$2:$G$200"),5,FALSE),0) -> 0 | N55: =IFERROR(VLOOKUP(B55,INDIRECT("'"&$N$1&"'!"&"$C$2:$G$200"),4,FALSE),"") ->  | O55: =IFERROR(VLOOKUP(B55,INDIRECT("'"&$N$1&"'!"&"$C$2:$G$200"),5,FALSE),0) -> 0 | P55: =IFERROR(VLOOKUP(B55,INDIRECT("'"&$P$1&"'!"&"$C$2:$G$200"),4,FALSE),"") ->  | Q55: =IFERROR(VLOOKUP(B55,INDIRECT("'"&$P$1&"'!"&"$C$2:$G$200"),5,FALSE),0) -> 0 | R55: =IFERROR(VLOOKUP(B55,INDIRECT("'"&$R$1&"'!"&"$C$2:$G$200"),4,FALSE),"") ->  | S55: =IFERROR(VLOOKUP(B55,INDIRECT("'"&$R$1&"'!"&"$C$2:$G$200"),5,FALSE),0) -> 0 | T55: =IFERROR(VLOOKUP(B55,INDIRECT("'"&$T$1&"'!"&"$C$2:$G$200"),4,FALSE),"") ->  | U55: =IFERROR(VLOOKUP(B55,INDIRECT("'"&$T$1&"'!"&"$C$2:$G$200"),5,FALSE),0) -> 0 | V55: =8-COUNTIF(F55:U55,"") -> 2 | W55: =E55/IF(V55>4,5,V55) -> 98.79628976
A56: 54 | B56: Tom Morfey | C56: Cardiff Harlequins | D56: MU23 | E56: =SUM(LARGE((S56,G56,I56,K56,M56,O56,Q56,U56),{1,2,3,4,5})) -> 195.4950035 | F56: =IFERROR(VLOOKUP(B56,INDIRECT("'"&$F$1&"'!"&"$C$2:$G$200"),4,FALSE),"") ->  | G56: =IFERROR(VLOOKUP(B56,INDIRECT("'"&$F$1&"'!"&"$C$2:$G$200"),5,FALSE),0) -> 0 | H56: =IFERROR(VLOOKUP(B56,INDIRECT("'"&$H$1&"'!"&"$C$2:$G$200"),4,FALSE),"") -> 0.04189814815 | I56: =IFERROR(VLOOKUP(B56,INDIRECT("'"&$H$1&"'!"&"$C$2:$G$200"),5,FALSE),0) -> 64.49052931 | J56: =IFERROR(VLOOKUP(B56,INDIRECT("'"&$J$1&"'!"&"$C$2:$G$200"),4,FALSE),"") ->  | K56: =IFERROR(VLOOKUP(B56,INDIRECT("'"&$J$1&"'!"&"$C$2:$G$200"),5,FALSE),0) -> 0 | L56: =IFERROR(VLOOKUP(B56,INDIRECT("'"&$L$1&"'!"&"$C$2:$G$200"),4,FALSE),"") -> 0.02511574074 | M56: =IFERROR(VLOOKUP(B56,INDIRECT("'"&$L$1&"'!"&"$C$2:$G$200"),5,FALSE),0) -> 65.81746228 | N56: =IFERROR(VLOOKUP(B56,INDIRECT("'"&$N$1&"'!"&"$C$2:$G$200"),4,FALSE),"") -> 0.03037037037 | O56: =IFERROR(VLOOKUP(B56,INDIRECT("'"&$N$1&"'!"&"$C$2:$G$200"),5,FALSE),0) -> 65.18701192 | P56: =IFERROR(VLOOKUP(B56,INDIRECT("'"&$P$1&"'!"&"$C$2:$G$200"),4,FALSE),"") ->  | Q56: =IFERROR(VLOOKUP(B56,INDIRECT("'"&$P$1&"'!"&"$C$2:$G$200"),5,FALSE),0) -> 0 | R56: =IFERROR(VLOOKUP(B56,INDIRECT("'"&$R$1&"'!"&"$C$2:$G$200"),4,FALSE),"") ->  | S56: =IFERROR(VLOOKUP(B56,INDIRECT("'"&$R$1&"'!"&"$C$2:$G$200"),5,FALSE),0) -> 0 | T56: =IFERROR(VLOOKUP(B56,INDIRECT("'"&$T$1&"'!"&"$C$2:$G$200"),4,FALSE),"") ->  | U56: =IFERROR(VLOOKUP(B56,INDIRECT("'"&$T$1&"'!"&"$C$2:$G$200"),5,FALSE),0) -> 0 | V56: =8-COUNTIF(F56:U56,"") -> 3 | W56: =E56/IF(V56>4,5,V56) -> 65.16500117
A57: 55 | B57: Iestyn Rhodes | C57: Mynydd Du | D57: M40 | E57: =SUM(LARGE((S57,G57,I57,K57,M57,O57,Q57,U57),{1,2,3,4,5})) -> 192.3548928 | F57: =IFERROR(VLOOKUP(B57,INDIRECT("'"&$F$1&"'!"&"$C$2:$G$200"),4,FALSE),"") ->  | G57: =IFERROR(VLOOKUP(B57,INDIRECT("'"&$F$1&"'!"&"$C$2:$G$200"),5,FALSE),0) -> 0 | H57: =IFERROR(VLOOKUP(B57,INDIRECT("'"&$H$1&"'!"&"$C$2:$G$200"),4,FALSE),"") ->  | I57: =IFERROR(VLOOKUP(B57,INDIRECT("'"&$H$1&"'!"&"$C$2:$G$200"),5,FALSE),0) -> 0 | J57: =IFERROR(VLOOKUP(B57,INDIRECT("'"&$J$1&"'!"&"$C$2:$G$200"),4,FALSE),"") ->  | K57: =IFERROR(VLOOKUP(B57,INDIRECT("'"&$J$1&"'!"&"$C$2:$G$200"),5,FALSE),0) -> 0 | L57: =IFERROR(VLOOKUP(B57,INDIRECT("'"&$L$1&"'!"&"$C$2:$G$200"),4,FALSE),"") ->  | M57: =IFERROR(VLOOKUP(B57,INDIRECT("'"&$L$1&"'!"&"$C$2:$G$200"),5,FALSE),0) -> 0 | N57: =IFERROR(VLOOKUP(B57,INDIRECT("'"&$N$1&"'!"&"$C$2:$G$200"),4,FALSE),"") -> 0.02420138889 | O57: =IFERROR(VLOOKUP(B57,INDIRECT("'"&$N$1&"'!"&"$C$2:$G$200"),5,FALSE),0) -> 92.57090012 | P57: =IFERROR(VLOOKUP(B57,INDIRECT("'"&$P$1&"'!"&"$C$2:$G$200"),4,FALSE),"") ->  | Q57: =IFERROR(VLOOKUP(B57,INDIRECT("'"&$P$1&"'!"&"$C$2:$G$200"),5,FALSE),0) -> 0 | R57: =IFERROR(VLOOKUP(B57,INDIRECT("'"&$R$1&"'!"&"$C$2:$G$200"),4,FALSE),"") -> 0.02040509259 | S57: =IFERROR(VLOOKUP(B57,INDIRECT("'"&$R$1&"'!"&"$C$2:$G$200"),5,FALSE),0) -> 99.78399272 | U57: =IFERROR(VLOOKUP(B57,INDIRECT("'"&$T$1&"'!"&"$C$2:$G$200"),5,FALSE),0) -> 0 | V57: =8-COUNTIF(F57:U57,"") -> 2 | W57: =E57/IF(V57>4,5,V57) -> 96.17744642
A58: 56 | B58: Iwan Morton | C58: Mynydd Du | D58: M40 | E58: =SUM(LARGE((S58,G58,I58,K58,M58,O58,Q58,U58),{1,2,3,4,5})) -> 189.1858963 | F58: =IFERROR(VLOOKUP(B58,INDIRECT("'"&$F$1&"'!"&"$C$2:$G$200"),4,FALSE),"") ->  | G58: =IFERROR(VLOOKUP(B58,INDIRECT("'"&$F$1&"'!"&"$C$2:$G$200"),5,FALSE),0) -> 0 | H58: =IFERROR(VLOOKUP(B58,INDIRECT("'"&$H$1&"'!"&"$C$2:$G$200"),4,FALSE),"") ->  | I58: =IFERROR(VLOOKUP(B58,INDIRECT("'"&$H$1&"'!"&"$C$2:$G$200"),5,FALSE),0) -> 0 | J58: =IFERROR(VLOOKUP(B58,INDIRECT("'"&$J$1&"'!"&"$C$2:$G$200"),4,FALSE),"") ->  | K58: =IFERROR(VLOOKUP(B58,INDIRECT("'"&$J$1&"'!"&"$C$2:$G$200"),5,FALSE),0) -> 0 | L58: =IFERROR(VLOOKUP(B58,INDIRECT("'"&$L$1&"'!"&"$C$2:$G$200"),4,FALSE),"") ->  | M58: =IFERROR(VLOOKUP(B58,INDIRECT("'"&$L$1&"'!"&"$C$2:$G$200"),5,FALSE),0) -> 0 | N58: =IFERROR(VLOOKUP(B58,INDIRECT("'"&$N$1&"'!"&"$C$2:$G$200"),4,FALSE),"") -> 0.02201388889 | O58: =IFERROR(VLOOKUP(B58,INDIRECT("'"&$N$1&"'!"&"$C$2:$G$200"),5,FALSE),0) -> 102.2811344 | P58: =IFERROR(VLOOKUP(B58,INDIRECT("'"&$P$1&"'!"&"$C$2:$G$200"),4,FALSE),"") ->  | Q58: =IFERROR(VLOOKUP(B58,INDIRECT("'"&$P$1&"'!"&"$C$2:$G$200"),5,FALSE),0) -> 0 | R58: =IFERROR(VLOOKUP(B58,INDIRECT("'"&$R$1&"'!"&"$C$2:$G$200"),4,FALSE),"") ->  | S58: =IFERROR(VLOOKUP(B58,INDIRECT("'"&$R$1&"'!"&"$C$2:$G$200"),5,FALSE),0) -> 0 | T58: =IFERROR(VLOOKUP(B58,INDIRECT("'"&$T$1&"'!"&"$C$2:$G$200"),4,FALSE),"") -> 0.04112268519 | U58: =IFERROR(VLOOKUP(B58,INDIRECT("'"&$T$1&"'!"&"$C$2:$G$200"),5,FALSE),0) -> 86.9047619 | V58: =8-COUNTIF(F58:U58,"") -> 2 | W58: =E58/IF(V58>4,5,V58) -> 94.59294815
A59: 57 | B59: Thomas Burden | C59: Unaffiliated | D59: SM | E59: =SUM(LARGE((S59,G59,I59,K59,M59,O59,Q59,U59),{1,2,3,4,5})) -> 188.7868018 | F59: =IFERROR(VLOOKUP(B59,INDIRECT("'"&$F$1&"'!"&"$C$2:$G$200"),4,FALSE),"") ->  | G59: =IFERROR(VLOOKUP(B59,INDIRECT("'"&$F$1&"'!"&"$C$2:$G$200"),5,FALSE),0) -> 0 | H59: =IFERROR(VLOOKUP(B59,INDIRECT("'"&$H$1&"'!"&"$C$2:$G$200"),4,FALSE),"") -> 0.03113425926 | I59: =IFERROR(VLOOKUP(B59,INDIRECT("'"&$H$1&"'!"&"$C$2:$G$200"),5,FALSE),0) -> 99.30373587 | J59: =IFERROR(VLOOKUP(B59,INDIRECT("'"&$J$1&"'!"&"$C$2:$G$200"),4,FALSE),"") ->  | K59: =IFERROR(VLOOKUP(B59,INDIRECT("'"&$J$1&"'!"&"$C$2:$G$200"),5,FALSE),0) -> 0 | L59: =IFERROR(VLOOKUP(B59,INDIRECT("'"&$L$1&"'!"&"$C$2:$G$200"),4,FALSE),"") ->  | M59: =IFERROR(VLOOKUP(B59,INDIRECT("'"&$L$1&"'!"&"$C$2:$G$200"),5,FALSE),0) -> 0 | N59: =IFERROR(VLOOKUP(B59,INDIRECT("'"&$N$1&"'!"&"$C$2:$G$200"),4,FALSE),"") ->  | O59: =IFERROR(VLOOKUP(B59,INDIRECT("'"&$N$1&"'!"&"$C$2:$G$200"),5,FALSE),0) -> 0 | P59: =IFERROR(VLOOKUP(B59,INDIRECT("'"&$P$1&"'!"&"$C$2:$G$200"),4,FALSE),"") ->  | Q59: =IFERROR(VLOOKUP(B59,INDIRECT("'"&$P$1&"'!"&"$C$2:$G$200"),5,FALSE),0) -> 0 | R59: =IFERROR(VLOOKUP(B59,INDIRECT("'"&$R$1&"'!"&"$C$2:$G$200"),4,FALSE),"") ->  | S59: =IFERROR(VLOOKUP(B59,INDIRECT("'"&$R$1&"'!"&"$C$2:$G$200"),5,FALSE),0) -> 0 | T59: =IFERROR(VLOOKUP(B59,INDIRECT("'"&$T$1&"'!"&"$C$2:$G$200"),4,FALSE),"") -> 0.04018518519 | U59: =IFERROR(VLOOKUP(B59,INDIRECT("'"&$T$1&"'!"&"$C$2:$G$200"),5,FALSE),0) -> 89.48306595 | V59: =8-COUNTIF(F59:U59,"") -> 2 | W59: =E59/IF(V59>4,5,V59) -> 94.39340091
A60: 58 | B60: Hollie Ryder | C60: Brycheiniog | D60: SF | E60: =SUM(LARGE((S60,G60,I60,K60,M60,O60,Q60,U60),{1,2,3,4,5})) -> 188.7544797 | F60: =IFERROR(VLOOKUP(B60,INDIRECT("'"&$F$1&"'!"&"$C$2:$G$200"),4,FALSE),"") -> 0.01925925926 | G60: =IFERROR(VLOOKUP(B60,INDIRECT("'"&$F$1&"'!"&"$C$2:$G$200"),5,FALSE),0) -> 68.58316222 | H60: =IFERROR(VLOOKUP(B60,INDIRECT("'"&$H$1&"'!"&"$C$2:$G$200"),4,FALSE),"") ->  | I60: =IFERROR(VLOOKUP(B60,INDIRECT("'"&$H$1&"'!"&"$C$2:$G$200"),5,FALSE),0) -> 0 | J60: =IFERROR(VLOOKUP(B60,INDIRECT("'"&$J$1&"'!"&"$C$2:$G$200"),4,FALSE),"") ->  | K60: =IFERROR(VLOOKUP(B60,INDIRECT("'"&$J$1&"'!"&"$C$2:$G$200"),5,FALSE),0) -> 0 | L60: =IFERROR(VLOOKUP(B60,INDIRECT("'"&$L$1&"'!"&"$C$2:$G$200"),4,FALSE),"") -> 0.0334375 | M60: =IFERROR(VLOOKUP(B60,INDIRECT("'"&$L$1&"'!"&"$C$2:$G$200"),5,FALSE),0) -> 21.35790255 | N60: =IFERROR(VLOOKUP(B60,INDIRECT("'"&$N$1&"'!"&"$C$2:$G$200"),4,FALSE),"") ->  | O60: =IFERROR(VLOOKUP(B60,INDIRECT("'"&$N$1&"'!"&"$C$2:$G$200"),5,FALSE),0) -> 0 | P60: =IFERROR(VLOOKUP(B60,INDIRECT("'"&$P$1&"'!"&"$C$2:$G$200"),4,FALSE),"") -> 0.03275462963 | Q60: =IFERROR(VLOOKUP(B60,INDIRECT("'"&$P$1&"'!"&"$C$2:$G$200"),5,FALSE),0) -> 49.69194816 | R60: =IFERROR(VLOOKUP(B60,INDIRECT("'"&$R$1&"'!"&"$C$2:$G$200"),4,FALSE),"") ->  | S60: =IFERROR(VLOOKUP(B60,INDIRECT("'"&$R$1&"'!"&"$C$2:$G$200"),5,FALSE),0) -> 0 | T60: =IFERROR(VLOOKUP(B60,INDIRECT("'"&$T$1&"'!"&"$C$2:$G$200"),4,FALSE),"") -> 0.05486111111 | U60: =IFERROR(VLOOKUP(B60,INDIRECT("'"&$T$1&"'!"&"$C$2:$G$200"),5,FALSE),0) -> 49.12146677 | V60: =8-COUNTIF(F60:U60,"") -> 4 | W60: =E60/IF(V60>4,5,V60) -> 47.18861992
A61: 59 | B61: Mike Erskine | C61: Les Croupiers | D61: SM | E61: =SUM(LARGE((S61,G61,I61,K61,M61,O61,Q61,U61),{1,2,3,4,5})) -> 185.3986238 | F61: =IFERROR(VLOOKUP(B61,INDIRECT("'"&$F$1&"'!"&"$C$2:$G$200"),4,FALSE),"") ->  | G61: =IFERROR(VLOOKUP(B61,INDIRECT("'"&$F$1&"'!"&"$C$2:$G$200"),5,FALSE),0) -> 0 | H61: =IFERROR(VLOOKUP(B61,INDIRECT("'"&$H$1&"'!"&"$C$2:$G$200"),4,FALSE),"") -> 0.03283564815 | I61: =IFERROR(VLOOKUP(B61,INDIRECT("'"&$H$1&"'!"&"$C$2:$G$200"),5,FALSE),0) -> 93.80100322 | J61: =IFERROR(VLOOKUP(B61,INDIRECT("'"&$J$1&"'!"&"$C$2:$G$200"),4,FALSE),"") ->  | K61: =IFERROR(VLOOKUP(B61,INDIRECT("'"&$J$1&"'!"&"$C$2:$G$200"),5,FALSE),0) -> 0 | L61: =IFERROR(VLOOKUP(B61,INDIRECT("'"&$L$1&"'!"&"$C$2:$G$200"),4,FALSE),"") ->  | M61: =IFERROR(VLOOKUP(B61,INDIRECT("'"&$L$1&"'!"&"$C$2:$G$200"),5,FALSE),0) -> 0 | N61: =IFERROR(VLOOKUP(B61,INDIRECT("'"&$N$1&"'!"&"$C$2:$G$200"),4,FALSE),"") ->  | O61: =IFERROR(VLOOKUP(B61,INDIRECT("'"&$N$1&"'!"&"$C$2:$G$200"),5,FALSE),0) -> 0 | P61: =IFERROR(VLOOKUP(B61,INDIRECT("'"&$P$1&"'!"&"$C$2:$G$200"),4,FALSE),"") -> 0.02362268519 | Q61: =IFERROR(VLOOKUP(B61,INDIRECT("'"&$P$1&"'!"&"$C$2:$G$200"),5,FALSE),0) -> 91.59762057 | R61: =IFERROR(VLOOKUP(B61,INDIRECT("'"&$R$1&"'!"&"$C$2:$G$200"),4,FALSE),"") ->  | S61: =IFERROR(VLOOKUP(B61,INDIRECT("'"&$R$1&"'!"&"$C$2:$G$200"),5,FALSE),0) -> 0 | U61: =IFERROR(VLOOKUP(B61,INDIRECT("'"&$T$1&"'!"&"$C$2:$G$200"),5,FALSE),0) -> 0 | V61: =8-COUNTIF(F61:U61,"") -> 2 | W61: =E61/IF(V61>4,5,V61) -> 92.69931189
A62: 60 | B62: Richie Johnson | C62: Mynydd Du | D62: M40 | E62: =SUM(LARGE((S62,G62,I62,K62,M62,O62,Q62,U62),{1,2,3,4,5})) -> 185.2652657 | F62: =IFERROR(VLOOKUP(B62,INDIRECT("'"&$F$1&"'!"&"$C$2:$G$200"),4,FALSE),"") ->  | G62: =IFERROR(VLOOKUP(B62,INDIRECT("'"&$F$1&"'!"&"$C$2:$G$200"),5,FALSE),0) -> 0 | H62: =IFERROR(VLOOKUP(B62,INDIRECT("'"&$H$1&"'!"&"$C$2:$G$200"),4,FALSE),"") ->  | I62: =IFERROR(VLOOKUP(B62,INDIRECT("'"&$H$1&"'!"&"$C$2:$G$200"),5,FALSE),0) -> 0 | J62: =IFERROR(VLOOKUP(B62,INDIRECT("'"&$J$1&"'!"&"$C$2:$G$200"),4,FALSE),"") ->  | K62: =IFERROR(VLOOKUP(B62,INDIRECT("'"&$J$1&"'!"&"$C$2:$G$200"),5,FALSE),0) -> 0 | L62: =IFERROR(VLOOKUP(B62,INDIRECT("'"&$L$1&"'!"&"$C$2:$G$200"),4,FALSE),"") ->  | M62: =IFERROR(VLOOKUP(B62,INDIRECT("'"&$L$1&"'!"&"$C$2:$G$200"),5,FALSE),0) -> 0 | N62: =IFERROR(VLOOKUP(B62,INDIRECT("'"&$N$1&"'!"&"$C$2:$G$200"),4,FALSE),"") ->  | O62: =IFERROR(VLOOKUP(B62,INDIRECT("'"&$N$1&"'!"&"$C$2:$G$200"),5,FALSE),0) -> 0 | P62: =IFERROR(VLOOKUP(B62,INDIRECT("'"&$P$1&"'!"&"$C$2:$G$200"),4,FALSE),"") ->  | Q62: =IFERROR(VLOOKUP(B62,INDIRECT("'"&$P$1&"'!"&"$C$2:$G$200"),5,FALSE),0) -> 0 | R62: =IFERROR(VLOOKUP(B62,INDIRECT("'"&$R$1&"'!"&"$C$2:$G$200"),4,FALSE),"") -> 0.02112268519 | S62: =IFERROR(VLOOKUP(B62,INDIRECT("'"&$R$1&"'!"&"$C$2:$G$200"),5,FALSE),0) -> 96.25966348 | T62: =IFERROR(VLOOKUP(B62,INDIRECT("'"&$T$1&"'!"&"$C$2:$G$200"),4,FALSE),"") -> 0.0403587963 | U62: =IFERROR(VLOOKUP(B62,INDIRECT("'"&$T$1&"'!"&"$C$2:$G$200"),5,FALSE),0) -> 89.00560224 | V62: =8-COUNTIF(F62:U62,"") -> 2 | W62: =E62/IF(V62>4,5,V62) -> 92.63263286
A63: 61 | B63: Jonny Woolridge | C63: Unaffiliated | D63: SM | E63: =SUM(LARGE((S63,G63,I63,K63,M63,O63,Q63,U63),{1,2,3,4,5})) -> 184.0810444 | F63: =IFERROR(VLOOKUP(B63,INDIRECT("'"&$F$1&"'!"&"$C$2:$G$200"),4,FALSE),"") ->  | G63: =IFERROR(VLOOKUP(B63,INDIRECT("'"&$F$1&"'!"&"$C$2:$G$200"),5,FALSE),0) -> 0 | H63: =IFERROR(VLOOKUP(B63,INDIRECT("'"&$H$1&"'!"&"$C$2:$G$200"),4,FALSE),"") -> 0.03400462963 | I63: =IFERROR(VLOOKUP(B63,INDIRECT("'"&$H$1&"'!"&"$C$2:$G$200"),5,FALSE),0) -> 90.02021412 | J63: =IFERROR(VLOOKUP(B63,INDIRECT("'"&$J$1&"'!"&"$C$2:$G$200"),4,FALSE),"") ->  | K63: =IFERROR(VLOOKUP(B63,INDIRECT("'"&$J$1&"'!"&"$C$2:$G$200"),5,FALSE),0) -> 0 | L63: =IFERROR(VLOOKUP(B63,INDIRECT("'"&$L$1&"'!"&"$C$2:$G$200"),4,FALSE),"") ->  | M63: =IFERROR(VLOOKUP(B63,INDIRECT("'"&$L$1&"'!"&"$C$2:$G$200"),5,FALSE),0) -> 0 | N63: =IFERROR(VLOOKUP(B63,INDIRECT("'"&$N$1&"'!"&"$C$2:$G$200"),4,FALSE),"") -> 0.02386574074 | O63: =IFERROR(VLOOKUP(B63,INDIRECT("'"&$N$1&"'!"&"$C$2:$G$200"),5,FALSE),0) -> 94.06083025 | P63: =IFERROR(VLOOKUP(B63,INDIRECT("'"&$P$1&"'!"&"$C$2:$G$200"),4,FALSE),"") ->  | Q63: =IFERROR(VLOOKUP(B63,INDIRECT("'"&$P$1&"'!"&"$C$2:$G$200"),5,FALSE),0) -> 0 | R63: =IFERROR(VLOOKUP(B63,INDIRECT("'"&$R$1&"'!"&"$C$2:$G$200"),4,FALSE),"") ->  | S63: =IFERROR(VLOOKUP(B63,INDIRECT("'"&$R$1&"'!"&"$C$2:$G$200"),5,FALSE),0) -> 0 | T63: =IFERROR(VLOOKUP(B63,INDIRECT("'"&$T$1&"'!"&"$C$2:$G$200"),4,FALSE),"") ->  | U63: =IFERROR(VLOOKUP(B63,INDIRECT("'"&$T$1&"'!"&"$C$2:$G$200"),5,FALSE),0) -> 0 | V63: =8-COUNTIF(F63:U63,"") -> 2 | W63: =E63/IF(V63>4,5,V63) -> 92.04052219
A64: 62 | B64: Ruth Pickvance | C64: Mynydd Du | D64: F50 | E64: =SUM(LARGE((S64,G64,I64,K64,M64,O64,Q64,U64),{1,2,3,4,5})) -> 183.6323289 | F64: =IFERROR(VLOOKUP(B64,INDIRECT("'"&$F$1&"'!"&"$C$2:$G$200"),4,FALSE),"") ->  | G64: =IFERROR(VLOOKUP(B64,INDIRECT("'"&$F$1&"'!"&"$C$2:$G$200"),5,FALSE),0) -> 0 | H64: =IFERROR(VLOOKUP(B64,INDIRECT("'"&$H$1&"'!"&"$C$2:$G$200"),4,FALSE),"") ->  | I64: =IFERROR(VLOOKUP(B64,INDIRECT("'"&$H$1&"'!"&"$C$2:$G$200"),5,FALSE),0) -> 0 | J64: =IFERROR(VLOOKUP(B64,INDIRECT("'"&$J$1&"'!"&"$C$2:$G$200"),4,FALSE),"") ->  | K64: =IFERROR(VLOOKUP(B64,INDIRECT("'"&$J$1&"'!"&"$C$2:$G$200"),5,FALSE),0) -> 0 | L64: =IFERROR(VLOOKUP(B64,INDIRECT("'"&$L$1&"'!"&"$C$2:$G$200"),4,FALSE),"") ->  | M64: =IFERROR(VLOOKUP(B64,INDIRECT("'"&$L$1&"'!"&"$C$2:$G$200"),5,FALSE),0) -> 0 | N64: =IFERROR(VLOOKUP(B64,INDIRECT("'"&$N$1&"'!"&"$C$2:$G$200"),4,FALSE),"") -> 0.03047453704 | O64: =IFERROR(VLOOKUP(B64,INDIRECT("'"&$N$1&"'!"&"$C$2:$G$200"),5,FALSE),0) -> 64.72461981 | P64: =IFERROR(VLOOKUP(B64,INDIRECT("'"&$P$1&"'!"&"$C$2:$G$200"),4,FALSE),"") -> 0.02902777778 | Q64: =IFERROR(VLOOKUP(B64,INDIRECT("'"&$P$1&"'!"&"$C$2:$G$200"),5,FALSE),0) -> 66.79413639 | R64: =IFERROR(VLOOKUP(B64,INDIRECT("'"&$R$1&"'!"&"$C$2:$G$200"),4,FALSE),"") ->  | S64: =IFERROR(VLOOKUP(B64,INDIRECT("'"&$R$1&"'!"&"$C$2:$G$200"),5,FALSE),0) -> 0 | T64: =IFERROR(VLOOKUP(B64,INDIRECT("'"&$T$1&"'!"&"$C$2:$G$200"),4,FALSE),"") -> 0.05377314815 | U64: =IFERROR(VLOOKUP(B64,INDIRECT("'"&$T$1&"'!"&"$C$2:$G$200"),5,FALSE),0) -> 52.1135727 | V64: =8-COUNTIF(F64:U64,"") -> 3 | W64: =E64/IF(V64>4,5,V64) -> 61.2107763
A65: 63 | B65: Christine Farr | C65: MDC | D65: F40 | E65: =SUM(LARGE((S65,G65,I65,K65,M65,O65,Q65,U65),{1,2,3,4,5})) -> 181.1466098 | F65: =IFERROR(VLOOKUP(B65,INDIRECT("'"&$F$1&"'!"&"$C$2:$G$200"),4,FALSE),"") ->  | G65: =IFERROR(VLOOKUP(B65,INDIRECT("'"&$F$1&"'!"&"$C$2:$G$200"),5,FALSE),0) -> 0 | H65: =IFERROR(VLOOKUP(B65,INDIRECT("'"&$H$1&"'!"&"$C$2:$G$200"),4,FALSE),"") ->  | I65: =IFERROR(VLOOKUP(B65,INDIRECT("'"&$H$1&"'!"&"$C$2:$G$200"),5,FALSE),0) -> 0 | J65: =IFERROR(VLOOKUP(B65,INDIRECT("'"&$J$1&"'!"&"$C$2:$G$200"),4,FALSE),"") ->  | K65: =IFERROR(VLOOKUP(B65,INDIRECT("'"&$J$1&"'!"&"$C$2:$G$200"),5,FALSE),0) -> 0 | L65: =IFERROR(VLOOKUP(B65,INDIRECT("'"&$L$1&"'!"&"$C$2:$G$200"),4,FALSE),"") ->  | M65: =IFERROR(VLOOKUP(B65,INDIRECT("'"&$L$1&"'!"&"$C$2:$G$200"),5,FALSE),0) -> 0 | N65: =IFERROR(VLOOKUP(B65,INDIRECT("'"&$N$1&"'!"&"$C$2:$G$200"),4,FALSE),"") -> 0.03193287037 | O65: =IFERROR(VLOOKUP(B65,INDIRECT("'"&$N$1&"'!"&"$C$2:$G$200"),5,FALSE),0) -> 58.25113029 | P65: =IFERROR(VLOOKUP(B65,INDIRECT("'"&$P$1&"'!"&"$C$2:$G$200"),4,FALSE),"") -> 0.02935185185 | Q65: =IFERROR(VLOOKUP(B65,INDIRECT("'"&$P$1&"'!"&"$C$2:$G$200"),5,FALSE),0) -> 65.30698959 | R65: =IFERROR(VLOOKUP(B65,INDIRECT("'"&$R$1&"'!"&"$C$2:$G$200"),4,FALSE),"") ->  | S65: =IFERROR(VLOOKUP(B65,INDIRECT("'"&$R$1&"'!"&"$C$2:$G$200"),5,FALSE),0) -> 0 | T65: =IFERROR(VLOOKUP(B65,INDIRECT("'"&$T$1&"'!"&"$C$2:$G$200"),4,FALSE),"") -> 0.05178240741 | U65: =IFERROR(VLOOKUP(B65,INDIRECT("'"&$T$1&"'!"&"$C$2:$G$200"),5,FALSE),0) -> 57.58848994 | V65: =8-COUNTIF(F65:U65,"") -> 3 | W65: =E65/IF(V65>4,5,V65) -> 60.38220327
A66: 64 | B66: John Price | C66: Hay Hotfooters | D66: M60 | E66: =SUM(LARGE((S66,G66,I66,K66,M66,O66,Q66,U66),{1,2,3,4,5})) -> 178.6407642 | F66: =IFERROR(VLOOKUP(B66,INDIRECT("'"&$F$1&"'!"&"$C$2:$G$200"),4,FALSE),"") -> 0.02246527778 | G66: =IFERROR(VLOOKUP(B66,INDIRECT("'"&$F$1&"'!"&"$C$2:$G$200"),5,FALSE),0) -> 46.70668141 | H66: =IFERROR(VLOOKUP(B66,INDIRECT("'"&$H$1&"'!"&"$C$2:$G$200"),4,FALSE),"") ->  | I66: =IFERROR(VLOOKUP(B66,INDIRECT("'"&$H$1&"'!"&"$C$2:$G$200"),5,FALSE),0) -> 0 | J66: =IFERROR(VLOOKUP(B66,INDIRECT("'"&$J$1&"'!"&"$C$2:$G$200"),4,FALSE),"") ->  | K66: =IFERROR(VLOOKUP(B66,INDIRECT("'"&$J$1&"'!"&"$C$2:$G$200"),5,FALSE),0) -> 0 | L66: =IFERROR(VLOOKUP(B66,INDIRECT("'"&$L$1&"'!"&"$C$2:$G$200"),4,FALSE),"") ->  | M66: =IFERROR(VLOOKUP(B66,INDIRECT("'"&$L$1&"'!"&"$C$2:$G$200"),5,FALSE),0) -> 0 | N66: =IFERROR(VLOOKUP(B66,INDIRECT("'"&$N$1&"'!"&"$C$2:$G$200"),4,FALSE),"") -> 0.03444444444 | O66: =IFERROR(VLOOKUP(B66,INDIRECT("'"&$N$1&"'!"&"$C$2:$G$200"),5,FALSE),0) -> 47.10234279 | P66: =IFERROR(VLOOKUP(B66,INDIRECT("'"&$P$1&"'!"&"$C$2:$G$200"),4,FALSE),"") ->  | Q66: =IFERROR(VLOOKUP(B66,INDIRECT("'"&$P$1&"'!"&"$C$2:$G$200"),5,FALSE),0) -> 0 | R66: =IFERROR(VLOOKUP(B66,INDIRECT("'"&$R$1&"'!"&"$C$2:$G$200"),4,FALSE),"") -> 0.03024305556 | S66: =IFERROR(VLOOKUP(B66,INDIRECT("'"&$R$1&"'!"&"$C$2:$G$200"),5,FALSE),0) -> 51.46657572 | T66: =IFERROR(VLOOKUP(B66,INDIRECT("'"&$T$1&"'!"&"$C$2:$G$200"),4,FALSE),"") -> 0.06059027778 | U66: =IFERROR(VLOOKUP(B66,INDIRECT("'"&$T$1&"'!"&"$C$2:$G$200"),5,FALSE),0) -> 33.36516425 | V66: =8-COUNTIF(F66:U66,"") -> 4 | W66: =E66/IF(V66>4,5,V66) -> 44.66019104
A67: 65 | B67: Pete Morfey | C67: Cardiff Harlequins | D67: M60 | E67: =SUM(LARGE((S67,G67,I67,K67,M67,O67,Q67,U67),{1,2,3,4,5})) -> 177.9150074 | F67: =IFERROR(VLOOKUP(B67,INDIRECT("'"&$F$1&"'!"&"$C$2:$G$200"),4,FALSE),"") ->  | G67: =IFERROR(VLOOKUP(B67,INDIRECT("'"&$F$1&"'!"&"$C$2:$G$200"),5,FALSE),0) -> 0 | H67: =IFERROR(VLOOKUP(B67,INDIRECT("'"&$H$1&"'!"&"$C$2:$G$200"),4,FALSE),"") -> 0.04944444444 | I67: =IFERROR(VLOOKUP(B67,INDIRECT("'"&$H$1&"'!"&"$C$2:$G$200"),5,FALSE),0) -> 40.08385116 | J67: =IFERROR(VLOOKUP(B67,INDIRECT("'"&$J$1&"'!"&"$C$2:$G$200"),4,FALSE),"") ->  | K67: =IFERROR(VLOOKUP(B67,INDIRECT("'"&$J$1&"'!"&"$C$2:$G$200"),5,FALSE),0) -> 0 | L67: =IFERROR(VLOOKUP(B67,INDIRECT("'"&$L$1&"'!"&"$C$2:$G$200"),4,FALSE),"") -> 0.02982638889 | M67: =IFERROR(VLOOKUP(B67,INDIRECT("'"&$L$1&"'!"&"$C$2:$G$200"),5,FALSE),0) -> 40.65050705 | N67: =IFERROR(VLOOKUP(B67,INDIRECT("'"&$N$1&"'!"&"$C$2:$G$200"),4,FALSE),"") -> 0.03489583333 | O67: =IFERROR(VLOOKUP(B67,INDIRECT("'"&$N$1&"'!"&"$C$2:$G$200"),5,FALSE),0) -> 45.09864365 | P67: =IFERROR(VLOOKUP(B67,INDIRECT("'"&$P$1&"'!"&"$C$2:$G$200"),4,FALSE),"") -> 0.0322337963 | Q67: =IFERROR(VLOOKUP(B67,INDIRECT("'"&$P$1&"'!"&"$C$2:$G$200"),5,FALSE),0) -> 52.08200552 | R67: =IFERROR(VLOOKUP(B67,INDIRECT("'"&$R$1&"'!"&"$C$2:$G$200"),4,FALSE),"") ->  | S67: =IFERROR(VLOOKUP(B67,INDIRECT("'"&$R$1&"'!"&"$C$2:$G$200"),5,FALSE),0) -> 0 | T67: =IFERROR(VLOOKUP(B67,INDIRECT("'"&$T$1&"'!"&"$C$2:$G$200"),4,FALSE),"") ->  | U67: =IFERROR(VLOOKUP(B67,INDIRECT("'"&$T$1&"'!"&"$C$2:$G$200"),5,FALSE),0) -> 0 | V67: =8-COUNTIF(F67:U67,"") -> 4 | W67: =E67/IF(V67>4,5,V67) -> 44.47875185
A68: 66 | B68: Jonathan Like | C68: Mynydd Du | D68: SM | E68: =SUM(LARGE((S68,G68,I68,K68,M68,O68,Q68,U68),{1,2,3,4,5})) -> 176.3863178 | F68: =IFERROR(VLOOKUP(B68,INDIRECT("'"&$F$1&"'!"&"$C$2:$G$200"),4,FALSE),"") ->  | G68: =IFERROR(VLOOKUP(B68,INDIRECT("'"&$F$1&"'!"&"$C$2:$G$200"),5,FALSE),0) -> 0 | H68: =IFERROR(VLOOKUP(B68,INDIRECT("'"&$H$1&"'!"&"$C$2:$G$200"),4,FALSE),"") -> 0.03358796296 | I68: =IFERROR(VLOOKUP(B68,INDIRECT("'"&$H$1&"'!"&"$C$2:$G$200"),5,FALSE),0) -> 91.36782212 | J68: =IFERROR(VLOOKUP(B68,INDIRECT("'"&$J$1&"'!"&"$C$2:$G$200"),4,FALSE),"") ->  | K68: =IFERROR(VLOOKUP(B68,INDIRECT("'"&$J$1&"'!"&"$C$2:$G$200"),5,FALSE),0) -> 0 | L68: =IFERROR(VLOOKUP(B68,INDIRECT("'"&$L$1&"'!"&"$C$2:$G$200"),4,FALSE),"") ->  | M68: =IFERROR(VLOOKUP(B68,INDIRECT("'"&$L$1&"'!"&"$C$2:$G$200"),5,FALSE),0) -> 0 | N68: =IFERROR(VLOOKUP(B68,INDIRECT("'"&$N$1&"'!"&"$C$2:$G$200"),4,FALSE),"") -> 0.02590277778 | O68: =IFERROR(VLOOKUP(B68,INDIRECT("'"&$N$1&"'!"&"$C$2:$G$200"),5,FALSE),0) -> 85.01849568 | P68: =IFERROR(VLOOKUP(B68,INDIRECT("'"&$P$1&"'!"&"$C$2:$G$200"),4,FALSE),"") ->  | Q68: =IFERROR(VLOOKUP(B68,INDIRECT("'"&$P$1&"'!"&"$C$2:$G$200"),5,FALSE),0) -> 0 | R68: =IFERROR(VLOOKUP(B68,INDIRECT("'"&$R$1&"'!"&"$C$2:$G$200"),4,FALSE),"") ->  | S68: =IFERROR(VLOOKUP(B68,INDIRECT("'"&$R$1&"'!"&"$C$2:$G$200"),5,FALSE),0) -> 0 | T68: =IFERROR(VLOOKUP(B68,INDIRECT("'"&$T$1&"'!"&"$C$2:$G$200"),4,FALSE),"") ->  | U68: =IFERROR(VLOOKUP(B68,INDIRECT("'"&$T$1&"'!"&"$C$2:$G$200"),5,FALSE),0) -> 0 | V68: =8-COUNTIF(F68:U68,"") -> 2 | W68: =E68/IF(V68>4,5,V68) -> 88.1931589
A69: 67 | B69: Chris Chambers | C69: Mynydd Du | D69: M40 | E69: =SUM(LARGE((S69,G69,I69,K69,M69,O69,Q69,U69),{1,2,3,4,5})) -> 176.1982082 | F69: =IFERROR(VLOOKUP(B69,INDIRECT("'"&$F$1&"'!"&"$C$2:$G$200"),4,FALSE),"") ->  | G69: =IFERROR(VLOOKUP(B69,INDIRECT("'"&$F$1&"'!"&"$C$2:$G$200"),5,FALSE),0) -> 0 | H69: =IFERROR(VLOOKUP(B69,INDIRECT("'"&$H$1&"'!"&"$C$2:$G$200"),4,FALSE),"") -> 0.03482638889 | I69: =IFERROR(VLOOKUP(B69,INDIRECT("'"&$H$1&"'!"&"$C$2:$G$200"),5,FALSE),0) -> 87.36243168 | J69: =IFERROR(VLOOKUP(B69,INDIRECT("'"&$J$1&"'!"&"$C$2:$G$200"),4,FALSE),"") ->  | K69: =IFERROR(VLOOKUP(B69,INDIRECT("'"&$J$1&"'!"&"$C$2:$G$200"),5,FALSE),0) -> 0 | L69: =IFERROR(VLOOKUP(B69,INDIRECT("'"&$L$1&"'!"&"$C$2:$G$200"),4,FALSE),"") ->  | M69: =IFERROR(VLOOKUP(B69,INDIRECT("'"&$L$1&"'!"&"$C$2:$G$200"),5,FALSE),0) -> 0 | N69: =IFERROR(VLOOKUP(B69,INDIRECT("'"&$N$1&"'!"&"$C$2:$G$200"),4,FALSE),"") ->  | O69: =IFERROR(VLOOKUP(B69,INDIRECT("'"&$N$1&"'!"&"$C$2:$G$200"),5,FALSE),0) -> 0 | P69: =IFERROR(VLOOKUP(B69,INDIRECT("'"&$P$1&"'!"&"$C$2:$G$200"),4,FALSE),"") -> 0.02422453704 | Q69: =IFERROR(VLOOKUP(B69,INDIRECT("'"&$P$1&"'!"&"$C$2:$G$200"),5,FALSE),0) -> 88.8357765 | R69: =IFERROR(VLOOKUP(B69,INDIRECT("'"&$R$1&"'!"&"$C$2:$G$200"),4,FALSE),"") ->  | S69: =IFERROR(VLOOKUP(B69,INDIRECT("'"&$R$1&"'!"&"$C$2:$G$200"),5,FALSE),0) -> 0 | T69: =IFERROR(VLOOKUP(B69,INDIRECT("'"&$T$1&"'!"&"$C$2:$G$200"),4,FALSE),"") ->  | U69: =IFERROR(VLOOKUP(B69,INDIRECT("'"&$T$1&"'!"&"$C$2:$G$200"),5,FALSE),0) -> 0 | V69: =8-COUNTIF(F69:U69,"") -> 2 | W69: =E69/IF(V69>4,5,V69) -> 88.09910409
A70: 68 | B70: Tom Mollekin | C70: Mynydd Du | D70: SM | E70: =SUM(LARGE((S70,G70,I70,K70,M70,O70,Q70,U70),{1,2,3,4,5})) -> 174.7423148 | F70: =IFERROR(VLOOKUP(B70,INDIRECT("'"&$F$1&"'!"&"$C$2:$G$200"),4,FALSE),"") ->  | G70: =IFERROR(VLOOKUP(B70,INDIRECT("'"&$F$1&"'!"&"$C$2:$G$200"),5,FALSE),0) -> 0 | H70: =IFERROR(VLOOKUP(B70,INDIRECT("'"&$H$1&"'!"&"$C$2:$G$200"),4,FALSE),"") ->  | I70: =IFERROR(VLOOKUP(B70,INDIRECT("'"&$H$1&"'!"&"$C$2:$G$200"),5,FALSE),0) -> 0 | J70: =IFERROR(VLOOKUP(B70,INDIRECT("'"&$J$1&"'!"&"$C$2:$G$200"),4,FALSE),"") ->  | K70: =IFERROR(VLOOKUP(B70,INDIRECT("'"&$J$1&"'!"&"$C$2:$G$200"),5,FALSE),0) -> 0 | L70: =IFERROR(VLOOKUP(B70,INDIRECT("'"&$L$1&"'!"&"$C$2:$G$200"),4,FALSE),"") ->  | M70: =IFERROR(VLOOKUP(B70,INDIRECT("'"&$L$1&"'!"&"$C$2:$G$200"),5,FALSE),0) -> 0 | N70: =IFERROR(VLOOKUP(B70,INDIRECT("'"&$N$1&"'!"&"$C$2:$G$200"),4,FALSE),"") -> 0.02478009259 | O70: =IFERROR(VLOOKUP(B70,INDIRECT("'"&$N$1&"'!"&"$C$2:$G$200"),5,FALSE),0) -> 90.00205508 | P70: =IFERROR(VLOOKUP(B70,INDIRECT("'"&$P$1&"'!"&"$C$2:$G$200"),4,FALSE),"") ->  | Q70: =IFERROR(VLOOKUP(B70,INDIRECT("'"&$P$1&"'!"&"$C$2:$G$200"),5,FALSE),0) -> 0 | R70: =IFERROR(VLOOKUP(B70,INDIRECT("'"&$R$1&"'!"&"$C$2:$G$200"),4,FALSE),"") ->  | S70: =IFERROR(VLOOKUP(B70,INDIRECT("'"&$R$1&"'!"&"$C$2:$G$200"),5,FALSE),0) -> 0 | U70: =IFERROR(VLOOKUP(B70,INDIRECT("'"&$T$1&"'!"&"$C$2:$G$200"),5,FALSE),0) -> 84.74025974 | V70: =8-COUNTIF(F70:U70,"") -> 1 | W70: =E70/IF(V70>4,5,V70) -> 174.7423148
A71: 69 | B71: Kevin Fosbury | C71: Unaffiliated | D71: SM | E71: =SUM(LARGE((S71,G71,I71,K71,M71,O71,Q71,U71),{1,2,3,4,5})) -> 171.8266365 | F71: =IFERROR(VLOOKUP(B71,INDIRECT("'"&$F$1&"'!"&"$C$2:$G$200"),4,FALSE),"") ->  | G71: =IFERROR(VLOOKUP(B71,INDIRECT("'"&$F$1&"'!"&"$C$2:$G$200"),5,FALSE),0) -> 0 | H71: =IFERROR(VLOOKUP(B71,INDIRECT("'"&$H$1&"'!"&"$C$2:$G$200"),4,FALSE),"") ->  | I71: =IFERROR(VLOOKUP(B71,INDIRECT("'"&$H$1&"'!"&"$C$2:$G$200"),5,FALSE),0) -> 0 | J71: =IFERROR(VLOOKUP(B71,INDIRECT("'"&$J$1&"'!"&"$C$2:$G$200"),4,FALSE),"") ->  | K71: =IFERROR(VLOOKUP(B71,INDIRECT("'"&$J$1&"'!"&"$C$2:$G$200"),5,FALSE),0) -> 0 | L71: =IFERROR(VLOOKUP(B71,INDIRECT("'"&$L$1&"'!"&"$C$2:$G$200"),4,FALSE),"") ->  | M71: =IFERROR(VLOOKUP(B71,INDIRECT("'"&$L$1&"'!"&"$C$2:$G$200"),5,FALSE),0) -> 0 | N71: =IFERROR(VLOOKUP(B71,INDIRECT("'"&$N$1&"'!"&"$C$2:$G$200"),4,FALSE),"") -> 0.02548611111 | O71: =IFERROR(VLOOKUP(B71,INDIRECT("'"&$N$1&"'!"&"$C$2:$G$200"),5,FALSE),0) -> 86.86806412 | P71: =IFERROR(VLOOKUP(B71,INDIRECT("'"&$P$1&"'!"&"$C$2:$G$200"),4,FALSE),"") -> 0.02506944444 | Q71: =IFERROR(VLOOKUP(B71,INDIRECT("'"&$P$1&"'!"&"$C$2:$G$200"),5,FALSE),0) -> 84.95857234 | R71: =IFERROR(VLOOKUP(B71,INDIRECT("'"&$R$1&"'!"&"$C$2:$G$200"),4,FALSE),"") ->  | S71: =IFERROR(VLOOKUP(B71,INDIRECT("'"&$R$1&"'!"&"$C$2:$G$200"),5,FALSE),0) -> 0 | T71: =IFERROR(VLOOKUP(B71,INDIRECT("'"&$T$1&"'!"&"$C$2:$G$200"),4,FALSE),"") ->  | U71: =IFERROR(VLOOKUP(B71,INDIRECT("'"&$T$1&"'!"&"$C$2:$G$200"),5,FALSE),0) -> 0 | V71: =8-COUNTIF(F71:U71,"") -> 2 | W71: =E71/IF(V71>4,5,V71) -> 85.91331823
A72: 70 | B72: James Erskine | C72: Unaffiliated | D72: SM | E72: =SUM(LARGE((S72,G72,I72,K72,M72,O72,Q72,U72),{1,2,3,4,5})) -> 169.4821612 | F72: =IFERROR(VLOOKUP(B72,INDIRECT("'"&$F$1&"'!"&"$C$2:$G$200"),4,FALSE),"") -> 0.01592592593 | G72: =IFERROR(VLOOKUP(B72,INDIRECT("'"&$F$1&"'!"&"$C$2:$G$200"),5,FALSE),0) -> 91.32838414 | H72: =IFERROR(VLOOKUP(B72,INDIRECT("'"&$H$1&"'!"&"$C$2:$G$200"),4,FALSE),"") -> 0.03767361111 | I72: =IFERROR(VLOOKUP(B72,INDIRECT("'"&$H$1&"'!"&"$C$2:$G$200"),5,FALSE),0) -> 78.15377705 | J72: =IFERROR(VLOOKUP(B72,INDIRECT("'"&$J$1&"'!"&"$C$2:$G$200"),4,FALSE),"") ->  | K72: =IFERROR(VLOOKUP(B72,INDIRECT("'"&$J$1&"'!"&"$C$2:$G$200"),5,FALSE),0) -> 0 | L72: =IFERROR(VLOOKUP(B72,INDIRECT("'"&$L$1&"'!"&"$C$2:$G$200"),4,FALSE),"") ->  | M72: =IFERROR(VLOOKUP(B72,INDIRECT("'"&$L$1&"'!"&"$C$2:$G$200"),5,FALSE),0) -> 0 | N72: =IFERROR(VLOOKUP(B72,INDIRECT("'"&$N$1&"'!"&"$C$2:$G$200"),4,FALSE),"") ->  | O72: =IFERROR(VLOOKUP(B72,INDIRECT("'"&$N$1&"'!"&"$C$2:$G$200"),5,FALSE),0) -> 0 | P72: =IFERROR(VLOOKUP(B72,INDIRECT("'"&$P$1&"'!"&"$C$2:$G$200"),4,FALSE),"") ->  | Q72: =IFERROR(VLOOKUP(B72,INDIRECT("'"&$P$1&"'!"&"$C$2:$G$200"),5,FALSE),0) -> 0 | R72: =IFERROR(VLOOKUP(B72,INDIRECT("'"&$R$1&"'!"&"$C$2:$G$200"),4,FALSE),"") ->  | S72: =IFERROR(VLOOKUP(B72,INDIRECT("'"&$R$1&"'!"&"$C$2:$G$200"),5,FALSE),0) -> 0 | T72: =IFERROR(VLOOKUP(B72,INDIRECT("'"&$T$1&"'!"&"$C$2:$G$200"),4,FALSE),"") ->  | U72: =IFERROR(VLOOKUP(B72,INDIRECT("'"&$T$1&"'!"&"$C$2:$G$200"),5,FALSE),0) -> 0 | V72: =8-COUNTIF(F72:U72,"") -> 2 | W72: =E72/IF(V72>4,5,V72) -> 84.74108059
A73: 71 | B73: James Brown | C73: Chepstow Harriers | D73: SM | E73: =SUM(LARGE((S73,G73,I73,K73,M73,O73,Q73,U73),{1,2,3,4,5})) -> 168.2124638 | F73: =IFERROR(VLOOKUP(B73,INDIRECT("'"&$F$1&"'!"&"$C$2:$G$200"),4,FALSE),"") ->  | G73: =IFERROR(VLOOKUP(B73,INDIRECT("'"&$F$1&"'!"&"$C$2:$G$200"),5,FALSE),0) -> 0 | H73: =IFERROR(VLOOKUP(B73,INDIRECT("'"&$H$1&"'!"&"$C$2:$G$200"),4,FALSE),"") ->  | I73: =IFERROR(VLOOKUP(B73,INDIRECT("'"&$H$1&"'!"&"$C$2:$G$200"),5,FALSE),0) -> 0 | J73: =IFERROR(VLOOKUP(B73,INDIRECT("'"&$J$1&"'!"&"$C$2:$G$200"),4,FALSE),"") ->  | K73: =IFERROR(VLOOKUP(B73,INDIRECT("'"&$J$1&"'!"&"$C$2:$G$200"),5,FALSE),0) -> 0 | L73: =IFERROR(VLOOKUP(B73,INDIRECT("'"&$L$1&"'!"&"$C$2:$G$200"),4,FALSE),"") ->  | M73: =IFERROR(VLOOKUP(B73,INDIRECT("'"&$L$1&"'!"&"$C$2:$G$200"),5,FALSE),0) -> 0 | N73: =IFERROR(VLOOKUP(B73,INDIRECT("'"&$N$1&"'!"&"$C$2:$G$200"),4,FALSE),"") -> 0.02555555556 | O73: =IFERROR(VLOOKUP(B73,INDIRECT("'"&$N$1&"'!"&"$C$2:$G$200"),5,FALSE),0) -> 86.55980271 | P73: =IFERROR(VLOOKUP(B73,INDIRECT("'"&$P$1&"'!"&"$C$2:$G$200"),4,FALSE),"") ->  | Q73: =IFERROR(VLOOKUP(B73,INDIRECT("'"&$P$1&"'!"&"$C$2:$G$200"),5,FALSE),0) -> 0 | R73: =IFERROR(VLOOKUP(B73,INDIRECT("'"&$R$1&"'!"&"$C$2:$G$200"),4,FALSE),"") ->  | S73: =IFERROR(VLOOKUP(B73,INDIRECT("'"&$R$1&"'!"&"$C$2:$G$200"),5,FALSE),0) -> 0 | T73: =IFERROR(VLOOKUP(B73,INDIRECT("'"&$T$1&"'!"&"$C$2:$G$200"),4,FALSE),"") -> 0.04303240741 | U73: =IFERROR(VLOOKUP(B73,INDIRECT("'"&$T$1&"'!"&"$C$2:$G$200"),5,FALSE),0) -> 81.65266106 | V73: =8-COUNTIF(F73:U73,"") -> 2 | W73: =E73/IF(V73>4,5,V73) -> 84.10623189
A74: 72 | B74: Nick Biggs | C74: Vegan Runners | D74: M40 | E74: =SUM(LARGE((S74,G74,I74,K74,M74,O74,Q74,U74),{1,2,3,4,5})) -> 167.8133361 | F74: =IFERROR(VLOOKUP(B74,INDIRECT("'"&$F$1&"'!"&"$C$2:$G$200"),4,FALSE),"") ->  | G74: =IFERROR(VLOOKUP(B74,INDIRECT("'"&$F$1&"'!"&"$C$2:$G$200"),5,FALSE),0) -> 0 | H74: =IFERROR(VLOOKUP(B74,INDIRECT("'"&$H$1&"'!"&"$C$2:$G$200"),4,FALSE),"") ->  | I74: =IFERROR(VLOOKUP(B74,INDIRECT("'"&$H$1&"'!"&"$C$2:$G$200"),5,FALSE),0) -> 0 | J74: =IFERROR(VLOOKUP(B74,INDIRECT("'"&$J$1&"'!"&"$C$2:$G$200"),4,FALSE),"") ->  | K74: =IFERROR(VLOOKUP(B74,INDIRECT("'"&$J$1&"'!"&"$C$2:$G$200"),5,FALSE),0) -> 0 | L74: =IFERROR(VLOOKUP(B74,INDIRECT("'"&$L$1&"'!"&"$C$2:$G$200"),4,FALSE),"") -> 0.02236111111 | M74: =IFERROR(VLOOKUP(B74,INDIRECT("'"&$L$1&"'!"&"$C$2:$G$200"),5,FALSE),0) -> 80.53425674 | N74: =IFERROR(VLOOKUP(B74,INDIRECT("'"&$N$1&"'!"&"$C$2:$G$200"),4,FALSE),"") -> 0.02539351852 | O74: =IFERROR(VLOOKUP(B74,INDIRECT("'"&$N$1&"'!"&"$C$2:$G$200"),5,FALSE),0) -> 87.27907933 | P74: =IFERROR(VLOOKUP(B74,INDIRECT("'"&$P$1&"'!"&"$C$2:$G$200"),4,FALSE),"") ->  | Q74: =IFERROR(VLOOKUP(B74,INDIRECT("'"&$P$1&"'!"&"$C$2:$G$200"),5,FALSE),0) -> 0 | R74: =IFERROR(VLOOKUP(B74,INDIRECT("'"&$R$1&"'!"&"$C$2:$G$200"),4,FALSE),"") ->  | S74: =IFERROR(VLOOKUP(B74,INDIRECT("'"&$R$1&"'!"&"$C$2:$G$200"),5,FALSE),0) -> 0 | U74: =IFERROR(VLOOKUP(B74,INDIRECT("'"&$T$1&"'!"&"$C$2:$G$200"),5,FALSE),0) -> 0 | V74: =8-COUNTIF(F74:U74,"") -> 2 | W74: =E74/IF(V74>4,5,V74) -> 83.90666803
A75: 73 | B75: Niki Radnedge | C75: Unaffiliated | D75: M40 | E75: =SUM(LARGE((S75,G75,I75,K75,M75,O75,Q75,U75),{1,2,3,4,5})) -> 167.1736727 | F75: =IFERROR(VLOOKUP(B75,INDIRECT("'"&$F$1&"'!"&"$C$2:$G$200"),4,FALSE),"") ->  | G75: =IFERROR(VLOOKUP(B75,INDIRECT("'"&$F$1&"'!"&"$C$2:$G$200"),5,FALSE),0) -> 0 | H75: =IFERROR(VLOOKUP(B75,INDIRECT("'"&$H$1&"'!"&"$C$2:$G$200"),4,FALSE),"") ->  | I75: =IFERROR(VLOOKUP(B75,INDIRECT("'"&$H$1&"'!"&"$C$2:$G$200"),5,FALSE),0) -> 0 | J75: =IFERROR(VLOOKUP(B75,INDIRECT("'"&$J$1&"'!"&"$C$2:$G$200"),4,FALSE),"") ->  | K75: =IFERROR(VLOOKUP(B75,INDIRECT("'"&$J$1&"'!"&"$C$2:$G$200"),5,FALSE),0) -> 0 | L75: =IFERROR(VLOOKUP(B75,INDIRECT("'"&$L$1&"'!"&"$C$2:$G$200"),4,FALSE),"") -> 0.021875 | M75: =IFERROR(VLOOKUP(B75,INDIRECT("'"&$L$1&"'!"&"$C$2:$G$200"),5,FALSE),0) -> 83.13133812 | N75: =IFERROR(VLOOKUP(B75,INDIRECT("'"&$N$1&"'!"&"$C$2:$G$200"),4,FALSE),"") -> 0.02612268519 | O75: =IFERROR(VLOOKUP(B75,INDIRECT("'"&$N$1&"'!"&"$C$2:$G$200"),5,FALSE),0) -> 84.04233457 | P75: =IFERROR(VLOOKUP(B75,INDIRECT("'"&$P$1&"'!"&"$C$2:$G$200"),4,FALSE),"") ->  | Q75: =IFERROR(VLOOKUP(B75,INDIRECT("'"&$P$1&"'!"&"$C$2:$G$200"),5,FALSE),0) -> 0 | R75: =IFERROR(VLOOKUP(B75,INDIRECT("'"&$R$1&"'!"&"$C$2:$G$200"),4,FALSE),"") ->  | S75: =IFERROR(VLOOKUP(B75,INDIRECT("'"&$R$1&"'!"&"$C$2:$G$200"),5,FALSE),0) -> 0 | U75: =IFERROR(VLOOKUP(B75,INDIRECT("'"&$T$1&"'!"&"$C$2:$G$200"),5,FALSE),0) -> 0 | V75: =8-COUNTIF(F75:U75,"") -> 2 | W75: =E75/IF(V75>4,5,V75) -> 83.58683634
A76: 74 | B76: Stuart Duncan | C76: Chepstow Harriers | D76: M50 | E76: =SUM(LARGE((S76,G76,I76,K76,M76,O76,Q76,U76),{1,2,3,4,5})) -> 167.0446198 | F76: =IFERROR(VLOOKUP(B76,INDIRECT("'"&$F$1&"'!"&"$C$2:$G$200"),4,FALSE),"") ->  | G76: =IFERROR(VLOOKUP(B76,INDIRECT("'"&$F$1&"'!"&"$C$2:$G$200"),5,FALSE),0) -> 0 | H76: =IFERROR(VLOOKUP(B76,INDIRECT("'"&$H$1&"'!"&"$C$2:$G$200"),4,FALSE),"") -> 0.04350694444 | I76: =IFERROR(VLOOKUP(B76,INDIRECT("'"&$H$1&"'!"&"$C$2:$G$200"),5,FALSE),0) -> 59.2872651 | J76: =IFERROR(VLOOKUP(B76,INDIRECT("'"&$J$1&"'!"&"$C$2:$G$200"),4,FALSE),"") ->  | K76: =IFERROR(VLOOKUP(B76,INDIRECT("'"&$J$1&"'!"&"$C$2:$G$200"),5,FALSE),0) -> 0 | L76: =IFERROR(VLOOKUP(B76,INDIRECT("'"&$L$1&"'!"&"$C$2:$G$200"),4,FALSE),"") ->  | M76: =IFERROR(VLOOKUP(B76,INDIRECT("'"&$L$1&"'!"&"$C$2:$G$200"),5,FALSE),0) -> 0 | N76: =IFERROR(VLOOKUP(B76,INDIRECT("'"&$N$1&"'!"&"$C$2:$G$200"),4,FALSE),"") -> 0.03202546296 | O76: =IFERROR(VLOOKUP(B76,INDIRECT("'"&$N$1&"'!"&"$C$2:$G$200"),5,FALSE),0) -> 57.84011508 | P76: =IFERROR(VLOOKUP(B76,INDIRECT("'"&$P$1&"'!"&"$C$2:$G$200"),4,FALSE),"") ->  | Q76: =IFERROR(VLOOKUP(B76,INDIRECT("'"&$P$1&"'!"&"$C$2:$G$200"),5,FALSE),0) -> 0 | R76: =IFERROR(VLOOKUP(B76,INDIRECT("'"&$R$1&"'!"&"$C$2:$G$200"),4,FALSE),"") ->  | S76: =IFERROR(VLOOKUP(B76,INDIRECT("'"&$R$1&"'!"&"$C$2:$G$200"),5,FALSE),0) -> 0 | T76: =IFERROR(VLOOKUP(B76,INDIRECT("'"&$T$1&"'!"&"$C$2:$G$200"),4,FALSE),"") -> 0.05457175926 | U76: =IFERROR(VLOOKUP(B76,INDIRECT("'"&$T$1&"'!"&"$C$2:$G$200"),5,FALSE),0) -> 49.91723962 | V76: =8-COUNTIF(F76:U76,"") -> 3 | W76: =E76/IF(V76>4,5,V76) -> 55.68153994
A77: 75 | B77: Andy Vaudin | C77: Unaffiliated | D77: M50 | E77: =SUM(LARGE((S77,G77,I77,K77,M77,O77,Q77,U77),{1,2,3,4,5})) -> 166.4077636 | F77: =IFERROR(VLOOKUP(B77,INDIRECT("'"&$F$1&"'!"&"$C$2:$G$200"),4,FALSE),"") ->  | G77: =IFERROR(VLOOKUP(B77,INDIRECT("'"&$F$1&"'!"&"$C$2:$G$200"),5,FALSE),0) -> 0 | H77: =IFERROR(VLOOKUP(B77,INDIRECT("'"&$H$1&"'!"&"$C$2:$G$200"),4,FALSE),"") -> 0.03630787037 | I77: =IFERROR(VLOOKUP(B77,INDIRECT("'"&$H$1&"'!"&"$C$2:$G$200"),5,FALSE),0) -> 82.57093659 | J77: =IFERROR(VLOOKUP(B77,INDIRECT("'"&$J$1&"'!"&"$C$2:$G$200"),4,FALSE),"") ->  | K77: =IFERROR(VLOOKUP(B77,INDIRECT("'"&$J$1&"'!"&"$C$2:$G$200"),5,FALSE),0) -> 0 | L77: =IFERROR(VLOOKUP(B77,INDIRECT("'"&$L$1&"'!"&"$C$2:$G$200"),4,FALSE),"") ->  | M77: =IFERROR(VLOOKUP(B77,INDIRECT("'"&$L$1&"'!"&"$C$2:$G$200"),5,FALSE),0) -> 0 | N77: =IFERROR(VLOOKUP(B77,INDIRECT("'"&$N$1&"'!"&"$C$2:$G$200"),4,FALSE),"") -> 0.02616898148 | O77: =IFERROR(VLOOKUP(B77,INDIRECT("'"&$N$1&"'!"&"$C$2:$G$200"),5,FALSE),0) -> 83.83682696 | P77: =IFERROR(VLOOKUP(B77,INDIRECT("'"&$P$1&"'!"&"$C$2:$G$200"),4,FALSE),"") ->  | Q77: =IFERROR(VLOOKUP(B77,INDIRECT("'"&$P$1&"'!"&"$C$2:$G$200"),5,FALSE),0) -> 0 | R77: =IFERROR(VLOOKUP(B77,INDIRECT("'"&$R$1&"'!"&"$C$2:$G$200"),4,FALSE),"") ->  | S77: =IFERROR(VLOOKUP(B77,INDIRECT("'"&$R$1&"'!"&"$C$2:$G$200"),5,FALSE),0) -> 0 | T77: =IFERROR(VLOOKUP(B77,INDIRECT("'"&$T$1&"'!"&"$C$2:$G$200"),4,FALSE),"") ->  | U77: =IFERROR(VLOOKUP(B77,INDIRECT("'"&$T$1&"'!"&"$C$2:$G$200"),5,FALSE),0) -> 0 | V77: =8-COUNTIF(F77:U77,"") -> 2 | W77: =E77/IF(V77>4,5,V77) -> 83.20388178
A78: 76 | B78: David Mullin | C78: Mercia | D78: M40 | E78: =SUM(LARGE((S78,G78,I78,K78,M78,O78,Q78,U78),{1,2,3,4,5})) -> 165.6587333 | F78: =IFERROR(VLOOKUP(B78,INDIRECT("'"&$F$1&"'!"&"$C$2:$G$200"),4,FALSE),"") -> 0.01590277778 | G78: =IFERROR(VLOOKUP(B78,INDIRECT("'"&$F$1&"'!"&"$C$2:$G$200"),5,FALSE),0) -> 91.48633707 | H78: =IFERROR(VLOOKUP(B78,INDIRECT("'"&$H$1&"'!"&"$C$2:$G$200"),4,FALSE),"") ->  | I78: =IFERROR(VLOOKUP(B78,INDIRECT("'"&$H$1&"'!"&"$C$2:$G$200"),5,FALSE),0) -> 0 | J78: =IFERROR(VLOOKUP(B78,INDIRECT("'"&$J$1&"'!"&"$C$2:$G$200"),4,FALSE),"") ->  | K78: =IFERROR(VLOOKUP(B78,INDIRECT("'"&$J$1&"'!"&"$C$2:$G$200"),5,FALSE),0) -> 0 | L78: =IFERROR(VLOOKUP(B78,INDIRECT("'"&$L$1&"'!"&"$C$2:$G$200"),4,FALSE),"") ->  | M78: =IFERROR(VLOOKUP(B78,INDIRECT("'"&$L$1&"'!"&"$C$2:$G$200"),5,FALSE),0) -> 0 | N78: =IFERROR(VLOOKUP(B78,INDIRECT("'"&$N$1&"'!"&"$C$2:$G$200"),4,FALSE),"") ->  | O78: =IFERROR(VLOOKUP(B78,INDIRECT("'"&$N$1&"'!"&"$C$2:$G$200"),5,FALSE),0) -> 0 | P78: =IFERROR(VLOOKUP(B78,INDIRECT("'"&$P$1&"'!"&"$C$2:$G$200"),4,FALSE),"") ->  | Q78: =IFERROR(VLOOKUP(B78,INDIRECT("'"&$P$1&"'!"&"$C$2:$G$200"),5,FALSE),0) -> 0 | R78: =IFERROR(VLOOKUP(B78,INDIRECT("'"&$R$1&"'!"&"$C$2:$G$200"),4,FALSE),"") ->  | S78: =IFERROR(VLOOKUP(B78,INDIRECT("'"&$R$1&"'!"&"$C$2:$G$200"),5,FALSE),0) -> 0 | T78: =IFERROR(VLOOKUP(B78,INDIRECT("'"&$T$1&"'!"&"$C$2:$G$200"),4,FALSE),"") -> 0.04575231481 | U78: =IFERROR(VLOOKUP(B78,INDIRECT("'"&$T$1&"'!"&"$C$2:$G$200"),5,FALSE),0) -> 74.17239623 | V78: =8-COUNTIF(F78:U78,"") -> 2 | W78: =E78/IF(V78>4,5,V78) -> 82.82936665
A79: 77 | B79: Matthew Lawson | C79: Chepstow Harriers | D79: M40 | E79: =SUM(LARGE((S79,G79,I79,K79,M79,O79,Q79,U79),{1,2,3,4,5})) -> 163.7536237 | F79: =IFERROR(VLOOKUP(B79,INDIRECT("'"&$F$1&"'!"&"$C$2:$G$200"),4,FALSE),"") ->  | G79: =IFERROR(VLOOKUP(B79,INDIRECT("'"&$F$1&"'!"&"$C$2:$G$200"),5,FALSE),0) -> 0 | H79: =IFERROR(VLOOKUP(B79,INDIRECT("'"&$H$1&"'!"&"$C$2:$G$200"),4,FALSE),"") -> 0.03730324074 | I79: =IFERROR(VLOOKUP(B79,INDIRECT("'"&$H$1&"'!"&"$C$2:$G$200"),5,FALSE),0) -> 79.35165082 | J79: =IFERROR(VLOOKUP(B79,INDIRECT("'"&$J$1&"'!"&"$C$2:$G$200"),4,FALSE),"") ->  | K79: =IFERROR(VLOOKUP(B79,INDIRECT("'"&$J$1&"'!"&"$C$2:$G$200"),5,FALSE),0) -> 0 | L79: =IFERROR(VLOOKUP(B79,INDIRECT("'"&$L$1&"'!"&"$C$2:$G$200"),4,FALSE),"") ->  | M79: =IFERROR(VLOOKUP(B79,INDIRECT("'"&$L$1&"'!"&"$C$2:$G$200"),5,FALSE),0) -> 0 | N79: =IFERROR(VLOOKUP(B79,INDIRECT("'"&$N$1&"'!"&"$C$2:$G$200"),4,FALSE),"") -> 0.02604166667 | O79: =IFERROR(VLOOKUP(B79,INDIRECT("'"&$N$1&"'!"&"$C$2:$G$200"),5,FALSE),0) -> 84.40197287 | P79: =IFERROR(VLOOKUP(B79,INDIRECT("'"&$P$1&"'!"&"$C$2:$G$200"),4,FALSE),"") ->  | Q79: =IFERROR(VLOOKUP(B79,INDIRECT("'"&$P$1&"'!"&"$C$2:$G$200"),5,FALSE),0) -> 0 | R79: =IFERROR(VLOOKUP(B79,INDIRECT("'"&$R$1&"'!"&"$C$2:$G$200"),4,FALSE),"") ->  | S79: =IFERROR(VLOOKUP(B79,INDIRECT("'"&$R$1&"'!"&"$C$2:$G$200"),5,FALSE),0) -> 0 | T79: =IFERROR(VLOOKUP(B79,INDIRECT("'"&$T$1&"'!"&"$C$2:$G$200"),4,FALSE),"") ->  | U79: =IFERROR(VLOOKUP(B79,INDIRECT("'"&$T$1&"'!"&"$C$2:$G$200"),5,FALSE),0) -> 0 | V79: =8-COUNTIF(F79:U79,"") -> 2 | W79: =E79/IF(V79>4,5,V79) -> 81.87681185
A80: 78 | B80: Pete Sowerby | C80: Brecon AC | D80: M50 | E80: =SUM(LARGE((S80,G80,I80,K80,M80,O80,Q80,U80),{1,2,3,4,5})) -> 163.1467235 | F80: =IFERROR(VLOOKUP(B80,INDIRECT("'"&$F$1&"'!"&"$C$2:$G$200"),4,FALSE),"") ->  | G80: =IFERROR(VLOOKUP(B80,INDIRECT("'"&$F$1&"'!"&"$C$2:$G$200"),5,FALSE),0) -> 0 | H80: =IFERROR(VLOOKUP(B80,INDIRECT("'"&$H$1&"'!"&"$C$2:$G$200"),4,FALSE),"") ->  | I80: =IFERROR(VLOOKUP(B80,INDIRECT("'"&$H$1&"'!"&"$C$2:$G$200"),5,FALSE),0) -> 0 | J80: =IFERROR(VLOOKUP(B80,INDIRECT("'"&$J$1&"'!"&"$C$2:$G$200"),4,FALSE),"") ->  | K80: =IFERROR(VLOOKUP(B80,INDIRECT("'"&$J$1&"'!"&"$C$2:$G$200"),5,FALSE),0) -> 0 | L80: =IFERROR(VLOOKUP(B80,INDIRECT("'"&$L$1&"'!"&"$C$2:$G$200"),4,FALSE),"") ->  | M80: =IFERROR(VLOOKUP(B80,INDIRECT("'"&$L$1&"'!"&"$C$2:$G$200"),5,FALSE),0) -> 0 | N80: =IFERROR(VLOOKUP(B80,INDIRECT("'"&$N$1&"'!"&"$C$2:$G$200"),4,FALSE),"") -> 0.02710648148 | O80: =IFERROR(VLOOKUP(B80,INDIRECT("'"&$N$1&"'!"&"$C$2:$G$200"),5,FALSE),0) -> 79.67529799 | P80: =IFERROR(VLOOKUP(B80,INDIRECT("'"&$P$1&"'!"&"$C$2:$G$200"),4,FALSE),"") -> 0.02539351852 | Q80: =IFERROR(VLOOKUP(B80,INDIRECT("'"&$P$1&"'!"&"$C$2:$G$200"),5,FALSE),0) -> 83.47142554 | R80: =IFERROR(VLOOKUP(B80,INDIRECT("'"&$R$1&"'!"&"$C$2:$G$200"),4,FALSE),"") ->  | S80: =IFERROR(VLOOKUP(B80,INDIRECT("'"&$R$1&"'!"&"$C$2:$G$200"),5,FALSE),0) -> 0 | T80: =IFERROR(VLOOKUP(B80,INDIRECT("'"&$T$1&"'!"&"$C$2:$G$200"),4,FALSE),"") ->  | U80: =IFERROR(VLOOKUP(B80,INDIRECT("'"&$T$1&"'!"&"$C$2:$G$200"),5,FALSE),0) -> 0 | V80: =8-COUNTIF(F80:U80,"") -> 2 | W80: =E80/IF(V80>4,5,V80) -> 81.57336176
A81: 79 | B81: Rhys Asbridge | C81: Unaffiliated | D81: SM | E81: =SUM(LARGE((S81,G81,I81,K81,M81,O81,Q81,U81),{1,2,3,4,5})) -> 163.0473148 | F81: =IFERROR(VLOOKUP(B81,INDIRECT("'"&$F$1&"'!"&"$C$2:$G$200"),4,FALSE),"") ->  | G81: =IFERROR(VLOOKUP(B81,INDIRECT("'"&$F$1&"'!"&"$C$2:$G$200"),5,FALSE),0) -> 0 | H81: =IFERROR(VLOOKUP(B81,INDIRECT("'"&$H$1&"'!"&"$C$2:$G$200"),4,FALSE),"") ->  | I81: =IFERROR(VLOOKUP(B81,INDIRECT("'"&$H$1&"'!"&"$C$2:$G$200"),5,FALSE),0) -> 0 | J81: =IFERROR(VLOOKUP(B81,INDIRECT("'"&$J$1&"'!"&"$C$2:$G$200"),4,FALSE),"") ->  | K81: =IFERROR(VLOOKUP(B81,INDIRECT("'"&$J$1&"'!"&"$C$2:$G$200"),5,FALSE),0) -> 0 | L81: =IFERROR(VLOOKUP(B81,INDIRECT("'"&$L$1&"'!"&"$C$2:$G$200"),4,FALSE),"") ->  | M81: =IFERROR(VLOOKUP(B81,INDIRECT("'"&$L$1&"'!"&"$C$2:$G$200"),5,FALSE),0) -> 0 | N81: =IFERROR(VLOOKUP(B81,INDIRECT("'"&$N$1&"'!"&"$C$2:$G$200"),4,FALSE),"") ->  | O81: =IFERROR(VLOOKUP(B81,INDIRECT("'"&$N$1&"'!"&"$C$2:$G$200"),5,FALSE),0) -> 0 | P81: =IFERROR(VLOOKUP(B81,INDIRECT("'"&$P$1&"'!"&"$C$2:$G$200"),4,FALSE),"") -> 0.02653935185 | Q81: =IFERROR(VLOOKUP(B81,INDIRECT("'"&$P$1&"'!"&"$C$2:$G$200"),5,FALSE),0) -> 78.21329934 | R81: =IFERROR(VLOOKUP(B81,INDIRECT("'"&$R$1&"'!"&"$C$2:$G$200"),4,FALSE),"") -> 0.02344907407 | S81: =IFERROR(VLOOKUP(B81,INDIRECT("'"&$R$1&"'!"&"$C$2:$G$200"),5,FALSE),0) -> 84.83401546 | U81: =IFERROR(VLOOKUP(B81,INDIRECT("'"&$T$1&"'!"&"$C$2:$G$200"),5,FALSE),0) -> 0 | V81: =8-COUNTIF(F81:U81,"") -> 2 | W81: =E81/IF(V81>4,5,V81) -> 81.5236574
A82: 80 | B82: Gethin Powell | C82: Pontypridd Roadents | D82: SM | E82: =SUM(LARGE((S82,G82,I82,K82,M82,O82,Q82,U82),{1,2,3,4,5})) -> 163.0117006 | F82: =IFERROR(VLOOKUP(B82,INDIRECT("'"&$F$1&"'!"&"$C$2:$G$200"),4,FALSE),"") ->  | G82: =IFERROR(VLOOKUP(B82,INDIRECT("'"&$F$1&"'!"&"$C$2:$G$200"),5,FALSE),0) -> 0 | H82: =IFERROR(VLOOKUP(B82,INDIRECT("'"&$H$1&"'!"&"$C$2:$G$200"),4,FALSE),"") ->  | I82: =IFERROR(VLOOKUP(B82,INDIRECT("'"&$H$1&"'!"&"$C$2:$G$200"),5,FALSE),0) -> 0 | J82: =IFERROR(VLOOKUP(B82,INDIRECT("'"&$J$1&"'!"&"$C$2:$G$200"),4,FALSE),"") ->  | K82: =IFERROR(VLOOKUP(B82,INDIRECT("'"&$J$1&"'!"&"$C$2:$G$200"),5,FALSE),0) -> 0 | L82: =IFERROR(VLOOKUP(B82,INDIRECT("'"&$L$1&"'!"&"$C$2:$G$200"),4,FALSE),"") ->  | M82: =IFERROR(VLOOKUP(B82,INDIRECT("'"&$L$1&"'!"&"$C$2:$G$200"),5,FALSE),0) -> 0 | N82: =IFERROR(VLOOKUP(B82,INDIRECT("'"&$N$1&"'!"&"$C$2:$G$200"),4,FALSE),"") -> 0.0262037037 | O82: =IFERROR(VLOOKUP(B82,INDIRECT("'"&$N$1&"'!"&"$C$2:$G$200"),5,FALSE),0) -> 83.68269626 | P82: =IFERROR(VLOOKUP(B82,INDIRECT("'"&$P$1&"'!"&"$C$2:$G$200"),4,FALSE),"") ->  | Q82: =IFERROR(VLOOKUP(B82,INDIRECT("'"&$P$1&"'!"&"$C$2:$G$200"),5,FALSE),0) -> 0 | R82: =IFERROR(VLOOKUP(B82,INDIRECT("'"&$R$1&"'!"&"$C$2:$G$200"),4,FALSE),"") ->  | S82: =IFERROR(VLOOKUP(B82,INDIRECT("'"&$R$1&"'!"&"$C$2:$G$200"),5,FALSE),0) -> 0 | U82: =IFERROR(VLOOKUP(B82,INDIRECT("'"&$T$1&"'!"&"$C$2:$G$200"),5,FALSE),0) -> 79.32900433 | V82: =8-COUNTIF(F82:U82,"") -> 1 | W82: =E82/IF(V82>4,5,V82) -> 163.0117006
A83: 81 | B83: Jeremy Jehan | C83: Wye Valley Runners | D83: SM | E83: =SUM(LARGE((S83,G83,I83,K83,M83,O83,Q83,U83),{1,2,3,4,5})) -> 161.2186966 | F83: =IFERROR(VLOOKUP(B83,INDIRECT("'"&$F$1&"'!"&"$C$2:$G$200"),4,FALSE),"") ->  | G83: =IFERROR(VLOOKUP(B83,INDIRECT("'"&$F$1&"'!"&"$C$2:$G$200"),5,FALSE),0) -> 0 | H83: =IFERROR(VLOOKUP(B83,INDIRECT("'"&$H$1&"'!"&"$C$2:$G$200"),4,FALSE),"") -> 0.03630787037 | I83: =IFERROR(VLOOKUP(B83,INDIRECT("'"&$H$1&"'!"&"$C$2:$G$200"),5,FALSE),0) -> 82.57093659 | J83: =IFERROR(VLOOKUP(B83,INDIRECT("'"&$J$1&"'!"&"$C$2:$G$200"),4,FALSE),"") ->  | K83: =IFERROR(VLOOKUP(B83,INDIRECT("'"&$J$1&"'!"&"$C$2:$G$200"),5,FALSE),0) -> 0 | L83: =IFERROR(VLOOKUP(B83,INDIRECT("'"&$L$1&"'!"&"$C$2:$G$200"),4,FALSE),"") ->  | M83: =IFERROR(VLOOKUP(B83,INDIRECT("'"&$L$1&"'!"&"$C$2:$G$200"),5,FALSE),0) -> 0 | N83: =IFERROR(VLOOKUP(B83,INDIRECT("'"&$N$1&"'!"&"$C$2:$G$200"),4,FALSE),"") -> 0.02733796296 | O83: =IFERROR(VLOOKUP(B83,INDIRECT("'"&$N$1&"'!"&"$C$2:$G$200"),5,FALSE),0) -> 78.64775997 | P83: =IFERROR(VLOOKUP(B83,INDIRECT("'"&$P$1&"'!"&"$C$2:$G$200"),4,FALSE),"") ->  | Q83: =IFERROR(VLOOKUP(B83,INDIRECT("'"&$P$1&"'!"&"$C$2:$G$200"),5,FALSE),0) -> 0 | R83: =IFERROR(VLOOKUP(B83,INDIRECT("'"&$R$1&"'!"&"$C$2:$G$200"),4,FALSE),"") ->  | S83: =IFERROR(VLOOKUP(B83,INDIRECT("'"&$R$1&"'!"&"$C$2:$G$200"),5,FALSE),0) -> 0 | T83: =IFERROR(VLOOKUP(B83,INDIRECT("'"&$T$1&"'!"&"$C$2:$G$200"),4,FALSE),"") ->  | U83: =IFERROR(VLOOKUP(B83,INDIRECT("'"&$T$1&"'!"&"$C$2:$G$200"),5,FALSE),0) -> 0 | V83: =8-COUNTIF(F83:U83,"") -> 2 | W83: =E83/IF(V83>4,5,V83) -> 80.60934828
A84: 82 | B84: Paul Mammatt | C84: Hereford Couriers | D84: M40 | E84: =SUM(LARGE((S84,G84,I84,K84,M84,O84,Q84,U84),{1,2,3,4,5})) -> 160.6541776 | F84: =IFERROR(VLOOKUP(B84,INDIRECT("'"&$F$1&"'!"&"$C$2:$G$200"),4,FALSE),"") ->  | G84: =IFERROR(VLOOKUP(B84,INDIRECT("'"&$F$1&"'!"&"$C$2:$G$200"),5,FALSE),0) -> 0 | H84: =IFERROR(VLOOKUP(B84,INDIRECT("'"&$H$1&"'!"&"$C$2:$G$200"),4,FALSE),"") -> 0.03699074074 | I84: =IFERROR(VLOOKUP(B84,INDIRECT("'"&$H$1&"'!"&"$C$2:$G$200"),5,FALSE),0) -> 80.36235682 | J84: =IFERROR(VLOOKUP(B84,INDIRECT("'"&$J$1&"'!"&"$C$2:$G$200"),4,FALSE),"") ->  | K84: =IFERROR(VLOOKUP(B84,INDIRECT("'"&$J$1&"'!"&"$C$2:$G$200"),5,FALSE),0) -> 0 | L84: =IFERROR(VLOOKUP(B84,INDIRECT("'"&$L$1&"'!"&"$C$2:$G$200"),4,FALSE),"") ->  | M84: =IFERROR(VLOOKUP(B84,INDIRECT("'"&$L$1&"'!"&"$C$2:$G$200"),5,FALSE),0) -> 0 | N84: =IFERROR(VLOOKUP(B84,INDIRECT("'"&$N$1&"'!"&"$C$2:$G$200"),4,FALSE),"") -> 0.02696759259 | O84: =IFERROR(VLOOKUP(B84,INDIRECT("'"&$N$1&"'!"&"$C$2:$G$200"),5,FALSE),0) -> 80.2918208 | P84: =IFERROR(VLOOKUP(B84,INDIRECT("'"&$P$1&"'!"&"$C$2:$G$200"),4,FALSE),"") ->  | Q84: =IFERROR(VLOOKUP(B84,INDIRECT("'"&$P$1&"'!"&"$C$2:$G$200"),5,FALSE),0) -> 0 | R84: =IFERROR(VLOOKUP(B84,INDIRECT("'"&$R$1&"'!"&"$C$2:$G$200"),4,FALSE),"") ->  | S84: =IFERROR(VLOOKUP(B84,INDIRECT("'"&$R$1&"'!"&"$C$2:$G$200"),5,FALSE),0) -> 0 | T84: =IFERROR(VLOOKUP(B84,INDIRECT("'"&$T$1&"'!"&"$C$2:$G$200"),4,FALSE),"") ->  | U84: =IFERROR(VLOOKUP(B84,INDIRECT("'"&$T$1&"'!"&"$C$2:$G$200"),5,FALSE),0) -> 0 | V84: =8-COUNTIF(F84:U84,"") -> 2 | W84: =E84/IF(V84>4,5,V84) -> 80.32708881
A85: 83 | B85: Helen Duffield | C85: Chepstow Harriers | D85: F40 | E85: =SUM(LARGE((S85,G85,I85,K85,M85,O85,Q85,U85),{1,2,3,4,5})) -> 160.4995354 | F85: =IFERROR(VLOOKUP(B85,INDIRECT("'"&$F$1&"'!"&"$C$2:$G$200"),4,FALSE),"") ->  | G85: =IFERROR(VLOOKUP(B85,INDIRECT("'"&$F$1&"'!"&"$C$2:$G$200"),5,FALSE),0) -> 0 | H85: =IFERROR(VLOOKUP(B85,INDIRECT("'"&$H$1&"'!"&"$C$2:$G$200"),4,FALSE),"") ->  | I85: =IFERROR(VLOOKUP(B85,INDIRECT("'"&$H$1&"'!"&"$C$2:$G$200"),5,FALSE),0) -> 0 | J85: =IFERROR(VLOOKUP(B85,INDIRECT("'"&$J$1&"'!"&"$C$2:$G$200"),4,FALSE),"") ->  | K85: =IFERROR(VLOOKUP(B85,INDIRECT("'"&$J$1&"'!"&"$C$2:$G$200"),5,FALSE),0) -> 0 | L85: =IFERROR(VLOOKUP(B85,INDIRECT("'"&$L$1&"'!"&"$C$2:$G$200"),4,FALSE),"") ->  | M85: =IFERROR(VLOOKUP(B85,INDIRECT("'"&$L$1&"'!"&"$C$2:$G$200"),5,FALSE),0) -> 0 | N85: =IFERROR(VLOOKUP(B85,INDIRECT("'"&$N$1&"'!"&"$C$2:$G$200"),4,FALSE),"") -> 0.03319444444 | O85: =IFERROR(VLOOKUP(B85,INDIRECT("'"&$N$1&"'!"&"$C$2:$G$200"),5,FALSE),0) -> 52.65104809 | P85: =IFERROR(VLOOKUP(B85,INDIRECT("'"&$P$1&"'!"&"$C$2:$G$200"),4,FALSE),"") ->  | Q85: =IFERROR(VLOOKUP(B85,INDIRECT("'"&$P$1&"'!"&"$C$2:$G$200"),5,FALSE),0) -> 0 | R85: =IFERROR(VLOOKUP(B85,INDIRECT("'"&$R$1&"'!"&"$C$2:$G$200"),4,FALSE),"") -> 0.0275462963 | S85: =IFERROR(VLOOKUP(B85,INDIRECT("'"&$R$1&"'!"&"$C$2:$G$200"),5,FALSE),0) -> 64.71123238 | T85: =IFERROR(VLOOKUP(B85,INDIRECT("'"&$T$1&"'!"&"$C$2:$G$200"),4,FALSE),"") -> 0.05703703704 | U85: =IFERROR(VLOOKUP(B85,INDIRECT("'"&$T$1&"'!"&"$C$2:$G$200"),5,FALSE),0) -> 43.1372549 | V85: =8-COUNTIF(F85:U85,"") -> 3 | W85: =E85/IF(V85>4,5,V85) -> 53.49984512
A86: 84 | B86: Ross Walker | C86: Chepstow Harriers | D86: M40 | E86: =SUM(LARGE((S86,G86,I86,K86,M86,O86,Q86,U86),{1,2,3,4,5})) -> 160.39768 | F86: =IFERROR(VLOOKUP(B86,INDIRECT("'"&$F$1&"'!"&"$C$2:$G$200"),4,FALSE),"") ->  | G86: =IFERROR(VLOOKUP(B86,INDIRECT("'"&$F$1&"'!"&"$C$2:$G$200"),5,FALSE),0) -> 0 | H86: =IFERROR(VLOOKUP(B86,INDIRECT("'"&$H$1&"'!"&"$C$2:$G$200"),4,FALSE),"") ->  | I86: =IFERROR(VLOOKUP(B86,INDIRECT("'"&$H$1&"'!"&"$C$2:$G$200"),5,FALSE),0) -> 0 | J86: =IFERROR(VLOOKUP(B86,INDIRECT("'"&$J$1&"'!"&"$C$2:$G$200"),4,FALSE),"") ->  | K86: =IFERROR(VLOOKUP(B86,INDIRECT("'"&$J$1&"'!"&"$C$2:$G$200"),5,FALSE),0) -> 0 | L86: =IFERROR(VLOOKUP(B86,INDIRECT("'"&$L$1&"'!"&"$C$2:$G$200"),4,FALSE),"") ->  | M86: =IFERROR(VLOOKUP(B86,INDIRECT("'"&$L$1&"'!"&"$C$2:$G$200"),5,FALSE),0) -> 0 | N86: =IFERROR(VLOOKUP(B86,INDIRECT("'"&$N$1&"'!"&"$C$2:$G$200"),4,FALSE),"") -> 0.02581018519 | O86: =IFERROR(VLOOKUP(B86,INDIRECT("'"&$N$1&"'!"&"$C$2:$G$200"),5,FALSE),0) -> 85.42951089 | P86: =IFERROR(VLOOKUP(B86,INDIRECT("'"&$P$1&"'!"&"$C$2:$G$200"),4,FALSE),"") ->  | Q86: =IFERROR(VLOOKUP(B86,INDIRECT("'"&$P$1&"'!"&"$C$2:$G$200"),5,FALSE),0) -> 0 | R86: =IFERROR(VLOOKUP(B86,INDIRECT("'"&$R$1&"'!"&"$C$2:$G$200"),4,FALSE),"") ->  | S86: =IFERROR(VLOOKUP(B86,INDIRECT("'"&$R$1&"'!"&"$C$2:$G$200"),5,FALSE),0) -> 0 | T86: =IFERROR(VLOOKUP(B86,INDIRECT("'"&$T$1&"'!"&"$C$2:$G$200"),4,FALSE),"") -> 0.04546296296 | U86: =IFERROR(VLOOKUP(B86,INDIRECT("'"&$T$1&"'!"&"$C$2:$G$200"),5,FALSE),0) -> 74.96816909 | V86: =8-COUNTIF(F86:U86,"") -> 2 | W86: =E86/IF(V86>4,5,V86) -> 80.19883999
A87: 85 | B87: Sophie Horrocks | C87: Rossendale Harriers | D87: SF | E87: =SUM(LARGE((S87,G87,I87,K87,M87,O87,Q87,U87),{1,2,3,4,5})) -> 158.9569695 | F87: =IFERROR(VLOOKUP(B87,INDIRECT("'"&$F$1&"'!"&"$C$2:$G$200"),4,FALSE),"") ->  | G87: =IFERROR(VLOOKUP(B87,INDIRECT("'"&$F$1&"'!"&"$C$2:$G$200"),5,FALSE),0) -> 0 | H87: =IFERROR(VLOOKUP(B87,INDIRECT("'"&$H$1&"'!"&"$C$2:$G$200"),4,FALSE),"") -> 0.03666666667 | I87: =IFERROR(VLOOKUP(B87,INDIRECT("'"&$H$1&"'!"&"$C$2:$G$200"),5,FALSE),0) -> 81.41049637 | J87: =IFERROR(VLOOKUP(B87,INDIRECT("'"&$J$1&"'!"&"$C$2:$G$200"),4,FALSE),"") ->  | K87: =IFERROR(VLOOKUP(B87,INDIRECT("'"&$J$1&"'!"&"$C$2:$G$200"),5,FALSE),0) -> 0 | L87: =IFERROR(VLOOKUP(B87,INDIRECT("'"&$L$1&"'!"&"$C$2:$G$200"),4,FALSE),"") ->  | M87: =IFERROR(VLOOKUP(B87,INDIRECT("'"&$L$1&"'!"&"$C$2:$G$200"),5,FALSE),0) -> 0 | N87: =IFERROR(VLOOKUP(B87,INDIRECT("'"&$N$1&"'!"&"$C$2:$G$200"),4,FALSE),"") ->  | O87: =IFERROR(VLOOKUP(B87,INDIRECT("'"&$N$1&"'!"&"$C$2:$G$200"),5,FALSE),0) -> 0 | P87: =IFERROR(VLOOKUP(B87,INDIRECT("'"&$P$1&"'!"&"$C$2:$G$200"),4,FALSE),"") ->  | Q87: =IFERROR(VLOOKUP(B87,INDIRECT("'"&$P$1&"'!"&"$C$2:$G$200"),5,FALSE),0) -> 0 | R87: =IFERROR(VLOOKUP(B87,INDIRECT("'"&$R$1&"'!"&"$C$2:$G$200"),4,FALSE),"") ->  | S87: =IFERROR(VLOOKUP(B87,INDIRECT("'"&$R$1&"'!"&"$C$2:$G$200"),5,FALSE),0) -> 0 | T87: =IFERROR(VLOOKUP(B87,INDIRECT("'"&$T$1&"'!"&"$C$2:$G$200"),4,FALSE),"") -> 0.04452546296 | U87: =IFERROR(VLOOKUP(B87,INDIRECT("'"&$T$1&"'!"&"$C$2:$G$200"),5,FALSE),0) -> 77.54647313 | V87: =8-COUNTIF(F87:U87,"") -> 2 | W87: =E87/IF(V87>4,5,V87) -> 79.47848475
A88: 86 | B88: Paul Symons | C88: Unaffiliated | D88: M50 | E88: =SUM(LARGE((S88,G88,I88,K88,M88,O88,Q88,U88),{1,2,3,4,5})) -> 156.1011206 | F88: =IFERROR(VLOOKUP(B88,INDIRECT("'"&$F$1&"'!"&"$C$2:$G$200"),4,FALSE),"") ->  | G88: =IFERROR(VLOOKUP(B88,INDIRECT("'"&$F$1&"'!"&"$C$2:$G$200"),5,FALSE),0) -> 0 | H88: =IFERROR(VLOOKUP(B88,INDIRECT("'"&$H$1&"'!"&"$C$2:$G$200"),4,FALSE),"") -> 0.04690972222 | I88: =IFERROR(VLOOKUP(B88,INDIRECT("'"&$H$1&"'!"&"$C$2:$G$200"),5,FALSE),0) -> 48.28179981 | J88: =IFERROR(VLOOKUP(B88,INDIRECT("'"&$J$1&"'!"&"$C$2:$G$200"),4,FALSE),"") ->  | K88: =IFERROR(VLOOKUP(B88,INDIRECT("'"&$J$1&"'!"&"$C$2:$G$200"),5,FALSE),0) -> 0 | L88: =IFERROR(VLOOKUP(B88,INDIRECT("'"&$L$1&"'!"&"$C$2:$G$200"),4,FALSE),"") ->  | M88: =IFERROR(VLOOKUP(B88,INDIRECT("'"&$L$1&"'!"&"$C$2:$G$200"),5,FALSE),0) -> 0 | N88: =IFERROR(VLOOKUP(B88,INDIRECT("'"&$N$1&"'!"&"$C$2:$G$200"),4,FALSE),"") -> 0.03768518519 | O88: =IFERROR(VLOOKUP(B88,INDIRECT("'"&$N$1&"'!"&"$C$2:$G$200"),5,FALSE),0) -> 32.71681052 | P88: =IFERROR(VLOOKUP(B88,INDIRECT("'"&$P$1&"'!"&"$C$2:$G$200"),4,FALSE),"") ->  | Q88: =IFERROR(VLOOKUP(B88,INDIRECT("'"&$P$1&"'!"&"$C$2:$G$200"),5,FALSE),0) -> 0 | R88: =IFERROR(VLOOKUP(B88,INDIRECT("'"&$R$1&"'!"&"$C$2:$G$200"),4,FALSE),"") -> 0.03150462963 | S88: =IFERROR(VLOOKUP(B88,INDIRECT("'"&$R$1&"'!"&"$C$2:$G$200"),5,FALSE),0) -> 45.27057754 | U88: =IFERROR(VLOOKUP(B88,INDIRECT("'"&$T$1&"'!"&"$C$2:$G$200"),5,FALSE),0) -> 29.83193277 | V88: =8-COUNTIF(F88:U88,"") -> 3 | W88: =E88/IF(V88>4,5,V88) -> 52.03370688
A89: 87 | B89: James Woodier | C89: Mynydd Du | D89: SM | E89: =SUM(LARGE((S89,G89,I89,K89,M89,O89,Q89,U89),{1,2,3,4,5})) -> 154.5496243 | F89: =IFERROR(VLOOKUP(B89,INDIRECT("'"&$F$1&"'!"&"$C$2:$G$200"),4,FALSE),"") ->  | G89: =IFERROR(VLOOKUP(B89,INDIRECT("'"&$F$1&"'!"&"$C$2:$G$200"),5,FALSE),0) -> 0 | H89: =IFERROR(VLOOKUP(B89,INDIRECT("'"&$H$1&"'!"&"$C$2:$G$200"),4,FALSE),"") ->  | I89: =IFERROR(VLOOKUP(B89,INDIRECT("'"&$H$1&"'!"&"$C$2:$G$200"),5,FALSE),0) -> 0 | J89: =IFERROR(VLOOKUP(B89,INDIRECT("'"&$J$1&"'!"&"$C$2:$G$200"),4,FALSE),"") ->  | K89: =IFERROR(VLOOKUP(B89,INDIRECT("'"&$J$1&"'!"&"$C$2:$G$200"),5,FALSE),0) -> 0 | L89: =IFERROR(VLOOKUP(B89,INDIRECT("'"&$L$1&"'!"&"$C$2:$G$200"),4,FALSE),"") ->  | M89: =IFERROR(VLOOKUP(B89,INDIRECT("'"&$L$1&"'!"&"$C$2:$G$200"),5,FALSE),0) -> 0 | N89: =IFERROR(VLOOKUP(B89,INDIRECT("'"&$N$1&"'!"&"$C$2:$G$200"),4,FALSE),"") -> 0.02744212963 | O89: =IFERROR(VLOOKUP(B89,INDIRECT("'"&$N$1&"'!"&"$C$2:$G$200"),5,FALSE),0) -> 78.18536786 | P89: =IFERROR(VLOOKUP(B89,INDIRECT("'"&$P$1&"'!"&"$C$2:$G$200"),4,FALSE),"") ->  | Q89: =IFERROR(VLOOKUP(B89,INDIRECT("'"&$P$1&"'!"&"$C$2:$G$200"),5,FALSE),0) -> 0 | R89: =IFERROR(VLOOKUP(B89,INDIRECT("'"&$R$1&"'!"&"$C$2:$G$200"),4,FALSE),"") -> 0.02517361111 | S89: =IFERROR(VLOOKUP(B89,INDIRECT("'"&$R$1&"'!"&"$C$2:$G$200"),5,FALSE),0) -> 76.36425648 | U89: =IFERROR(VLOOKUP(B89,INDIRECT("'"&$T$1&"'!"&"$C$2:$G$200"),5,FALSE),0) -> 0 | V89: =8-COUNTIF(F89:U89,"") -> 2 | W89: =E89/IF(V89>4,5,V89) -> 77.27481217
A90: 88 | B90: Mark Ponsford | C90: MDC | D90: SM | E90: =SUM(LARGE((S90,G90,I90,K90,M90,O90,Q90,U90),{1,2,3,4,5})) -> 152.8560537 | F90: =IFERROR(VLOOKUP(B90,INDIRECT("'"&$F$1&"'!"&"$C$2:$G$200"),4,FALSE),"") ->  | G90: =IFERROR(VLOOKUP(B90,INDIRECT("'"&$F$1&"'!"&"$C$2:$G$200"),5,FALSE),0) -> 0 | H90: =IFERROR(VLOOKUP(B90,INDIRECT("'"&$H$1&"'!"&"$C$2:$G$200"),4,FALSE),"") ->  | I90: =IFERROR(VLOOKUP(B90,INDIRECT("'"&$H$1&"'!"&"$C$2:$G$200"),5,FALSE),0) -> 0 | J90: =IFERROR(VLOOKUP(B90,INDIRECT("'"&$J$1&"'!"&"$C$2:$G$200"),4,FALSE),"") ->  | K90: =IFERROR(VLOOKUP(B90,INDIRECT("'"&$J$1&"'!"&"$C$2:$G$200"),5,FALSE),0) -> 0 | L90: =IFERROR(VLOOKUP(B90,INDIRECT("'"&$L$1&"'!"&"$C$2:$G$200"),4,FALSE),"") ->  | M90: =IFERROR(VLOOKUP(B90,INDIRECT("'"&$L$1&"'!"&"$C$2:$G$200"),5,FALSE),0) -> 0 | N90: =IFERROR(VLOOKUP(B90,INDIRECT("'"&$N$1&"'!"&"$C$2:$G$200"),4,FALSE),"") ->  | O90: =IFERROR(VLOOKUP(B90,INDIRECT("'"&$N$1&"'!"&"$C$2:$G$200"),5,FALSE),0) -> 0 | P90: =IFERROR(VLOOKUP(B90,INDIRECT("'"&$P$1&"'!"&"$C$2:$G$200"),4,FALSE),"") ->  | Q90: =IFERROR(VLOOKUP(B90,INDIRECT("'"&$P$1&"'!"&"$C$2:$G$200"),5,FALSE),0) -> 0 | R90: =IFERROR(VLOOKUP(B90,INDIRECT("'"&$R$1&"'!"&"$C$2:$G$200"),4,FALSE),"") -> 0.02408564815 | S90: =IFERROR(VLOOKUP(B90,INDIRECT("'"&$R$1&"'!"&"$C$2:$G$200"),5,FALSE),0) -> 81.70759436 | T90: =IFERROR(VLOOKUP(B90,INDIRECT("'"&$T$1&"'!"&"$C$2:$G$200"),4,FALSE),"") -> 0.04685185185 | U90: =IFERROR(VLOOKUP(B90,INDIRECT("'"&$T$1&"'!"&"$C$2:$G$200"),5,FALSE),0) -> 71.14845938 | V90: =8-COUNTIF(F90:U90,"") -> 2 | W90: =E90/IF(V90>4,5,V90) -> 76.42802687
A91: 89 | B91: Rhys Pippard | C91: Mynydd Du | D91: SM | E91: =SUM(LARGE((S91,G91,I91,K91,M91,O91,Q91,U91),{1,2,3,4,5})) -> 151.6937739 | F91: =IFERROR(VLOOKUP(B91,INDIRECT("'"&$F$1&"'!"&"$C$2:$G$200"),4,FALSE),"") ->  | G91: =IFERROR(VLOOKUP(B91,INDIRECT("'"&$F$1&"'!"&"$C$2:$G$200"),5,FALSE),0) -> 0 | H91: =IFERROR(VLOOKUP(B91,INDIRECT("'"&$H$1&"'!"&"$C$2:$G$200"),4,FALSE),"") ->  | I91: =IFERROR(VLOOKUP(B91,INDIRECT("'"&$H$1&"'!"&"$C$2:$G$200"),5,FALSE),0) -> 0 | J91: =IFERROR(VLOOKUP(B91,INDIRECT("'"&$J$1&"'!"&"$C$2:$G$200"),4,FALSE),"") ->  | K91: =IFERROR(VLOOKUP(B91,INDIRECT("'"&$J$1&"'!"&"$C$2:$G$200"),5,FALSE),0) -> 0 | L91: =IFERROR(VLOOKUP(B91,INDIRECT("'"&$L$1&"'!"&"$C$2:$G$200"),4,FALSE),"") ->  | M91: =IFERROR(VLOOKUP(B91,INDIRECT("'"&$L$1&"'!"&"$C$2:$G$200"),5,FALSE),0) -> 0 | N91: =IFERROR(VLOOKUP(B91,INDIRECT("'"&$N$1&"'!"&"$C$2:$G$200"),4,FALSE),"") ->  | O91: =IFERROR(VLOOKUP(B91,INDIRECT("'"&$N$1&"'!"&"$C$2:$G$200"),5,FALSE),0) -> 0 | P91: =IFERROR(VLOOKUP(B91,INDIRECT("'"&$P$1&"'!"&"$C$2:$G$200"),4,FALSE),"") -> 0.02696759259 | Q91: =IFERROR(VLOOKUP(B91,INDIRECT("'"&$P$1&"'!"&"$C$2:$G$200"),5,FALSE),0) -> 76.24814107 | R91: =IFERROR(VLOOKUP(B91,INDIRECT("'"&$R$1&"'!"&"$C$2:$G$200"),4,FALSE),"") ->  | S91: =IFERROR(VLOOKUP(B91,INDIRECT("'"&$R$1&"'!"&"$C$2:$G$200"),5,FALSE),0) -> 0 | U91: =IFERROR(VLOOKUP(B91,INDIRECT("'"&$T$1&"'!"&"$C$2:$G$200"),5,FALSE),0) -> 75.4456328 | V91: =8-COUNTIF(F91:U91,"") -> 1 | W91: =E91/IF(V91>4,5,V91) -> 151.6937739
A92: 90 | B92: Neil Lewis | C92: Hereford Couriers | D92: M50 | E92: =SUM(LARGE((S92,G92,I92,K92,M92,O92,Q92,U92),{1,2,3,4,5})) -> 150.1961568 | F92: =IFERROR(VLOOKUP(B92,INDIRECT("'"&$F$1&"'!"&"$C$2:$G$200"),4,FALSE),"") -> 0.02155092593 | G92: =IFERROR(VLOOKUP(B92,INDIRECT("'"&$F$1&"'!"&"$C$2:$G$200"),5,FALSE),0) -> 52.94582215 | H92: =IFERROR(VLOOKUP(B92,INDIRECT("'"&$H$1&"'!"&"$C$2:$G$200"),4,FALSE),"") -> 0.049375 | I92: =IFERROR(VLOOKUP(B92,INDIRECT("'"&$H$1&"'!"&"$C$2:$G$200"),5,FALSE),0) -> 40.3084525 | J92: =IFERROR(VLOOKUP(B92,INDIRECT("'"&$J$1&"'!"&"$C$2:$G$200"),4,FALSE),"") ->  | K92: =IFERROR(VLOOKUP(B92,INDIRECT("'"&$J$1&"'!"&"$C$2:$G$200"),5,FALSE),0) -> 0 | L92: =IFERROR(VLOOKUP(B92,INDIRECT("'"&$L$1&"'!"&"$C$2:$G$200"),4,FALSE),"") -> 0.0327662037 | M92: =IFERROR(VLOOKUP(B92,INDIRECT("'"&$L$1&"'!"&"$C$2:$G$200"),5,FALSE),0) -> 24.94434826 | N92: =IFERROR(VLOOKUP(B92,INDIRECT("'"&$N$1&"'!"&"$C$2:$G$200"),4,FALSE),"") -> 0.03784722222 | O92: =IFERROR(VLOOKUP(B92,INDIRECT("'"&$N$1&"'!"&"$C$2:$G$200"),5,FALSE),0) -> 31.99753391 | P92: =IFERROR(VLOOKUP(B92,INDIRECT("'"&$P$1&"'!"&"$C$2:$G$200"),4,FALSE),"") ->  | Q92: =IFERROR(VLOOKUP(B92,INDIRECT("'"&$P$1&"'!"&"$C$2:$G$200"),5,FALSE),0) -> 0 | R92: =IFERROR(VLOOKUP(B92,INDIRECT("'"&$R$1&"'!"&"$C$2:$G$200"),4,FALSE),"") ->  | S92: =IFERROR(VLOOKUP(B92,INDIRECT("'"&$R$1&"'!"&"$C$2:$G$200"),5,FALSE),0) -> 0 | T92: =IFERROR(VLOOKUP(B92,INDIRECT("'"&$T$1&"'!"&"$C$2:$G$200"),4,FALSE),"") ->  | U92: =IFERROR(VLOOKUP(B92,INDIRECT("'"&$T$1&"'!"&"$C$2:$G$200"),5,FALSE),0) -> 0 | V92: =8-COUNTIF(F92:U92,"") -> 4 | W92: =E92/IF(V92>4,5,V92) -> 37.5490392
A93: 91 | B93: Faye Johnson | C93: Mynydd Du | D93: SF | E93: =SUM(LARGE((S93,G93,I93,K93,M93,O93,Q93,U93),{1,2,3,4,5})) -> 150.183586 | F93: =IFERROR(VLOOKUP(B93,INDIRECT("'"&$F$1&"'!"&"$C$2:$G$200"),4,FALSE),"") ->  | G93: =IFERROR(VLOOKUP(B93,INDIRECT("'"&$F$1&"'!"&"$C$2:$G$200"),5,FALSE),0) -> 0 | H93: =IFERROR(VLOOKUP(B93,INDIRECT("'"&$H$1&"'!"&"$C$2:$G$200"),4,FALSE),"") -> 0.0372337963 | I93: =IFERROR(VLOOKUP(B93,INDIRECT("'"&$H$1&"'!"&"$C$2:$G$200"),5,FALSE),0) -> 79.57625215 | J93: =IFERROR(VLOOKUP(B93,INDIRECT("'"&$J$1&"'!"&"$C$2:$G$200"),4,FALSE),"") ->  | K93: =IFERROR(VLOOKUP(B93,INDIRECT("'"&$J$1&"'!"&"$C$2:$G$200"),5,FALSE),0) -> 0 | L93: =IFERROR(VLOOKUP(B93,INDIRECT("'"&$L$1&"'!"&"$C$2:$G$200"),4,FALSE),"") ->  | M93: =IFERROR(VLOOKUP(B93,INDIRECT("'"&$L$1&"'!"&"$C$2:$G$200"),5,FALSE),0) -> 0 | N93: =IFERROR(VLOOKUP(B93,INDIRECT("'"&$N$1&"'!"&"$C$2:$G$200"),4,FALSE),"") ->  | O93: =IFERROR(VLOOKUP(B93,INDIRECT("'"&$N$1&"'!"&"$C$2:$G$200"),5,FALSE),0) -> 0 | P93: =IFERROR(VLOOKUP(B93,INDIRECT("'"&$P$1&"'!"&"$C$2:$G$200"),4,FALSE),"") ->  | Q93: =IFERROR(VLOOKUP(B93,INDIRECT("'"&$P$1&"'!"&"$C$2:$G$200"),5,FALSE),0) -> 0 | R93: =IFERROR(VLOOKUP(B93,INDIRECT("'"&$R$1&"'!"&"$C$2:$G$200"),4,FALSE),"") ->  | S93: =IFERROR(VLOOKUP(B93,INDIRECT("'"&$R$1&"'!"&"$C$2:$G$200"),5,FALSE),0) -> 0 | T93: =IFERROR(VLOOKUP(B93,INDIRECT("'"&$T$1&"'!"&"$C$2:$G$200"),4,FALSE),"") -> 0.04704861111 | U93: =IFERROR(VLOOKUP(B93,INDIRECT("'"&$T$1&"'!"&"$C$2:$G$200"),5,FALSE),0) -> 70.60733384 | V93: =8-COUNTIF(F93:U93,"") -> 2 | W93: =E93/IF(V93>4,5,V93) -> 75.091793
A94: 92 | B94: Dominic Williams | C94: Unaffiliated | D94: M40 | E94: =SUM(LARGE((S94,G94,I94,K94,M94,O94,Q94,U94),{1,2,3,4,5})) -> 149.5709565 | F94: =IFERROR(VLOOKUP(B94,INDIRECT("'"&$F$1&"'!"&"$C$2:$G$200"),4,FALSE),"") ->  | G94: =IFERROR(VLOOKUP(B94,INDIRECT("'"&$F$1&"'!"&"$C$2:$G$200"),5,FALSE),0) -> 0 | H94: =IFERROR(VLOOKUP(B94,INDIRECT("'"&$H$1&"'!"&"$C$2:$G$200"),4,FALSE),"") -> 0.04011574074 | I94: =IFERROR(VLOOKUP(B94,INDIRECT("'"&$H$1&"'!"&"$C$2:$G$200"),5,FALSE),0) -> 70.25529685 | J94: =IFERROR(VLOOKUP(B94,INDIRECT("'"&$J$1&"'!"&"$C$2:$G$200"),4,FALSE),"") ->  | K94: =IFERROR(VLOOKUP(B94,INDIRECT("'"&$J$1&"'!"&"$C$2:$G$200"),5,FALSE),0) -> 0 | L94: =IFERROR(VLOOKUP(B94,INDIRECT("'"&$L$1&"'!"&"$C$2:$G$200"),4,FALSE),"") ->  | M94: =IFERROR(VLOOKUP(B94,INDIRECT("'"&$L$1&"'!"&"$C$2:$G$200"),5,FALSE),0) -> 0 | N94: =IFERROR(VLOOKUP(B94,INDIRECT("'"&$N$1&"'!"&"$C$2:$G$200"),4,FALSE),"") -> 0.0271875 | O94: =IFERROR(VLOOKUP(B94,INDIRECT("'"&$N$1&"'!"&"$C$2:$G$200"),5,FALSE),0) -> 79.31565968 | P94: =IFERROR(VLOOKUP(B94,INDIRECT("'"&$P$1&"'!"&"$C$2:$G$200"),4,FALSE),"") ->  | Q94: =IFERROR(VLOOKUP(B94,INDIRECT("'"&$P$1&"'!"&"$C$2:$G$200"),5,FALSE),0) -> 0 | R94: =IFERROR(VLOOKUP(B94,INDIRECT("'"&$R$1&"'!"&"$C$2:$G$200"),4,FALSE),"") ->  | S94: =IFERROR(VLOOKUP(B94,INDIRECT("'"&$R$1&"'!"&"$C$2:$G$200"),5,FALSE),0) -> 0 | T94: =IFERROR(VLOOKUP(B94,INDIRECT("'"&$T$1&"'!"&"$C$2:$G$200"),4,FALSE),"") ->  | U94: =IFERROR(VLOOKUP(B94,INDIRECT("'"&$T$1&"'!"&"$C$2:$G$200"),5,FALSE),0) -> 0 | V94: =8-COUNTIF(F94:U94,"") -> 2 | W94: =E94/IF(V94>4,5,V94) -> 74.78547826
A95: 93 | B95: Daniela Gormley | C95: Mynydd Du | D95: F40 | E95: =SUM(LARGE((S95,G95,I95,K95,M95,O95,Q95,U95),{1,2,3,4,5})) -> 148.975921 | F95: =IFERROR(VLOOKUP(B95,INDIRECT("'"&$F$1&"'!"&"$C$2:$G$200"),4,FALSE),"") ->  | G95: =IFERROR(VLOOKUP(B95,INDIRECT("'"&$F$1&"'!"&"$C$2:$G$200"),5,FALSE),0) -> 0 | H95: =IFERROR(VLOOKUP(B95,INDIRECT("'"&$H$1&"'!"&"$C$2:$G$200"),4,FALSE),"") ->  | I95: =IFERROR(VLOOKUP(B95,INDIRECT("'"&$H$1&"'!"&"$C$2:$G$200"),5,FALSE),0) -> 0 | J95: =IFERROR(VLOOKUP(B95,INDIRECT("'"&$J$1&"'!"&"$C$2:$G$200"),4,FALSE),"") ->  | K95: =IFERROR(VLOOKUP(B95,INDIRECT("'"&$J$1&"'!"&"$C$2:$G$200"),5,FALSE),0) -> 0 | L95: =IFERROR(VLOOKUP(B95,INDIRECT("'"&$L$1&"'!"&"$C$2:$G$200"),4,FALSE),"") -> 0.03167824074 | M95: =IFERROR(VLOOKUP(B95,INDIRECT("'"&$L$1&"'!"&"$C$2:$G$200"),5,FALSE),0) -> 30.75686372 | N95: =IFERROR(VLOOKUP(B95,INDIRECT("'"&$N$1&"'!"&"$C$2:$G$200"),4,FALSE),"") -> 0.03712962963 | O95: =IFERROR(VLOOKUP(B95,INDIRECT("'"&$N$1&"'!"&"$C$2:$G$200"),5,FALSE),0) -> 35.18290177 | P95: =IFERROR(VLOOKUP(B95,INDIRECT("'"&$P$1&"'!"&"$C$2:$G$200"),4,FALSE),"") -> 0.03472222222 | Q95: =IFERROR(VLOOKUP(B95,INDIRECT("'"&$P$1&"'!"&"$C$2:$G$200"),5,FALSE),0) -> 40.66284257 | R95: =IFERROR(VLOOKUP(B95,INDIRECT("'"&$R$1&"'!"&"$C$2:$G$200"),4,FALSE),"") ->  | S95: =IFERROR(VLOOKUP(B95,INDIRECT("'"&$R$1&"'!"&"$C$2:$G$200"),5,FALSE),0) -> 0 | U95: =IFERROR(VLOOKUP(B95,INDIRECT("'"&$T$1&"'!"&"$C$2:$G$200"),5,FALSE),0) -> 42.37331296 | V95: =8-COUNTIF(F95:U95,"") -> 3 | W95: =E95/IF(V95>4,5,V95) -> 49.65864034
A96: 94 | B96: Ian Macklin | C96: MDC | D96: M40 | E96: =SUM(LARGE((S96,G96,I96,K96,M96,O96,Q96,U96),{1,2,3,4,5})) -> 148.5184624 | F96: =IFERROR(VLOOKUP(B96,INDIRECT("'"&$F$1&"'!"&"$C$2:$G$200"),4,FALSE),"") ->  | G96: =IFERROR(VLOOKUP(B96,INDIRECT("'"&$F$1&"'!"&"$C$2:$G$200"),5,FALSE),0) -> 0 | H96: =IFERROR(VLOOKUP(B96,INDIRECT("'"&$H$1&"'!"&"$C$2:$G$200"),4,FALSE),"") -> 0.03679398148 | I96: =IFERROR(VLOOKUP(B96,INDIRECT("'"&$H$1&"'!"&"$C$2:$G$200"),5,FALSE),0) -> 80.99872726 | J96: =IFERROR(VLOOKUP(B96,INDIRECT("'"&$J$1&"'!"&"$C$2:$G$200"),4,FALSE),"") ->  | K96: =IFERROR(VLOOKUP(B96,INDIRECT("'"&$J$1&"'!"&"$C$2:$G$200"),5,FALSE),0) -> 0 | L96: =IFERROR(VLOOKUP(B96,INDIRECT("'"&$L$1&"'!"&"$C$2:$G$200"),4,FALSE),"") ->  | M96: =IFERROR(VLOOKUP(B96,INDIRECT("'"&$L$1&"'!"&"$C$2:$G$200"),5,FALSE),0) -> 0 | N96: =IFERROR(VLOOKUP(B96,INDIRECT("'"&$N$1&"'!"&"$C$2:$G$200"),4,FALSE),"") ->  | O96: =IFERROR(VLOOKUP(B96,INDIRECT("'"&$N$1&"'!"&"$C$2:$G$200"),5,FALSE),0) -> 0 | P96: =IFERROR(VLOOKUP(B96,INDIRECT("'"&$P$1&"'!"&"$C$2:$G$200"),4,FALSE),"") ->  | Q96: =IFERROR(VLOOKUP(B96,INDIRECT("'"&$P$1&"'!"&"$C$2:$G$200"),5,FALSE),0) -> 0 | R96: =IFERROR(VLOOKUP(B96,INDIRECT("'"&$R$1&"'!"&"$C$2:$G$200"),4,FALSE),"") ->  | S96: =IFERROR(VLOOKUP(B96,INDIRECT("'"&$R$1&"'!"&"$C$2:$G$200"),5,FALSE),0) -> 0 | T96: =IFERROR(VLOOKUP(B96,INDIRECT("'"&$T$1&"'!"&"$C$2:$G$200"),4,FALSE),"") -> 0.0481712963 | U96: =IFERROR(VLOOKUP(B96,INDIRECT("'"&$T$1&"'!"&"$C$2:$G$200"),5,FALSE),0) -> 67.51973517 | V96: =8-COUNTIF(F96:U96,"") -> 2 | W96: =E96/IF(V96>4,5,V96) -> 74.25923121
A97: 95 | B97: Gary Gunner | C97: Croft Ambrey | D97: M70 | E97: =SUM(LARGE((S97,G97,I97,K97,M97,O97,Q97,U97),{1,2,3,4,5})) -> 147.8758303 | F97: =IFERROR(VLOOKUP(B97,INDIRECT("'"&$F$1&"'!"&"$C$2:$G$200"),4,FALSE),"") ->  | G97: =IFERROR(VLOOKUP(B97,INDIRECT("'"&$F$1&"'!"&"$C$2:$G$200"),5,FALSE),0) -> 0 | H97: =IFERROR(VLOOKUP(B97,INDIRECT("'"&$H$1&"'!"&"$C$2:$G$200"),4,FALSE),"") ->  | I97: =IFERROR(VLOOKUP(B97,INDIRECT("'"&$H$1&"'!"&"$C$2:$G$200"),5,FALSE),0) -> 0 | J97: =IFERROR(VLOOKUP(B97,INDIRECT("'"&$J$1&"'!"&"$C$2:$G$200"),4,FALSE),"") ->  | K97: =IFERROR(VLOOKUP(B97,INDIRECT("'"&$J$1&"'!"&"$C$2:$G$200"),5,FALSE),0) -> 0 | L97: =IFERROR(VLOOKUP(B97,INDIRECT("'"&$L$1&"'!"&"$C$2:$G$200"),4,FALSE),"") ->  | M97: =IFERROR(VLOOKUP(B97,INDIRECT("'"&$L$1&"'!"&"$C$2:$G$200"),5,FALSE),0) -> 0 | N97: =IFERROR(VLOOKUP(B97,INDIRECT("'"&$N$1&"'!"&"$C$2:$G$200"),4,FALSE),"") -> 0.03439814815 | O97: =IFERROR(VLOOKUP(B97,INDIRECT("'"&$N$1&"'!"&"$C$2:$G$200"),5,FALSE),0) -> 47.30785039 | P97: =IFERROR(VLOOKUP(B97,INDIRECT("'"&$P$1&"'!"&"$C$2:$G$200"),4,FALSE),"") ->  | Q97: =IFERROR(VLOOKUP(B97,INDIRECT("'"&$P$1&"'!"&"$C$2:$G$200"),5,FALSE),0) -> 0 | R97: =IFERROR(VLOOKUP(B97,INDIRECT("'"&$R$1&"'!"&"$C$2:$G$200"),4,FALSE),"") -> 0.02875 | S97: =IFERROR(VLOOKUP(B97,INDIRECT("'"&$R$1&"'!"&"$C$2:$G$200"),5,FALSE),0) -> 58.7994543 | T97: =IFERROR(VLOOKUP(B97,INDIRECT("'"&$T$1&"'!"&"$C$2:$G$200"),4,FALSE),"") -> 0.05753472222 | U97: =IFERROR(VLOOKUP(B97,INDIRECT("'"&$T$1&"'!"&"$C$2:$G$200"),5,FALSE),0) -> 41.76852559 | V97: =8-COUNTIF(F97:U97,"") -> 3 | W97: =E97/IF(V97>4,5,V97) -> 49.29194343
A98: 96 | B98: Sam Charrington | C98: Mynydd Du | D98: M40 | E98: =SUM(LARGE((S98,G98,I98,K98,M98,O98,Q98,U98),{1,2,3,4,5})) -> 146.2194468 | F98: =IFERROR(VLOOKUP(B98,INDIRECT("'"&$F$1&"'!"&"$C$2:$G$200"),4,FALSE),"") ->  | G98: =IFERROR(VLOOKUP(B98,INDIRECT("'"&$F$1&"'!"&"$C$2:$G$200"),5,FALSE),0) -> 0 | H98: =IFERROR(VLOOKUP(B98,INDIRECT("'"&$H$1&"'!"&"$C$2:$G$200"),4,FALSE),"") -> 0.03851851852 | I98: =IFERROR(VLOOKUP(B98,INDIRECT("'"&$H$1&"'!"&"$C$2:$G$200"),5,FALSE),0) -> 75.4211275 | J98: =IFERROR(VLOOKUP(B98,INDIRECT("'"&$J$1&"'!"&"$C$2:$G$200"),4,FALSE),"") ->  | K98: =IFERROR(VLOOKUP(B98,INDIRECT("'"&$J$1&"'!"&"$C$2:$G$200"),5,FALSE),0) -> 0 | L98: =IFERROR(VLOOKUP(B98,INDIRECT("'"&$L$1&"'!"&"$C$2:$G$200"),4,FALSE),"") ->  | M98: =IFERROR(VLOOKUP(B98,INDIRECT("'"&$L$1&"'!"&"$C$2:$G$200"),5,FALSE),0) -> 0 | N98: =IFERROR(VLOOKUP(B98,INDIRECT("'"&$N$1&"'!"&"$C$2:$G$200"),4,FALSE),"") ->  | O98: =IFERROR(VLOOKUP(B98,INDIRECT("'"&$N$1&"'!"&"$C$2:$G$200"),5,FALSE),0) -> 0 | P98: =IFERROR(VLOOKUP(B98,INDIRECT("'"&$P$1&"'!"&"$C$2:$G$200"),4,FALSE),"") ->  | Q98: =IFERROR(VLOOKUP(B98,INDIRECT("'"&$P$1&"'!"&"$C$2:$G$200"),5,FALSE),0) -> 0 | R98: =IFERROR(VLOOKUP(B98,INDIRECT("'"&$R$1&"'!"&"$C$2:$G$200"),4,FALSE),"") ->  | S98: =IFERROR(VLOOKUP(B98,INDIRECT("'"&$R$1&"'!"&"$C$2:$G$200"),5,FALSE),0) -> 0 | T98: =IFERROR(VLOOKUP(B98,INDIRECT("'"&$T$1&"'!"&"$C$2:$G$200"),4,FALSE),"") -> 0.04697916667 | U98: =IFERROR(VLOOKUP(B98,INDIRECT("'"&$T$1&"'!"&"$C$2:$G$200"),5,FALSE),0) -> 70.79831933 | V98: =8-COUNTIF(F98:U98,"") -> 2 | W98: =E98/IF(V98>4,5,V98) -> 73.10972341
A99: 97 | B99: Sammi Toop | C99: Mynydd Du | D99: SF | E99: =SUM(LARGE((S99,G99,I99,K99,M99,O99,Q99,U99),{1,2,3,4,5})) -> 145.7729642 | F99: =IFERROR(VLOOKUP(B99,INDIRECT("'"&$F$1&"'!"&"$C$2:$G$200"),4,FALSE),"") ->  | G99: =IFERROR(VLOOKUP(B99,INDIRECT("'"&$F$1&"'!"&"$C$2:$G$200"),5,FALSE),0) -> 0 | H99: =IFERROR(VLOOKUP(B99,INDIRECT("'"&$H$1&"'!"&"$C$2:$G$200"),4,FALSE),"") ->  | I99: =IFERROR(VLOOKUP(B99,INDIRECT("'"&$H$1&"'!"&"$C$2:$G$200"),5,FALSE),0) -> 0 | J99: =IFERROR(VLOOKUP(B99,INDIRECT("'"&$J$1&"'!"&"$C$2:$G$200"),4,FALSE),"") ->  | K99: =IFERROR(VLOOKUP(B99,INDIRECT("'"&$J$1&"'!"&"$C$2:$G$200"),5,FALSE),0) -> 0 | L99: =IFERROR(VLOOKUP(B99,INDIRECT("'"&$L$1&"'!"&"$C$2:$G$200"),4,FALSE),"") ->  | M99: =IFERROR(VLOOKUP(B99,INDIRECT("'"&$L$1&"'!"&"$C$2:$G$200"),5,FALSE),0) -> 0 | N99: =IFERROR(VLOOKUP(B99,INDIRECT("'"&$N$1&"'!"&"$C$2:$G$200"),4,FALSE),"") ->  | O99: =IFERROR(VLOOKUP(B99,INDIRECT("'"&$N$1&"'!"&"$C$2:$G$200"),5,FALSE),0) -> 0 | P99: =IFERROR(VLOOKUP(B99,INDIRECT("'"&$P$1&"'!"&"$C$2:$G$200"),4,FALSE),"") -> 0.02832175926 | Q99: =IFERROR(VLOOKUP(B99,INDIRECT("'"&$P$1&"'!"&"$C$2:$G$200"),5,FALSE),0) -> 70.03399193 | R99: =IFERROR(VLOOKUP(B99,INDIRECT("'"&$R$1&"'!"&"$C$2:$G$200"),4,FALSE),"") -> 0.02530092593 | S99: =IFERROR(VLOOKUP(B99,INDIRECT("'"&$R$1&"'!"&"$C$2:$G$200"),5,FALSE),0) -> 75.73897226 | T99: =IFERROR(VLOOKUP(B99,INDIRECT("'"&$T$1&"'!"&"$C$2:$G$200"),4,FALSE),"") ->  | U99: =IFERROR(VLOOKUP(B99,INDIRECT("'"&$T$1&"'!"&"$C$2:$G$200"),5,FALSE),0) -> 0 | V99: =8-COUNTIF(F99:U99,"") -> 2 | W99: =E99/IF(V99>4,5,V99) -> 72.88648209
A100: 98 | B100: Steve Loveluck | C100: Meirionydd | D100: M50 | E100: =SUM(LARGE((S100,G100,I100,K100,M100,O100,Q100,U100),{1,2,3,4,5})) -> 145.3162324 | F100: =IFERROR(VLOOKUP(B100,INDIRECT("'"&$F$1&"'!"&"$C$2:$G$200"),4,FALSE),"") ->  | G100: =IFERROR(VLOOKUP(B100,INDIRECT("'"&$F$1&"'!"&"$C$2:$G$200"),5,FALSE),0) -> 0 | H100: =IFERROR(VLOOKUP(B100,INDIRECT("'"&$H$1&"'!"&"$C$2:$G$200"),4,FALSE),"") -> 0.03795138889 | I100: =IFERROR(VLOOKUP(B100,INDIRECT("'"&$H$1&"'!"&"$C$2:$G$200"),5,FALSE),0) -> 77.25537172 | J100: =IFERROR(VLOOKUP(B100,INDIRECT("'"&$J$1&"'!"&"$C$2:$G$200"),4,FALSE),"") ->  | K100: =IFERROR(VLOOKUP(B100,INDIRECT("'"&$J$1&"'!"&"$C$2:$G$200"),5,FALSE),0) -> 0 | L100: =IFERROR(VLOOKUP(B100,INDIRECT("'"&$L$1&"'!"&"$C$2:$G$200"),4,FALSE),"") ->  | M100: =IFERROR(VLOOKUP(B100,INDIRECT("'"&$L$1&"'!"&"$C$2:$G$200"),5,FALSE),0) -> 0 | N100: =IFERROR(VLOOKUP(B100,INDIRECT("'"&$N$1&"'!"&"$C$2:$G$200"),4,FALSE),"") ->  | O100: =IFERROR(VLOOKUP(B100,INDIRECT("'"&$N$1&"'!"&"$C$2:$G$200"),5,FALSE),0) -> 0 | P100: =IFERROR(VLOOKUP(B100,INDIRECT("'"&$P$1&"'!"&"$C$2:$G$200"),4,FALSE),"") ->  | Q100: =IFERROR(VLOOKUP(B100,INDIRECT("'"&$P$1&"'!"&"$C$2:$G$200"),5,FALSE),0) -> 0 | R100: =IFERROR(VLOOKUP(B100,INDIRECT("'"&$R$1&"'!"&"$C$2:$G$200"),4,FALSE),"") ->  | S100: =IFERROR(VLOOKUP(B100,INDIRECT("'"&$R$1&"'!"&"$C$2:$G$200"),5,FALSE),0) -> 0 | T100: =IFERROR(VLOOKUP(B100,INDIRECT("'"&$T$1&"'!"&"$C$2:$G$200"),4,FALSE),"") -> 0.04797453704 | U100: =IFERROR(VLOOKUP(B100,INDIRECT("'"&$T$1&"'!"&"$C$2:$G$200"),5,FALSE),0) -> 68.06086071 | V100: =8-COUNTIF(F100:U100,"") -> 2 | W100: =E100/IF(V100>4,5,V100) -> 72.65811621
A101: 99 | B101: Rhian Probert | C101: Mynydd Du | D101: F40 | E101: =SUM(LARGE((S101,G101,I101,K101,M101,O101,Q101,U101),{1,2,3,4,5})) -> 144.4139484 | F101: =IFERROR(VLOOKUP(B101,INDIRECT("'"&$F$1&"'!"&"$C$2:$G$200"),4,FALSE),"") ->  | G101: =IFERROR(VLOOKUP(B101,INDIRECT("'"&$F$1&"'!"&"$C$2:$G$200"),5,FALSE),0) -> 0 | H101: =IFERROR(VLOOKUP(B101,INDIRECT("'"&$H$1&"'!"&"$C$2:$G$200"),4,FALSE),"") ->  | I101: =IFERROR(VLOOKUP(B101,INDIRECT("'"&$H$1&"'!"&"$C$2:$G$200"),5,FALSE),0) -> 0 | J101: =IFERROR(VLOOKUP(B101,INDIRECT("'"&$J$1&"'!"&"$C$2:$G$200"),4,FALSE),"") ->  | K101: =IFERROR(VLOOKUP(B101,INDIRECT("'"&$J$1&"'!"&"$C$2:$G$200"),5,FALSE),0) -> 0 | L101: =IFERROR(VLOOKUP(B101,INDIRECT("'"&$L$1&"'!"&"$C$2:$G$200"),4,FALSE),"") ->  | M101: =IFERROR(VLOOKUP(B101,INDIRECT("'"&$L$1&"'!"&"$C$2:$G$200"),5,FALSE),0) -> 0 | N101: =IFERROR(VLOOKUP(B101,INDIRECT("'"&$N$1&"'!"&"$C$2:$G$200"),4,FALSE),"") ->  | O101: =IFERROR(VLOOKUP(B101,INDIRECT("'"&$N$1&"'!"&"$C$2:$G$200"),5,FALSE),0) -> 0 | P101: =IFERROR(VLOOKUP(B101,INDIRECT("'"&$P$1&"'!"&"$C$2:$G$200"),4,FALSE),"") -> 0.0271875 | Q101: =IFERROR(VLOOKUP(B101,INDIRECT("'"&$P$1&"'!"&"$C$2:$G$200"),5,FALSE),0) -> 75.23900574 | R101: =IFERROR(VLOOKUP(B101,INDIRECT("'"&$R$1&"'!"&"$C$2:$G$200"),4,FALSE),"") ->  | S101: =IFERROR(VLOOKUP(B101,INDIRECT("'"&$R$1&"'!"&"$C$2:$G$200"),5,FALSE),0) -> 0 | T101: =IFERROR(VLOOKUP(B101,INDIRECT("'"&$T$1&"'!"&"$C$2:$G$200"),4,FALSE),"") -> 0.04756944444 | U101: =IFERROR(VLOOKUP(B101,INDIRECT("'"&$T$1&"'!"&"$C$2:$G$200"),5,FALSE),0) -> 69.1749427 | V101: =8-COUNTIF(F101:U101,"") -> 2 | W101: =E101/IF(V101>4,5,V101) -> 72.20697422
A102: 100 | B102: Gareth Jones | C102: MDC | D102: M70 | E102: =SUM(LARGE((S102,G102,I102,K102,M102,O102,Q102,U102),{1,2,3,4,5})) -> 144.1497235 | F102: =IFERROR(VLOOKUP(B102,INDIRECT("'"&$F$1&"'!"&"$C$2:$G$200"),4,FALSE),"") ->  | G102: =IFERROR(VLOOKUP(B102,INDIRECT("'"&$F$1&"'!"&"$C$2:$G$200"),5,FALSE),0) -> 0 | H102: =IFERROR(VLOOKUP(B102,INDIRECT("'"&$H$1&"'!"&"$C$2:$G$200"),4,FALSE),"") ->  | I102: =IFERROR(VLOOKUP(B102,INDIRECT("'"&$H$1&"'!"&"$C$2:$G$200"),5,FALSE),0) -> 0 | J102: =IFERROR(VLOOKUP(B102,INDIRECT("'"&$J$1&"'!"&"$C$2:$G$200"),4,FALSE),"") ->  | K102: =IFERROR(VLOOKUP(B102,INDIRECT("'"&$J$1&"'!"&"$C$2:$G$200"),5,FALSE),0) -> 0 | L102: =IFERROR(VLOOKUP(B102,INDIRECT("'"&$L$1&"'!"&"$C$2:$G$200"),4,FALSE),"") ->  | M102: =IFERROR(VLOOKUP(B102,INDIRECT("'"&$L$1&"'!"&"$C$2:$G$200"),5,FALSE),0) -> 0 | N102: =IFERROR(VLOOKUP(B102,INDIRECT("'"&$N$1&"'!"&"$C$2:$G$200"),4,FALSE),"") -> 0.03899305556 | O102: =IFERROR(VLOOKUP(B102,INDIRECT("'"&$N$1&"'!"&"$C$2:$G$200"),5,FALSE),0) -> 26.91122072 | P102: =IFERROR(VLOOKUP(B102,INDIRECT("'"&$P$1&"'!"&"$C$2:$G$200"),4,FALSE),"") -> 0.03479166667 | Q102: =IFERROR(VLOOKUP(B102,INDIRECT("'"&$P$1&"'!"&"$C$2:$G$200"),5,FALSE),0) -> 40.34416826 | R102: =IFERROR(VLOOKUP(B102,INDIRECT("'"&$R$1&"'!"&"$C$2:$G$200"),4,FALSE),"") -> 0.03076388889 | S102: =IFERROR(VLOOKUP(B102,INDIRECT("'"&$R$1&"'!"&"$C$2:$G$200"),5,FALSE),0) -> 48.90859482 | T102: =IFERROR(VLOOKUP(B102,INDIRECT("'"&$T$1&"'!"&"$C$2:$G$200"),4,FALSE),"") -> 0.0625462963 | U102: =IFERROR(VLOOKUP(B102,INDIRECT("'"&$T$1&"'!"&"$C$2:$G$200"),5,FALSE),0) -> 27.98573975 | V102: =8-COUNTIF(F102:U102,"") -> 4 | W102: =E102/IF(V102>4,5,V102) -> 36.03743089
A103: 101 | B103: Gareth Bryer | C103: Mynydd Du | D103: M40 | E103: =SUM(LARGE((S103,G103,I103,K103,M103,O103,Q103,U103),{1,2,3,4,5})) -> 141.8107163 | F103: =IFERROR(VLOOKUP(B103,INDIRECT("'"&$F$1&"'!"&"$C$2:$G$200"),4,FALSE),"") ->  | G103: =IFERROR(VLOOKUP(B103,INDIRECT("'"&$F$1&"'!"&"$C$2:$G$200"),5,FALSE),0) -> 0 | H103: =IFERROR(VLOOKUP(B103,INDIRECT("'"&$H$1&"'!"&"$C$2:$G$200"),4,FALSE),"") -> 0.03914351852 | I103: =IFERROR(VLOOKUP(B103,INDIRECT("'"&$H$1&"'!"&"$C$2:$G$200"),5,FALSE),0) -> 73.3997155 | J103: =IFERROR(VLOOKUP(B103,INDIRECT("'"&$J$1&"'!"&"$C$2:$G$200"),4,FALSE),"") ->  | K103: =IFERROR(VLOOKUP(B103,INDIRECT("'"&$J$1&"'!"&"$C$2:$G$200"),5,FALSE),0) -> 0 | L103: =IFERROR(VLOOKUP(B103,INDIRECT("'"&$L$1&"'!"&"$C$2:$G$200"),4,FALSE),"") ->  | M103: =IFERROR(VLOOKUP(B103,INDIRECT("'"&$L$1&"'!"&"$C$2:$G$200"),5,FALSE),0) -> 0 | N103: =IFERROR(VLOOKUP(B103,INDIRECT("'"&$N$1&"'!"&"$C$2:$G$200"),4,FALSE),"") ->  | O103: =IFERROR(VLOOKUP(B103,INDIRECT("'"&$N$1&"'!"&"$C$2:$G$200"),5,FALSE),0) -> 0 | P103: =IFERROR(VLOOKUP(B103,INDIRECT("'"&$P$1&"'!"&"$C$2:$G$200"),4,FALSE),"") ->  | Q103: =IFERROR(VLOOKUP(B103,INDIRECT("'"&$P$1&"'!"&"$C$2:$G$200"),5,FALSE),0) -> 0 | R103: =IFERROR(VLOOKUP(B103,INDIRECT("'"&$R$1&"'!"&"$C$2:$G$200"),4,FALSE),"") ->  | S103: =IFERROR(VLOOKUP(B103,INDIRECT("'"&$R$1&"'!"&"$C$2:$G$200"),5,FALSE),0) -> 0 | T103: =IFERROR(VLOOKUP(B103,INDIRECT("'"&$T$1&"'!"&"$C$2:$G$200"),4,FALSE),"") -> 0.04784722222 | U103: =IFERROR(VLOOKUP(B103,INDIRECT("'"&$T$1&"'!"&"$C$2:$G$200"),5,FALSE),0) -> 68.41100076 | V103: =8-COUNTIF(F103:U103,"") -> 2 | W103: =E103/IF(V103>4,5,V103) -> 70.90535813
A104: 102 | B104: Martin Scrivens | C104: Monross Trailblazers | D104: SM | E104: =SUM(LARGE((S104,G104,I104,K104,M104,O104,Q104,U104),{1,2,3,4,5})) -> 140.7218981 | F104: =IFERROR(VLOOKUP(B104,INDIRECT("'"&$F$1&"'!"&"$C$2:$G$200"),4,FALSE),"") ->  | G104: =IFERROR(VLOOKUP(B104,INDIRECT("'"&$F$1&"'!"&"$C$2:$G$200"),5,FALSE),0) -> 0 | H104: =IFERROR(VLOOKUP(B104,INDIRECT("'"&$H$1&"'!"&"$C$2:$G$200"),4,FALSE),"") ->  | I104: =IFERROR(VLOOKUP(B104,INDIRECT("'"&$H$1&"'!"&"$C$2:$G$200"),5,FALSE),0) -> 0 | J104: =IFERROR(VLOOKUP(B104,INDIRECT("'"&$J$1&"'!"&"$C$2:$G$200"),4,FALSE),"") ->  | K104: =IFERROR(VLOOKUP(B104,INDIRECT("'"&$J$1&"'!"&"$C$2:$G$200"),5,FALSE),0) -> 0 | L104: =IFERROR(VLOOKUP(B104,INDIRECT("'"&$L$1&"'!"&"$C$2:$G$200"),4,FALSE),"") -> 0.02527777778 | M104: =IFERROR(VLOOKUP(B104,INDIRECT("'"&$L$1&"'!"&"$C$2:$G$200"),5,FALSE),0) -> 64.95176849 | N104: =IFERROR(VLOOKUP(B104,INDIRECT("'"&$N$1&"'!"&"$C$2:$G$200"),4,FALSE),"") ->  | O104: =IFERROR(VLOOKUP(B104,INDIRECT("'"&$N$1&"'!"&"$C$2:$G$200"),5,FALSE),0) -> 0 | P104: =IFERROR(VLOOKUP(B104,INDIRECT("'"&$P$1&"'!"&"$C$2:$G$200"),4,FALSE),"") -> 0.02707175926 | Q104: =IFERROR(VLOOKUP(B104,INDIRECT("'"&$P$1&"'!"&"$C$2:$G$200"),5,FALSE),0) -> 75.77012959 | R104: =IFERROR(VLOOKUP(B104,INDIRECT("'"&$R$1&"'!"&"$C$2:$G$200"),4,FALSE),"") ->  | S104: =IFERROR(VLOOKUP(B104,INDIRECT("'"&$R$1&"'!"&"$C$2:$G$200"),5,FALSE),0) -> 0 | U104: =IFERROR(VLOOKUP(B104,INDIRECT("'"&$T$1&"'!"&"$C$2:$G$200"),5,FALSE),0) -> 0 | V104: =8-COUNTIF(F104:U104,"") -> 2 | W104: =E104/IF(V104>4,5,V104) -> 70.36094904
A105: 103 | B105: Andrew Blackmore | C105: MDC | D105: M50 | E105: =SUM(LARGE((S105,G105,I105,K105,M105,O105,Q105,U105),{1,2,3,4,5})) -> 138.1368534 | F105: =IFERROR(VLOOKUP(B105,INDIRECT("'"&$F$1&"'!"&"$C$2:$G$200"),4,FALSE),"") -> 0.01859953704 | G105: =IFERROR(VLOOKUP(B105,INDIRECT("'"&$F$1&"'!"&"$C$2:$G$200"),5,FALSE),0) -> 73.08482072 | H105: =IFERROR(VLOOKUP(B105,INDIRECT("'"&$H$1&"'!"&"$C$2:$G$200"),4,FALSE),"") -> 0.04172453704 | I105: =IFERROR(VLOOKUP(B105,INDIRECT("'"&$H$1&"'!"&"$C$2:$G$200"),5,FALSE),0) -> 65.05203264 | J105: =IFERROR(VLOOKUP(B105,INDIRECT("'"&$J$1&"'!"&"$C$2:$G$200"),4,FALSE),"") ->  | K105: =IFERROR(VLOOKUP(B105,INDIRECT("'"&$J$1&"'!"&"$C$2:$G$200"),5,FALSE),0) -> 0 | L105: =IFERROR(VLOOKUP(B105,INDIRECT("'"&$L$1&"'!"&"$C$2:$G$200"),4,FALSE),"") ->  | M105: =IFERROR(VLOOKUP(B105,INDIRECT("'"&$L$1&"'!"&"$C$2:$G$200"),5,FALSE),0) -> 0 | N105: =IFERROR(VLOOKUP(B105,INDIRECT("'"&$N$1&"'!"&"$C$2:$G$200"),4,FALSE),"") ->  | O105: =IFERROR(VLOOKUP(B105,INDIRECT("'"&$N$1&"'!"&"$C$2:$G$200"),5,FALSE),0) -> 0 | P105: =IFERROR(VLOOKUP(B105,INDIRECT("'"&$P$1&"'!"&"$C$2:$G$200"),4,FALSE),"") ->  | Q105: =IFERROR(VLOOKUP(B105,INDIRECT("'"&$P$1&"'!"&"$C$2:$G$200"),5,FALSE),0) -> 0 | R105: =IFERROR(VLOOKUP(B105,INDIRECT("'"&$R$1&"'!"&"$C$2:$G$200"),4,FALSE),"") ->  | S105: =IFERROR(VLOOKUP(B105,INDIRECT("'"&$R$1&"'!"&"$C$2:$G$200"),5,FALSE),0) -> 0 | T105: =IFERROR(VLOOKUP(B105,INDIRECT("'"&$T$1&"'!"&"$C$2:$G$200"),4,FALSE),"") ->  | U105: =IFERROR(VLOOKUP(B105,INDIRECT("'"&$T$1&"'!"&"$C$2:$G$200"),5,FALSE),0) -> 0 | V105: =8-COUNTIF(F105:U105,"") -> 2 | W105: =E105/IF(V105>4,5,V105) -> 69.06842668
A106: 104 | B106: Mark Saunders | C106: MDC | D106: M50 | E106: =SUM(LARGE((S106,G106,I106,K106,M106,O106,Q106,U106),{1,2,3,4,5})) -> 135.7388608 | F106: =IFERROR(VLOOKUP(B106,INDIRECT("'"&$F$1&"'!"&"$C$2:$G$200"),4,FALSE),"") ->  | G106: =IFERROR(VLOOKUP(B106,INDIRECT("'"&$F$1&"'!"&"$C$2:$G$200"),5,FALSE),0) -> 0 | H106: =IFERROR(VLOOKUP(B106,INDIRECT("'"&$H$1&"'!"&"$C$2:$G$200"),4,FALSE),"") ->  | I106: =IFERROR(VLOOKUP(B106,INDIRECT("'"&$H$1&"'!"&"$C$2:$G$200"),5,FALSE),0) -> 0 | J106: =IFERROR(VLOOKUP(B106,INDIRECT("'"&$J$1&"'!"&"$C$2:$G$200"),4,FALSE),"") ->  | K106: =IFERROR(VLOOKUP(B106,INDIRECT("'"&$J$1&"'!"&"$C$2:$G$200"),5,FALSE),0) -> 0 | L106: =IFERROR(VLOOKUP(B106,INDIRECT("'"&$L$1&"'!"&"$C$2:$G$200"),4,FALSE),"") -> 0.02480324074 | M106: =IFERROR(VLOOKUP(B106,INDIRECT("'"&$L$1&"'!"&"$C$2:$G$200"),5,FALSE),0) -> 67.48701459 | N106: =IFERROR(VLOOKUP(B106,INDIRECT("'"&$N$1&"'!"&"$C$2:$G$200"),4,FALSE),"") ->  | O106: =IFERROR(VLOOKUP(B106,INDIRECT("'"&$N$1&"'!"&"$C$2:$G$200"),5,FALSE),0) -> 0 | P106: =IFERROR(VLOOKUP(B106,INDIRECT("'"&$P$1&"'!"&"$C$2:$G$200"),4,FALSE),"") ->  | Q106: =IFERROR(VLOOKUP(B106,INDIRECT("'"&$P$1&"'!"&"$C$2:$G$200"),5,FALSE),0) -> 0 | R106: =IFERROR(VLOOKUP(B106,INDIRECT("'"&$R$1&"'!"&"$C$2:$G$200"),4,FALSE),"") ->  | S106: =IFERROR(VLOOKUP(B106,INDIRECT("'"&$R$1&"'!"&"$C$2:$G$200"),5,FALSE),0) -> 0 | U106: =IFERROR(VLOOKUP(B106,INDIRECT("'"&$T$1&"'!"&"$C$2:$G$200"),5,FALSE),0) -> 68.25184619 | V106: =8-COUNTIF(F106:U106,"") -> 1 | W106: =E106/IF(V106>4,5,V106) -> 135.7388608
A107: 105 | B107: Martin Simmons | C107: Unaffiliated | D107: M50 | E107: =SUM(LARGE((S107,G107,I107,K107,M107,O107,Q107,U107),{1,2,3,4,5})) -> 135.382012 | F107: =IFERROR(VLOOKUP(B107,INDIRECT("'"&$F$1&"'!"&"$C$2:$G$200"),4,FALSE),"") ->  | G107: =IFERROR(VLOOKUP(B107,INDIRECT("'"&$F$1&"'!"&"$C$2:$G$200"),5,FALSE),0) -> 0 | H107: =IFERROR(VLOOKUP(B107,INDIRECT("'"&$H$1&"'!"&"$C$2:$G$200"),4,FALSE),"") -> 0.04083333333 | I107: =IFERROR(VLOOKUP(B107,INDIRECT("'"&$H$1&"'!"&"$C$2:$G$200"),5,FALSE),0) -> 67.93441641 | J107: =IFERROR(VLOOKUP(B107,INDIRECT("'"&$J$1&"'!"&"$C$2:$G$200"),4,FALSE),"") ->  | K107: =IFERROR(VLOOKUP(B107,INDIRECT("'"&$J$1&"'!"&"$C$2:$G$200"),5,FALSE),0) -> 0 | L107: =IFERROR(VLOOKUP(B107,INDIRECT("'"&$L$1&"'!"&"$C$2:$G$200"),4,FALSE),"") ->  | M107: =IFERROR(VLOOKUP(B107,INDIRECT("'"&$L$1&"'!"&"$C$2:$G$200"),5,FALSE),0) -> 0 | N107: =IFERROR(VLOOKUP(B107,INDIRECT("'"&$N$1&"'!"&"$C$2:$G$200"),4,FALSE),"") -> 0.02986111111 | O107: =IFERROR(VLOOKUP(B107,INDIRECT("'"&$N$1&"'!"&"$C$2:$G$200"),5,FALSE),0) -> 67.44759556 | P107: =IFERROR(VLOOKUP(B107,INDIRECT("'"&$P$1&"'!"&"$C$2:$G$200"),4,FALSE),"") ->  | Q107: =IFERROR(VLOOKUP(B107,INDIRECT("'"&$P$1&"'!"&"$C$2:$G$200"),5,FALSE),0) -> 0 | R107: =IFERROR(VLOOKUP(B107,INDIRECT("'"&$R$1&"'!"&"$C$2:$G$200"),4,FALSE),"") ->  | S107: =IFERROR(VLOOKUP(B107,INDIRECT("'"&$R$1&"'!"&"$C$2:$G$200"),5,FALSE),0) -> 0 | T107: =IFERROR(VLOOKUP(B107,INDIRECT("'"&$T$1&"'!"&"$C$2:$G$200"),4,FALSE),"") ->  | U107: =IFERROR(VLOOKUP(B107,INDIRECT("'"&$T$1&"'!"&"$C$2:$G$200"),5,FALSE),0) -> 0 | V107: =8-COUNTIF(F107:U107,"") -> 2 | W107: =E107/IF(V107>4,5,V107) -> 67.69100599
A108: 106 | B108: Sasha Habgood | C108: Mynydd Du | D108: F40 | E108: =SUM(LARGE((S108,G108,I108,K108,M108,O108,Q108,U108),{1,2,3,4,5})) -> 134.7783649 | F108: =IFERROR(VLOOKUP(B108,INDIRECT("'"&$F$1&"'!"&"$C$2:$G$200"),4,FALSE),"") ->  | G108: =IFERROR(VLOOKUP(B108,INDIRECT("'"&$F$1&"'!"&"$C$2:$G$200"),5,FALSE),0) -> 0 | H108: =IFERROR(VLOOKUP(B108,INDIRECT("'"&$H$1&"'!"&"$C$2:$G$200"),4,FALSE),"") -> 0.03946759259 | I108: =IFERROR(VLOOKUP(B108,INDIRECT("'"&$H$1&"'!"&"$C$2:$G$200"),5,FALSE),0) -> 72.35157595 | J108: =IFERROR(VLOOKUP(B108,INDIRECT("'"&$J$1&"'!"&"$C$2:$G$200"),4,FALSE),"") ->  | K108: =IFERROR(VLOOKUP(B108,INDIRECT("'"&$J$1&"'!"&"$C$2:$G$200"),5,FALSE),0) -> 0 | L108: =IFERROR(VLOOKUP(B108,INDIRECT("'"&$L$1&"'!"&"$C$2:$G$200"),4,FALSE),"") ->  | M108: =IFERROR(VLOOKUP(B108,INDIRECT("'"&$L$1&"'!"&"$C$2:$G$200"),5,FALSE),0) -> 0 | N108: =IFERROR(VLOOKUP(B108,INDIRECT("'"&$N$1&"'!"&"$C$2:$G$200"),4,FALSE),"") ->  | O108: =IFERROR(VLOOKUP(B108,INDIRECT("'"&$N$1&"'!"&"$C$2:$G$200"),5,FALSE),0) -> 0 | P108: =IFERROR(VLOOKUP(B108,INDIRECT("'"&$P$1&"'!"&"$C$2:$G$200"),4,FALSE),"") ->  | Q108: =IFERROR(VLOOKUP(B108,INDIRECT("'"&$P$1&"'!"&"$C$2:$G$200"),5,FALSE),0) -> 0 | R108: =IFERROR(VLOOKUP(B108,INDIRECT("'"&$R$1&"'!"&"$C$2:$G$200"),4,FALSE),"") ->  | S108: =IFERROR(VLOOKUP(B108,INDIRECT("'"&$R$1&"'!"&"$C$2:$G$200"),5,FALSE),0) -> 0 | T108: =IFERROR(VLOOKUP(B108,INDIRECT("'"&$T$1&"'!"&"$C$2:$G$200"),4,FALSE),"") -> 0.05002314815 | U108: =IFERROR(VLOOKUP(B108,INDIRECT("'"&$T$1&"'!"&"$C$2:$G$200"),5,FALSE),0) -> 62.4267889 | V108: =8-COUNTIF(F108:U108,"") -> 2 | W108: =E108/IF(V108>4,5,V108) -> 67.38918243
A109: 107 | B109: Emma McWilliams | C109: Mynydd Du | D109: SF | E109: =SUM(LARGE((S109,G109,I109,K109,M109,O109,Q109,U109),{1,2,3,4,5})) -> 134.7386773 | F109: =IFERROR(VLOOKUP(B109,INDIRECT("'"&$F$1&"'!"&"$C$2:$G$200"),4,FALSE),"") ->  | G109: =IFERROR(VLOOKUP(B109,INDIRECT("'"&$F$1&"'!"&"$C$2:$G$200"),5,FALSE),0) -> 0 | H109: =IFERROR(VLOOKUP(B109,INDIRECT("'"&$H$1&"'!"&"$C$2:$G$200"),4,FALSE),"") ->  | I109: =IFERROR(VLOOKUP(B109,INDIRECT("'"&$H$1&"'!"&"$C$2:$G$200"),5,FALSE),0) -> 0 | J109: =IFERROR(VLOOKUP(B109,INDIRECT("'"&$J$1&"'!"&"$C$2:$G$200"),4,FALSE),"") ->  | K109: =IFERROR(VLOOKUP(B109,INDIRECT("'"&$J$1&"'!"&"$C$2:$G$200"),5,FALSE),0) -> 0 | L109: =IFERROR(VLOOKUP(B109,INDIRECT("'"&$L$1&"'!"&"$C$2:$G$200"),4,FALSE),"") ->  | M109: =IFERROR(VLOOKUP(B109,INDIRECT("'"&$L$1&"'!"&"$C$2:$G$200"),5,FALSE),0) -> 0 | N109: =IFERROR(VLOOKUP(B109,INDIRECT("'"&$N$1&"'!"&"$C$2:$G$200"),4,FALSE),"") -> 0.02990740741 | O109: =IFERROR(VLOOKUP(B109,INDIRECT("'"&$N$1&"'!"&"$C$2:$G$200"),5,FALSE),0) -> 67.24208796 | P109: =IFERROR(VLOOKUP(B109,INDIRECT("'"&$P$1&"'!"&"$C$2:$G$200"),4,FALSE),"") ->  | Q109: =IFERROR(VLOOKUP(B109,INDIRECT("'"&$P$1&"'!"&"$C$2:$G$200"),5,FALSE),0) -> 0 | R109: =IFERROR(VLOOKUP(B109,INDIRECT("'"&$R$1&"'!"&"$C$2:$G$200"),4,FALSE),"") -> 0.02697916667 | S109: =IFERROR(VLOOKUP(B109,INDIRECT("'"&$R$1&"'!"&"$C$2:$G$200"),5,FALSE),0) -> 67.49658936 | T109: =IFERROR(VLOOKUP(B109,INDIRECT("'"&$T$1&"'!"&"$C$2:$G$200"),4,FALSE),"") ->  | U109: =IFERROR(VLOOKUP(B109,INDIRECT("'"&$T$1&"'!"&"$C$2:$G$200"),5,FALSE),0) -> 0 | V109: =8-COUNTIF(F109:U109,"") -> 2 | W109: =E109/IF(V109>4,5,V109) -> 67.36933866
A110: 108 | B110: Andrew Dickens | C110: Mynydd Du | D110: M40 | E110: =SUM(LARGE((S110,G110,I110,K110,M110,O110,Q110,U110),{1,2,3,4,5})) -> 134.2050372 | F110: =IFERROR(VLOOKUP(B110,INDIRECT("'"&$F$1&"'!"&"$C$2:$G$200"),4,FALSE),"") ->  | G110: =IFERROR(VLOOKUP(B110,INDIRECT("'"&$F$1&"'!"&"$C$2:$G$200"),5,FALSE),0) -> 0 | H110: =IFERROR(VLOOKUP(B110,INDIRECT("'"&$H$1&"'!"&"$C$2:$G$200"),4,FALSE),"") ->  | I110: =IFERROR(VLOOKUP(B110,INDIRECT("'"&$H$1&"'!"&"$C$2:$G$200"),5,FALSE),0) -> 0 | J110: =IFERROR(VLOOKUP(B110,INDIRECT("'"&$J$1&"'!"&"$C$2:$G$200"),4,FALSE),"") ->  | K110: =IFERROR(VLOOKUP(B110,INDIRECT("'"&$J$1&"'!"&"$C$2:$G$200"),5,FALSE),0) -> 0 | L110: =IFERROR(VLOOKUP(B110,INDIRECT("'"&$L$1&"'!"&"$C$2:$G$200"),4,FALSE),"") ->  | M110: =IFERROR(VLOOKUP(B110,INDIRECT("'"&$L$1&"'!"&"$C$2:$G$200"),5,FALSE),0) -> 0 | N110: =IFERROR(VLOOKUP(B110,INDIRECT("'"&$N$1&"'!"&"$C$2:$G$200"),4,FALSE),"") -> 0.0303125 | O110: =IFERROR(VLOOKUP(B110,INDIRECT("'"&$N$1&"'!"&"$C$2:$G$200"),5,FALSE),0) -> 65.44389642 | P110: =IFERROR(VLOOKUP(B110,INDIRECT("'"&$P$1&"'!"&"$C$2:$G$200"),4,FALSE),"") ->  | Q110: =IFERROR(VLOOKUP(B110,INDIRECT("'"&$P$1&"'!"&"$C$2:$G$200"),5,FALSE),0) -> 0 | R110: =IFERROR(VLOOKUP(B110,INDIRECT("'"&$R$1&"'!"&"$C$2:$G$200"),4,FALSE),"") ->  | S110: =IFERROR(VLOOKUP(B110,INDIRECT("'"&$R$1&"'!"&"$C$2:$G$200"),5,FALSE),0) -> 0 | T110: =IFERROR(VLOOKUP(B110,INDIRECT("'"&$T$1&"'!"&"$C$2:$G$200"),4,FALSE),"") -> 0.04771990741 | U110: =IFERROR(VLOOKUP(B110,INDIRECT("'"&$T$1&"'!"&"$C$2:$G$200"),5,FALSE),0) -> 68.76114082 | V110: =8-COUNTIF(F110:U110,"") -> 2 | W110: =E110/IF(V110>4,5,V110) -> 67.10251862
A111: 109 | B111: Steve Harrhy | C111: Pont-y-Pwl and District | D111: M50 | E111: =SUM(LARGE((S111,G111,I111,K111,M111,O111,Q111,U111),{1,2,3,4,5})) -> 133.6896702 | F111: =IFERROR(VLOOKUP(B111,INDIRECT("'"&$F$1&"'!"&"$C$2:$G$200"),4,FALSE),"") ->  | G111: =IFERROR(VLOOKUP(B111,INDIRECT("'"&$F$1&"'!"&"$C$2:$G$200"),5,FALSE),0) -> 0 | H111: =IFERROR(VLOOKUP(B111,INDIRECT("'"&$H$1&"'!"&"$C$2:$G$200"),4,FALSE),"") ->  | I111: =IFERROR(VLOOKUP(B111,INDIRECT("'"&$H$1&"'!"&"$C$2:$G$200"),5,FALSE),0) -> 0 | J111: =IFERROR(VLOOKUP(B111,INDIRECT("'"&$J$1&"'!"&"$C$2:$G$200"),4,FALSE),"") ->  | K111: =IFERROR(VLOOKUP(B111,INDIRECT("'"&$J$1&"'!"&"$C$2:$G$200"),5,FALSE),0) -> 0 | L111: =IFERROR(VLOOKUP(B111,INDIRECT("'"&$L$1&"'!"&"$C$2:$G$200"),4,FALSE),"") -> 0.02555555556 | M111: =IFERROR(VLOOKUP(B111,INDIRECT("'"&$L$1&"'!"&"$C$2:$G$200"),5,FALSE),0) -> 63.46772199 | N111: =IFERROR(VLOOKUP(B111,INDIRECT("'"&$N$1&"'!"&"$C$2:$G$200"),4,FALSE),"") -> 0.02923611111 | O111: =IFERROR(VLOOKUP(B111,INDIRECT("'"&$N$1&"'!"&"$C$2:$G$200"),5,FALSE),0) -> 70.22194821 | P111: =IFERROR(VLOOKUP(B111,INDIRECT("'"&$P$1&"'!"&"$C$2:$G$200"),4,FALSE),"") ->  | Q111: =IFERROR(VLOOKUP(B111,INDIRECT("'"&$P$1&"'!"&"$C$2:$G$200"),5,FALSE),0) -> 0 | R111: =IFERROR(VLOOKUP(B111,INDIRECT("'"&$R$1&"'!"&"$C$2:$G$200"),4,FALSE),"") ->  | S111: =IFERROR(VLOOKUP(B111,INDIRECT("'"&$R$1&"'!"&"$C$2:$G$200"),5,FALSE),0) -> 0 | T111: =IFERROR(VLOOKUP(B111,INDIRECT("'"&$T$1&"'!"&"$C$2:$G$200"),4,FALSE),"") ->  | U111: =IFERROR(VLOOKUP(B111,INDIRECT("'"&$T$1&"'!"&"$C$2:$G$200"),5,FALSE),0) -> 0 | V111: =8-COUNTIF(F111:U111,"") -> 2 | W111: =E111/IF(V111>4,5,V111) -> 66.8448351
A112: 110 | B112: Anneliese Loveluck | C112: Meirionydd | D112: F40 | E112: =SUM(LARGE((S112,G112,I112,K112,M112,O112,Q112,U112),{1,2,3,4,5})) -> 133.6334433 | F112: =IFERROR(VLOOKUP(B112,INDIRECT("'"&$F$1&"'!"&"$C$2:$G$200"),4,FALSE),"") ->  | G112: =IFERROR(VLOOKUP(B112,INDIRECT("'"&$F$1&"'!"&"$C$2:$G$200"),5,FALSE),0) -> 0 | H112: =IFERROR(VLOOKUP(B112,INDIRECT("'"&$H$1&"'!"&"$C$2:$G$200"),4,FALSE),"") -> 0.04025462963 | I112: =IFERROR(VLOOKUP(B112,INDIRECT("'"&$H$1&"'!"&"$C$2:$G$200"),5,FALSE),0) -> 69.80609418 | J112: =IFERROR(VLOOKUP(B112,INDIRECT("'"&$J$1&"'!"&"$C$2:$G$200"),4,FALSE),"") ->  | K112: =IFERROR(VLOOKUP(B112,INDIRECT("'"&$J$1&"'!"&"$C$2:$G$200"),5,FALSE),0) -> 0 | L112: =IFERROR(VLOOKUP(B112,INDIRECT("'"&$L$1&"'!"&"$C$2:$G$200"),4,FALSE),"") ->  | M112: =IFERROR(VLOOKUP(B112,INDIRECT("'"&$L$1&"'!"&"$C$2:$G$200"),5,FALSE),0) -> 0 | N112: =IFERROR(VLOOKUP(B112,INDIRECT("'"&$N$1&"'!"&"$C$2:$G$200"),4,FALSE),"") ->  | O112: =IFERROR(VLOOKUP(B112,INDIRECT("'"&$N$1&"'!"&"$C$2:$G$200"),5,FALSE),0) -> 0 | P112: =IFERROR(VLOOKUP(B112,INDIRECT("'"&$P$1&"'!"&"$C$2:$G$200"),4,FALSE),"") ->  | Q112: =IFERROR(VLOOKUP(B112,INDIRECT("'"&$P$1&"'!"&"$C$2:$G$200"),5,FALSE),0) -> 0 | R112: =IFERROR(VLOOKUP(B112,INDIRECT("'"&$R$1&"'!"&"$C$2:$G$200"),4,FALSE),"") ->  | S112: =IFERROR(VLOOKUP(B112,INDIRECT("'"&$R$1&"'!"&"$C$2:$G$200"),5,FALSE),0) -> 0 | T112: =IFERROR(VLOOKUP(B112,INDIRECT("'"&$T$1&"'!"&"$C$2:$G$200"),4,FALSE),"") -> 0.04951388889 | U112: =IFERROR(VLOOKUP(B112,INDIRECT("'"&$T$1&"'!"&"$C$2:$G$200"),5,FALSE),0) -> 63.82734912 | V112: =8-COUNTIF(F112:U112,"") -> 2 | W112: =E112/IF(V112>4,5,V112) -> 66.81672165
A113: 111 | B113: Peter Williams | C113: MDC | D113: M50 | E113: =SUM(LARGE((S113,G113,I113,K113,M113,O113,Q113,U113),{1,2,3,4,5})) -> 132.8199404 | F113: =IFERROR(VLOOKUP(B113,INDIRECT("'"&$F$1&"'!"&"$C$2:$G$200"),4,FALSE),"") -> 0.01828703704 | G113: =IFERROR(VLOOKUP(B113,INDIRECT("'"&$F$1&"'!"&"$C$2:$G$200"),5,FALSE),0) -> 75.21718528 | H113: =IFERROR(VLOOKUP(B113,INDIRECT("'"&$H$1&"'!"&"$C$2:$G$200"),4,FALSE),"") -> 0.04402777778 | I113: =IFERROR(VLOOKUP(B113,INDIRECT("'"&$H$1&"'!"&"$C$2:$G$200"),5,FALSE),0) -> 57.60275511 | J113: =IFERROR(VLOOKUP(B113,INDIRECT("'"&$J$1&"'!"&"$C$2:$G$200"),4,FALSE),"") ->  | K113: =IFERROR(VLOOKUP(B113,INDIRECT("'"&$J$1&"'!"&"$C$2:$G$200"),5,FALSE),0) -> 0 | L113: =IFERROR(VLOOKUP(B113,INDIRECT("'"&$L$1&"'!"&"$C$2:$G$200"),4,FALSE),"") ->  | M113: =IFERROR(VLOOKUP(B113,INDIRECT("'"&$L$1&"'!"&"$C$2:$G$200"),5,FALSE),0) -> 0 | N113: =IFERROR(VLOOKUP(B113,INDIRECT("'"&$N$1&"'!"&"$C$2:$G$200"),4,FALSE),"") ->  | O113: =IFERROR(VLOOKUP(B113,INDIRECT("'"&$N$1&"'!"&"$C$2:$G$200"),5,FALSE),0) -> 0 | P113: =IFERROR(VLOOKUP(B113,INDIRECT("'"&$P$1&"'!"&"$C$2:$G$200"),4,FALSE),"") ->  | Q113: =IFERROR(VLOOKUP(B113,INDIRECT("'"&$P$1&"'!"&"$C$2:$G$200"),5,FALSE),0) -> 0 | R113: =IFERROR(VLOOKUP(B113,INDIRECT("'"&$R$1&"'!"&"$C$2:$G$200"),4,FALSE),"") ->  | S113: =IFERROR(VLOOKUP(B113,INDIRECT("'"&$R$1&"'!"&"$C$2:$G$200"),5,FALSE),0) -> 0 | T113: =IFERROR(VLOOKUP(B113,INDIRECT("'"&$T$1&"'!"&"$C$2:$G$200"),4,FALSE),"") ->  | U113: =IFERROR(VLOOKUP(B113,INDIRECT("'"&$T$1&"'!"&"$C$2:$G$200"),5,FALSE),0) -> 0 | V113: =8-COUNTIF(F113:U113,"") -> 2 | W113: =E113/IF(V113>4,5,V113) -> 66.40997019
A114: 112 | B114: Gavin Brace | C114: Lliswerry Runners | D114: SM | E114: =SUM(LARGE((S114,G114,I114,K114,M114,O114,Q114,U114),{1,2,3,4,5})) -> 132.2210245 | F114: =IFERROR(VLOOKUP(B114,INDIRECT("'"&$F$1&"'!"&"$C$2:$G$200"),4,FALSE),"") ->  | G114: =IFERROR(VLOOKUP(B114,INDIRECT("'"&$F$1&"'!"&"$C$2:$G$200"),5,FALSE),0) -> 0 | H114: =IFERROR(VLOOKUP(B114,INDIRECT("'"&$H$1&"'!"&"$C$2:$G$200"),4,FALSE),"") ->  | I114: =IFERROR(VLOOKUP(B114,INDIRECT("'"&$H$1&"'!"&"$C$2:$G$200"),5,FALSE),0) -> 0 | J114: =IFERROR(VLOOKUP(B114,INDIRECT("'"&$J$1&"'!"&"$C$2:$G$200"),4,FALSE),"") ->  | K114: =IFERROR(VLOOKUP(B114,INDIRECT("'"&$J$1&"'!"&"$C$2:$G$200"),5,FALSE),0) -> 0 | L114: =IFERROR(VLOOKUP(B114,INDIRECT("'"&$L$1&"'!"&"$C$2:$G$200"),4,FALSE),"") ->  | M114: =IFERROR(VLOOKUP(B114,INDIRECT("'"&$L$1&"'!"&"$C$2:$G$200"),5,FALSE),0) -> 0 | N114: =IFERROR(VLOOKUP(B114,INDIRECT("'"&$N$1&"'!"&"$C$2:$G$200"),4,FALSE),"") ->  | O114: =IFERROR(VLOOKUP(B114,INDIRECT("'"&$N$1&"'!"&"$C$2:$G$200"),5,FALSE),0) -> 0 | P114: =IFERROR(VLOOKUP(B114,INDIRECT("'"&$P$1&"'!"&"$C$2:$G$200"),4,FALSE),"") -> 0.02952546296 | Q114: =IFERROR(VLOOKUP(B114,INDIRECT("'"&$P$1&"'!"&"$C$2:$G$200"),5,FALSE),0) -> 64.5103038 | R114: =IFERROR(VLOOKUP(B114,INDIRECT("'"&$R$1&"'!"&"$C$2:$G$200"),4,FALSE),"") ->  | S114: =IFERROR(VLOOKUP(B114,INDIRECT("'"&$R$1&"'!"&"$C$2:$G$200"),5,FALSE),0) -> 0 | T114: =IFERROR(VLOOKUP(B114,INDIRECT("'"&$T$1&"'!"&"$C$2:$G$200"),4,FALSE),"") -> 0.04810185185 | U114: =IFERROR(VLOOKUP(B114,INDIRECT("'"&$T$1&"'!"&"$C$2:$G$200"),5,FALSE),0) -> 67.71072065 | V114: =8-COUNTIF(F114:U114,"") -> 2 | W114: =E114/IF(V114>4,5,V114) -> 66.11051223
A115: 113 | B115: Karen Elvers | C115: MDC | D115: F40 | E115: =SUM(LARGE((S115,G115,I115,K115,M115,O115,Q115,U115),{1,2,3,4,5})) -> 131.4409623 | F115: =IFERROR(VLOOKUP(B115,INDIRECT("'"&$F$1&"'!"&"$C$2:$G$200"),4,FALSE),"") ->  | G115: =IFERROR(VLOOKUP(B115,INDIRECT("'"&$F$1&"'!"&"$C$2:$G$200"),5,FALSE),0) -> 0 | H115: =IFERROR(VLOOKUP(B115,INDIRECT("'"&$H$1&"'!"&"$C$2:$G$200"),4,FALSE),"") ->  | I115: =IFERROR(VLOOKUP(B115,INDIRECT("'"&$H$1&"'!"&"$C$2:$G$200"),5,FALSE),0) -> 0 | J115: =IFERROR(VLOOKUP(B115,INDIRECT("'"&$J$1&"'!"&"$C$2:$G$200"),4,FALSE),"") ->  | K115: =IFERROR(VLOOKUP(B115,INDIRECT("'"&$J$1&"'!"&"$C$2:$G$200"),5,FALSE),0) -> 0 | L115: =IFERROR(VLOOKUP(B115,INDIRECT("'"&$L$1&"'!"&"$C$2:$G$200"),4,FALSE),"") ->  | M115: =IFERROR(VLOOKUP(B115,INDIRECT("'"&$L$1&"'!"&"$C$2:$G$200"),5,FALSE),0) -> 0 | N115: =IFERROR(VLOOKUP(B115,INDIRECT("'"&$N$1&"'!"&"$C$2:$G$200"),4,FALSE),"") -> 0.03604166667 | O115: =IFERROR(VLOOKUP(B115,INDIRECT("'"&$N$1&"'!"&"$C$2:$G$200"),5,FALSE),0) -> 40.01233046 | P115: =IFERROR(VLOOKUP(B115,INDIRECT("'"&$P$1&"'!"&"$C$2:$G$200"),4,FALSE),"") -> 0.03466435185 | Q115: =IFERROR(VLOOKUP(B115,INDIRECT("'"&$P$1&"'!"&"$C$2:$G$200"),5,FALSE),0) -> 40.9284045 | R115: =IFERROR(VLOOKUP(B115,INDIRECT("'"&$R$1&"'!"&"$C$2:$G$200"),4,FALSE),"") -> 0.03043981481 | S115: =IFERROR(VLOOKUP(B115,INDIRECT("'"&$R$1&"'!"&"$C$2:$G$200"),5,FALSE),0) -> 50.50022738 | T115: =IFERROR(VLOOKUP(B115,INDIRECT("'"&$T$1&"'!"&"$C$2:$G$200"),4,FALSE),"") ->  | U115: =IFERROR(VLOOKUP(B115,INDIRECT("'"&$T$1&"'!"&"$C$2:$G$200"),5,FALSE),0) -> 0 | V115: =8-COUNTIF(F115:U115,"") -> 3 | W115: =E115/IF(V115>4,5,V115) -> 43.81365411
A116: 114 | B116: Emily Ford | C116: MDC | D116: SF | E116: =SUM(LARGE((S116,G116,I116,K116,M116,O116,Q116,U116),{1,2,3,4,5})) -> 131.2653124 | F116: =IFERROR(VLOOKUP(B116,INDIRECT("'"&$F$1&"'!"&"$C$2:$G$200"),4,FALSE),"") ->  | G116: =IFERROR(VLOOKUP(B116,INDIRECT("'"&$F$1&"'!"&"$C$2:$G$200"),5,FALSE),0) -> 0 | H116: =IFERROR(VLOOKUP(B116,INDIRECT("'"&$H$1&"'!"&"$C$2:$G$200"),4,FALSE),"") ->  | I116: =IFERROR(VLOOKUP(B116,INDIRECT("'"&$H$1&"'!"&"$C$2:$G$200"),5,FALSE),0) -> 0 | J116: =IFERROR(VLOOKUP(B116,INDIRECT("'"&$J$1&"'!"&"$C$2:$G$200"),4,FALSE),"") ->  | K116: =IFERROR(VLOOKUP(B116,INDIRECT("'"&$J$1&"'!"&"$C$2:$G$200"),5,FALSE),0) -> 0 | L116: =IFERROR(VLOOKUP(B116,INDIRECT("'"&$L$1&"'!"&"$C$2:$G$200"),4,FALSE),"") ->  | M116: =IFERROR(VLOOKUP(B116,INDIRECT("'"&$L$1&"'!"&"$C$2:$G$200"),5,FALSE),0) -> 0 | N116: =IFERROR(VLOOKUP(B116,INDIRECT("'"&$N$1&"'!"&"$C$2:$G$200"),4,FALSE),"") ->  | O116: =IFERROR(VLOOKUP(B116,INDIRECT("'"&$N$1&"'!"&"$C$2:$G$200"),5,FALSE),0) -> 0 | P116: =IFERROR(VLOOKUP(B116,INDIRECT("'"&$P$1&"'!"&"$C$2:$G$200"),4,FALSE),"") -> 0.0300462963 | Q116: =IFERROR(VLOOKUP(B116,INDIRECT("'"&$P$1&"'!"&"$C$2:$G$200"),5,FALSE),0) -> 62.12024644 | R116: =IFERROR(VLOOKUP(B116,INDIRECT("'"&$R$1&"'!"&"$C$2:$G$200"),4,FALSE),"") -> 0.02664351852 | S116: =IFERROR(VLOOKUP(B116,INDIRECT("'"&$R$1&"'!"&"$C$2:$G$200"),5,FALSE),0) -> 69.14506594 | T116: =IFERROR(VLOOKUP(B116,INDIRECT("'"&$T$1&"'!"&"$C$2:$G$200"),4,FALSE),"") ->  | U116: =IFERROR(VLOOKUP(B116,INDIRECT("'"&$T$1&"'!"&"$C$2:$G$200"),5,FALSE),0) -> 0 | V116: =8-COUNTIF(F116:U116,"") -> 2 | W116: =E116/IF(V116>4,5,V116) -> 65.63265619
A117: 115 | B117: Naomi Law | C117: Mynydd Du | D117: F40 | E117: =SUM(LARGE((S117,G117,I117,K117,M117,O117,Q117,U117),{1,2,3,4,5})) -> 130.8629146 | F117: =IFERROR(VLOOKUP(B117,INDIRECT("'"&$F$1&"'!"&"$C$2:$G$200"),4,FALSE),"") ->  | G117: =IFERROR(VLOOKUP(B117,INDIRECT("'"&$F$1&"'!"&"$C$2:$G$200"),5,FALSE),0) -> 0 | H117: =IFERROR(VLOOKUP(B117,INDIRECT("'"&$H$1&"'!"&"$C$2:$G$200"),4,FALSE),"") -> 0.03927083333 | I117: =IFERROR(VLOOKUP(B117,INDIRECT("'"&$H$1&"'!"&"$C$2:$G$200"),5,FALSE),0) -> 72.9879464 | J117: =IFERROR(VLOOKUP(B117,INDIRECT("'"&$J$1&"'!"&"$C$2:$G$200"),4,FALSE),"") ->  | K117: =IFERROR(VLOOKUP(B117,INDIRECT("'"&$J$1&"'!"&"$C$2:$G$200"),5,FALSE),0) -> 0 | L117: =IFERROR(VLOOKUP(B117,INDIRECT("'"&$L$1&"'!"&"$C$2:$G$200"),4,FALSE),"") ->  | M117: =IFERROR(VLOOKUP(B117,INDIRECT("'"&$L$1&"'!"&"$C$2:$G$200"),5,FALSE),0) -> 0 | N117: =IFERROR(VLOOKUP(B117,INDIRECT("'"&$N$1&"'!"&"$C$2:$G$200"),4,FALSE),"") ->  | O117: =IFERROR(VLOOKUP(B117,INDIRECT("'"&$N$1&"'!"&"$C$2:$G$200"),5,FALSE),0) -> 0 | P117: =IFERROR(VLOOKUP(B117,INDIRECT("'"&$P$1&"'!"&"$C$2:$G$200"),4,FALSE),"") ->  | Q117: =IFERROR(VLOOKUP(B117,INDIRECT("'"&$P$1&"'!"&"$C$2:$G$200"),5,FALSE),0) -> 0 | R117: =IFERROR(VLOOKUP(B117,INDIRECT("'"&$R$1&"'!"&"$C$2:$G$200"),4,FALSE),"") ->  | S117: =IFERROR(VLOOKUP(B117,INDIRECT("'"&$R$1&"'!"&"$C$2:$G$200"),5,FALSE),0) -> 0 | T117: =IFERROR(VLOOKUP(B117,INDIRECT("'"&$T$1&"'!"&"$C$2:$G$200"),4,FALSE),"") -> 0.05167824074 | U117: =IFERROR(VLOOKUP(B117,INDIRECT("'"&$T$1&"'!"&"$C$2:$G$200"),5,FALSE),0) -> 57.87496817 | V117: =8-COUNTIF(F117:U117,"") -> 2 | W117: =E117/IF(V117>4,5,V117) -> 65.43145728
A118: 116 | B118: Mark English | C118: Lliswerry Runners | D118: M40 | E118: =SUM(LARGE((S118,G118,I118,K118,M118,O118,Q118,U118),{1,2,3,4,5})) -> 129.1986742 | F118: =IFERROR(VLOOKUP(B118,INDIRECT("'"&$F$1&"'!"&"$C$2:$G$200"),4,FALSE),"") ->  | G118: =IFERROR(VLOOKUP(B118,INDIRECT("'"&$F$1&"'!"&"$C$2:$G$200"),5,FALSE),0) -> 0 | H118: =IFERROR(VLOOKUP(B118,INDIRECT("'"&$H$1&"'!"&"$C$2:$G$200"),4,FALSE),"") ->  | I118: =IFERROR(VLOOKUP(B118,INDIRECT("'"&$H$1&"'!"&"$C$2:$G$200"),5,FALSE),0) -> 0 | J118: =IFERROR(VLOOKUP(B118,INDIRECT("'"&$J$1&"'!"&"$C$2:$G$200"),4,FALSE),"") ->  | K118: =IFERROR(VLOOKUP(B118,INDIRECT("'"&$J$1&"'!"&"$C$2:$G$200"),5,FALSE),0) -> 0 | L118: =IFERROR(VLOOKUP(B118,INDIRECT("'"&$L$1&"'!"&"$C$2:$G$200"),4,FALSE),"") ->  | M118: =IFERROR(VLOOKUP(B118,INDIRECT("'"&$L$1&"'!"&"$C$2:$G$200"),5,FALSE),0) -> 0 | N118: =IFERROR(VLOOKUP(B118,INDIRECT("'"&$N$1&"'!"&"$C$2:$G$200"),4,FALSE),"") -> 0.02988425926 | O118: =IFERROR(VLOOKUP(B118,INDIRECT("'"&$N$1&"'!"&"$C$2:$G$200"),5,FALSE),0) -> 67.34484176 | P118: =IFERROR(VLOOKUP(B118,INDIRECT("'"&$P$1&"'!"&"$C$2:$G$200"),4,FALSE),"") ->  | Q118: =IFERROR(VLOOKUP(B118,INDIRECT("'"&$P$1&"'!"&"$C$2:$G$200"),5,FALSE),0) -> 0 | R118: =IFERROR(VLOOKUP(B118,INDIRECT("'"&$R$1&"'!"&"$C$2:$G$200"),4,FALSE),"") ->  | S118: =IFERROR(VLOOKUP(B118,INDIRECT("'"&$R$1&"'!"&"$C$2:$G$200"),5,FALSE),0) -> 0 | U118: =IFERROR(VLOOKUP(B118,INDIRECT("'"&$T$1&"'!"&"$C$2:$G$200"),5,FALSE),0) -> 61.85383244 | V118: =8-COUNTIF(F118:U118,"") -> 1 | W118: =E118/IF(V118>4,5,V118) -> 129.1986742
A119: 117 | B119: Rhianydd Evans | C119: Islwyn | D119: SF | E119: =SUM(LARGE((S119,G119,I119,K119,M119,O119,Q119,U119),{1,2,3,4,5})) -> 128.8480105 | F119: =IFERROR(VLOOKUP(B119,INDIRECT("'"&$F$1&"'!"&"$C$2:$G$200"),4,FALSE),"") ->  | G119: =IFERROR(VLOOKUP(B119,INDIRECT("'"&$F$1&"'!"&"$C$2:$G$200"),5,FALSE),0) -> 0 | H119: =IFERROR(VLOOKUP(B119,INDIRECT("'"&$H$1&"'!"&"$C$2:$G$200"),4,FALSE),"") ->  | I119: =IFERROR(VLOOKUP(B119,INDIRECT("'"&$H$1&"'!"&"$C$2:$G$200"),5,FALSE),0) -> 0 | J119: =IFERROR(VLOOKUP(B119,INDIRECT("'"&$J$1&"'!"&"$C$2:$G$200"),4,FALSE),"") ->  | K119: =IFERROR(VLOOKUP(B119,INDIRECT("'"&$J$1&"'!"&"$C$2:$G$200"),5,FALSE),0) -> 0 | L119: =IFERROR(VLOOKUP(B119,INDIRECT("'"&$L$1&"'!"&"$C$2:$G$200"),4,FALSE),"") ->  | M119: =IFERROR(VLOOKUP(B119,INDIRECT("'"&$L$1&"'!"&"$C$2:$G$200"),5,FALSE),0) -> 0 | N119: =IFERROR(VLOOKUP(B119,INDIRECT("'"&$N$1&"'!"&"$C$2:$G$200"),4,FALSE),"") ->  | O119: =IFERROR(VLOOKUP(B119,INDIRECT("'"&$N$1&"'!"&"$C$2:$G$200"),5,FALSE),0) -> 0 | P119: =IFERROR(VLOOKUP(B119,INDIRECT("'"&$P$1&"'!"&"$C$2:$G$200"),4,FALSE),"") -> 0.0299537037 | Q119: =IFERROR(VLOOKUP(B119,INDIRECT("'"&$P$1&"'!"&"$C$2:$G$200"),5,FALSE),0) -> 62.54514553 | R119: =IFERROR(VLOOKUP(B119,INDIRECT("'"&$R$1&"'!"&"$C$2:$G$200"),4,FALSE),"") -> 0.02722222222 | S119: =IFERROR(VLOOKUP(B119,INDIRECT("'"&$R$1&"'!"&"$C$2:$G$200"),5,FALSE),0) -> 66.30286494 | T119: =IFERROR(VLOOKUP(B119,INDIRECT("'"&$T$1&"'!"&"$C$2:$G$200"),4,FALSE),"") ->  | U119: =IFERROR(VLOOKUP(B119,INDIRECT("'"&$T$1&"'!"&"$C$2:$G$200"),5,FALSE),0) -> 0 | V119: =8-COUNTIF(F119:U119,"") -> 2 | W119: =E119/IF(V119>4,5,V119) -> 64.42400523
A120: 118 | B120: Dan Fairbank | C120: Mynydd Du | D120: M40 | E120: =SUM(LARGE((S120,G120,I120,K120,M120,O120,Q120,U120),{1,2,3,4,5})) -> 124.2156643 | F120: =IFERROR(VLOOKUP(B120,INDIRECT("'"&$F$1&"'!"&"$C$2:$G$200"),4,FALSE),"") ->  | G120: =IFERROR(VLOOKUP(B120,INDIRECT("'"&$F$1&"'!"&"$C$2:$G$200"),5,FALSE),0) -> 0 | H120: =IFERROR(VLOOKUP(B120,INDIRECT("'"&$H$1&"'!"&"$C$2:$G$200"),4,FALSE),"") ->  | I120: =IFERROR(VLOOKUP(B120,INDIRECT("'"&$H$1&"'!"&"$C$2:$G$200"),5,FALSE),0) -> 0 | J120: =IFERROR(VLOOKUP(B120,INDIRECT("'"&$J$1&"'!"&"$C$2:$G$200"),4,FALSE),"") ->  | K120: =IFERROR(VLOOKUP(B120,INDIRECT("'"&$J$1&"'!"&"$C$2:$G$200"),5,FALSE),0) -> 0 | L120: =IFERROR(VLOOKUP(B120,INDIRECT("'"&$L$1&"'!"&"$C$2:$G$200"),4,FALSE),"") ->  | M120: =IFERROR(VLOOKUP(B120,INDIRECT("'"&$L$1&"'!"&"$C$2:$G$200"),5,FALSE),0) -> 0 | N120: =IFERROR(VLOOKUP(B120,INDIRECT("'"&$N$1&"'!"&"$C$2:$G$200"),4,FALSE),"") -> 0.03115740741 | O120: =IFERROR(VLOOKUP(B120,INDIRECT("'"&$N$1&"'!"&"$C$2:$G$200"),5,FALSE),0) -> 61.69338266 | P120: =IFERROR(VLOOKUP(B120,INDIRECT("'"&$P$1&"'!"&"$C$2:$G$200"),4,FALSE),"") ->  | Q120: =IFERROR(VLOOKUP(B120,INDIRECT("'"&$P$1&"'!"&"$C$2:$G$200"),5,FALSE),0) -> 0 | R120: =IFERROR(VLOOKUP(B120,INDIRECT("'"&$R$1&"'!"&"$C$2:$G$200"),4,FALSE),"") ->  | S120: =IFERROR(VLOOKUP(B120,INDIRECT("'"&$R$1&"'!"&"$C$2:$G$200"),5,FALSE),0) -> 0 | T120: =IFERROR(VLOOKUP(B120,INDIRECT("'"&$T$1&"'!"&"$C$2:$G$200"),4,FALSE),"") -> 0.04998842593 | U120: =IFERROR(VLOOKUP(B120,INDIRECT("'"&$T$1&"'!"&"$C$2:$G$200"),5,FALSE),0) -> 62.52228164 | V120: =8-COUNTIF(F120:U120,"") -> 2 | W120: =E120/IF(V120>4,5,V120) -> 62.10783215
A121: 119 | B121: Chris Hobson | C121: Newbury | D121: M40 | E121: =SUM(LARGE((S121,G121,I121,K121,M121,O121,Q121,U121),{1,2,3,4,5})) -> 123.1453358 | F121: =IFERROR(VLOOKUP(B121,INDIRECT("'"&$F$1&"'!"&"$C$2:$G$200"),4,FALSE),"") ->  | G121: =IFERROR(VLOOKUP(B121,INDIRECT("'"&$F$1&"'!"&"$C$2:$G$200"),5,FALSE),0) -> 0 | H121: =IFERROR(VLOOKUP(B121,INDIRECT("'"&$H$1&"'!"&"$C$2:$G$200"),4,FALSE),"") -> 0.04111111111 | I121: =IFERROR(VLOOKUP(B121,INDIRECT("'"&$H$1&"'!"&"$C$2:$G$200"),5,FALSE),0) -> 67.03601108 | J121: =IFERROR(VLOOKUP(B121,INDIRECT("'"&$J$1&"'!"&"$C$2:$G$200"),4,FALSE),"") ->  | K121: =IFERROR(VLOOKUP(B121,INDIRECT("'"&$J$1&"'!"&"$C$2:$G$200"),5,FALSE),0) -> 0 | L121: =IFERROR(VLOOKUP(B121,INDIRECT("'"&$L$1&"'!"&"$C$2:$G$200"),4,FALSE),"") -> 0.02693287037 | M121: =IFERROR(VLOOKUP(B121,INDIRECT("'"&$L$1&"'!"&"$C$2:$G$200"),5,FALSE),0) -> 56.10932476 | N121: =IFERROR(VLOOKUP(B121,INDIRECT("'"&$N$1&"'!"&"$C$2:$G$200"),4,FALSE),"") ->  | O121: =IFERROR(VLOOKUP(B121,INDIRECT("'"&$N$1&"'!"&"$C$2:$G$200"),5,FALSE),0) -> 0 | P121: =IFERROR(VLOOKUP(B121,INDIRECT("'"&$P$1&"'!"&"$C$2:$G$200"),4,FALSE),"") ->  | Q121: =IFERROR(VLOOKUP(B121,INDIRECT("'"&$P$1&"'!"&"$C$2:$G$200"),5,FALSE),0) -> 0 | R121: =IFERROR(VLOOKUP(B121,INDIRECT("'"&$R$1&"'!"&"$C$2:$G$200"),4,FALSE),"") ->  | S121: =IFERROR(VLOOKUP(B121,INDIRECT("'"&$R$1&"'!"&"$C$2:$G$200"),5,FALSE),0) -> 0 | T121: =IFERROR(VLOOKUP(B121,INDIRECT("'"&$T$1&"'!"&"$C$2:$G$200"),4,FALSE),"") ->  | U121: =IFERROR(VLOOKUP(B121,INDIRECT("'"&$T$1&"'!"&"$C$2:$G$200"),5,FALSE),0) -> 0 | V121: =8-COUNTIF(F121:U121,"") -> 2 | W121: =E121/IF(V121>4,5,V121) -> 61.57266792
A122: 120 | B122: John Darby | C122: Mynydd Du | D122: M60 | E122: =SUM(LARGE((S122,G122,I122,K122,M122,O122,Q122,U122),{1,2,3,4,5})) -> 121.4175651 | F122: =IFERROR(VLOOKUP(B122,INDIRECT("'"&$F$1&"'!"&"$C$2:$G$200"),4,FALSE),"") -> 0.02008101852 | G122: =IFERROR(VLOOKUP(B122,INDIRECT("'"&$F$1&"'!"&"$C$2:$G$200"),5,FALSE),0) -> 62.9758332 | H122: =IFERROR(VLOOKUP(B122,INDIRECT("'"&$H$1&"'!"&"$C$2:$G$200"),4,FALSE),"") -> 0.0465162037 | I122: =IFERROR(VLOOKUP(B122,INDIRECT("'"&$H$1&"'!"&"$C$2:$G$200"),5,FALSE),0) -> 49.55454069 | J122: =IFERROR(VLOOKUP(B122,INDIRECT("'"&$J$1&"'!"&"$C$2:$G$200"),4,FALSE),"") ->  | K122: =IFERROR(VLOOKUP(B122,INDIRECT("'"&$J$1&"'!"&"$C$2:$G$200"),5,FALSE),0) -> 0 | L122: =IFERROR(VLOOKUP(B122,INDIRECT("'"&$L$1&"'!"&"$C$2:$G$200"),4,FALSE),"") ->  | M122: =IFERROR(VLOOKUP(B122,INDIRECT("'"&$L$1&"'!"&"$C$2:$G$200"),5,FALSE),0) -> 0 | N122: =IFERROR(VLOOKUP(B122,INDIRECT("'"&$N$1&"'!"&"$C$2:$G$200"),4,FALSE),"") ->  | O122: =IFERROR(VLOOKUP(B122,INDIRECT("'"&$N$1&"'!"&"$C$2:$G$200"),5,FALSE),0) -> 0 | P122: =IFERROR(VLOOKUP(B122,INDIRECT("'"&$P$1&"'!"&"$C$2:$G$200"),4,FALSE),"") ->  | Q122: =IFERROR(VLOOKUP(B122,INDIRECT("'"&$P$1&"'!"&"$C$2:$G$200"),5,FALSE),0) -> 0 | R122: =IFERROR(VLOOKUP(B122,INDIRECT("'"&$R$1&"'!"&"$C$2:$G$200"),4,FALSE),"") ->  | S122: =IFERROR(VLOOKUP(B122,INDIRECT("'"&$R$1&"'!"&"$C$2:$G$200"),5,FALSE),0) -> 0 | T122: =IFERROR(VLOOKUP(B122,INDIRECT("'"&$T$1&"'!"&"$C$2:$G$200"),4,FALSE),"") -> 0.06949074074 | U122: =IFERROR(VLOOKUP(B122,INDIRECT("'"&$T$1&"'!"&"$C$2:$G$200"),5,FALSE),0) -> 8.88719124 | V122: =8-COUNTIF(F122:U122,"") -> 3 | W122: =E122/IF(V122>4,5,V122) -> 40.47252171
A123: 121 | B123: James Griffiths | C123: Newent Runners | D123: M40 | E123: =SUM(LARGE((S123,G123,I123,K123,M123,O123,Q123,U123),{1,2,3,4,5})) -> 121.1198072 | F123: =IFERROR(VLOOKUP(B123,INDIRECT("'"&$F$1&"'!"&"$C$2:$G$200"),4,FALSE),"") ->  | G123: =IFERROR(VLOOKUP(B123,INDIRECT("'"&$F$1&"'!"&"$C$2:$G$200"),5,FALSE),0) -> 0 | H123: =IFERROR(VLOOKUP(B123,INDIRECT("'"&$H$1&"'!"&"$C$2:$G$200"),4,FALSE),"") ->  | I123: =IFERROR(VLOOKUP(B123,INDIRECT("'"&$H$1&"'!"&"$C$2:$G$200"),5,FALSE),0) -> 0 | J123: =IFERROR(VLOOKUP(B123,INDIRECT("'"&$J$1&"'!"&"$C$2:$G$200"),4,FALSE),"") ->  | K123: =IFERROR(VLOOKUP(B123,INDIRECT("'"&$J$1&"'!"&"$C$2:$G$200"),5,FALSE),0) -> 0 | L123: =IFERROR(VLOOKUP(B123,INDIRECT("'"&$L$1&"'!"&"$C$2:$G$200"),4,FALSE),"") ->  | M123: =IFERROR(VLOOKUP(B123,INDIRECT("'"&$L$1&"'!"&"$C$2:$G$200"),5,FALSE),0) -> 0 | N123: =IFERROR(VLOOKUP(B123,INDIRECT("'"&$N$1&"'!"&"$C$2:$G$200"),4,FALSE),"") ->  | O123: =IFERROR(VLOOKUP(B123,INDIRECT("'"&$N$1&"'!"&"$C$2:$G$200"),5,FALSE),0) -> 0 | P123: =IFERROR(VLOOKUP(B123,INDIRECT("'"&$P$1&"'!"&"$C$2:$G$200"),4,FALSE),"") ->  | Q123: =IFERROR(VLOOKUP(B123,INDIRECT("'"&$P$1&"'!"&"$C$2:$G$200"),5,FALSE),0) -> 0 | R123: =IFERROR(VLOOKUP(B123,INDIRECT("'"&$R$1&"'!"&"$C$2:$G$200"),4,FALSE),"") -> 0.02716435185 | S123: =IFERROR(VLOOKUP(B123,INDIRECT("'"&$R$1&"'!"&"$C$2:$G$200"),5,FALSE),0) -> 66.58708504 | T123: =IFERROR(VLOOKUP(B123,INDIRECT("'"&$T$1&"'!"&"$C$2:$G$200"),4,FALSE),"") -> 0.05289351852 | U123: =IFERROR(VLOOKUP(B123,INDIRECT("'"&$T$1&"'!"&"$C$2:$G$200"),5,FALSE),0) -> 54.53272218 | V123: =8-COUNTIF(F123:U123,"") -> 2 | W123: =E123/IF(V123>4,5,V123) -> 60.55990361
A124: 122 | B124: Paddy Nugent | C124: Wye Valley Runners | D124: M50 | E124: =SUM(LARGE((S124,G124,I124,K124,M124,O124,Q124,U124),{1,2,3,4,5})) -> 120.8921823 | F124: =IFERROR(VLOOKUP(B124,INDIRECT("'"&$F$1&"'!"&"$C$2:$G$200"),4,FALSE),"") -> 0.02046296296 | G124: =IFERROR(VLOOKUP(B124,INDIRECT("'"&$F$1&"'!"&"$C$2:$G$200"),5,FALSE),0) -> 60.36960986 | H124: =IFERROR(VLOOKUP(B124,INDIRECT("'"&$H$1&"'!"&"$C$2:$G$200"),4,FALSE),"") -> 0.043125 | I124: =IFERROR(VLOOKUP(B124,INDIRECT("'"&$H$1&"'!"&"$C$2:$G$200"),5,FALSE),0) -> 60.52257243 | J124: =IFERROR(VLOOKUP(B124,INDIRECT("'"&$J$1&"'!"&"$C$2:$G$200"),4,FALSE),"") ->  | K124: =IFERROR(VLOOKUP(B124,INDIRECT("'"&$J$1&"'!"&"$C$2:$G$200"),5,FALSE),0) -> 0 | L124: =IFERROR(VLOOKUP(B124,INDIRECT("'"&$L$1&"'!"&"$C$2:$G$200"),4,FALSE),"") ->  | M124: =IFERROR(VLOOKUP(B124,INDIRECT("'"&$L$1&"'!"&"$C$2:$G$200"),5,FALSE),0) -> 0 | N124: =IFERROR(VLOOKUP(B124,INDIRECT("'"&$N$1&"'!"&"$C$2:$G$200"),4,FALSE),"") ->  | O124: =IFERROR(VLOOKUP(B124,INDIRECT("'"&$N$1&"'!"&"$C$2:$G$200"),5,FALSE),0) -> 0 | P124: =IFERROR(VLOOKUP(B124,INDIRECT("'"&$P$1&"'!"&"$C$2:$G$200"),4,FALSE),"") ->  | Q124: =IFERROR(VLOOKUP(B124,INDIRECT("'"&$P$1&"'!"&"$C$2:$G$200"),5,FALSE),0) -> 0 | R124: =IFERROR(VLOOKUP(B124,INDIRECT("'"&$R$1&"'!"&"$C$2:$G$200"),4,FALSE),"") ->  | S124: =IFERROR(VLOOKUP(B124,INDIRECT("'"&$R$1&"'!"&"$C$2:$G$200"),5,FALSE),0) -> 0 | T124: =IFERROR(VLOOKUP(B124,INDIRECT("'"&$T$1&"'!"&"$C$2:$G$200"),4,FALSE),"") ->  | U124: =IFERROR(VLOOKUP(B124,INDIRECT("'"&$T$1&"'!"&"$C$2:$G$200"),5,FALSE),0) -> 0 | V124: =8-COUNTIF(F124:U124,"") -> 2 | W124: =E124/IF(V124>4,5,V124) -> 60.44609115
A125: 123 | B125: Mark Paviour | C125: Croft Ambrey | D125: M50 | E125: =SUM(LARGE((S125,G125,I125,K125,M125,O125,Q125,U125),{1,2,3,4,5})) -> 120.6807593 | F125: =IFERROR(VLOOKUP(B125,INDIRECT("'"&$F$1&"'!"&"$C$2:$G$200"),4,FALSE),"") ->  | G125: =IFERROR(VLOOKUP(B125,INDIRECT("'"&$F$1&"'!"&"$C$2:$G$200"),5,FALSE),0) -> 0 | H125: =IFERROR(VLOOKUP(B125,INDIRECT("'"&$H$1&"'!"&"$C$2:$G$200"),4,FALSE),"") -> 0.04393518519 | I125: =IFERROR(VLOOKUP(B125,INDIRECT("'"&$H$1&"'!"&"$C$2:$G$200"),5,FALSE),0) -> 57.90222355 | J125: =IFERROR(VLOOKUP(B125,INDIRECT("'"&$J$1&"'!"&"$C$2:$G$200"),4,FALSE),"") ->  | K125: =IFERROR(VLOOKUP(B125,INDIRECT("'"&$J$1&"'!"&"$C$2:$G$200"),5,FALSE),0) -> 0 | L125: =IFERROR(VLOOKUP(B125,INDIRECT("'"&$L$1&"'!"&"$C$2:$G$200"),4,FALSE),"") ->  | M125: =IFERROR(VLOOKUP(B125,INDIRECT("'"&$L$1&"'!"&"$C$2:$G$200"),5,FALSE),0) -> 0 | N125: =IFERROR(VLOOKUP(B125,INDIRECT("'"&$N$1&"'!"&"$C$2:$G$200"),4,FALSE),"") ->  | O125: =IFERROR(VLOOKUP(B125,INDIRECT("'"&$N$1&"'!"&"$C$2:$G$200"),5,FALSE),0) -> 0 | P125: =IFERROR(VLOOKUP(B125,INDIRECT("'"&$P$1&"'!"&"$C$2:$G$200"),4,FALSE),"") ->  | Q125: =IFERROR(VLOOKUP(B125,INDIRECT("'"&$P$1&"'!"&"$C$2:$G$200"),5,FALSE),0) -> 0 | R125: =IFERROR(VLOOKUP(B125,INDIRECT("'"&$R$1&"'!"&"$C$2:$G$200"),4,FALSE),"") -> 0.02793981481 | S125: =IFERROR(VLOOKUP(B125,INDIRECT("'"&$R$1&"'!"&"$C$2:$G$200"),5,FALSE),0) -> 62.7785357 | T125: =IFERROR(VLOOKUP(B125,INDIRECT("'"&$T$1&"'!"&"$C$2:$G$200"),4,FALSE),"") ->  | U125: =IFERROR(VLOOKUP(B125,INDIRECT("'"&$T$1&"'!"&"$C$2:$G$200"),5,FALSE),0) -> 0 | V125: =8-COUNTIF(F125:U125,"") -> 2 | W125: =E125/IF(V125>4,5,V125) -> 60.34037963
A126: 124 | B126: Kevin Hale | C126: Parc Bryn Bach RC | D126: M40 | E126: =SUM(LARGE((S126,G126,I126,K126,M126,O126,Q126,U126),{1,2,3,4,5})) -> 120.5796334 | F126: =IFERROR(VLOOKUP(B126,INDIRECT("'"&$F$1&"'!"&"$C$2:$G$200"),4,FALSE),"") ->  | G126: =IFERROR(VLOOKUP(B126,INDIRECT("'"&$F$1&"'!"&"$C$2:$G$200"),5,FALSE),0) -> 0 | H126: =IFERROR(VLOOKUP(B126,INDIRECT("'"&$H$1&"'!"&"$C$2:$G$200"),4,FALSE),"") ->  | I126: =IFERROR(VLOOKUP(B126,INDIRECT("'"&$H$1&"'!"&"$C$2:$G$200"),5,FALSE),0) -> 0 | J126: =IFERROR(VLOOKUP(B126,INDIRECT("'"&$J$1&"'!"&"$C$2:$G$200"),4,FALSE),"") ->  | K126: =IFERROR(VLOOKUP(B126,INDIRECT("'"&$J$1&"'!"&"$C$2:$G$200"),5,FALSE),0) -> 0 | L126: =IFERROR(VLOOKUP(B126,INDIRECT("'"&$L$1&"'!"&"$C$2:$G$200"),4,FALSE),"") ->  | M126: =IFERROR(VLOOKUP(B126,INDIRECT("'"&$L$1&"'!"&"$C$2:$G$200"),5,FALSE),0) -> 0 | N126: =IFERROR(VLOOKUP(B126,INDIRECT("'"&$N$1&"'!"&"$C$2:$G$200"),4,FALSE),"") ->  | O126: =IFERROR(VLOOKUP(B126,INDIRECT("'"&$N$1&"'!"&"$C$2:$G$200"),5,FALSE),0) -> 0 | P126: =IFERROR(VLOOKUP(B126,INDIRECT("'"&$P$1&"'!"&"$C$2:$G$200"),4,FALSE),"") -> 0.02988425926 | Q126: =IFERROR(VLOOKUP(B126,INDIRECT("'"&$P$1&"'!"&"$C$2:$G$200"),5,FALSE),0) -> 62.86381984 | R126: =IFERROR(VLOOKUP(B126,INDIRECT("'"&$R$1&"'!"&"$C$2:$G$200"),4,FALSE),"") ->  | S126: =IFERROR(VLOOKUP(B126,INDIRECT("'"&$R$1&"'!"&"$C$2:$G$200"),5,FALSE),0) -> 0 | T126: =IFERROR(VLOOKUP(B126,INDIRECT("'"&$T$1&"'!"&"$C$2:$G$200"),4,FALSE),"") -> 0.05173611111 | U126: =IFERROR(VLOOKUP(B126,INDIRECT("'"&$T$1&"'!"&"$C$2:$G$200"),5,FALSE),0) -> 57.7158136 | V126: =8-COUNTIF(F126:U126,"") -> 2 | W126: =E126/IF(V126>4,5,V126) -> 60.28981672
A127: 125 | B127: Lou Summers | C127: Mynydd Du | D127: F50 | E127: =SUM(LARGE((S127,G127,I127,K127,M127,O127,Q127,U127),{1,2,3,4,5})) -> 120.4439168 | F127: =IFERROR(VLOOKUP(B127,INDIRECT("'"&$F$1&"'!"&"$C$2:$G$200"),4,FALSE),"") ->  | G127: =IFERROR(VLOOKUP(B127,INDIRECT("'"&$F$1&"'!"&"$C$2:$G$200"),5,FALSE),0) -> 0 | H127: =IFERROR(VLOOKUP(B127,INDIRECT("'"&$H$1&"'!"&"$C$2:$G$200"),4,FALSE),"") ->  | I127: =IFERROR(VLOOKUP(B127,INDIRECT("'"&$H$1&"'!"&"$C$2:$G$200"),5,FALSE),0) -> 0 | J127: =IFERROR(VLOOKUP(B127,INDIRECT("'"&$J$1&"'!"&"$C$2:$G$200"),4,FALSE),"") ->  | K127: =IFERROR(VLOOKUP(B127,INDIRECT("'"&$J$1&"'!"&"$C$2:$G$200"),5,FALSE),0) -> 0 | L127: =IFERROR(VLOOKUP(B127,INDIRECT("'"&$L$1&"'!"&"$C$2:$G$200"),4,FALSE),"") ->  | M127: =IFERROR(VLOOKUP(B127,INDIRECT("'"&$L$1&"'!"&"$C$2:$G$200"),5,FALSE),0) -> 0 | N127: =IFERROR(VLOOKUP(B127,INDIRECT("'"&$N$1&"'!"&"$C$2:$G$200"),4,FALSE),"") -> 0.03222222222 | O127: =IFERROR(VLOOKUP(B127,INDIRECT("'"&$N$1&"'!"&"$C$2:$G$200"),5,FALSE),0) -> 56.96670777 | P127: =IFERROR(VLOOKUP(B127,INDIRECT("'"&$P$1&"'!"&"$C$2:$G$200"),4,FALSE),"") ->  | Q127: =IFERROR(VLOOKUP(B127,INDIRECT("'"&$P$1&"'!"&"$C$2:$G$200"),5,FALSE),0) -> 0 | R127: =IFERROR(VLOOKUP(B127,INDIRECT("'"&$R$1&"'!"&"$C$2:$G$200"),4,FALSE),"") ->  | S127: =IFERROR(VLOOKUP(B127,INDIRECT("'"&$R$1&"'!"&"$C$2:$G$200"),5,FALSE),0) -> 0 | T127: =IFERROR(VLOOKUP(B127,INDIRECT("'"&$T$1&"'!"&"$C$2:$G$200"),4,FALSE),"") -> 0.0496412037 | U127: =IFERROR(VLOOKUP(B127,INDIRECT("'"&$T$1&"'!"&"$C$2:$G$200"),5,FALSE),0) -> 63.47720907 | V127: =8-COUNTIF(F127:U127,"") -> 2 | W127: =E127/IF(V127>4,5,V127) -> 60.22195842
A128: 126 | B128: David Smout | C128: Mynydd Du | D128: M60 | E128: =SUM(LARGE((S128,G128,I128,K128,M128,O128,Q128,U128),{1,2,3,4,5})) -> 120.20691 | F128: =IFERROR(VLOOKUP(B128,INDIRECT("'"&$F$1&"'!"&"$C$2:$G$200"),4,FALSE),"") ->  | G128: =IFERROR(VLOOKUP(B128,INDIRECT("'"&$F$1&"'!"&"$C$2:$G$200"),5,FALSE),0) -> 0 | H128: =IFERROR(VLOOKUP(B128,INDIRECT("'"&$H$1&"'!"&"$C$2:$G$200"),4,FALSE),"") -> 0.04207175926 | I128: =IFERROR(VLOOKUP(B128,INDIRECT("'"&$H$1&"'!"&"$C$2:$G$200"),5,FALSE),0) -> 63.92902598 | J128: =IFERROR(VLOOKUP(B128,INDIRECT("'"&$J$1&"'!"&"$C$2:$G$200"),4,FALSE),"") ->  | K128: =IFERROR(VLOOKUP(B128,INDIRECT("'"&$J$1&"'!"&"$C$2:$G$200"),5,FALSE),0) -> 0 | L128: =IFERROR(VLOOKUP(B128,INDIRECT("'"&$L$1&"'!"&"$C$2:$G$200"),4,FALSE),"") ->  | M128: =IFERROR(VLOOKUP(B128,INDIRECT("'"&$L$1&"'!"&"$C$2:$G$200"),5,FALSE),0) -> 0 | N128: =IFERROR(VLOOKUP(B128,INDIRECT("'"&$N$1&"'!"&"$C$2:$G$200"),4,FALSE),"") ->  | O128: =IFERROR(VLOOKUP(B128,INDIRECT("'"&$N$1&"'!"&"$C$2:$G$200"),5,FALSE),0) -> 0 | P128: =IFERROR(VLOOKUP(B128,INDIRECT("'"&$P$1&"'!"&"$C$2:$G$200"),4,FALSE),"") -> 0.03131944444 | Q128: =IFERROR(VLOOKUP(B128,INDIRECT("'"&$P$1&"'!"&"$C$2:$G$200"),5,FALSE),0) -> 56.277884 | R128: =IFERROR(VLOOKUP(B128,INDIRECT("'"&$R$1&"'!"&"$C$2:$G$200"),4,FALSE),"") ->  | S128: =IFERROR(VLOOKUP(B128,INDIRECT("'"&$R$1&"'!"&"$C$2:$G$200"),5,FALSE),0) -> 0 | T128: =IFERROR(VLOOKUP(B128,INDIRECT("'"&$T$1&"'!"&"$C$2:$G$200"),4,FALSE),"") ->  | U128: =IFERROR(VLOOKUP(B128,INDIRECT("'"&$T$1&"'!"&"$C$2:$G$200"),5,FALSE),0) -> 0 | V128: =8-COUNTIF(F128:U128,"") -> 2 | W128: =E128/IF(V128>4,5,V128) -> 60.10345499
A129: 127 | B129: Adrian Frowen | C129: Unaffiliated | D129: M50 | E129: =SUM(LARGE((S129,G129,I129,K129,M129,O129,Q129,U129),{1,2,3,4,5})) -> 120.1759822 | F129: =IFERROR(VLOOKUP(B129,INDIRECT("'"&$F$1&"'!"&"$C$2:$G$200"),4,FALSE),"") ->  | G129: =IFERROR(VLOOKUP(B129,INDIRECT("'"&$F$1&"'!"&"$C$2:$G$200"),5,FALSE),0) -> 0 | H129: =IFERROR(VLOOKUP(B129,INDIRECT("'"&$H$1&"'!"&"$C$2:$G$200"),4,FALSE),"") ->  | I129: =IFERROR(VLOOKUP(B129,INDIRECT("'"&$H$1&"'!"&"$C$2:$G$200"),5,FALSE),0) -> 0 | J129: =IFERROR(VLOOKUP(B129,INDIRECT("'"&$J$1&"'!"&"$C$2:$G$200"),4,FALSE),"") ->  | K129: =IFERROR(VLOOKUP(B129,INDIRECT("'"&$J$1&"'!"&"$C$2:$G$200"),5,FALSE),0) -> 0 | L129: =IFERROR(VLOOKUP(B129,INDIRECT("'"&$L$1&"'!"&"$C$2:$G$200"),4,FALSE),"") -> 0.02760416667 | M129: =IFERROR(VLOOKUP(B129,INDIRECT("'"&$L$1&"'!"&"$C$2:$G$200"),5,FALSE),0) -> 52.52287905 | N129: =IFERROR(VLOOKUP(B129,INDIRECT("'"&$N$1&"'!"&"$C$2:$G$200"),4,FALSE),"") -> 0.02981481481 | O129: =IFERROR(VLOOKUP(B129,INDIRECT("'"&$N$1&"'!"&"$C$2:$G$200"),5,FALSE),0) -> 67.65310316 | P129: =IFERROR(VLOOKUP(B129,INDIRECT("'"&$P$1&"'!"&"$C$2:$G$200"),4,FALSE),"") ->  | Q129: =IFERROR(VLOOKUP(B129,INDIRECT("'"&$P$1&"'!"&"$C$2:$G$200"),5,FALSE),0) -> 0 | R129: =IFERROR(VLOOKUP(B129,INDIRECT("'"&$R$1&"'!"&"$C$2:$G$200"),4,FALSE),"") ->  | S129: =IFERROR(VLOOKUP(B129,INDIRECT("'"&$R$1&"'!"&"$C$2:$G$200"),5,FALSE),0) -> 0 | T129: =IFERROR(VLOOKUP(B129,INDIRECT("'"&$T$1&"'!"&"$C$2:$G$200"),4,FALSE),"") ->  | U129: =IFERROR(VLOOKUP(B129,INDIRECT("'"&$T$1&"'!"&"$C$2:$G$200"),5,FALSE),0) -> 0 | V129: =8-COUNTIF(F129:U129,"") -> 2 | W129: =E129/IF(V129>4,5,V129) -> 60.08799111
A130: 128 | B130: Rob West | C130: MDC | D130: M70 | E130: =SUM(LARGE((S130,G130,I130,K130,M130,O130,Q130,U130),{1,2,3,4,5})) -> 118.5830486 | F130: =IFERROR(VLOOKUP(B130,INDIRECT("'"&$F$1&"'!"&"$C$2:$G$200"),4,FALSE),"") -> 0.02341435185 | G130: =IFERROR(VLOOKUP(B130,INDIRECT("'"&$F$1&"'!"&"$C$2:$G$200"),5,FALSE),0) -> 40.23061128 | H130: =IFERROR(VLOOKUP(B130,INDIRECT("'"&$H$1&"'!"&"$C$2:$G$200"),4,FALSE),"") -> 0.05584490741 | I130: =IFERROR(VLOOKUP(B130,INDIRECT("'"&$H$1&"'!"&"$C$2:$G$200"),5,FALSE),0) -> 19.38309501 | J130: =IFERROR(VLOOKUP(B130,INDIRECT("'"&$J$1&"'!"&"$C$2:$G$200"),4,FALSE),"") ->  | K130: =IFERROR(VLOOKUP(B130,INDIRECT("'"&$J$1&"'!"&"$C$2:$G$200"),5,FALSE),0) -> 0 | L130: =IFERROR(VLOOKUP(B130,INDIRECT("'"&$L$1&"'!"&"$C$2:$G$200"),4,FALSE),"") -> 0.03260416667 | M130: =IFERROR(VLOOKUP(B130,INDIRECT("'"&$L$1&"'!"&"$C$2:$G$200"),5,FALSE),0) -> 25.81004205 | N130: =IFERROR(VLOOKUP(B130,INDIRECT("'"&$N$1&"'!"&"$C$2:$G$200"),4,FALSE),"") -> 0.04006944444 | O130: =IFERROR(VLOOKUP(B130,INDIRECT("'"&$N$1&"'!"&"$C$2:$G$200"),5,FALSE),0) -> 22.13316893 | P130: =IFERROR(VLOOKUP(B130,INDIRECT("'"&$P$1&"'!"&"$C$2:$G$200"),4,FALSE),"") -> 0.04118055556 | Q130: =IFERROR(VLOOKUP(B130,INDIRECT("'"&$P$1&"'!"&"$C$2:$G$200"),5,FALSE),0) -> 11.02613129 | R130: =IFERROR(VLOOKUP(B130,INDIRECT("'"&$R$1&"'!"&"$C$2:$G$200"),4,FALSE),"") ->  | S130: =IFERROR(VLOOKUP(B130,INDIRECT("'"&$R$1&"'!"&"$C$2:$G$200"),5,FALSE),0) -> 0 | T130: =IFERROR(VLOOKUP(B130,INDIRECT("'"&$T$1&"'!"&"$C$2:$G$200"),4,FALSE),"") ->  | U130: =IFERROR(VLOOKUP(B130,INDIRECT("'"&$T$1&"'!"&"$C$2:$G$200"),5,FALSE),0) -> 0 | V130: =8-COUNTIF(F130:U130,"") -> 5 | W130: =E130/IF(V130>4,5,V130) -> 23.71660971
A131: 129 | B131: Samantha Wickham | C131: Croft Ambrey | D131: SF | E131: =SUM(LARGE((S131,G131,I131,K131,M131,O131,Q131,U131),{1,2,3,4,5})) -> 118.1033807 | F131: =IFERROR(VLOOKUP(B131,INDIRECT("'"&$F$1&"'!"&"$C$2:$G$200"),4,FALSE),"") ->  | G131: =IFERROR(VLOOKUP(B131,INDIRECT("'"&$F$1&"'!"&"$C$2:$G$200"),5,FALSE),0) -> 0 | H131: =IFERROR(VLOOKUP(B131,INDIRECT("'"&$H$1&"'!"&"$C$2:$G$200"),4,FALSE),"") -> 0.04439814815 | I131: =IFERROR(VLOOKUP(B131,INDIRECT("'"&$H$1&"'!"&"$C$2:$G$200"),5,FALSE),0) -> 56.40488134 | J131: =IFERROR(VLOOKUP(B131,INDIRECT("'"&$J$1&"'!"&"$C$2:$G$200"),4,FALSE),"") ->  | K131: =IFERROR(VLOOKUP(B131,INDIRECT("'"&$J$1&"'!"&"$C$2:$G$200"),5,FALSE),0) -> 0 | L131: =IFERROR(VLOOKUP(B131,INDIRECT("'"&$L$1&"'!"&"$C$2:$G$200"),4,FALSE),"") ->  | M131: =IFERROR(VLOOKUP(B131,INDIRECT("'"&$L$1&"'!"&"$C$2:$G$200"),5,FALSE),0) -> 0 | N131: =IFERROR(VLOOKUP(B131,INDIRECT("'"&$N$1&"'!"&"$C$2:$G$200"),4,FALSE),"") ->  | O131: =IFERROR(VLOOKUP(B131,INDIRECT("'"&$N$1&"'!"&"$C$2:$G$200"),5,FALSE),0) -> 0 | P131: =IFERROR(VLOOKUP(B131,INDIRECT("'"&$P$1&"'!"&"$C$2:$G$200"),4,FALSE),"") ->  | Q131: =IFERROR(VLOOKUP(B131,INDIRECT("'"&$P$1&"'!"&"$C$2:$G$200"),5,FALSE),0) -> 0 | R131: =IFERROR(VLOOKUP(B131,INDIRECT("'"&$R$1&"'!"&"$C$2:$G$200"),4,FALSE),"") -> 0.02815972222 | S131: =IFERROR(VLOOKUP(B131,INDIRECT("'"&$R$1&"'!"&"$C$2:$G$200"),5,FALSE),0) -> 61.69849932 | T131: =IFERROR(VLOOKUP(B131,INDIRECT("'"&$T$1&"'!"&"$C$2:$G$200"),4,FALSE),"") ->  | U131: =IFERROR(VLOOKUP(B131,INDIRECT("'"&$T$1&"'!"&"$C$2:$G$200"),5,FALSE),0) -> 0 | V131: =8-COUNTIF(F131:U131,"") -> 2 | W131: =E131/IF(V131>4,5,V131) -> 59.05169033
A132: 130 | B132: Susan Davies | C132: Croft Ambrey | D132: F50 | E132: =SUM(LARGE((S132,G132,I132,K132,M132,O132,Q132,U132),{1,2,3,4,5})) -> 117.281217 | F132: =IFERROR(VLOOKUP(B132,INDIRECT("'"&$F$1&"'!"&"$C$2:$G$200"),4,FALSE),"") ->  | G132: =IFERROR(VLOOKUP(B132,INDIRECT("'"&$F$1&"'!"&"$C$2:$G$200"),5,FALSE),0) -> 0 | H132: =IFERROR(VLOOKUP(B132,INDIRECT("'"&$H$1&"'!"&"$C$2:$G$200"),4,FALSE),"") -> 0.04421296296 | I132: =IFERROR(VLOOKUP(B132,INDIRECT("'"&$H$1&"'!"&"$C$2:$G$200"),5,FALSE),0) -> 57.00381822 | J132: =IFERROR(VLOOKUP(B132,INDIRECT("'"&$J$1&"'!"&"$C$2:$G$200"),4,FALSE),"") ->  | K132: =IFERROR(VLOOKUP(B132,INDIRECT("'"&$J$1&"'!"&"$C$2:$G$200"),5,FALSE),0) -> 0 | L132: =IFERROR(VLOOKUP(B132,INDIRECT("'"&$L$1&"'!"&"$C$2:$G$200"),4,FALSE),"") ->  | M132: =IFERROR(VLOOKUP(B132,INDIRECT("'"&$L$1&"'!"&"$C$2:$G$200"),5,FALSE),0) -> 0 | N132: =IFERROR(VLOOKUP(B132,INDIRECT("'"&$N$1&"'!"&"$C$2:$G$200"),4,FALSE),"") ->  | O132: =IFERROR(VLOOKUP(B132,INDIRECT("'"&$N$1&"'!"&"$C$2:$G$200"),5,FALSE),0) -> 0 | P132: =IFERROR(VLOOKUP(B132,INDIRECT("'"&$P$1&"'!"&"$C$2:$G$200"),4,FALSE),"") ->  | Q132: =IFERROR(VLOOKUP(B132,INDIRECT("'"&$P$1&"'!"&"$C$2:$G$200"),5,FALSE),0) -> 0 | R132: =IFERROR(VLOOKUP(B132,INDIRECT("'"&$R$1&"'!"&"$C$2:$G$200"),4,FALSE),"") -> 0.02844907407 | S132: =IFERROR(VLOOKUP(B132,INDIRECT("'"&$R$1&"'!"&"$C$2:$G$200"),5,FALSE),0) -> 60.27739882 | T132: =IFERROR(VLOOKUP(B132,INDIRECT("'"&$T$1&"'!"&"$C$2:$G$200"),4,FALSE),"") ->  | U132: =IFERROR(VLOOKUP(B132,INDIRECT("'"&$T$1&"'!"&"$C$2:$G$200"),5,FALSE),0) -> 0 | V132: =8-COUNTIF(F132:U132,"") -> 2 | W132: =E132/IF(V132>4,5,V132) -> 58.64060852
A133: 131 | B133: Ben Mitchell | C133: MDC | D133: SM | E133: =SUM(LARGE((S133,G133,I133,K133,M133,O133,Q133,U133),{1,2,3,4,5})) -> 110.5243631 | F133: =IFERROR(VLOOKUP(B133,INDIRECT("'"&$F$1&"'!"&"$C$2:$G$200"),4,FALSE),"") ->  | G133: =IFERROR(VLOOKUP(B133,INDIRECT("'"&$F$1&"'!"&"$C$2:$G$200"),5,FALSE),0) -> 0 | H133: =IFERROR(VLOOKUP(B133,INDIRECT("'"&$H$1&"'!"&"$C$2:$G$200"),4,FALSE),"") ->  | I133: =IFERROR(VLOOKUP(B133,INDIRECT("'"&$H$1&"'!"&"$C$2:$G$200"),5,FALSE),0) -> 0 | J133: =IFERROR(VLOOKUP(B133,INDIRECT("'"&$J$1&"'!"&"$C$2:$G$200"),4,FALSE),"") ->  | K133: =IFERROR(VLOOKUP(B133,INDIRECT("'"&$J$1&"'!"&"$C$2:$G$200"),5,FALSE),0) -> 0 | L133: =IFERROR(VLOOKUP(B133,INDIRECT("'"&$L$1&"'!"&"$C$2:$G$200"),4,FALSE),"") -> 0.01674768519 | M133: =IFERROR(VLOOKUP(B133,INDIRECT("'"&$L$1&"'!"&"$C$2:$G$200"),5,FALSE),0) -> 110.5243631 | N133: =IFERROR(VLOOKUP(B133,INDIRECT("'"&$N$1&"'!"&"$C$2:$G$200"),4,FALSE),"") ->  | O133: =IFERROR(VLOOKUP(B133,INDIRECT("'"&$N$1&"'!"&"$C$2:$G$200"),5,FALSE),0) -> 0 | P133: =IFERROR(VLOOKUP(B133,INDIRECT("'"&$P$1&"'!"&"$C$2:$G$200"),4,FALSE),"") ->  | Q133: =IFERROR(VLOOKUP(B133,INDIRECT("'"&$P$1&"'!"&"$C$2:$G$200"),5,FALSE),0) -> 0 | R133: =IFERROR(VLOOKUP(B133,INDIRECT("'"&$R$1&"'!"&"$C$2:$G$200"),4,FALSE),"") ->  | S133: =IFERROR(VLOOKUP(B133,INDIRECT("'"&$R$1&"'!"&"$C$2:$G$200"),5,FALSE),0) -> 0 | T133: =IFERROR(VLOOKUP(B133,INDIRECT("'"&$T$1&"'!"&"$C$2:$G$200"),4,FALSE),"") ->  | U133: =IFERROR(VLOOKUP(B133,INDIRECT("'"&$T$1&"'!"&"$C$2:$G$200"),5,FALSE),0) -> 0 | V133: =8-COUNTIF(F133:U133,"") -> 1 | W133: =E133/IF(V133>4,5,V133) -> 110.5243631
A134: 132 | B134: Hamish Hughson | C134: Chepstow Harriers | D134: M40 | E134: =SUM(LARGE((S134,G134,I134,K134,M134,O134,Q134,U134),{1,2,3,4,5})) -> 105.6986131 | F134: =IFERROR(VLOOKUP(B134,INDIRECT("'"&$F$1&"'!"&"$C$2:$G$200"),4,FALSE),"") ->  | G134: =IFERROR(VLOOKUP(B134,INDIRECT("'"&$F$1&"'!"&"$C$2:$G$200"),5,FALSE),0) -> 0 | H134: =IFERROR(VLOOKUP(B134,INDIRECT("'"&$H$1&"'!"&"$C$2:$G$200"),4,FALSE),"") -> 0.05150462963 | I134: =IFERROR(VLOOKUP(B134,INDIRECT("'"&$H$1&"'!"&"$C$2:$G$200"),5,FALSE),0) -> 33.4206783 | J134: =IFERROR(VLOOKUP(B134,INDIRECT("'"&$J$1&"'!"&"$C$2:$G$200"),4,FALSE),"") ->  | K134: =IFERROR(VLOOKUP(B134,INDIRECT("'"&$J$1&"'!"&"$C$2:$G$200"),5,FALSE),0) -> 0 | L134: =IFERROR(VLOOKUP(B134,INDIRECT("'"&$L$1&"'!"&"$C$2:$G$200"),4,FALSE),"") ->  | M134: =IFERROR(VLOOKUP(B134,INDIRECT("'"&$L$1&"'!"&"$C$2:$G$200"),5,FALSE),0) -> 0 | N134: =IFERROR(VLOOKUP(B134,INDIRECT("'"&$N$1&"'!"&"$C$2:$G$200"),4,FALSE),"") -> 0.03599537037 | O134: =IFERROR(VLOOKUP(B134,INDIRECT("'"&$N$1&"'!"&"$C$2:$G$200"),5,FALSE),0) -> 40.21783806 | P134: =IFERROR(VLOOKUP(B134,INDIRECT("'"&$P$1&"'!"&"$C$2:$G$200"),4,FALSE),"") ->  | Q134: =IFERROR(VLOOKUP(B134,INDIRECT("'"&$P$1&"'!"&"$C$2:$G$200"),5,FALSE),0) -> 0 | R134: =IFERROR(VLOOKUP(B134,INDIRECT("'"&$R$1&"'!"&"$C$2:$G$200"),4,FALSE),"") ->  | S134: =IFERROR(VLOOKUP(B134,INDIRECT("'"&$R$1&"'!"&"$C$2:$G$200"),5,FALSE),0) -> 0 | T134: =IFERROR(VLOOKUP(B134,INDIRECT("'"&$T$1&"'!"&"$C$2:$G$200"),4,FALSE),"") -> 0.06106481481 | U134: =IFERROR(VLOOKUP(B134,INDIRECT("'"&$T$1&"'!"&"$C$2:$G$200"),5,FALSE),0) -> 32.06009677 | V134: =8-COUNTIF(F134:U134,"") -> 3 | W134: =E134/IF(V134>4,5,V134) -> 35.23287104
A135: 133 | B135: Kit Grierson | C135: UBOC | D135: MU23 | E135: =SUM(LARGE((S135,G135,I135,K135,M135,O135,Q135,U135),{1,2,3,4,5})) -> 104.2334566 | F135: =IFERROR(VLOOKUP(B135,INDIRECT("'"&$F$1&"'!"&"$C$2:$G$200"),4,FALSE),"") ->  | G135: =IFERROR(VLOOKUP(B135,INDIRECT("'"&$F$1&"'!"&"$C$2:$G$200"),5,FALSE),0) -> 0 | H135: =IFERROR(VLOOKUP(B135,INDIRECT("'"&$H$1&"'!"&"$C$2:$G$200"),4,FALSE),"") ->  | I135: =IFERROR(VLOOKUP(B135,INDIRECT("'"&$H$1&"'!"&"$C$2:$G$200"),5,FALSE),0) -> 0 | J135: =IFERROR(VLOOKUP(B135,INDIRECT("'"&$J$1&"'!"&"$C$2:$G$200"),4,FALSE),"") ->  | K135: =IFERROR(VLOOKUP(B135,INDIRECT("'"&$J$1&"'!"&"$C$2:$G$200"),5,FALSE),0) -> 0 | L135: =IFERROR(VLOOKUP(B135,INDIRECT("'"&$L$1&"'!"&"$C$2:$G$200"),4,FALSE),"") ->  | M135: =IFERROR(VLOOKUP(B135,INDIRECT("'"&$L$1&"'!"&"$C$2:$G$200"),5,FALSE),0) -> 0 | N135: =IFERROR(VLOOKUP(B135,INDIRECT("'"&$N$1&"'!"&"$C$2:$G$200"),4,FALSE),"") -> 0.02157407407 | O135: =IFERROR(VLOOKUP(B135,INDIRECT("'"&$N$1&"'!"&"$C$2:$G$200"),5,FALSE),0) -> 104.2334566 | P135: =IFERROR(VLOOKUP(B135,INDIRECT("'"&$P$1&"'!"&"$C$2:$G$200"),4,FALSE),"") ->  | Q135: =IFERROR(VLOOKUP(B135,INDIRECT("'"&$P$1&"'!"&"$C$2:$G$200"),5,FALSE),0) -> 0 | R135: =IFERROR(VLOOKUP(B135,INDIRECT("'"&$R$1&"'!"&"$C$2:$G$200"),4,FALSE),"") ->  | S135: =IFERROR(VLOOKUP(B135,INDIRECT("'"&$R$1&"'!"&"$C$2:$G$200"),5,FALSE),0) -> 0 | T135: =IFERROR(VLOOKUP(B135,INDIRECT("'"&$T$1&"'!"&"$C$2:$G$200"),4,FALSE),"") ->  | U135: =IFERROR(VLOOKUP(B135,INDIRECT("'"&$T$1&"'!"&"$C$2:$G$200"),5,FALSE),0) -> 0 | V135: =8-COUNTIF(F135:U135,"") -> 1 | W135: =E135/IF(V135>4,5,V135) -> 104.2334566
A136: 134 | B136: Mark Hopkinson | C136: Mynydd Du | D136: SM | E136: =SUM(LARGE((S136,G136,I136,K136,M136,O136,Q136,U136),{1,2,3,4,5})) -> 100.592055 | F136: =IFERROR(VLOOKUP(B136,INDIRECT("'"&$F$1&"'!"&"$C$2:$G$200"),4,FALSE),"") ->  | G136: =IFERROR(VLOOKUP(B136,INDIRECT("'"&$F$1&"'!"&"$C$2:$G$200"),5,FALSE),0) -> 0 | H136: =IFERROR(VLOOKUP(B136,INDIRECT("'"&$H$1&"'!"&"$C$2:$G$200"),4,FALSE),"") ->  | I136: =IFERROR(VLOOKUP(B136,INDIRECT("'"&$H$1&"'!"&"$C$2:$G$200"),5,FALSE),0) -> 0 | J136: =IFERROR(VLOOKUP(B136,INDIRECT("'"&$J$1&"'!"&"$C$2:$G$200"),4,FALSE),"") ->  | K136: =IFERROR(VLOOKUP(B136,INDIRECT("'"&$J$1&"'!"&"$C$2:$G$200"),5,FALSE),0) -> 0 | L136: =IFERROR(VLOOKUP(B136,INDIRECT("'"&$L$1&"'!"&"$C$2:$G$200"),4,FALSE),"") ->  | M136: =IFERROR(VLOOKUP(B136,INDIRECT("'"&$L$1&"'!"&"$C$2:$G$200"),5,FALSE),0) -> 0 | N136: =IFERROR(VLOOKUP(B136,INDIRECT("'"&$N$1&"'!"&"$C$2:$G$200"),4,FALSE),"") ->  | O136: =IFERROR(VLOOKUP(B136,INDIRECT("'"&$N$1&"'!"&"$C$2:$G$200"),5,FALSE),0) -> 0 | P136: =IFERROR(VLOOKUP(B136,INDIRECT("'"&$P$1&"'!"&"$C$2:$G$200"),4,FALSE),"") ->  | Q136: =IFERROR(VLOOKUP(B136,INDIRECT("'"&$P$1&"'!"&"$C$2:$G$200"),5,FALSE),0) -> 0 | R136: =IFERROR(VLOOKUP(B136,INDIRECT("'"&$R$1&"'!"&"$C$2:$G$200"),4,FALSE),"") ->  | S136: =IFERROR(VLOOKUP(B136,INDIRECT("'"&$R$1&"'!"&"$C$2:$G$200"),5,FALSE),0) -> 0 | T136: =IFERROR(VLOOKUP(B136,INDIRECT("'"&$T$1&"'!"&"$C$2:$G$200"),4,FALSE),"") -> 0.03614583333 | U136: =IFERROR(VLOOKUP(B136,INDIRECT("'"&$T$1&"'!"&"$C$2:$G$200"),5,FALSE),0) -> 100.592055 | V136: =8-COUNTIF(F136:U136,"") -> 1 | W136: =E136/IF(V136>4,5,V136) -> 100.592055
A137: 135 | B137: Tom Roberts | C137: Meirionydd | D137: SM | E137: =SUM(LARGE((S137,G137,I137,K137,M137,O137,Q137,U137),{1,2,3,4,5})) -> 100.3374077 | F137: =IFERROR(VLOOKUP(B137,INDIRECT("'"&$F$1&"'!"&"$C$2:$G$200"),4,FALSE),"") ->  | G137: =IFERROR(VLOOKUP(B137,INDIRECT("'"&$F$1&"'!"&"$C$2:$G$200"),5,FALSE),0) -> 0 | H137: =IFERROR(VLOOKUP(B137,INDIRECT("'"&$H$1&"'!"&"$C$2:$G$200"),4,FALSE),"") ->  | I137: =IFERROR(VLOOKUP(B137,INDIRECT("'"&$H$1&"'!"&"$C$2:$G$200"),5,FALSE),0) -> 0 | J137: =IFERROR(VLOOKUP(B137,INDIRECT("'"&$J$1&"'!"&"$C$2:$G$200"),4,FALSE),"") ->  | K137: =IFERROR(VLOOKUP(B137,INDIRECT("'"&$J$1&"'!"&"$C$2:$G$200"),5,FALSE),0) -> 0 | L137: =IFERROR(VLOOKUP(B137,INDIRECT("'"&$L$1&"'!"&"$C$2:$G$200"),4,FALSE),"") ->  | M137: =IFERROR(VLOOKUP(B137,INDIRECT("'"&$L$1&"'!"&"$C$2:$G$200"),5,FALSE),0) -> 0 | N137: =IFERROR(VLOOKUP(B137,INDIRECT("'"&$N$1&"'!"&"$C$2:$G$200"),4,FALSE),"") ->  | O137: =IFERROR(VLOOKUP(B137,INDIRECT("'"&$N$1&"'!"&"$C$2:$G$200"),5,FALSE),0) -> 0 | P137: =IFERROR(VLOOKUP(B137,INDIRECT("'"&$P$1&"'!"&"$C$2:$G$200"),4,FALSE),"") ->  | Q137: =IFERROR(VLOOKUP(B137,INDIRECT("'"&$P$1&"'!"&"$C$2:$G$200"),5,FALSE),0) -> 0 | R137: =IFERROR(VLOOKUP(B137,INDIRECT("'"&$R$1&"'!"&"$C$2:$G$200"),4,FALSE),"") ->  | S137: =IFERROR(VLOOKUP(B137,INDIRECT("'"&$R$1&"'!"&"$C$2:$G$200"),5,FALSE),0) -> 0 | T137: =IFERROR(VLOOKUP(B137,INDIRECT("'"&$T$1&"'!"&"$C$2:$G$200"),4,FALSE),"") -> 0.03623842593 | U137: =IFERROR(VLOOKUP(B137,INDIRECT("'"&$T$1&"'!"&"$C$2:$G$200"),5,FALSE),0) -> 100.3374077 | V137: =8-COUNTIF(F137:U137,"") -> 1 | W137: =E137/IF(V137>4,5,V137) -> 100.3374077
A138: 136 | B138: Robert Gordon | C138: Mynydd Du | D138: M40 | E138: =SUM(LARGE((S138,G138,I138,K138,M138,O138,Q138,U138),{1,2,3,4,5})) -> 100.0898405 | F138: =IFERROR(VLOOKUP(B138,INDIRECT("'"&$F$1&"'!"&"$C$2:$G$200"),4,FALSE),"") ->  | G138: =IFERROR(VLOOKUP(B138,INDIRECT("'"&$F$1&"'!"&"$C$2:$G$200"),5,FALSE),0) -> 0 | H138: =IFERROR(VLOOKUP(B138,INDIRECT("'"&$H$1&"'!"&"$C$2:$G$200"),4,FALSE),"") -> 0.0308912037 | I138: =IFERROR(VLOOKUP(B138,INDIRECT("'"&$H$1&"'!"&"$C$2:$G$200"),5,FALSE),0) -> 100.0898405 | J138: =IFERROR(VLOOKUP(B138,INDIRECT("'"&$J$1&"'!"&"$C$2:$G$200"),4,FALSE),"") ->  | K138: =IFERROR(VLOOKUP(B138,INDIRECT("'"&$J$1&"'!"&"$C$2:$G$200"),5,FALSE),0) -> 0 | L138: =IFERROR(VLOOKUP(B138,INDIRECT("'"&$L$1&"'!"&"$C$2:$G$200"),4,FALSE),"") ->  | M138: =IFERROR(VLOOKUP(B138,INDIRECT("'"&$L$1&"'!"&"$C$2:$G$200"),5,FALSE),0) -> 0 | N138: =IFERROR(VLOOKUP(B138,INDIRECT("'"&$N$1&"'!"&"$C$2:$G$200"),4,FALSE),"") ->  | O138: =IFERROR(VLOOKUP(B138,INDIRECT("'"&$N$1&"'!"&"$C$2:$G$200"),5,FALSE),0) -> 0 | P138: =IFERROR(VLOOKUP(B138,INDIRECT("'"&$P$1&"'!"&"$C$2:$G$200"),4,FALSE),"") ->  | Q138: =IFERROR(VLOOKUP(B138,INDIRECT("'"&$P$1&"'!"&"$C$2:$G$200"),5,FALSE),0) -> 0 | R138: =IFERROR(VLOOKUP(B138,INDIRECT("'"&$R$1&"'!"&"$C$2:$G$200"),4,FALSE),"") ->  | S138: =IFERROR(VLOOKUP(B138,INDIRECT("'"&$R$1&"'!"&"$C$2:$G$200"),5,FALSE),0) -> 0 | T138: =IFERROR(VLOOKUP(B138,INDIRECT("'"&$T$1&"'!"&"$C$2:$G$200"),4,FALSE),"") ->  | U138: =IFERROR(VLOOKUP(B138,INDIRECT("'"&$T$1&"'!"&"$C$2:$G$200"),5,FALSE),0) -> 0 | V138: =8-COUNTIF(F138:U138,"") -> 1 | W138: =E138/IF(V138>4,5,V138) -> 100.0898405
A139: 137 | B139: Jeff Wherlock | C139: Lliswerry Runners | D139: M50 | E139: =SUM(LARGE((S139,G139,I139,K139,M139,O139,Q139,U139),{1,2,3,4,5})) -> 97.86488209 | F139: =IFERROR(VLOOKUP(B139,INDIRECT("'"&$F$1&"'!"&"$C$2:$G$200"),4,FALSE),"") ->  | G139: =IFERROR(VLOOKUP(B139,INDIRECT("'"&$F$1&"'!"&"$C$2:$G$200"),5,FALSE),0) -> 0 | H139: =IFERROR(VLOOKUP(B139,INDIRECT("'"&$H$1&"'!"&"$C$2:$G$200"),4,FALSE),"") ->  | I139: =IFERROR(VLOOKUP(B139,INDIRECT("'"&$H$1&"'!"&"$C$2:$G$200"),5,FALSE),0) -> 0 | J139: =IFERROR(VLOOKUP(B139,INDIRECT("'"&$J$1&"'!"&"$C$2:$G$200"),4,FALSE),"") ->  | K139: =IFERROR(VLOOKUP(B139,INDIRECT("'"&$J$1&"'!"&"$C$2:$G$200"),5,FALSE),0) -> 0 | L139: =IFERROR(VLOOKUP(B139,INDIRECT("'"&$L$1&"'!"&"$C$2:$G$200"),4,FALSE),"") ->  | M139: =IFERROR(VLOOKUP(B139,INDIRECT("'"&$L$1&"'!"&"$C$2:$G$200"),5,FALSE),0) -> 0 | N139: =IFERROR(VLOOKUP(B139,INDIRECT("'"&$N$1&"'!"&"$C$2:$G$200"),4,FALSE),"") ->  | O139: =IFERROR(VLOOKUP(B139,INDIRECT("'"&$N$1&"'!"&"$C$2:$G$200"),5,FALSE),0) -> 0 | P139: =IFERROR(VLOOKUP(B139,INDIRECT("'"&$P$1&"'!"&"$C$2:$G$200"),4,FALSE),"") -> 0.02225694444 | Q139: =IFERROR(VLOOKUP(B139,INDIRECT("'"&$P$1&"'!"&"$C$2:$G$200"),5,FALSE),0) -> 97.86488209 | R139: =IFERROR(VLOOKUP(B139,INDIRECT("'"&$R$1&"'!"&"$C$2:$G$200"),4,FALSE),"") ->  | S139: =IFERROR(VLOOKUP(B139,INDIRECT("'"&$R$1&"'!"&"$C$2:$G$200"),5,FALSE),0) -> 0 | T139: =IFERROR(VLOOKUP(B139,INDIRECT("'"&$T$1&"'!"&"$C$2:$G$200"),4,FALSE),"") ->  | U139: =IFERROR(VLOOKUP(B139,INDIRECT("'"&$T$1&"'!"&"$C$2:$G$200"),5,FALSE),0) -> 0 | V139: =8-COUNTIF(F139:U139,"") -> 1 | W139: =E139/IF(V139>4,5,V139) -> 97.86488209
A140: 138 | B140: Samuel Gregory | C140: South Wales | D140: SM | E140: =SUM(LARGE((S140,G140,I140,K140,M140,O140,Q140,U140),{1,2,3,4,5})) -> 96.89966896 | F140: =IFERROR(VLOOKUP(B140,INDIRECT("'"&$F$1&"'!"&"$C$2:$G$200"),4,FALSE),"") ->  | G140: =IFERROR(VLOOKUP(B140,INDIRECT("'"&$F$1&"'!"&"$C$2:$G$200"),5,FALSE),0) -> 0 | H140: =IFERROR(VLOOKUP(B140,INDIRECT("'"&$H$1&"'!"&"$C$2:$G$200"),4,FALSE),"") ->  | I140: =IFERROR(VLOOKUP(B140,INDIRECT("'"&$H$1&"'!"&"$C$2:$G$200"),5,FALSE),0) -> 0 | J140: =IFERROR(VLOOKUP(B140,INDIRECT("'"&$J$1&"'!"&"$C$2:$G$200"),4,FALSE),"") ->  | K140: =IFERROR(VLOOKUP(B140,INDIRECT("'"&$J$1&"'!"&"$C$2:$G$200"),5,FALSE),0) -> 0 | L140: =IFERROR(VLOOKUP(B140,INDIRECT("'"&$L$1&"'!"&"$C$2:$G$200"),4,FALSE),"") ->  | M140: =IFERROR(VLOOKUP(B140,INDIRECT("'"&$L$1&"'!"&"$C$2:$G$200"),5,FALSE),0) -> 0 | N140: =IFERROR(VLOOKUP(B140,INDIRECT("'"&$N$1&"'!"&"$C$2:$G$200"),4,FALSE),"") ->  | O140: =IFERROR(VLOOKUP(B140,INDIRECT("'"&$N$1&"'!"&"$C$2:$G$200"),5,FALSE),0) -> 0 | P140: =IFERROR(VLOOKUP(B140,INDIRECT("'"&$P$1&"'!"&"$C$2:$G$200"),4,FALSE),"") ->  | Q140: =IFERROR(VLOOKUP(B140,INDIRECT("'"&$P$1&"'!"&"$C$2:$G$200"),5,FALSE),0) -> 0 | R140: =IFERROR(VLOOKUP(B140,INDIRECT("'"&$R$1&"'!"&"$C$2:$G$200"),4,FALSE),"") ->  | S140: =IFERROR(VLOOKUP(B140,INDIRECT("'"&$R$1&"'!"&"$C$2:$G$200"),5,FALSE),0) -> 0 | T140: =IFERROR(VLOOKUP(B140,INDIRECT("'"&$T$1&"'!"&"$C$2:$G$200"),4,FALSE),"") -> 0.03748842593 | U140: =IFERROR(VLOOKUP(B140,INDIRECT("'"&$T$1&"'!"&"$C$2:$G$200"),5,FALSE),0) -> 96.89966896 | V140: =8-COUNTIF(F140:U140,"") -> 1 | W140: =E140/IF(V140>4,5,V140) -> 96.89966896
A141: 139 | B141: Jonathan Williams | C141: Unaffiliated | D141: M40 | E141: =SUM(LARGE((S141,G141,I141,K141,M141,O141,Q141,U141),{1,2,3,4,5})) -> 96.3246229 | F141: =IFERROR(VLOOKUP(B141,INDIRECT("'"&$F$1&"'!"&"$C$2:$G$200"),4,FALSE),"") ->  | G141: =IFERROR(VLOOKUP(B141,INDIRECT("'"&$F$1&"'!"&"$C$2:$G$200"),5,FALSE),0) -> 0 | H141: =IFERROR(VLOOKUP(B141,INDIRECT("'"&$H$1&"'!"&"$C$2:$G$200"),4,FALSE),"") ->  | I141: =IFERROR(VLOOKUP(B141,INDIRECT("'"&$H$1&"'!"&"$C$2:$G$200"),5,FALSE),0) -> 0 | J141: =IFERROR(VLOOKUP(B141,INDIRECT("'"&$J$1&"'!"&"$C$2:$G$200"),4,FALSE),"") ->  | K141: =IFERROR(VLOOKUP(B141,INDIRECT("'"&$J$1&"'!"&"$C$2:$G$200"),5,FALSE),0) -> 0 | L141: =IFERROR(VLOOKUP(B141,INDIRECT("'"&$L$1&"'!"&"$C$2:$G$200"),4,FALSE),"") ->  | M141: =IFERROR(VLOOKUP(B141,INDIRECT("'"&$L$1&"'!"&"$C$2:$G$200"),5,FALSE),0) -> 0 | N141: =IFERROR(VLOOKUP(B141,INDIRECT("'"&$N$1&"'!"&"$C$2:$G$200"),4,FALSE),"") ->  | O141: =IFERROR(VLOOKUP(B141,INDIRECT("'"&$N$1&"'!"&"$C$2:$G$200"),5,FALSE),0) -> 0 | P141: =IFERROR(VLOOKUP(B141,INDIRECT("'"&$P$1&"'!"&"$C$2:$G$200"),4,FALSE),"") -> 0.02259259259 | Q141: =IFERROR(VLOOKUP(B141,INDIRECT("'"&$P$1&"'!"&"$C$2:$G$200"),5,FALSE),0) -> 96.3246229 | R141: =IFERROR(VLOOKUP(B141,INDIRECT("'"&$R$1&"'!"&"$C$2:$G$200"),4,FALSE),"") ->  | S141: =IFERROR(VLOOKUP(B141,INDIRECT("'"&$R$1&"'!"&"$C$2:$G$200"),5,FALSE),0) -> 0 | T141: =IFERROR(VLOOKUP(B141,INDIRECT("'"&$T$1&"'!"&"$C$2:$G$200"),4,FALSE),"") ->  | U141: =IFERROR(VLOOKUP(B141,INDIRECT("'"&$T$1&"'!"&"$C$2:$G$200"),5,FALSE),0) -> 0 | V141: =8-COUNTIF(F141:U141,"") -> 1 | W141: =E141/IF(V141>4,5,V141) -> 96.3246229
A142: 140 | B142: James Thomas | C142: Cirencester | D142: SM | E142: =SUM(LARGE((S142,G142,I142,K142,M142,O142,Q142,U142),{1,2,3,4,5})) -> 96.01315249 | F142: =IFERROR(VLOOKUP(B142,INDIRECT("'"&$F$1&"'!"&"$C$2:$G$200"),4,FALSE),"") ->  | G142: =IFERROR(VLOOKUP(B142,INDIRECT("'"&$F$1&"'!"&"$C$2:$G$200"),5,FALSE),0) -> 0 | H142: =IFERROR(VLOOKUP(B142,INDIRECT("'"&$H$1&"'!"&"$C$2:$G$200"),4,FALSE),"") ->  | I142: =IFERROR(VLOOKUP(B142,INDIRECT("'"&$H$1&"'!"&"$C$2:$G$200"),5,FALSE),0) -> 0 | J142: =IFERROR(VLOOKUP(B142,INDIRECT("'"&$J$1&"'!"&"$C$2:$G$200"),4,FALSE),"") ->  | K142: =IFERROR(VLOOKUP(B142,INDIRECT("'"&$J$1&"'!"&"$C$2:$G$200"),5,FALSE),0) -> 0 | L142: =IFERROR(VLOOKUP(B142,INDIRECT("'"&$L$1&"'!"&"$C$2:$G$200"),4,FALSE),"") ->  | M142: =IFERROR(VLOOKUP(B142,INDIRECT("'"&$L$1&"'!"&"$C$2:$G$200"),5,FALSE),0) -> 0 | N142: =IFERROR(VLOOKUP(B142,INDIRECT("'"&$N$1&"'!"&"$C$2:$G$200"),4,FALSE),"") -> 0.02342592593 | O142: =IFERROR(VLOOKUP(B142,INDIRECT("'"&$N$1&"'!"&"$C$2:$G$200"),5,FALSE),0) -> 96.01315249 | P142: =IFERROR(VLOOKUP(B142,INDIRECT("'"&$P$1&"'!"&"$C$2:$G$200"),4,FALSE),"") ->  | Q142: =IFERROR(VLOOKUP(B142,INDIRECT("'"&$P$1&"'!"&"$C$2:$G$200"),5,FALSE),0) -> 0 | R142: =IFERROR(VLOOKUP(B142,INDIRECT("'"&$R$1&"'!"&"$C$2:$G$200"),4,FALSE),"") ->  | S142: =IFERROR(VLOOKUP(B142,INDIRECT("'"&$R$1&"'!"&"$C$2:$G$200"),5,FALSE),0) -> 0 | T142: =IFERROR(VLOOKUP(B142,INDIRECT("'"&$T$1&"'!"&"$C$2:$G$200"),4,FALSE),"") ->  | U142: =IFERROR(VLOOKUP(B142,INDIRECT("'"&$T$1&"'!"&"$C$2:$G$200"),5,FALSE),0) -> 0 | V142: =8-COUNTIF(F142:U142,"") -> 1 | W142: =E142/IF(V142>4,5,V142) -> 96.01315249
A143: 141 | B143: Simon Marchant | C143: Unaffiliated | D143: SM | E143: =SUM(LARGE((S143,G143,I143,K143,M143,O143,Q143,U143),{1,2,3,4,5})) -> 95.60213728 | F143: =IFERROR(VLOOKUP(B143,INDIRECT("'"&$F$1&"'!"&"$C$2:$G$200"),4,FALSE),"") ->  | G143: =IFERROR(VLOOKUP(B143,INDIRECT("'"&$F$1&"'!"&"$C$2:$G$200"),5,FALSE),0) -> 0 | H143: =IFERROR(VLOOKUP(B143,INDIRECT("'"&$H$1&"'!"&"$C$2:$G$200"),4,FALSE),"") ->  | I143: =IFERROR(VLOOKUP(B143,INDIRECT("'"&$H$1&"'!"&"$C$2:$G$200"),5,FALSE),0) -> 0 | J143: =IFERROR(VLOOKUP(B143,INDIRECT("'"&$J$1&"'!"&"$C$2:$G$200"),4,FALSE),"") ->  | K143: =IFERROR(VLOOKUP(B143,INDIRECT("'"&$J$1&"'!"&"$C$2:$G$200"),5,FALSE),0) -> 0 | L143: =IFERROR(VLOOKUP(B143,INDIRECT("'"&$L$1&"'!"&"$C$2:$G$200"),4,FALSE),"") ->  | M143: =IFERROR(VLOOKUP(B143,INDIRECT("'"&$L$1&"'!"&"$C$2:$G$200"),5,FALSE),0) -> 0 | N143: =IFERROR(VLOOKUP(B143,INDIRECT("'"&$N$1&"'!"&"$C$2:$G$200"),4,FALSE),"") -> 0.02351851852 | O143: =IFERROR(VLOOKUP(B143,INDIRECT("'"&$N$1&"'!"&"$C$2:$G$200"),5,FALSE),0) -> 95.60213728 | P143: =IFERROR(VLOOKUP(B143,INDIRECT("'"&$P$1&"'!"&"$C$2:$G$200"),4,FALSE),"") ->  | Q143: =IFERROR(VLOOKUP(B143,INDIRECT("'"&$P$1&"'!"&"$C$2:$G$200"),5,FALSE),0) -> 0 | R143: =IFERROR(VLOOKUP(B143,INDIRECT("'"&$R$1&"'!"&"$C$2:$G$200"),4,FALSE),"") ->  | S143: =IFERROR(VLOOKUP(B143,INDIRECT("'"&$R$1&"'!"&"$C$2:$G$200"),5,FALSE),0) -> 0 | T143: =IFERROR(VLOOKUP(B143,INDIRECT("'"&$T$1&"'!"&"$C$2:$G$200"),4,FALSE),"") ->  | U143: =IFERROR(VLOOKUP(B143,INDIRECT("'"&$T$1&"'!"&"$C$2:$G$200"),5,FALSE),0) -> 0 | V143: =8-COUNTIF(F143:U143,"") -> 1 | W143: =E143/IF(V143>4,5,V143) -> 95.60213728
A144: 142 | B144: Toby Garratt | C144: Chepstow Harriers | D144: SM | E144: =SUM(LARGE((S144,G144,I144,K144,M144,O144,Q144,U144),{1,2,3,4,5})) -> 95.2217271 | F144: =IFERROR(VLOOKUP(B144,INDIRECT("'"&$F$1&"'!"&"$C$2:$G$200"),4,FALSE),"") ->  | G144: =IFERROR(VLOOKUP(B144,INDIRECT("'"&$F$1&"'!"&"$C$2:$G$200"),5,FALSE),0) -> 0 | H144: =IFERROR(VLOOKUP(B144,INDIRECT("'"&$H$1&"'!"&"$C$2:$G$200"),4,FALSE),"") ->  | I144: =IFERROR(VLOOKUP(B144,INDIRECT("'"&$H$1&"'!"&"$C$2:$G$200"),5,FALSE),0) -> 0 | J144: =IFERROR(VLOOKUP(B144,INDIRECT("'"&$J$1&"'!"&"$C$2:$G$200"),4,FALSE),"") ->  | K144: =IFERROR(VLOOKUP(B144,INDIRECT("'"&$J$1&"'!"&"$C$2:$G$200"),5,FALSE),0) -> 0 | L144: =IFERROR(VLOOKUP(B144,INDIRECT("'"&$L$1&"'!"&"$C$2:$G$200"),4,FALSE),"") -> 0.03315972222 | M144: =IFERROR(VLOOKUP(B144,INDIRECT("'"&$L$1&"'!"&"$C$2:$G$200"),5,FALSE),0) -> 22.84194905 | N144: =IFERROR(VLOOKUP(B144,INDIRECT("'"&$N$1&"'!"&"$C$2:$G$200"),4,FALSE),"") -> 0.02875 | O144: =IFERROR(VLOOKUP(B144,INDIRECT("'"&$N$1&"'!"&"$C$2:$G$200"),5,FALSE),0) -> 72.37977805 | P144: =IFERROR(VLOOKUP(B144,INDIRECT("'"&$P$1&"'!"&"$C$2:$G$200"),4,FALSE),"") ->  | Q144: =IFERROR(VLOOKUP(B144,INDIRECT("'"&$P$1&"'!"&"$C$2:$G$200"),5,FALSE),0) -> 0 | R144: =IFERROR(VLOOKUP(B144,INDIRECT("'"&$R$1&"'!"&"$C$2:$G$200"),4,FALSE),"") ->  | S144: =IFERROR(VLOOKUP(B144,INDIRECT("'"&$R$1&"'!"&"$C$2:$G$200"),5,FALSE),0) -> 0 | T144: =IFERROR(VLOOKUP(B144,INDIRECT("'"&$T$1&"'!"&"$C$2:$G$200"),4,FALSE),"") ->  | U144: =IFERROR(VLOOKUP(B144,INDIRECT("'"&$T$1&"'!"&"$C$2:$G$200"),5,FALSE),0) -> 0 | V144: =8-COUNTIF(F144:U144,"") -> 2 | W144: =E144/IF(V144>4,5,V144) -> 47.61086355
A145: 143 | B145: Kevin Hagley | C145: SWRR | D145: M50 | E145: =SUM(LARGE((S145,G145,I145,K145,M145,O145,Q145,U145),{1,2,3,4,5})) -> 95.11925446 | F145: =IFERROR(VLOOKUP(B145,INDIRECT("'"&$F$1&"'!"&"$C$2:$G$200"),4,FALSE),"") -> 0.01537037037 | G145: =IFERROR(VLOOKUP(B145,INDIRECT("'"&$F$1&"'!"&"$C$2:$G$200"),5,FALSE),0) -> 95.11925446 | H145: =IFERROR(VLOOKUP(B145,INDIRECT("'"&$H$1&"'!"&"$C$2:$G$200"),4,FALSE),"") ->  | I145: =IFERROR(VLOOKUP(B145,INDIRECT("'"&$H$1&"'!"&"$C$2:$G$200"),5,FALSE),0) -> 0 | J145: =IFERROR(VLOOKUP(B145,INDIRECT("'"&$J$1&"'!"&"$C$2:$G$200"),4,FALSE),"") ->  | K145: =IFERROR(VLOOKUP(B145,INDIRECT("'"&$J$1&"'!"&"$C$2:$G$200"),5,FALSE),0) -> 0 | L145: =IFERROR(VLOOKUP(B145,INDIRECT("'"&$L$1&"'!"&"$C$2:$G$200"),4,FALSE),"") ->  | M145: =IFERROR(VLOOKUP(B145,INDIRECT("'"&$L$1&"'!"&"$C$2:$G$200"),5,FALSE),0) -> 0 | N145: =IFERROR(VLOOKUP(B145,INDIRECT("'"&$N$1&"'!"&"$C$2:$G$200"),4,FALSE),"") ->  | O145: =IFERROR(VLOOKUP(B145,INDIRECT("'"&$N$1&"'!"&"$C$2:$G$200"),5,FALSE),0) -> 0 | P145: =IFERROR(VLOOKUP(B145,INDIRECT("'"&$P$1&"'!"&"$C$2:$G$200"),4,FALSE),"") ->  | Q145: =IFERROR(VLOOKUP(B145,INDIRECT("'"&$P$1&"'!"&"$C$2:$G$200"),5,FALSE),0) -> 0 | R145: =IFERROR(VLOOKUP(B145,INDIRECT("'"&$R$1&"'!"&"$C$2:$G$200"),4,FALSE),"") ->  | S145: =IFERROR(VLOOKUP(B145,INDIRECT("'"&$R$1&"'!"&"$C$2:$G$200"),5,FALSE),0) -> 0 | T145: =IFERROR(VLOOKUP(B145,INDIRECT("'"&$T$1&"'!"&"$C$2:$G$200"),4,FALSE),"") ->  | U145: =IFERROR(VLOOKUP(B145,INDIRECT("'"&$T$1&"'!"&"$C$2:$G$200"),5,FALSE),0) -> 0 | V145: =8-COUNTIF(F145:U145,"") -> 1 | W145: =E145/IF(V145>4,5,V145) -> 95.11925446
A146: 144 | B146: Richard Wilder | C146: San Domenico | D146: M40 | E146: =SUM(LARGE((S146,G146,I146,K146,M146,O146,Q146,U146),{1,2,3,4,5})) -> 94.96144344 | F146: =IFERROR(VLOOKUP(B146,INDIRECT("'"&$F$1&"'!"&"$C$2:$G$200"),4,FALSE),"") ->  | G146: =IFERROR(VLOOKUP(B146,INDIRECT("'"&$F$1&"'!"&"$C$2:$G$200"),5,FALSE),0) -> 0 | H146: =IFERROR(VLOOKUP(B146,INDIRECT("'"&$H$1&"'!"&"$C$2:$G$200"),4,FALSE),"") -> 0.03247685185 | I146: =IFERROR(VLOOKUP(B146,INDIRECT("'"&$H$1&"'!"&"$C$2:$G$200"),5,FALSE),0) -> 94.96144344 | J146: =IFERROR(VLOOKUP(B146,INDIRECT("'"&$J$1&"'!"&"$C$2:$G$200"),4,FALSE),"") ->  | K146: =IFERROR(VLOOKUP(B146,INDIRECT("'"&$J$1&"'!"&"$C$2:$G$200"),5,FALSE),0) -> 0 | L146: =IFERROR(VLOOKUP(B146,INDIRECT("'"&$L$1&"'!"&"$C$2:$G$200"),4,FALSE),"") ->  | M146: =IFERROR(VLOOKUP(B146,INDIRECT("'"&$L$1&"'!"&"$C$2:$G$200"),5,FALSE),0) -> 0 | N146: =IFERROR(VLOOKUP(B146,INDIRECT("'"&$N$1&"'!"&"$C$2:$G$200"),4,FALSE),"") ->  | O146: =IFERROR(VLOOKUP(B146,INDIRECT("'"&$N$1&"'!"&"$C$2:$G$200"),5,FALSE),0) -> 0 | P146: =IFERROR(VLOOKUP(B146,INDIRECT("'"&$P$1&"'!"&"$C$2:$G$200"),4,FALSE),"") ->  | Q146: =IFERROR(VLOOKUP(B146,INDIRECT("'"&$P$1&"'!"&"$C$2:$G$200"),5,FALSE),0) -> 0 | R146: =IFERROR(VLOOKUP(B146,INDIRECT("'"&$R$1&"'!"&"$C$2:$G$200"),4,FALSE),"") ->  | S146: =IFERROR(VLOOKUP(B146,INDIRECT("'"&$R$1&"'!"&"$C$2:$G$200"),5,FALSE),0) -> 0 | T146: =IFERROR(VLOOKUP(B146,INDIRECT("'"&$T$1&"'!"&"$C$2:$G$200"),4,FALSE),"") ->  | U146: =IFERROR(VLOOKUP(B146,INDIRECT("'"&$T$1&"'!"&"$C$2:$G$200"),5,FALSE),0) -> 0 | V146: =8-COUNTIF(F146:U146,"") -> 1 | W146: =E146/IF(V146>4,5,V146) -> 94.96144344
A147: 145 | B147: Tosh Simpkin | C147: Chepstow Harriers | D147: M40 | E147: =SUM(LARGE((S147,G147,I147,K147,M147,O147,Q147,U147),{1,2,3,4,5})) -> 93.4438443 | F147: =IFERROR(VLOOKUP(B147,INDIRECT("'"&$F$1&"'!"&"$C$2:$G$200"),4,FALSE),"") ->  | G147: =IFERROR(VLOOKUP(B147,INDIRECT("'"&$F$1&"'!"&"$C$2:$G$200"),5,FALSE),0) -> 0 | H147: =IFERROR(VLOOKUP(B147,INDIRECT("'"&$H$1&"'!"&"$C$2:$G$200"),4,FALSE),"") ->  | I147: =IFERROR(VLOOKUP(B147,INDIRECT("'"&$H$1&"'!"&"$C$2:$G$200"),5,FALSE),0) -> 0 | J147: =IFERROR(VLOOKUP(B147,INDIRECT("'"&$J$1&"'!"&"$C$2:$G$200"),4,FALSE),"") ->  | K147: =IFERROR(VLOOKUP(B147,INDIRECT("'"&$J$1&"'!"&"$C$2:$G$200"),5,FALSE),0) -> 0 | L147: =IFERROR(VLOOKUP(B147,INDIRECT("'"&$L$1&"'!"&"$C$2:$G$200"),4,FALSE),"") ->  | M147: =IFERROR(VLOOKUP(B147,INDIRECT("'"&$L$1&"'!"&"$C$2:$G$200"),5,FALSE),0) -> 0 | N147: =IFERROR(VLOOKUP(B147,INDIRECT("'"&$N$1&"'!"&"$C$2:$G$200"),4,FALSE),"") -> 0.03554398148 | O147: =IFERROR(VLOOKUP(B147,INDIRECT("'"&$N$1&"'!"&"$C$2:$G$200"),5,FALSE),0) -> 42.2215372 | P147: =IFERROR(VLOOKUP(B147,INDIRECT("'"&$P$1&"'!"&"$C$2:$G$200"),4,FALSE),"") ->  | Q147: =IFERROR(VLOOKUP(B147,INDIRECT("'"&$P$1&"'!"&"$C$2:$G$200"),5,FALSE),0) -> 0 | R147: =IFERROR(VLOOKUP(B147,INDIRECT("'"&$R$1&"'!"&"$C$2:$G$200"),4,FALSE),"") ->  | S147: =IFERROR(VLOOKUP(B147,INDIRECT("'"&$R$1&"'!"&"$C$2:$G$200"),5,FALSE),0) -> 0 | T147: =IFERROR(VLOOKUP(B147,INDIRECT("'"&$T$1&"'!"&"$C$2:$G$200"),4,FALSE),"") -> 0.05409722222 | U147: =IFERROR(VLOOKUP(B147,INDIRECT("'"&$T$1&"'!"&"$C$2:$G$200"),5,FALSE),0) -> 51.2223071 | V147: =8-COUNTIF(F147:U147,"") -> 2 | W147: =E147/IF(V147>4,5,V147) -> 46.72192215
A148: 146 | B148: Matt O'Keefe | C148: Unaffiliated | D148: SM | E148: =SUM(LARGE((S148,G148,I148,K148,M148,O148,Q148,U148),{1,2,3,4,5})) -> 93.13787975 | F148: =IFERROR(VLOOKUP(B148,INDIRECT("'"&$F$1&"'!"&"$C$2:$G$200"),4,FALSE),"") ->  | G148: =IFERROR(VLOOKUP(B148,INDIRECT("'"&$F$1&"'!"&"$C$2:$G$200"),5,FALSE),0) -> 0 | H148: =IFERROR(VLOOKUP(B148,INDIRECT("'"&$H$1&"'!"&"$C$2:$G$200"),4,FALSE),"") ->  | I148: =IFERROR(VLOOKUP(B148,INDIRECT("'"&$H$1&"'!"&"$C$2:$G$200"),5,FALSE),0) -> 0 | J148: =IFERROR(VLOOKUP(B148,INDIRECT("'"&$J$1&"'!"&"$C$2:$G$200"),4,FALSE),"") ->  | K148: =IFERROR(VLOOKUP(B148,INDIRECT("'"&$J$1&"'!"&"$C$2:$G$200"),5,FALSE),0) -> 0 | L148: =IFERROR(VLOOKUP(B148,INDIRECT("'"&$L$1&"'!"&"$C$2:$G$200"),4,FALSE),"") ->  | M148: =IFERROR(VLOOKUP(B148,INDIRECT("'"&$L$1&"'!"&"$C$2:$G$200"),5,FALSE),0) -> 0 | N148: =IFERROR(VLOOKUP(B148,INDIRECT("'"&$N$1&"'!"&"$C$2:$G$200"),4,FALSE),"") ->  | O148: =IFERROR(VLOOKUP(B148,INDIRECT("'"&$N$1&"'!"&"$C$2:$G$200"),5,FALSE),0) -> 0 | P148: =IFERROR(VLOOKUP(B148,INDIRECT("'"&$P$1&"'!"&"$C$2:$G$200"),4,FALSE),"") -> 0.02328703704 | Q148: =IFERROR(VLOOKUP(B148,INDIRECT("'"&$P$1&"'!"&"$C$2:$G$200"),5,FALSE),0) -> 93.13787975 | R148: =IFERROR(VLOOKUP(B148,INDIRECT("'"&$R$1&"'!"&"$C$2:$G$200"),4,FALSE),"") ->  | S148: =IFERROR(VLOOKUP(B148,INDIRECT("'"&$R$1&"'!"&"$C$2:$G$200"),5,FALSE),0) -> 0 | U148: =IFERROR(VLOOKUP(B148,INDIRECT("'"&$T$1&"'!"&"$C$2:$G$200"),5,FALSE),0) -> 0 | V148: =8-COUNTIF(F148:U148,"") -> 1 | W148: =E148/IF(V148>4,5,V148) -> 93.13787975
A149: 147 | B149: Harry Rann | C149: Godshill Massive | D149: MU23 | E149: =SUM(LARGE((S149,G149,I149,K149,M149,O149,Q149,U149),{1,2,3,4,5})) -> 93.01489856 | F149: =IFERROR(VLOOKUP(B149,INDIRECT("'"&$F$1&"'!"&"$C$2:$G$200"),4,FALSE),"") ->  | G149: =IFERROR(VLOOKUP(B149,INDIRECT("'"&$F$1&"'!"&"$C$2:$G$200"),5,FALSE),0) -> 0 | H149: =IFERROR(VLOOKUP(B149,INDIRECT("'"&$H$1&"'!"&"$C$2:$G$200"),4,FALSE),"") -> 0.0330787037 | I149: =IFERROR(VLOOKUP(B149,INDIRECT("'"&$H$1&"'!"&"$C$2:$G$200"),5,FALSE),0) -> 93.01489856 | J149: =IFERROR(VLOOKUP(B149,INDIRECT("'"&$J$1&"'!"&"$C$2:$G$200"),4,FALSE),"") ->  | K149: =IFERROR(VLOOKUP(B149,INDIRECT("'"&$J$1&"'!"&"$C$2:$G$200"),5,FALSE),0) -> 0 | L149: =IFERROR(VLOOKUP(B149,INDIRECT("'"&$L$1&"'!"&"$C$2:$G$200"),4,FALSE),"") ->  | M149: =IFERROR(VLOOKUP(B149,INDIRECT("'"&$L$1&"'!"&"$C$2:$G$200"),5,FALSE),0) -> 0 | N149: =IFERROR(VLOOKUP(B149,INDIRECT("'"&$N$1&"'!"&"$C$2:$G$200"),4,FALSE),"") ->  | O149: =IFERROR(VLOOKUP(B149,INDIRECT("'"&$N$1&"'!"&"$C$2:$G$200"),5,FALSE),0) -> 0 | P149: =IFERROR(VLOOKUP(B149,INDIRECT("'"&$P$1&"'!"&"$C$2:$G$200"),4,FALSE),"") ->  | Q149: =IFERROR(VLOOKUP(B149,INDIRECT("'"&$P$1&"'!"&"$C$2:$G$200"),5,FALSE),0) -> 0 | R149: =IFERROR(VLOOKUP(B149,INDIRECT("'"&$R$1&"'!"&"$C$2:$G$200"),4,FALSE),"") ->  | S149: =IFERROR(VLOOKUP(B149,INDIRECT("'"&$R$1&"'!"&"$C$2:$G$200"),5,FALSE),0) -> 0 | T149: =IFERROR(VLOOKUP(B149,INDIRECT("'"&$T$1&"'!"&"$C$2:$G$200"),4,FALSE),"") ->  | U149: =IFERROR(VLOOKUP(B149,INDIRECT("'"&$T$1&"'!"&"$C$2:$G$200"),5,FALSE),0) -> 0 | V149: =8-COUNTIF(F149:U149,"") -> 1 | W149: =E149/IF(V149>4,5,V149) -> 93.01489856
A150: 148 | B150: Sean Taylor | C150: Micky Morris Racing Team | D150: M40 | E150: =SUM(LARGE((S150,G150,I150,K150,M150,O150,Q150,U150),{1,2,3,4,5})) -> 92.82778463 | F150: =IFERROR(VLOOKUP(B150,INDIRECT("'"&$F$1&"'!"&"$C$2:$G$200"),4,FALSE),"") ->  | G150: =IFERROR(VLOOKUP(B150,INDIRECT("'"&$F$1&"'!"&"$C$2:$G$200"),5,FALSE),0) -> 0 | H150: =IFERROR(VLOOKUP(B150,INDIRECT("'"&$H$1&"'!"&"$C$2:$G$200"),4,FALSE),"") ->  | I150: =IFERROR(VLOOKUP(B150,INDIRECT("'"&$H$1&"'!"&"$C$2:$G$200"),5,FALSE),0) -> 0 | J150: =IFERROR(VLOOKUP(B150,INDIRECT("'"&$J$1&"'!"&"$C$2:$G$200"),4,FALSE),"") ->  | K150: =IFERROR(VLOOKUP(B150,INDIRECT("'"&$J$1&"'!"&"$C$2:$G$200"),5,FALSE),0) -> 0 | L150: =IFERROR(VLOOKUP(B150,INDIRECT("'"&$L$1&"'!"&"$C$2:$G$200"),4,FALSE),"") ->  | M150: =IFERROR(VLOOKUP(B150,INDIRECT("'"&$L$1&"'!"&"$C$2:$G$200"),5,FALSE),0) -> 0 | N150: =IFERROR(VLOOKUP(B150,INDIRECT("'"&$N$1&"'!"&"$C$2:$G$200"),4,FALSE),"") -> 0.02414351852 | O150: =IFERROR(VLOOKUP(B150,INDIRECT("'"&$N$1&"'!"&"$C$2:$G$200"),5,FALSE),0) -> 92.82778463 | P150: =IFERROR(VLOOKUP(B150,INDIRECT("'"&$P$1&"'!"&"$C$2:$G$200"),4,FALSE),"") ->  | Q150: =IFERROR(VLOOKUP(B150,INDIRECT("'"&$P$1&"'!"&"$C$2:$G$200"),5,FALSE),0) -> 0 | R150: =IFERROR(VLOOKUP(B150,INDIRECT("'"&$R$1&"'!"&"$C$2:$G$200"),4,FALSE),"") ->  | S150: =IFERROR(VLOOKUP(B150,INDIRECT("'"&$R$1&"'!"&"$C$2:$G$200"),5,FALSE),0) -> 0 | T150: =IFERROR(VLOOKUP(B150,INDIRECT("'"&$T$1&"'!"&"$C$2:$G$200"),4,FALSE),"") ->  | U150: =IFERROR(VLOOKUP(B150,INDIRECT("'"&$T$1&"'!"&"$C$2:$G$200"),5,FALSE),0) -> 0 | V150: =8-COUNTIF(F150:U150,"") -> 1 | W150: =E150/IF(V150>4,5,V150) -> 92.82778463
A151: 149 | B151: Jack Turner | C151: East Wales | D151: SM | E151: =SUM(LARGE((S151,G151,I151,K151,M151,O151,Q151,U151),{1,2,3,4,5})) -> 92.79348103 | F151: =IFERROR(VLOOKUP(B151,INDIRECT("'"&$F$1&"'!"&"$C$2:$G$200"),4,FALSE),"") ->  | G151: =IFERROR(VLOOKUP(B151,INDIRECT("'"&$F$1&"'!"&"$C$2:$G$200"),5,FALSE),0) -> 0 | H151: =IFERROR(VLOOKUP(B151,INDIRECT("'"&$H$1&"'!"&"$C$2:$G$200"),4,FALSE),"") ->  | I151: =IFERROR(VLOOKUP(B151,INDIRECT("'"&$H$1&"'!"&"$C$2:$G$200"),5,FALSE),0) -> 0 | J151: =IFERROR(VLOOKUP(B151,INDIRECT("'"&$J$1&"'!"&"$C$2:$G$200"),4,FALSE),"") ->  | K151: =IFERROR(VLOOKUP(B151,INDIRECT("'"&$J$1&"'!"&"$C$2:$G$200"),5,FALSE),0) -> 0 | L151: =IFERROR(VLOOKUP(B151,INDIRECT("'"&$L$1&"'!"&"$C$2:$G$200"),4,FALSE),"") ->  | M151: =IFERROR(VLOOKUP(B151,INDIRECT("'"&$L$1&"'!"&"$C$2:$G$200"),5,FALSE),0) -> 0 | N151: =IFERROR(VLOOKUP(B151,INDIRECT("'"&$N$1&"'!"&"$C$2:$G$200"),4,FALSE),"") ->  | O151: =IFERROR(VLOOKUP(B151,INDIRECT("'"&$N$1&"'!"&"$C$2:$G$200"),5,FALSE),0) -> 0 | P151: =IFERROR(VLOOKUP(B151,INDIRECT("'"&$P$1&"'!"&"$C$2:$G$200"),4,FALSE),"") ->  | Q151: =IFERROR(VLOOKUP(B151,INDIRECT("'"&$P$1&"'!"&"$C$2:$G$200"),5,FALSE),0) -> 0 | R151: =IFERROR(VLOOKUP(B151,INDIRECT("'"&$R$1&"'!"&"$C$2:$G$200"),4,FALSE),"") ->  | S151: =IFERROR(VLOOKUP(B151,INDIRECT("'"&$R$1&"'!"&"$C$2:$G$200"),5,FALSE),0) -> 0 | T151: =IFERROR(VLOOKUP(B151,INDIRECT("'"&$T$1&"'!"&"$C$2:$G$200"),4,FALSE),"") -> 0.03898148148 | U151: =IFERROR(VLOOKUP(B151,INDIRECT("'"&$T$1&"'!"&"$C$2:$G$200"),5,FALSE),0) -> 92.79348103 | V151: =8-COUNTIF(F151:U151,"") -> 1 | W151: =E151/IF(V151>4,5,V151) -> 92.79348103
A152: 150 | B152: Megan Tucker | C152: Unaffiliated | D152: FU23 | E152: =SUM(LARGE((S152,G152,I152,K152,M152,O152,Q152,U152),{1,2,3,4,5})) -> 92.688149 | F152: =IFERROR(VLOOKUP(B152,INDIRECT("'"&$F$1&"'!"&"$C$2:$G$200"),4,FALSE),"") ->  | G152: =IFERROR(VLOOKUP(B152,INDIRECT("'"&$F$1&"'!"&"$C$2:$G$200"),5,FALSE),0) -> 0 | H152: =IFERROR(VLOOKUP(B152,INDIRECT("'"&$H$1&"'!"&"$C$2:$G$200"),4,FALSE),"") ->  | I152: =IFERROR(VLOOKUP(B152,INDIRECT("'"&$H$1&"'!"&"$C$2:$G$200"),5,FALSE),0) -> 0 | J152: =IFERROR(VLOOKUP(B152,INDIRECT("'"&$J$1&"'!"&"$C$2:$G$200"),4,FALSE),"") ->  | K152: =IFERROR(VLOOKUP(B152,INDIRECT("'"&$J$1&"'!"&"$C$2:$G$200"),5,FALSE),0) -> 0 | L152: =IFERROR(VLOOKUP(B152,INDIRECT("'"&$L$1&"'!"&"$C$2:$G$200"),4,FALSE),"") ->  | M152: =IFERROR(VLOOKUP(B152,INDIRECT("'"&$L$1&"'!"&"$C$2:$G$200"),5,FALSE),0) -> 0 | N152: =IFERROR(VLOOKUP(B152,INDIRECT("'"&$N$1&"'!"&"$C$2:$G$200"),4,FALSE),"") ->  | O152: =IFERROR(VLOOKUP(B152,INDIRECT("'"&$N$1&"'!"&"$C$2:$G$200"),5,FALSE),0) -> 0 | P152: =IFERROR(VLOOKUP(B152,INDIRECT("'"&$P$1&"'!"&"$C$2:$G$200"),4,FALSE),"") -> 0.03363425926 | Q152: =IFERROR(VLOOKUP(B152,INDIRECT("'"&$P$1&"'!"&"$C$2:$G$200"),5,FALSE),0) -> 45.65540684 | R152: =IFERROR(VLOOKUP(B152,INDIRECT("'"&$R$1&"'!"&"$C$2:$G$200"),4,FALSE),"") -> 0.03114583333 | S152: =IFERROR(VLOOKUP(B152,INDIRECT("'"&$R$1&"'!"&"$C$2:$G$200"),5,FALSE),0) -> 47.03274216 | U152: =IFERROR(VLOOKUP(B152,INDIRECT("'"&$T$1&"'!"&"$C$2:$G$200"),5,FALSE),0) -> 0 | V152: =8-COUNTIF(F152:U152,"") -> 2 | W152: =E152/IF(V152>4,5,V152) -> 46.3440745
A153: 151 | B153: Jacob Dobson | C153: Unaffiliated | D153: SM | E153: =SUM(LARGE((S153,G153,I153,K153,M153,O153,Q153,U153),{1,2,3,4,5})) -> 92.57066463 | F153: =IFERROR(VLOOKUP(B153,INDIRECT("'"&$F$1&"'!"&"$C$2:$G$200"),4,FALSE),"") ->  | G153: =IFERROR(VLOOKUP(B153,INDIRECT("'"&$F$1&"'!"&"$C$2:$G$200"),5,FALSE),0) -> 0 | H153: =IFERROR(VLOOKUP(B153,INDIRECT("'"&$H$1&"'!"&"$C$2:$G$200"),4,FALSE),"") ->  | I153: =IFERROR(VLOOKUP(B153,INDIRECT("'"&$H$1&"'!"&"$C$2:$G$200"),5,FALSE),0) -> 0 | J153: =IFERROR(VLOOKUP(B153,INDIRECT("'"&$J$1&"'!"&"$C$2:$G$200"),4,FALSE),"") ->  | K153: =IFERROR(VLOOKUP(B153,INDIRECT("'"&$J$1&"'!"&"$C$2:$G$200"),5,FALSE),0) -> 0 | L153: =IFERROR(VLOOKUP(B153,INDIRECT("'"&$L$1&"'!"&"$C$2:$G$200"),4,FALSE),"") ->  | M153: =IFERROR(VLOOKUP(B153,INDIRECT("'"&$L$1&"'!"&"$C$2:$G$200"),5,FALSE),0) -> 0 | N153: =IFERROR(VLOOKUP(B153,INDIRECT("'"&$N$1&"'!"&"$C$2:$G$200"),4,FALSE),"") ->  | O153: =IFERROR(VLOOKUP(B153,INDIRECT("'"&$N$1&"'!"&"$C$2:$G$200"),5,FALSE),0) -> 0 | P153: =IFERROR(VLOOKUP(B153,INDIRECT("'"&$P$1&"'!"&"$C$2:$G$200"),4,FALSE),"") ->  | Q153: =IFERROR(VLOOKUP(B153,INDIRECT("'"&$P$1&"'!"&"$C$2:$G$200"),5,FALSE),0) -> 0 | R153: =IFERROR(VLOOKUP(B153,INDIRECT("'"&$R$1&"'!"&"$C$2:$G$200"),4,FALSE),"") ->  | S153: =IFERROR(VLOOKUP(B153,INDIRECT("'"&$R$1&"'!"&"$C$2:$G$200"),5,FALSE),0) -> 0 | T153: =IFERROR(VLOOKUP(B153,INDIRECT("'"&$T$1&"'!"&"$C$2:$G$200"),4,FALSE),"") -> 0.0390625 | U153: =IFERROR(VLOOKUP(B153,INDIRECT("'"&$T$1&"'!"&"$C$2:$G$200"),5,FALSE),0) -> 92.57066463 | V153: =8-COUNTIF(F153:U153,"") -> 1 | W153: =E153/IF(V153>4,5,V153) -> 92.57066463
A154: 152 | B154: Angela Price | C154: Hay Hotfooters | D154: F40 | E154: =SUM(LARGE((S154,G154,I154,K154,M154,O154,Q154,U154),{1,2,3,4,5})) -> 92.35219323 | F154: =IFERROR(VLOOKUP(B154,INDIRECT("'"&$F$1&"'!"&"$C$2:$G$200"),4,FALSE),"") ->  | G154: =IFERROR(VLOOKUP(B154,INDIRECT("'"&$F$1&"'!"&"$C$2:$G$200"),5,FALSE),0) -> 0 | H154: =IFERROR(VLOOKUP(B154,INDIRECT("'"&$H$1&"'!"&"$C$2:$G$200"),4,FALSE),"") ->  | I154: =IFERROR(VLOOKUP(B154,INDIRECT("'"&$H$1&"'!"&"$C$2:$G$200"),5,FALSE),0) -> 0 | J154: =IFERROR(VLOOKUP(B154,INDIRECT("'"&$J$1&"'!"&"$C$2:$G$200"),4,FALSE),"") ->  | K154: =IFERROR(VLOOKUP(B154,INDIRECT("'"&$J$1&"'!"&"$C$2:$G$200"),5,FALSE),0) -> 0 | L154: =IFERROR(VLOOKUP(B154,INDIRECT("'"&$L$1&"'!"&"$C$2:$G$200"),4,FALSE),"") ->  | M154: =IFERROR(VLOOKUP(B154,INDIRECT("'"&$L$1&"'!"&"$C$2:$G$200"),5,FALSE),0) -> 0 | N154: =IFERROR(VLOOKUP(B154,INDIRECT("'"&$N$1&"'!"&"$C$2:$G$200"),4,FALSE),"") ->  | O154: =IFERROR(VLOOKUP(B154,INDIRECT("'"&$N$1&"'!"&"$C$2:$G$200"),5,FALSE),0) -> 0 | P154: =IFERROR(VLOOKUP(B154,INDIRECT("'"&$P$1&"'!"&"$C$2:$G$200"),4,FALSE),"") -> 0.03488425926 | Q154: =IFERROR(VLOOKUP(B154,INDIRECT("'"&$P$1&"'!"&"$C$2:$G$200"),5,FALSE),0) -> 39.91926917 | R154: =IFERROR(VLOOKUP(B154,INDIRECT("'"&$R$1&"'!"&"$C$2:$G$200"),4,FALSE),"") -> 0.0300462963 | S154: =IFERROR(VLOOKUP(B154,INDIRECT("'"&$R$1&"'!"&"$C$2:$G$200"),5,FALSE),0) -> 52.43292406 | T154: =IFERROR(VLOOKUP(B154,INDIRECT("'"&$T$1&"'!"&"$C$2:$G$200"),4,FALSE),"") ->  | U154: =IFERROR(VLOOKUP(B154,INDIRECT("'"&$T$1&"'!"&"$C$2:$G$200"),5,FALSE),0) -> 0 | V154: =8-COUNTIF(F154:U154,"") -> 2 | W154: =E154/IF(V154>4,5,V154) -> 46.17609661
A155: 153 | B155: Leighton Webb | C155: Micky Morris Racing Team | D155: SM | E155: =SUM(LARGE((S155,G155,I155,K155,M155,O155,Q155,U155),{1,2,3,4,5})) -> 91.03092012 | F155: =IFERROR(VLOOKUP(B155,INDIRECT("'"&$F$1&"'!"&"$C$2:$G$200"),4,FALSE),"") ->  | G155: =IFERROR(VLOOKUP(B155,INDIRECT("'"&$F$1&"'!"&"$C$2:$G$200"),5,FALSE),0) -> 0 | H155: =IFERROR(VLOOKUP(B155,INDIRECT("'"&$H$1&"'!"&"$C$2:$G$200"),4,FALSE),"") -> 0.03369212963 | I155: =IFERROR(VLOOKUP(B155,INDIRECT("'"&$H$1&"'!"&"$C$2:$G$200"),5,FALSE),0) -> 91.03092012 | J155: =IFERROR(VLOOKUP(B155,INDIRECT("'"&$J$1&"'!"&"$C$2:$G$200"),4,FALSE),"") ->  | K155: =IFERROR(VLOOKUP(B155,INDIRECT("'"&$J$1&"'!"&"$C$2:$G$200"),5,FALSE),0) -> 0 | L155: =IFERROR(VLOOKUP(B155,INDIRECT("'"&$L$1&"'!"&"$C$2:$G$200"),4,FALSE),"") ->  | M155: =IFERROR(VLOOKUP(B155,INDIRECT("'"&$L$1&"'!"&"$C$2:$G$200"),5,FALSE),0) -> 0 | N155: =IFERROR(VLOOKUP(B155,INDIRECT("'"&$N$1&"'!"&"$C$2:$G$200"),4,FALSE),"") ->  | O155: =IFERROR(VLOOKUP(B155,INDIRECT("'"&$N$1&"'!"&"$C$2:$G$200"),5,FALSE),0) -> 0 | P155: =IFERROR(VLOOKUP(B155,INDIRECT("'"&$P$1&"'!"&"$C$2:$G$200"),4,FALSE),"") ->  | Q155: =IFERROR(VLOOKUP(B155,INDIRECT("'"&$P$1&"'!"&"$C$2:$G$200"),5,FALSE),0) -> 0 | R155: =IFERROR(VLOOKUP(B155,INDIRECT("'"&$R$1&"'!"&"$C$2:$G$200"),4,FALSE),"") ->  | S155: =IFERROR(VLOOKUP(B155,INDIRECT("'"&$R$1&"'!"&"$C$2:$G$200"),5,FALSE),0) -> 0 | U155: =IFERROR(VLOOKUP(B155,INDIRECT("'"&$T$1&"'!"&"$C$2:$G$200"),5,FALSE),0) -> 0 | V155: =8-COUNTIF(F155:U155,"") -> 1 | W155: =E155/IF(V155>4,5,V155) -> 91.03092012
A156: 154 | B156: Matthew Collins | C156: Micky Morris Racing Team | D156: SM | E156: =SUM(LARGE((S156,G156,I156,K156,M156,O156,Q156,U156),{1,2,3,4,5})) -> 90.69264069 | F156: =IFERROR(VLOOKUP(B156,INDIRECT("'"&$F$1&"'!"&"$C$2:$G$200"),4,FALSE),"") ->  | G156: =IFERROR(VLOOKUP(B156,INDIRECT("'"&$F$1&"'!"&"$C$2:$G$200"),5,FALSE),0) -> 0 | H156: =IFERROR(VLOOKUP(B156,INDIRECT("'"&$H$1&"'!"&"$C$2:$G$200"),4,FALSE),"") ->  | I156: =IFERROR(VLOOKUP(B156,INDIRECT("'"&$H$1&"'!"&"$C$2:$G$200"),5,FALSE),0) -> 0 | J156: =IFERROR(VLOOKUP(B156,INDIRECT("'"&$J$1&"'!"&"$C$2:$G$200"),4,FALSE),"") ->  | K156: =IFERROR(VLOOKUP(B156,INDIRECT("'"&$J$1&"'!"&"$C$2:$G$200"),5,FALSE),0) -> 0 | L156: =IFERROR(VLOOKUP(B156,INDIRECT("'"&$L$1&"'!"&"$C$2:$G$200"),4,FALSE),"") ->  | M156: =IFERROR(VLOOKUP(B156,INDIRECT("'"&$L$1&"'!"&"$C$2:$G$200"),5,FALSE),0) -> 0 | N156: =IFERROR(VLOOKUP(B156,INDIRECT("'"&$N$1&"'!"&"$C$2:$G$200"),4,FALSE),"") ->  | O156: =IFERROR(VLOOKUP(B156,INDIRECT("'"&$N$1&"'!"&"$C$2:$G$200"),5,FALSE),0) -> 0 | P156: =IFERROR(VLOOKUP(B156,INDIRECT("'"&$P$1&"'!"&"$C$2:$G$200"),4,FALSE),"") ->  | Q156: =IFERROR(VLOOKUP(B156,INDIRECT("'"&$P$1&"'!"&"$C$2:$G$200"),5,FALSE),0) -> 0 | R156: =IFERROR(VLOOKUP(B156,INDIRECT("'"&$R$1&"'!"&"$C$2:$G$200"),4,FALSE),"") ->  | S156: =IFERROR(VLOOKUP(B156,INDIRECT("'"&$R$1&"'!"&"$C$2:$G$200"),5,FALSE),0) -> 0 | T156: =IFERROR(VLOOKUP(B156,INDIRECT("'"&$T$1&"'!"&"$C$2:$G$200"),4,FALSE),"") -> 0.03974537037 | U156: =IFERROR(VLOOKUP(B156,INDIRECT("'"&$T$1&"'!"&"$C$2:$G$200"),5,FALSE),0) -> 90.69264069 | V156: =8-COUNTIF(F156:U156,"") -> 1 | W156: =E156/IF(V156>4,5,V156) -> 90.69264069
A157: 155 | B157: Ake Fagerang | C157: MDC | D157: SM | E157: =SUM(LARGE((S157,G157,I157,K157,M157,O157,Q157,U157),{1,2,3,4,5})) -> 90.37603569 | F157: =IFERROR(VLOOKUP(B157,INDIRECT("'"&$F$1&"'!"&"$C$2:$G$200"),4,FALSE),"") ->  | G157: =IFERROR(VLOOKUP(B157,INDIRECT("'"&$F$1&"'!"&"$C$2:$G$200"),5,FALSE),0) -> 0 | H157: =IFERROR(VLOOKUP(B157,INDIRECT("'"&$H$1&"'!"&"$C$2:$G$200"),4,FALSE),"") ->  | I157: =IFERROR(VLOOKUP(B157,INDIRECT("'"&$H$1&"'!"&"$C$2:$G$200"),5,FALSE),0) -> 0 | J157: =IFERROR(VLOOKUP(B157,INDIRECT("'"&$J$1&"'!"&"$C$2:$G$200"),4,FALSE),"") ->  | K157: =IFERROR(VLOOKUP(B157,INDIRECT("'"&$J$1&"'!"&"$C$2:$G$200"),5,FALSE),0) -> 0 | L157: =IFERROR(VLOOKUP(B157,INDIRECT("'"&$L$1&"'!"&"$C$2:$G$200"),4,FALSE),"") ->  | M157: =IFERROR(VLOOKUP(B157,INDIRECT("'"&$L$1&"'!"&"$C$2:$G$200"),5,FALSE),0) -> 0 | N157: =IFERROR(VLOOKUP(B157,INDIRECT("'"&$N$1&"'!"&"$C$2:$G$200"),4,FALSE),"") ->  | O157: =IFERROR(VLOOKUP(B157,INDIRECT("'"&$N$1&"'!"&"$C$2:$G$200"),5,FALSE),0) -> 0 | P157: =IFERROR(VLOOKUP(B157,INDIRECT("'"&$P$1&"'!"&"$C$2:$G$200"),4,FALSE),"") -> 0.02388888889 | Q157: =IFERROR(VLOOKUP(B157,INDIRECT("'"&$P$1&"'!"&"$C$2:$G$200"),5,FALSE),0) -> 90.37603569 | R157: =IFERROR(VLOOKUP(B157,INDIRECT("'"&$R$1&"'!"&"$C$2:$G$200"),4,FALSE),"") ->  | S157: =IFERROR(VLOOKUP(B157,INDIRECT("'"&$R$1&"'!"&"$C$2:$G$200"),5,FALSE),0) -> 0 | U157: =IFERROR(VLOOKUP(B157,INDIRECT("'"&$T$1&"'!"&"$C$2:$G$200"),5,FALSE),0) -> 0 | V157: =8-COUNTIF(F157:U157,"") -> 1 | W157: =E157/IF(V157>4,5,V157) -> 90.37603569
A158: 156 | B158: Neil Jones | C158: Ogmore Phoenix Runners | D158: SM | E158: =SUM(LARGE((S158,G158,I158,K158,M158,O158,Q158,U158),{1,2,3,4,5})) -> 89.95113661 | F158: =IFERROR(VLOOKUP(B158,INDIRECT("'"&$F$1&"'!"&"$C$2:$G$200"),4,FALSE),"") ->  | G158: =IFERROR(VLOOKUP(B158,INDIRECT("'"&$F$1&"'!"&"$C$2:$G$200"),5,FALSE),0) -> 0 | H158: =IFERROR(VLOOKUP(B158,INDIRECT("'"&$H$1&"'!"&"$C$2:$G$200"),4,FALSE),"") ->  | I158: =IFERROR(VLOOKUP(B158,INDIRECT("'"&$H$1&"'!"&"$C$2:$G$200"),5,FALSE),0) -> 0 | J158: =IFERROR(VLOOKUP(B158,INDIRECT("'"&$J$1&"'!"&"$C$2:$G$200"),4,FALSE),"") ->  | K158: =IFERROR(VLOOKUP(B158,INDIRECT("'"&$J$1&"'!"&"$C$2:$G$200"),5,FALSE),0) -> 0 | L158: =IFERROR(VLOOKUP(B158,INDIRECT("'"&$L$1&"'!"&"$C$2:$G$200"),4,FALSE),"") ->  | M158: =IFERROR(VLOOKUP(B158,INDIRECT("'"&$L$1&"'!"&"$C$2:$G$200"),5,FALSE),0) -> 0 | N158: =IFERROR(VLOOKUP(B158,INDIRECT("'"&$N$1&"'!"&"$C$2:$G$200"),4,FALSE),"") ->  | O158: =IFERROR(VLOOKUP(B158,INDIRECT("'"&$N$1&"'!"&"$C$2:$G$200"),5,FALSE),0) -> 0 | P158: =IFERROR(VLOOKUP(B158,INDIRECT("'"&$P$1&"'!"&"$C$2:$G$200"),4,FALSE),"") -> 0.02398148148 | Q158: =IFERROR(VLOOKUP(B158,INDIRECT("'"&$P$1&"'!"&"$C$2:$G$200"),5,FALSE),0) -> 89.95113661 | R158: =IFERROR(VLOOKUP(B158,INDIRECT("'"&$R$1&"'!"&"$C$2:$G$200"),4,FALSE),"") ->  | S158: =IFERROR(VLOOKUP(B158,INDIRECT("'"&$R$1&"'!"&"$C$2:$G$200"),5,FALSE),0) -> 0 | T158: =IFERROR(VLOOKUP(B158,INDIRECT("'"&$T$1&"'!"&"$C$2:$G$200"),4,FALSE),"") ->  | U158: =IFERROR(VLOOKUP(B158,INDIRECT("'"&$T$1&"'!"&"$C$2:$G$200"),5,FALSE),0) -> 0 | V158: =8-COUNTIF(F158:U158,"") -> 1 | W158: =E158/IF(V158>4,5,V158) -> 89.95113661
A159: 157 | B159: Steve Claxton | C159: Poole Runners | D159: M40 | E159: =SUM(LARGE((S159,G159,I159,K159,M159,O159,Q159,U159),{1,2,3,4,5})) -> 89.69379367 | F159: =IFERROR(VLOOKUP(B159,INDIRECT("'"&$F$1&"'!"&"$C$2:$G$200"),4,FALSE),"") ->  | G159: =IFERROR(VLOOKUP(B159,INDIRECT("'"&$F$1&"'!"&"$C$2:$G$200"),5,FALSE),0) -> 0 | H159: =IFERROR(VLOOKUP(B159,INDIRECT("'"&$H$1&"'!"&"$C$2:$G$200"),4,FALSE),"") ->  | I159: =IFERROR(VLOOKUP(B159,INDIRECT("'"&$H$1&"'!"&"$C$2:$G$200"),5,FALSE),0) -> 0 | J159: =IFERROR(VLOOKUP(B159,INDIRECT("'"&$J$1&"'!"&"$C$2:$G$200"),4,FALSE),"") ->  | K159: =IFERROR(VLOOKUP(B159,INDIRECT("'"&$J$1&"'!"&"$C$2:$G$200"),5,FALSE),0) -> 0 | L159: =IFERROR(VLOOKUP(B159,INDIRECT("'"&$L$1&"'!"&"$C$2:$G$200"),4,FALSE),"") ->  | M159: =IFERROR(VLOOKUP(B159,INDIRECT("'"&$L$1&"'!"&"$C$2:$G$200"),5,FALSE),0) -> 0 | N159: =IFERROR(VLOOKUP(B159,INDIRECT("'"&$N$1&"'!"&"$C$2:$G$200"),4,FALSE),"") -> 0.02484953704 | O159: =IFERROR(VLOOKUP(B159,INDIRECT("'"&$N$1&"'!"&"$C$2:$G$200"),5,FALSE),0) -> 89.69379367 | P159: =IFERROR(VLOOKUP(B159,INDIRECT("'"&$P$1&"'!"&"$C$2:$G$200"),4,FALSE),"") ->  | Q159: =IFERROR(VLOOKUP(B159,INDIRECT("'"&$P$1&"'!"&"$C$2:$G$200"),5,FALSE),0) -> 0 | R159: =IFERROR(VLOOKUP(B159,INDIRECT("'"&$R$1&"'!"&"$C$2:$G$200"),4,FALSE),"") ->  | S159: =IFERROR(VLOOKUP(B159,INDIRECT("'"&$R$1&"'!"&"$C$2:$G$200"),5,FALSE),0) -> 0 | T159: =IFERROR(VLOOKUP(B159,INDIRECT("'"&$T$1&"'!"&"$C$2:$G$200"),4,FALSE),"") ->  | U159: =IFERROR(VLOOKUP(B159,INDIRECT("'"&$T$1&"'!"&"$C$2:$G$200"),5,FALSE),0) -> 0 | V159: =8-COUNTIF(F159:U159,"") -> 1 | W159: =E159/IF(V159>4,5,V159) -> 89.69379367
A160: 158 | B160: Sue Shergold | C160: Forest Of Dean AC | D160: F50 | E160: =SUM(LARGE((S160,G160,I160,K160,M160,O160,Q160,U160),{1,2,3,4,5})) -> 89.62930272 | F160: =IFERROR(VLOOKUP(B160,INDIRECT("'"&$F$1&"'!"&"$C$2:$G$200"),4,FALSE),"") ->  | G160: =IFERROR(VLOOKUP(B160,INDIRECT("'"&$F$1&"'!"&"$C$2:$G$200"),5,FALSE),0) -> 0 | H160: =IFERROR(VLOOKUP(B160,INDIRECT("'"&$H$1&"'!"&"$C$2:$G$200"),4,FALSE),"") -> 0.04622685185 | I160: =IFERROR(VLOOKUP(B160,INDIRECT("'"&$H$1&"'!"&"$C$2:$G$200"),5,FALSE),0) -> 50.49037958 | J160: =IFERROR(VLOOKUP(B160,INDIRECT("'"&$J$1&"'!"&"$C$2:$G$200"),4,FALSE),"") ->  | K160: =IFERROR(VLOOKUP(B160,INDIRECT("'"&$J$1&"'!"&"$C$2:$G$200"),5,FALSE),0) -> 0 | L160: =IFERROR(VLOOKUP(B160,INDIRECT("'"&$L$1&"'!"&"$C$2:$G$200"),4,FALSE),"") ->  | M160: =IFERROR(VLOOKUP(B160,INDIRECT("'"&$L$1&"'!"&"$C$2:$G$200"),5,FALSE),0) -> 0 | N160: =IFERROR(VLOOKUP(B160,INDIRECT("'"&$N$1&"'!"&"$C$2:$G$200"),4,FALSE),"") -> 0.03623842593 | O160: =IFERROR(VLOOKUP(B160,INDIRECT("'"&$N$1&"'!"&"$C$2:$G$200"),5,FALSE),0) -> 39.13892314 | P160: =IFERROR(VLOOKUP(B160,INDIRECT("'"&$P$1&"'!"&"$C$2:$G$200"),4,FALSE),"") ->  | Q160: =IFERROR(VLOOKUP(B160,INDIRECT("'"&$P$1&"'!"&"$C$2:$G$200"),5,FALSE),0) -> 0 | R160: =IFERROR(VLOOKUP(B160,INDIRECT("'"&$R$1&"'!"&"$C$2:$G$200"),4,FALSE),"") ->  | S160: =IFERROR(VLOOKUP(B160,INDIRECT("'"&$R$1&"'!"&"$C$2:$G$200"),5,FALSE),0) -> 0 | T160: =IFERROR(VLOOKUP(B160,INDIRECT("'"&$T$1&"'!"&"$C$2:$G$200"),4,FALSE),"") ->  | U160: =IFERROR(VLOOKUP(B160,INDIRECT("'"&$T$1&"'!"&"$C$2:$G$200"),5,FALSE),0) -> 0 | V160: =8-COUNTIF(F160:U160,"") -> 2 | W160: =E160/IF(V160>4,5,V160) -> 44.81465136
A161: 159 | B161: Ed Dickson | C161: MDC | D161: SM | E161: =SUM(LARGE((S161,G161,I161,K161,M161,O161,Q161,U161),{1,2,3,4,5})) -> 89.02589396 | F161: =IFERROR(VLOOKUP(B161,INDIRECT("'"&$F$1&"'!"&"$C$2:$G$200"),4,FALSE),"") ->  | G161: =IFERROR(VLOOKUP(B161,INDIRECT("'"&$F$1&"'!"&"$C$2:$G$200"),5,FALSE),0) -> 0 | H161: =IFERROR(VLOOKUP(B161,INDIRECT("'"&$H$1&"'!"&"$C$2:$G$200"),4,FALSE),"") ->  | I161: =IFERROR(VLOOKUP(B161,INDIRECT("'"&$H$1&"'!"&"$C$2:$G$200"),5,FALSE),0) -> 0 | J161: =IFERROR(VLOOKUP(B161,INDIRECT("'"&$J$1&"'!"&"$C$2:$G$200"),4,FALSE),"") ->  | K161: =IFERROR(VLOOKUP(B161,INDIRECT("'"&$J$1&"'!"&"$C$2:$G$200"),5,FALSE),0) -> 0 | L161: =IFERROR(VLOOKUP(B161,INDIRECT("'"&$L$1&"'!"&"$C$2:$G$200"),4,FALSE),"") ->  | M161: =IFERROR(VLOOKUP(B161,INDIRECT("'"&$L$1&"'!"&"$C$2:$G$200"),5,FALSE),0) -> 0 | N161: =IFERROR(VLOOKUP(B161,INDIRECT("'"&$N$1&"'!"&"$C$2:$G$200"),4,FALSE),"") -> 0.025 | O161: =IFERROR(VLOOKUP(B161,INDIRECT("'"&$N$1&"'!"&"$C$2:$G$200"),5,FALSE),0) -> 89.02589396 | P161: =IFERROR(VLOOKUP(B161,INDIRECT("'"&$P$1&"'!"&"$C$2:$G$200"),4,FALSE),"") ->  | Q161: =IFERROR(VLOOKUP(B161,INDIRECT("'"&$P$1&"'!"&"$C$2:$G$200"),5,FALSE),0) -> 0 | R161: =IFERROR(VLOOKUP(B161,INDIRECT("'"&$R$1&"'!"&"$C$2:$G$200"),4,FALSE),"") ->  | S161: =IFERROR(VLOOKUP(B161,INDIRECT("'"&$R$1&"'!"&"$C$2:$G$200"),5,FALSE),0) -> 0 | T161: =IFERROR(VLOOKUP(B161,INDIRECT("'"&$T$1&"'!"&"$C$2:$G$200"),4,FALSE),"") ->  | U161: =IFERROR(VLOOKUP(B161,INDIRECT("'"&$T$1&"'!"&"$C$2:$G$200"),5,FALSE),0) -> 0 | V161: =8-COUNTIF(F161:U161,"") -> 1 | W161: =E161/IF(V161>4,5,V161) -> 89.02589396
A162: 160 | B162: Matthew Pickering | C162: UBOC | D162: SM | E162: =SUM(LARGE((S162,G162,I162,K162,M162,O162,Q162,U162),{1,2,3,4,5})) -> 88.82038635 | F162: =IFERROR(VLOOKUP(B162,INDIRECT("'"&$F$1&"'!"&"$C$2:$G$200"),4,FALSE),"") ->  | G162: =IFERROR(VLOOKUP(B162,INDIRECT("'"&$F$1&"'!"&"$C$2:$G$200"),5,FALSE),0) -> 0 | H162: =IFERROR(VLOOKUP(B162,INDIRECT("'"&$H$1&"'!"&"$C$2:$G$200"),4,FALSE),"") ->  | I162: =IFERROR(VLOOKUP(B162,INDIRECT("'"&$H$1&"'!"&"$C$2:$G$200"),5,FALSE),0) -> 0 | J162: =IFERROR(VLOOKUP(B162,INDIRECT("'"&$J$1&"'!"&"$C$2:$G$200"),4,FALSE),"") ->  | K162: =IFERROR(VLOOKUP(B162,INDIRECT("'"&$J$1&"'!"&"$C$2:$G$200"),5,FALSE),0) -> 0 | L162: =IFERROR(VLOOKUP(B162,INDIRECT("'"&$L$1&"'!"&"$C$2:$G$200"),4,FALSE),"") ->  | M162: =IFERROR(VLOOKUP(B162,INDIRECT("'"&$L$1&"'!"&"$C$2:$G$200"),5,FALSE),0) -> 0 | N162: =IFERROR(VLOOKUP(B162,INDIRECT("'"&$N$1&"'!"&"$C$2:$G$200"),4,FALSE),"") -> 0.0250462963 | O162: =IFERROR(VLOOKUP(B162,INDIRECT("'"&$N$1&"'!"&"$C$2:$G$200"),5,FALSE),0) -> 88.82038635 | P162: =IFERROR(VLOOKUP(B162,INDIRECT("'"&$P$1&"'!"&"$C$2:$G$200"),4,FALSE),"") ->  | Q162: =IFERROR(VLOOKUP(B162,INDIRECT("'"&$P$1&"'!"&"$C$2:$G$200"),5,FALSE),0) -> 0 | R162: =IFERROR(VLOOKUP(B162,INDIRECT("'"&$R$1&"'!"&"$C$2:$G$200"),4,FALSE),"") ->  | S162: =IFERROR(VLOOKUP(B162,INDIRECT("'"&$R$1&"'!"&"$C$2:$G$200"),5,FALSE),0) -> 0 | T162: =IFERROR(VLOOKUP(B162,INDIRECT("'"&$T$1&"'!"&"$C$2:$G$200"),4,FALSE),"") ->  | U162: =IFERROR(VLOOKUP(B162,INDIRECT("'"&$T$1&"'!"&"$C$2:$G$200"),5,FALSE),0) -> 0 | V162: =8-COUNTIF(F162:U162,"") -> 1 | W162: =E162/IF(V162>4,5,V162) -> 88.82038635
A163: 161 | B163: Megan Carter-Davies | C163: MDC | D163: FU23 | E163: =SUM(LARGE((S163,G163,I163,K163,M163,O163,Q163,U163),{1,2,3,4,5})) -> 88.82018303 | F163: =IFERROR(VLOOKUP(B163,INDIRECT("'"&$F$1&"'!"&"$C$2:$G$200"),4,FALSE),"") ->  | G163: =IFERROR(VLOOKUP(B163,INDIRECT("'"&$F$1&"'!"&"$C$2:$G$200"),5,FALSE),0) -> 0 | H163: =IFERROR(VLOOKUP(B163,INDIRECT("'"&$H$1&"'!"&"$C$2:$G$200"),4,FALSE),"") ->  | I163: =IFERROR(VLOOKUP(B163,INDIRECT("'"&$H$1&"'!"&"$C$2:$G$200"),5,FALSE),0) -> 0 | J163: =IFERROR(VLOOKUP(B163,INDIRECT("'"&$J$1&"'!"&"$C$2:$G$200"),4,FALSE),"") ->  | K163: =IFERROR(VLOOKUP(B163,INDIRECT("'"&$J$1&"'!"&"$C$2:$G$200"),5,FALSE),0) -> 0 | L163: =IFERROR(VLOOKUP(B163,INDIRECT("'"&$L$1&"'!"&"$C$2:$G$200"),4,FALSE),"") -> 0.02081018519 | M163: =IFERROR(VLOOKUP(B163,INDIRECT("'"&$L$1&"'!"&"$C$2:$G$200"),5,FALSE),0) -> 88.82018303 | N163: =IFERROR(VLOOKUP(B163,INDIRECT("'"&$N$1&"'!"&"$C$2:$G$200"),4,FALSE),"") ->  | O163: =IFERROR(VLOOKUP(B163,INDIRECT("'"&$N$1&"'!"&"$C$2:$G$200"),5,FALSE),0) -> 0 | P163: =IFERROR(VLOOKUP(B163,INDIRECT("'"&$P$1&"'!"&"$C$2:$G$200"),4,FALSE),"") ->  | Q163: =IFERROR(VLOOKUP(B163,INDIRECT("'"&$P$1&"'!"&"$C$2:$G$200"),5,FALSE),0) -> 0 | R163: =IFERROR(VLOOKUP(B163,INDIRECT("'"&$R$1&"'!"&"$C$2:$G$200"),4,FALSE),"") ->  | S163: =IFERROR(VLOOKUP(B163,INDIRECT("'"&$R$1&"'!"&"$C$2:$G$200"),5,FALSE),0) -> 0 | T163: =IFERROR(VLOOKUP(B163,INDIRECT("'"&$T$1&"'!"&"$C$2:$G$200"),4,FALSE),"") ->  | U163: =IFERROR(VLOOKUP(B163,INDIRECT("'"&$T$1&"'!"&"$C$2:$G$200"),5,FALSE),0) -> 0 | V163: =8-COUNTIF(F163:U163,"") -> 1 | W163: =E163/IF(V163>4,5,V163) -> 88.82018303
A164: 162 | B164: Martyn Peters | C164: Unaffiliated | D164: M60 | E164: =SUM(LARGE((S164,G164,I164,K164,M164,O164,Q164,U164),{1,2,3,4,5})) -> 87.58757145 | F164: =IFERROR(VLOOKUP(B164,INDIRECT("'"&$F$1&"'!"&"$C$2:$G$200"),4,FALSE),"") -> 0.02508101852 | G164: =IFERROR(VLOOKUP(B164,INDIRECT("'"&$F$1&"'!"&"$C$2:$G$200"),5,FALSE),0) -> 28.85800032 | H164: =IFERROR(VLOOKUP(B164,INDIRECT("'"&$H$1&"'!"&"$C$2:$G$200"),4,FALSE),"") -> 0.05658564815 | I164: =IFERROR(VLOOKUP(B164,INDIRECT("'"&$H$1&"'!"&"$C$2:$G$200"),5,FALSE),0) -> 16.98734746 | J164: =IFERROR(VLOOKUP(B164,INDIRECT("'"&$J$1&"'!"&"$C$2:$G$200"),4,FALSE),"") ->  | K164: =IFERROR(VLOOKUP(B164,INDIRECT("'"&$J$1&"'!"&"$C$2:$G$200"),5,FALSE),0) -> 0 | L164: =IFERROR(VLOOKUP(B164,INDIRECT("'"&$L$1&"'!"&"$C$2:$G$200"),4,FALSE),"") -> 0.03560185185 | M164: =IFERROR(VLOOKUP(B164,INDIRECT("'"&$L$1&"'!"&"$C$2:$G$200"),5,FALSE),0) -> 9.794706901 | N164: =IFERROR(VLOOKUP(B164,INDIRECT("'"&$N$1&"'!"&"$C$2:$G$200"),4,FALSE),"") -> 0.04202546296 | O164: =IFERROR(VLOOKUP(B164,INDIRECT("'"&$N$1&"'!"&"$C$2:$G$200"),5,FALSE),0) -> 13.45047267 | P164: =IFERROR(VLOOKUP(B164,INDIRECT("'"&$P$1&"'!"&"$C$2:$G$200"),4,FALSE),"") ->  | Q164: =IFERROR(VLOOKUP(B164,INDIRECT("'"&$P$1&"'!"&"$C$2:$G$200"),5,FALSE),0) -> 0 | R164: =IFERROR(VLOOKUP(B164,INDIRECT("'"&$R$1&"'!"&"$C$2:$G$200"),4,FALSE),"") -> 0.03695601852 | S164: =IFERROR(VLOOKUP(B164,INDIRECT("'"&$R$1&"'!"&"$C$2:$G$200"),5,FALSE),0) -> 18.49704411 | T164: =IFERROR(VLOOKUP(B164,INDIRECT("'"&$T$1&"'!"&"$C$2:$G$200"),4,FALSE),"") ->  | U164: =IFERROR(VLOOKUP(B164,INDIRECT("'"&$T$1&"'!"&"$C$2:$G$200"),5,FALSE),0) -> 0 | V164: =8-COUNTIF(F164:U164,"") -> 5 | W164: =E164/IF(V164>4,5,V164) -> 17.51751429
A165: 163 | B165: Karie Atkins | C165: Chepstow Harriers | D165: M40 | E165: =SUM(LARGE((S165,G165,I165,K165,M165,O165,Q165,U165),{1,2,3,4,5})) -> 87.48458693 | F165: =IFERROR(VLOOKUP(B165,INDIRECT("'"&$F$1&"'!"&"$C$2:$G$200"),4,FALSE),"") ->  | G165: =IFERROR(VLOOKUP(B165,INDIRECT("'"&$F$1&"'!"&"$C$2:$G$200"),5,FALSE),0) -> 0 | H165: =IFERROR(VLOOKUP(B165,INDIRECT("'"&$H$1&"'!"&"$C$2:$G$200"),4,FALSE),"") ->  | I165: =IFERROR(VLOOKUP(B165,INDIRECT("'"&$H$1&"'!"&"$C$2:$G$200"),5,FALSE),0) -> 0 | J165: =IFERROR(VLOOKUP(B165,INDIRECT("'"&$J$1&"'!"&"$C$2:$G$200"),4,FALSE),"") ->  | K165: =IFERROR(VLOOKUP(B165,INDIRECT("'"&$J$1&"'!"&"$C$2:$G$200"),5,FALSE),0) -> 0 | L165: =IFERROR(VLOOKUP(B165,INDIRECT("'"&$L$1&"'!"&"$C$2:$G$200"),4,FALSE),"") ->  | M165: =IFERROR(VLOOKUP(B165,INDIRECT("'"&$L$1&"'!"&"$C$2:$G$200"),5,FALSE),0) -> 0 | N165: =IFERROR(VLOOKUP(B165,INDIRECT("'"&$N$1&"'!"&"$C$2:$G$200"),4,FALSE),"") -> 0.02534722222 | O165: =IFERROR(VLOOKUP(B165,INDIRECT("'"&$N$1&"'!"&"$C$2:$G$200"),5,FALSE),0) -> 87.48458693 | P165: =IFERROR(VLOOKUP(B165,INDIRECT("'"&$P$1&"'!"&"$C$2:$G$200"),4,FALSE),"") ->  | Q165: =IFERROR(VLOOKUP(B165,INDIRECT("'"&$P$1&"'!"&"$C$2:$G$200"),5,FALSE),0) -> 0 | R165: =IFERROR(VLOOKUP(B165,INDIRECT("'"&$R$1&"'!"&"$C$2:$G$200"),4,FALSE),"") ->  | S165: =IFERROR(VLOOKUP(B165,INDIRECT("'"&$R$1&"'!"&"$C$2:$G$200"),5,FALSE),0) -> 0 | T165: =IFERROR(VLOOKUP(B165,INDIRECT("'"&$T$1&"'!"&"$C$2:$G$200"),4,FALSE),"") ->  | U165: =IFERROR(VLOOKUP(B165,INDIRECT("'"&$T$1&"'!"&"$C$2:$G$200"),5,FALSE),0) -> 0 | V165: =8-COUNTIF(F165:U165,"") -> 1 | W165: =E165/IF(V165>4,5,V165) -> 87.48458693
A166: 164 | B166: Rhys Williams | C166: MDC | D166: M40 | E166: =SUM(LARGE((S166,G166,I166,K166,M166,O166,Q166,U166),{1,2,3,4,5})) -> 86.99408822 | F166: =IFERROR(VLOOKUP(B166,INDIRECT("'"&$F$1&"'!"&"$C$2:$G$200"),4,FALSE),"") ->  | G166: =IFERROR(VLOOKUP(B166,INDIRECT("'"&$F$1&"'!"&"$C$2:$G$200"),5,FALSE),0) -> 0 | H166: =IFERROR(VLOOKUP(B166,INDIRECT("'"&$H$1&"'!"&"$C$2:$G$200"),4,FALSE),"") ->  | I166: =IFERROR(VLOOKUP(B166,INDIRECT("'"&$H$1&"'!"&"$C$2:$G$200"),5,FALSE),0) -> 0 | J166: =IFERROR(VLOOKUP(B166,INDIRECT("'"&$J$1&"'!"&"$C$2:$G$200"),4,FALSE),"") ->  | K166: =IFERROR(VLOOKUP(B166,INDIRECT("'"&$J$1&"'!"&"$C$2:$G$200"),5,FALSE),0) -> 0 | L166: =IFERROR(VLOOKUP(B166,INDIRECT("'"&$L$1&"'!"&"$C$2:$G$200"),4,FALSE),"") ->  | M166: =IFERROR(VLOOKUP(B166,INDIRECT("'"&$L$1&"'!"&"$C$2:$G$200"),5,FALSE),0) -> 0 | N166: =IFERROR(VLOOKUP(B166,INDIRECT("'"&$N$1&"'!"&"$C$2:$G$200"),4,FALSE),"") ->  | O166: =IFERROR(VLOOKUP(B166,INDIRECT("'"&$N$1&"'!"&"$C$2:$G$200"),5,FALSE),0) -> 0 | P166: =IFERROR(VLOOKUP(B166,INDIRECT("'"&$P$1&"'!"&"$C$2:$G$200"),4,FALSE),"") ->  | Q166: =IFERROR(VLOOKUP(B166,INDIRECT("'"&$P$1&"'!"&"$C$2:$G$200"),5,FALSE),0) -> 0 | R166: =IFERROR(VLOOKUP(B166,INDIRECT("'"&$R$1&"'!"&"$C$2:$G$200"),4,FALSE),"") -> 0.02300925926 | S166: =IFERROR(VLOOKUP(B166,INDIRECT("'"&$R$1&"'!"&"$C$2:$G$200"),5,FALSE),0) -> 86.99408822 | T166: =IFERROR(VLOOKUP(B166,INDIRECT("'"&$T$1&"'!"&"$C$2:$G$200"),4,FALSE),"") ->  | U166: =IFERROR(VLOOKUP(B166,INDIRECT("'"&$T$1&"'!"&"$C$2:$G$200"),5,FALSE),0) -> 0 | V166: =8-COUNTIF(F166:U166,"") -> 1 | W166: =E166/IF(V166>4,5,V166) -> 86.99408822
A167: 165 | B167: Rudy Lewis | C167: Unaffiliated | D167: SM | E167: =SUM(LARGE((S167,G167,I167,K167,M167,O167,Q167,U167),{1,2,3,4,5})) -> 86.80092835 | F167: =IFERROR(VLOOKUP(B167,INDIRECT("'"&$F$1&"'!"&"$C$2:$G$200"),4,FALSE),"") ->  | G167: =IFERROR(VLOOKUP(B167,INDIRECT("'"&$F$1&"'!"&"$C$2:$G$200"),5,FALSE),0) -> 0 | H167: =IFERROR(VLOOKUP(B167,INDIRECT("'"&$H$1&"'!"&"$C$2:$G$200"),4,FALSE),"") -> 0.035 | I167: =IFERROR(VLOOKUP(B167,INDIRECT("'"&$H$1&"'!"&"$C$2:$G$200"),5,FALSE),0) -> 86.80092835 | J167: =IFERROR(VLOOKUP(B167,INDIRECT("'"&$J$1&"'!"&"$C$2:$G$200"),4,FALSE),"") ->  | K167: =IFERROR(VLOOKUP(B167,INDIRECT("'"&$J$1&"'!"&"$C$2:$G$200"),5,FALSE),0) -> 0 | L167: =IFERROR(VLOOKUP(B167,INDIRECT("'"&$L$1&"'!"&"$C$2:$G$200"),4,FALSE),"") ->  | M167: =IFERROR(VLOOKUP(B167,INDIRECT("'"&$L$1&"'!"&"$C$2:$G$200"),5,FALSE),0) -> 0 | N167: =IFERROR(VLOOKUP(B167,INDIRECT("'"&$N$1&"'!"&"$C$2:$G$200"),4,FALSE),"") ->  | O167: =IFERROR(VLOOKUP(B167,INDIRECT("'"&$N$1&"'!"&"$C$2:$G$200"),5,FALSE),0) -> 0 | P167: =IFERROR(VLOOKUP(B167,INDIRECT("'"&$P$1&"'!"&"$C$2:$G$200"),4,FALSE),"") ->  | Q167: =IFERROR(VLOOKUP(B167,INDIRECT("'"&$P$1&"'!"&"$C$2:$G$200"),5,FALSE),0) -> 0 | R167: =IFERROR(VLOOKUP(B167,INDIRECT("'"&$R$1&"'!"&"$C$2:$G$200"),4,FALSE),"") ->  | S167: =IFERROR(VLOOKUP(B167,INDIRECT("'"&$R$1&"'!"&"$C$2:$G$200"),5,FALSE),0) -> 0 | T167: =IFERROR(VLOOKUP(B167,INDIRECT("'"&$T$1&"'!"&"$C$2:$G$200"),4,FALSE),"") ->  | U167: =IFERROR(VLOOKUP(B167,INDIRECT("'"&$T$1&"'!"&"$C$2:$G$200"),5,FALSE),0) -> 0 | V167: =8-COUNTIF(F167:U167,"") -> 1 | W167: =E167/IF(V167>4,5,V167) -> 86.80092835
A168: 166 | B168: Flora Gunner | C168: Croft Ambrey | D168: F50 | E168: =SUM(LARGE((S168,G168,I168,K168,M168,O168,Q168,U168),{1,2,3,4,5})) -> 85.95494132 | F168: =IFERROR(VLOOKUP(B168,INDIRECT("'"&$F$1&"'!"&"$C$2:$G$200"),4,FALSE),"") ->  | G168: =IFERROR(VLOOKUP(B168,INDIRECT("'"&$F$1&"'!"&"$C$2:$G$200"),5,FALSE),0) -> 0 | H168: =IFERROR(VLOOKUP(B168,INDIRECT("'"&$H$1&"'!"&"$C$2:$G$200"),4,FALSE),"") ->  | I168: =IFERROR(VLOOKUP(B168,INDIRECT("'"&$H$1&"'!"&"$C$2:$G$200"),5,FALSE),0) -> 0 | J168: =IFERROR(VLOOKUP(B168,INDIRECT("'"&$J$1&"'!"&"$C$2:$G$200"),4,FALSE),"") ->  | K168: =IFERROR(VLOOKUP(B168,INDIRECT("'"&$J$1&"'!"&"$C$2:$G$200"),5,FALSE),0) -> 0 | L168: =IFERROR(VLOOKUP(B168,INDIRECT("'"&$L$1&"'!"&"$C$2:$G$200"),4,FALSE),"") ->  | M168: =IFERROR(VLOOKUP(B168,INDIRECT("'"&$L$1&"'!"&"$C$2:$G$200"),5,FALSE),0) -> 0 | N168: =IFERROR(VLOOKUP(B168,INDIRECT("'"&$N$1&"'!"&"$C$2:$G$200"),4,FALSE),"") ->  | O168: =IFERROR(VLOOKUP(B168,INDIRECT("'"&$N$1&"'!"&"$C$2:$G$200"),5,FALSE),0) -> 0 | P168: =IFERROR(VLOOKUP(B168,INDIRECT("'"&$P$1&"'!"&"$C$2:$G$200"),4,FALSE),"") ->  | Q168: =IFERROR(VLOOKUP(B168,INDIRECT("'"&$P$1&"'!"&"$C$2:$G$200"),5,FALSE),0) -> 0 | R168: =IFERROR(VLOOKUP(B168,INDIRECT("'"&$R$1&"'!"&"$C$2:$G$200"),4,FALSE),"") -> 0.03015046296 | S168: =IFERROR(VLOOKUP(B168,INDIRECT("'"&$R$1&"'!"&"$C$2:$G$200"),5,FALSE),0) -> 51.92132788 | T168: =IFERROR(VLOOKUP(B168,INDIRECT("'"&$T$1&"'!"&"$C$2:$G$200"),4,FALSE),"") -> 0.06034722222 | U168: =IFERROR(VLOOKUP(B168,INDIRECT("'"&$T$1&"'!"&"$C$2:$G$200"),5,FALSE),0) -> 34.03361345 | V168: =8-COUNTIF(F168:U168,"") -> 2 | W168: =E168/IF(V168>4,5,V168) -> 42.97747066
A169: 167 | B169: Ian Smith | C169: Forest Of Dean AC | D169: M50 | E169: =SUM(LARGE((S169,G169,I169,K169,M169,O169,Q169,U169),{1,2,3,4,5})) -> 85.26615258 | F169: =IFERROR(VLOOKUP(B169,INDIRECT("'"&$F$1&"'!"&"$C$2:$G$200"),4,FALSE),"") ->  | G169: =IFERROR(VLOOKUP(B169,INDIRECT("'"&$F$1&"'!"&"$C$2:$G$200"),5,FALSE),0) -> 0 | H169: =IFERROR(VLOOKUP(B169,INDIRECT("'"&$H$1&"'!"&"$C$2:$G$200"),4,FALSE),"") -> 0.03547453704 | I169: =IFERROR(VLOOKUP(B169,INDIRECT("'"&$H$1&"'!"&"$C$2:$G$200"),5,FALSE),0) -> 85.26615258 | J169: =IFERROR(VLOOKUP(B169,INDIRECT("'"&$J$1&"'!"&"$C$2:$G$200"),4,FALSE),"") ->  | K169: =IFERROR(VLOOKUP(B169,INDIRECT("'"&$J$1&"'!"&"$C$2:$G$200"),5,FALSE),0) -> 0 | L169: =IFERROR(VLOOKUP(B169,INDIRECT("'"&$L$1&"'!"&"$C$2:$G$200"),4,FALSE),"") ->  | M169: =IFERROR(VLOOKUP(B169,INDIRECT("'"&$L$1&"'!"&"$C$2:$G$200"),5,FALSE),0) -> 0 | N169: =IFERROR(VLOOKUP(B169,INDIRECT("'"&$N$1&"'!"&"$C$2:$G$200"),4,FALSE),"") ->  | O169: =IFERROR(VLOOKUP(B169,INDIRECT("'"&$N$1&"'!"&"$C$2:$G$200"),5,FALSE),0) -> 0 | P169: =IFERROR(VLOOKUP(B169,INDIRECT("'"&$P$1&"'!"&"$C$2:$G$200"),4,FALSE),"") ->  | Q169: =IFERROR(VLOOKUP(B169,INDIRECT("'"&$P$1&"'!"&"$C$2:$G$200"),5,FALSE),0) -> 0 | R169: =IFERROR(VLOOKUP(B169,INDIRECT("'"&$R$1&"'!"&"$C$2:$G$200"),4,FALSE),"") ->  | S169: =IFERROR(VLOOKUP(B169,INDIRECT("'"&$R$1&"'!"&"$C$2:$G$200"),5,FALSE),0) -> 0 | T169: =IFERROR(VLOOKUP(B169,INDIRECT("'"&$T$1&"'!"&"$C$2:$G$200"),4,FALSE),"") ->  | U169: =IFERROR(VLOOKUP(B169,INDIRECT("'"&$T$1&"'!"&"$C$2:$G$200"),5,FALSE),0) -> 0 | V169: =8-COUNTIF(F169:U169,"") -> 1 | W169: =E169/IF(V169>4,5,V169) -> 85.26615258
A170: 168 | B170: Robin Spacie | C170: Unaffiliated | D170: SM | E170: =SUM(LARGE((S170,G170,I170,K170,M170,O170,Q170,U170),{1,2,3,4,5})) -> 84.95857234 | F170: =IFERROR(VLOOKUP(B170,INDIRECT("'"&$F$1&"'!"&"$C$2:$G$200"),4,FALSE),"") ->  | G170: =IFERROR(VLOOKUP(B170,INDIRECT("'"&$F$1&"'!"&"$C$2:$G$200"),5,FALSE),0) -> 0 | H170: =IFERROR(VLOOKUP(B170,INDIRECT("'"&$H$1&"'!"&"$C$2:$G$200"),4,FALSE),"") ->  | I170: =IFERROR(VLOOKUP(B170,INDIRECT("'"&$H$1&"'!"&"$C$2:$G$200"),5,FALSE),0) -> 0 | J170: =IFERROR(VLOOKUP(B170,INDIRECT("'"&$J$1&"'!"&"$C$2:$G$200"),4,FALSE),"") ->  | K170: =IFERROR(VLOOKUP(B170,INDIRECT("'"&$J$1&"'!"&"$C$2:$G$200"),5,FALSE),0) -> 0 | L170: =IFERROR(VLOOKUP(B170,INDIRECT("'"&$L$1&"'!"&"$C$2:$G$200"),4,FALSE),"") ->  | M170: =IFERROR(VLOOKUP(B170,INDIRECT("'"&$L$1&"'!"&"$C$2:$G$200"),5,FALSE),0) -> 0 | N170: =IFERROR(VLOOKUP(B170,INDIRECT("'"&$N$1&"'!"&"$C$2:$G$200"),4,FALSE),"") ->  | O170: =IFERROR(VLOOKUP(B170,INDIRECT("'"&$N$1&"'!"&"$C$2:$G$200"),5,FALSE),0) -> 0 | P170: =IFERROR(VLOOKUP(B170,INDIRECT("'"&$P$1&"'!"&"$C$2:$G$200"),4,FALSE),"") -> 0.02506944444 | Q170: =IFERROR(VLOOKUP(B170,INDIRECT("'"&$P$1&"'!"&"$C$2:$G$200"),5,FALSE),0) -> 84.95857234 | R170: =IFERROR(VLOOKUP(B170,INDIRECT("'"&$R$1&"'!"&"$C$2:$G$200"),4,FALSE),"") ->  | S170: =IFERROR(VLOOKUP(B170,INDIRECT("'"&$R$1&"'!"&"$C$2:$G$200"),5,FALSE),0) -> 0 | T170: =IFERROR(VLOOKUP(B170,INDIRECT("'"&$T$1&"'!"&"$C$2:$G$200"),4,FALSE),"") ->  | U170: =IFERROR(VLOOKUP(B170,INDIRECT("'"&$T$1&"'!"&"$C$2:$G$200"),5,FALSE),0) -> 0 | V170: =8-COUNTIF(F170:U170,"") -> 1 | W170: =E170/IF(V170>4,5,V170) -> 84.95857234
A171: 169 | B171: Leslie Cupis | C171: Ryde Harriers | D171: M50 | E171: =SUM(LARGE((S171,G171,I171,K171,M171,O171,Q171,U171),{1,2,3,4,5})) -> 84.03084525 | F171: =IFERROR(VLOOKUP(B171,INDIRECT("'"&$F$1&"'!"&"$C$2:$G$200"),4,FALSE),"") ->  | G171: =IFERROR(VLOOKUP(B171,INDIRECT("'"&$F$1&"'!"&"$C$2:$G$200"),5,FALSE),0) -> 0 | H171: =IFERROR(VLOOKUP(B171,INDIRECT("'"&$H$1&"'!"&"$C$2:$G$200"),4,FALSE),"") -> 0.03585648148 | I171: =IFERROR(VLOOKUP(B171,INDIRECT("'"&$H$1&"'!"&"$C$2:$G$200"),5,FALSE),0) -> 84.03084525 | J171: =IFERROR(VLOOKUP(B171,INDIRECT("'"&$J$1&"'!"&"$C$2:$G$200"),4,FALSE),"") ->  | K171: =IFERROR(VLOOKUP(B171,INDIRECT("'"&$J$1&"'!"&"$C$2:$G$200"),5,FALSE),0) -> 0 | L171: =IFERROR(VLOOKUP(B171,INDIRECT("'"&$L$1&"'!"&"$C$2:$G$200"),4,FALSE),"") ->  | M171: =IFERROR(VLOOKUP(B171,INDIRECT("'"&$L$1&"'!"&"$C$2:$G$200"),5,FALSE),0) -> 0 | N171: =IFERROR(VLOOKUP(B171,INDIRECT("'"&$N$1&"'!"&"$C$2:$G$200"),4,FALSE),"") ->  | O171: =IFERROR(VLOOKUP(B171,INDIRECT("'"&$N$1&"'!"&"$C$2:$G$200"),5,FALSE),0) -> 0 | P171: =IFERROR(VLOOKUP(B171,INDIRECT("'"&$P$1&"'!"&"$C$2:$G$200"),4,FALSE),"") ->  | Q171: =IFERROR(VLOOKUP(B171,INDIRECT("'"&$P$1&"'!"&"$C$2:$G$200"),5,FALSE),0) -> 0 | R171: =IFERROR(VLOOKUP(B171,INDIRECT("'"&$R$1&"'!"&"$C$2:$G$200"),4,FALSE),"") ->  | S171: =IFERROR(VLOOKUP(B171,INDIRECT("'"&$R$1&"'!"&"$C$2:$G$200"),5,FALSE),0) -> 0 | T171: =IFERROR(VLOOKUP(B171,INDIRECT("'"&$T$1&"'!"&"$C$2:$G$200"),4,FALSE),"") ->  | U171: =IFERROR(VLOOKUP(B171,INDIRECT("'"&$T$1&"'!"&"$C$2:$G$200"),5,FALSE),0) -> 0 | V171: =8-COUNTIF(F171:U171,"") -> 1 | W171: =E171/IF(V171>4,5,V171) -> 84.03084525
A172: 170 | B172: Richard Millier | C172: Unaffiliated | D172: SM | E172: =SUM(LARGE((S172,G172,I172,K172,M172,O172,Q172,U172),{1,2,3,4,5})) -> 83.57765031 | F172: =IFERROR(VLOOKUP(B172,INDIRECT("'"&$F$1&"'!"&"$C$2:$G$200"),4,FALSE),"") ->  | G172: =IFERROR(VLOOKUP(B172,INDIRECT("'"&$F$1&"'!"&"$C$2:$G$200"),5,FALSE),0) -> 0 | H172: =IFERROR(VLOOKUP(B172,INDIRECT("'"&$H$1&"'!"&"$C$2:$G$200"),4,FALSE),"") ->  | I172: =IFERROR(VLOOKUP(B172,INDIRECT("'"&$H$1&"'!"&"$C$2:$G$200"),5,FALSE),0) -> 0 | J172: =IFERROR(VLOOKUP(B172,INDIRECT("'"&$J$1&"'!"&"$C$2:$G$200"),4,FALSE),"") ->  | K172: =IFERROR(VLOOKUP(B172,INDIRECT("'"&$J$1&"'!"&"$C$2:$G$200"),5,FALSE),0) -> 0 | L172: =IFERROR(VLOOKUP(B172,INDIRECT("'"&$L$1&"'!"&"$C$2:$G$200"),4,FALSE),"") ->  | M172: =IFERROR(VLOOKUP(B172,INDIRECT("'"&$L$1&"'!"&"$C$2:$G$200"),5,FALSE),0) -> 0 | N172: =IFERROR(VLOOKUP(B172,INDIRECT("'"&$N$1&"'!"&"$C$2:$G$200"),4,FALSE),"") ->  | O172: =IFERROR(VLOOKUP(B172,INDIRECT("'"&$N$1&"'!"&"$C$2:$G$200"),5,FALSE),0) -> 0 | P172: =IFERROR(VLOOKUP(B172,INDIRECT("'"&$P$1&"'!"&"$C$2:$G$200"),4,FALSE),"") -> 0.02537037037 | Q172: =IFERROR(VLOOKUP(B172,INDIRECT("'"&$P$1&"'!"&"$C$2:$G$200"),5,FALSE),0) -> 83.57765031 | R172: =IFERROR(VLOOKUP(B172,INDIRECT("'"&$R$1&"'!"&"$C$2:$G$200"),4,FALSE),"") ->  | S172: =IFERROR(VLOOKUP(B172,INDIRECT("'"&$R$1&"'!"&"$C$2:$G$200"),5,FALSE),0) -> 0 | U172: =IFERROR(VLOOKUP(B172,INDIRECT("'"&$T$1&"'!"&"$C$2:$G$200"),5,FALSE),0) -> 0 | V172: =8-COUNTIF(F172:U172,"") -> 1 | W172: =E172/IF(V172>4,5,V172) -> 83.57765031
A173: 171 | B173: Peter Flynn | C173: Wye Valley Runners | D173: SM | E173: =SUM(LARGE((S173,G173,I173,K173,M173,O173,Q173,U173),{1,2,3,4,5})) -> 83.43190836 | F173: =IFERROR(VLOOKUP(B173,INDIRECT("'"&$F$1&"'!"&"$C$2:$G$200"),4,FALSE),"") ->  | G173: =IFERROR(VLOOKUP(B173,INDIRECT("'"&$F$1&"'!"&"$C$2:$G$200"),5,FALSE),0) -> 0 | H173: =IFERROR(VLOOKUP(B173,INDIRECT("'"&$H$1&"'!"&"$C$2:$G$200"),4,FALSE),"") -> 0.03604166667 | I173: =IFERROR(VLOOKUP(B173,INDIRECT("'"&$H$1&"'!"&"$C$2:$G$200"),5,FALSE),0) -> 83.43190836 | J173: =IFERROR(VLOOKUP(B173,INDIRECT("'"&$J$1&"'!"&"$C$2:$G$200"),4,FALSE),"") ->  | K173: =IFERROR(VLOOKUP(B173,INDIRECT("'"&$J$1&"'!"&"$C$2:$G$200"),5,FALSE),0) -> 0 | L173: =IFERROR(VLOOKUP(B173,INDIRECT("'"&$L$1&"'!"&"$C$2:$G$200"),4,FALSE),"") ->  | M173: =IFERROR(VLOOKUP(B173,INDIRECT("'"&$L$1&"'!"&"$C$2:$G$200"),5,FALSE),0) -> 0 | N173: =IFERROR(VLOOKUP(B173,INDIRECT("'"&$N$1&"'!"&"$C$2:$G$200"),4,FALSE),"") ->  | O173: =IFERROR(VLOOKUP(B173,INDIRECT("'"&$N$1&"'!"&"$C$2:$G$200"),5,FALSE),0) -> 0 | P173: =IFERROR(VLOOKUP(B173,INDIRECT("'"&$P$1&"'!"&"$C$2:$G$200"),4,FALSE),"") ->  | Q173: =IFERROR(VLOOKUP(B173,INDIRECT("'"&$P$1&"'!"&"$C$2:$G$200"),5,FALSE),0) -> 0 | R173: =IFERROR(VLOOKUP(B173,INDIRECT("'"&$R$1&"'!"&"$C$2:$G$200"),4,FALSE),"") ->  | S173: =IFERROR(VLOOKUP(B173,INDIRECT("'"&$R$1&"'!"&"$C$2:$G$200"),5,FALSE),0) -> 0 | T173: =IFERROR(VLOOKUP(B173,INDIRECT("'"&$T$1&"'!"&"$C$2:$G$200"),4,FALSE),"") ->  | U173: =IFERROR(VLOOKUP(B173,INDIRECT("'"&$T$1&"'!"&"$C$2:$G$200"),5,FALSE),0) -> 0 | V173: =8-COUNTIF(F173:U173,"") -> 1 | W173: =E173/IF(V173>4,5,V173) -> 83.43190836
A174: 172 | B174: Ben Gibbison | C174: Mynydd Du | D174: SM | E174: =SUM(LARGE((S174,G174,I174,K174,M174,O174,Q174,U174),{1,2,3,4,5})) -> 83.40336134 | F174: =IFERROR(VLOOKUP(B174,INDIRECT("'"&$F$1&"'!"&"$C$2:$G$200"),4,FALSE),"") ->  | G174: =IFERROR(VLOOKUP(B174,INDIRECT("'"&$F$1&"'!"&"$C$2:$G$200"),5,FALSE),0) -> 0 | H174: =IFERROR(VLOOKUP(B174,INDIRECT("'"&$H$1&"'!"&"$C$2:$G$200"),4,FALSE),"") ->  | I174: =IFERROR(VLOOKUP(B174,INDIRECT("'"&$H$1&"'!"&"$C$2:$G$200"),5,FALSE),0) -> 0 | J174: =IFERROR(VLOOKUP(B174,INDIRECT("'"&$J$1&"'!"&"$C$2:$G$200"),4,FALSE),"") ->  | K174: =IFERROR(VLOOKUP(B174,INDIRECT("'"&$J$1&"'!"&"$C$2:$G$200"),5,FALSE),0) -> 0 | L174: =IFERROR(VLOOKUP(B174,INDIRECT("'"&$L$1&"'!"&"$C$2:$G$200"),4,FALSE),"") ->  | M174: =IFERROR(VLOOKUP(B174,INDIRECT("'"&$L$1&"'!"&"$C$2:$G$200"),5,FALSE),0) -> 0 | N174: =IFERROR(VLOOKUP(B174,INDIRECT("'"&$N$1&"'!"&"$C$2:$G$200"),4,FALSE),"") ->  | O174: =IFERROR(VLOOKUP(B174,INDIRECT("'"&$N$1&"'!"&"$C$2:$G$200"),5,FALSE),0) -> 0 | P174: =IFERROR(VLOOKUP(B174,INDIRECT("'"&$P$1&"'!"&"$C$2:$G$200"),4,FALSE),"") ->  | Q174: =IFERROR(VLOOKUP(B174,INDIRECT("'"&$P$1&"'!"&"$C$2:$G$200"),5,FALSE),0) -> 0 | R174: =IFERROR(VLOOKUP(B174,INDIRECT("'"&$R$1&"'!"&"$C$2:$G$200"),4,FALSE),"") ->  | S174: =IFERROR(VLOOKUP(B174,INDIRECT("'"&$R$1&"'!"&"$C$2:$G$200"),5,FALSE),0) -> 0 | T174: =IFERROR(VLOOKUP(B174,INDIRECT("'"&$T$1&"'!"&"$C$2:$G$200"),4,FALSE),"") -> 0.04239583333 | U174: =IFERROR(VLOOKUP(B174,INDIRECT("'"&$T$1&"'!"&"$C$2:$G$200"),5,FALSE),0) -> 83.40336134 | V174: =8-COUNTIF(F174:U174,"") -> 1 | W174: =E174/IF(V174>4,5,V174) -> 83.40336134
A175: 173 | B175: Gavin Jones | C175: Monross Trailblazers | D175: SM | E175: =SUM(LARGE((S175,G175,I175,K175,M175,O175,Q175,U175),{1,2,3,4,5})) -> 83.37443485 | F175: =IFERROR(VLOOKUP(B175,INDIRECT("'"&$F$1&"'!"&"$C$2:$G$200"),4,FALSE),"") ->  | G175: =IFERROR(VLOOKUP(B175,INDIRECT("'"&$F$1&"'!"&"$C$2:$G$200"),5,FALSE),0) -> 0 | H175: =IFERROR(VLOOKUP(B175,INDIRECT("'"&$H$1&"'!"&"$C$2:$G$200"),4,FALSE),"") ->  | I175: =IFERROR(VLOOKUP(B175,INDIRECT("'"&$H$1&"'!"&"$C$2:$G$200"),5,FALSE),0) -> 0 | J175: =IFERROR(VLOOKUP(B175,INDIRECT("'"&$J$1&"'!"&"$C$2:$G$200"),4,FALSE),"") ->  | K175: =IFERROR(VLOOKUP(B175,INDIRECT("'"&$J$1&"'!"&"$C$2:$G$200"),5,FALSE),0) -> 0 | L175: =IFERROR(VLOOKUP(B175,INDIRECT("'"&$L$1&"'!"&"$C$2:$G$200"),4,FALSE),"") ->  | M175: =IFERROR(VLOOKUP(B175,INDIRECT("'"&$L$1&"'!"&"$C$2:$G$200"),5,FALSE),0) -> 0 | N175: =IFERROR(VLOOKUP(B175,INDIRECT("'"&$N$1&"'!"&"$C$2:$G$200"),4,FALSE),"") -> 0.02627314815 | O175: =IFERROR(VLOOKUP(B175,INDIRECT("'"&$N$1&"'!"&"$C$2:$G$200"),5,FALSE),0) -> 83.37443485 | P175: =IFERROR(VLOOKUP(B175,INDIRECT("'"&$P$1&"'!"&"$C$2:$G$200"),4,FALSE),"") ->  | Q175: =IFERROR(VLOOKUP(B175,INDIRECT("'"&$P$1&"'!"&"$C$2:$G$200"),5,FALSE),0) -> 0 | R175: =IFERROR(VLOOKUP(B175,INDIRECT("'"&$R$1&"'!"&"$C$2:$G$200"),4,FALSE),"") ->  | S175: =IFERROR(VLOOKUP(B175,INDIRECT("'"&$R$1&"'!"&"$C$2:$G$200"),5,FALSE),0) -> 0 | T175: =IFERROR(VLOOKUP(B175,INDIRECT("'"&$T$1&"'!"&"$C$2:$G$200"),4,FALSE),"") ->  | U175: =IFERROR(VLOOKUP(B175,INDIRECT("'"&$T$1&"'!"&"$C$2:$G$200"),5,FALSE),0) -> 0 | V175: =8-COUNTIF(F175:U175,"") -> 1 | W175: =E175/IF(V175>4,5,V175) -> 83.37443485
A176: 174 | B176: Sam Weale | C176: Monross Trailblazers | D176: SM | E176: =SUM(LARGE((S176,G176,I176,K176,M176,O176,Q176,U176),{1,2,3,4,5})) -> 83.01479655 | F176: =IFERROR(VLOOKUP(B176,INDIRECT("'"&$F$1&"'!"&"$C$2:$G$200"),4,FALSE),"") ->  | G176: =IFERROR(VLOOKUP(B176,INDIRECT("'"&$F$1&"'!"&"$C$2:$G$200"),5,FALSE),0) -> 0 | H176: =IFERROR(VLOOKUP(B176,INDIRECT("'"&$H$1&"'!"&"$C$2:$G$200"),4,FALSE),"") ->  | I176: =IFERROR(VLOOKUP(B176,INDIRECT("'"&$H$1&"'!"&"$C$2:$G$200"),5,FALSE),0) -> 0 | J176: =IFERROR(VLOOKUP(B176,INDIRECT("'"&$J$1&"'!"&"$C$2:$G$200"),4,FALSE),"") ->  | K176: =IFERROR(VLOOKUP(B176,INDIRECT("'"&$J$1&"'!"&"$C$2:$G$200"),5,FALSE),0) -> 0 | L176: =IFERROR(VLOOKUP(B176,INDIRECT("'"&$L$1&"'!"&"$C$2:$G$200"),4,FALSE),"") ->  | M176: =IFERROR(VLOOKUP(B176,INDIRECT("'"&$L$1&"'!"&"$C$2:$G$200"),5,FALSE),0) -> 0 | N176: =IFERROR(VLOOKUP(B176,INDIRECT("'"&$N$1&"'!"&"$C$2:$G$200"),4,FALSE),"") -> 0.02635416667 | O176: =IFERROR(VLOOKUP(B176,INDIRECT("'"&$N$1&"'!"&"$C$2:$G$200"),5,FALSE),0) -> 83.01479655 | P176: =IFERROR(VLOOKUP(B176,INDIRECT("'"&$P$1&"'!"&"$C$2:$G$200"),4,FALSE),"") ->  | Q176: =IFERROR(VLOOKUP(B176,INDIRECT("'"&$P$1&"'!"&"$C$2:$G$200"),5,FALSE),0) -> 0 | R176: =IFERROR(VLOOKUP(B176,INDIRECT("'"&$R$1&"'!"&"$C$2:$G$200"),4,FALSE),"") ->  | S176: =IFERROR(VLOOKUP(B176,INDIRECT("'"&$R$1&"'!"&"$C$2:$G$200"),5,FALSE),0) -> 0 | U176: =IFERROR(VLOOKUP(B176,INDIRECT("'"&$T$1&"'!"&"$C$2:$G$200"),5,FALSE),0) -> 0 | V176: =8-COUNTIF(F176:U176,"") -> 1 | W176: =E176/IF(V176>4,5,V176) -> 83.01479655
A177: 175 | B177: Guy Bradford | C177: Weston | D177: M40 | E177: =SUM(LARGE((S177,G177,I177,K177,M177,O177,Q177,U177),{1,2,3,4,5})) -> 82.94527214 | F177: =IFERROR(VLOOKUP(B177,INDIRECT("'"&$F$1&"'!"&"$C$2:$G$200"),4,FALSE),"") ->  | G177: =IFERROR(VLOOKUP(B177,INDIRECT("'"&$F$1&"'!"&"$C$2:$G$200"),5,FALSE),0) -> 0 | H177: =IFERROR(VLOOKUP(B177,INDIRECT("'"&$H$1&"'!"&"$C$2:$G$200"),4,FALSE),"") -> 0.03619212963 | I177: =IFERROR(VLOOKUP(B177,INDIRECT("'"&$H$1&"'!"&"$C$2:$G$200"),5,FALSE),0) -> 82.94527214 | J177: =IFERROR(VLOOKUP(B177,INDIRECT("'"&$J$1&"'!"&"$C$2:$G$200"),4,FALSE),"") ->  | K177: =IFERROR(VLOOKUP(B177,INDIRECT("'"&$J$1&"'!"&"$C$2:$G$200"),5,FALSE),0) -> 0 | L177: =IFERROR(VLOOKUP(B177,INDIRECT("'"&$L$1&"'!"&"$C$2:$G$200"),4,FALSE),"") ->  | M177: =IFERROR(VLOOKUP(B177,INDIRECT("'"&$L$1&"'!"&"$C$2:$G$200"),5,FALSE),0) -> 0 | N177: =IFERROR(VLOOKUP(B177,INDIRECT("'"&$N$1&"'!"&"$C$2:$G$200"),4,FALSE),"") ->  | O177: =IFERROR(VLOOKUP(B177,INDIRECT("'"&$N$1&"'!"&"$C$2:$G$200"),5,FALSE),0) -> 0 | P177: =IFERROR(VLOOKUP(B177,INDIRECT("'"&$P$1&"'!"&"$C$2:$G$200"),4,FALSE),"") ->  | Q177: =IFERROR(VLOOKUP(B177,INDIRECT("'"&$P$1&"'!"&"$C$2:$G$200"),5,FALSE),0) -> 0 | R177: =IFERROR(VLOOKUP(B177,INDIRECT("'"&$R$1&"'!"&"$C$2:$G$200"),4,FALSE),"") ->  | S177: =IFERROR(VLOOKUP(B177,INDIRECT("'"&$R$1&"'!"&"$C$2:$G$200"),5,FALSE),0) -> 0 | T177: =IFERROR(VLOOKUP(B177,INDIRECT("'"&$T$1&"'!"&"$C$2:$G$200"),4,FALSE),"") ->  | U177: =IFERROR(VLOOKUP(B177,INDIRECT("'"&$T$1&"'!"&"$C$2:$G$200"),5,FALSE),0) -> 0 | V177: =8-COUNTIF(F177:U177,"") -> 1 | W177: =E177/IF(V177>4,5,V177) -> 82.94527214
A178: 176 | B178: Anthony Bannon | C178: San Domenico | D178: SM | E178: =SUM(LARGE((S178,G178,I178,K178,M178,O178,Q178,U178),{1,2,3,4,5})) -> 82.44965064 | F178: =IFERROR(VLOOKUP(B178,INDIRECT("'"&$F$1&"'!"&"$C$2:$G$200"),4,FALSE),"") ->  | G178: =IFERROR(VLOOKUP(B178,INDIRECT("'"&$F$1&"'!"&"$C$2:$G$200"),5,FALSE),0) -> 0 | H178: =IFERROR(VLOOKUP(B178,INDIRECT("'"&$H$1&"'!"&"$C$2:$G$200"),4,FALSE),"") ->  | I178: =IFERROR(VLOOKUP(B178,INDIRECT("'"&$H$1&"'!"&"$C$2:$G$200"),5,FALSE),0) -> 0 | J178: =IFERROR(VLOOKUP(B178,INDIRECT("'"&$J$1&"'!"&"$C$2:$G$200"),4,FALSE),"") ->  | K178: =IFERROR(VLOOKUP(B178,INDIRECT("'"&$J$1&"'!"&"$C$2:$G$200"),5,FALSE),0) -> 0 | L178: =IFERROR(VLOOKUP(B178,INDIRECT("'"&$L$1&"'!"&"$C$2:$G$200"),4,FALSE),"") ->  | M178: =IFERROR(VLOOKUP(B178,INDIRECT("'"&$L$1&"'!"&"$C$2:$G$200"),5,FALSE),0) -> 0 | N178: =IFERROR(VLOOKUP(B178,INDIRECT("'"&$N$1&"'!"&"$C$2:$G$200"),4,FALSE),"") -> 0.02648148148 | O178: =IFERROR(VLOOKUP(B178,INDIRECT("'"&$N$1&"'!"&"$C$2:$G$200"),5,FALSE),0) -> 82.44965064 | P178: =IFERROR(VLOOKUP(B178,INDIRECT("'"&$P$1&"'!"&"$C$2:$G$200"),4,FALSE),"") ->  | Q178: =IFERROR(VLOOKUP(B178,INDIRECT("'"&$P$1&"'!"&"$C$2:$G$200"),5,FALSE),0) -> 0 | R178: =IFERROR(VLOOKUP(B178,INDIRECT("'"&$R$1&"'!"&"$C$2:$G$200"),4,FALSE),"") ->  | S178: =IFERROR(VLOOKUP(B178,INDIRECT("'"&$R$1&"'!"&"$C$2:$G$200"),5,FALSE),0) -> 0 | T178: =IFERROR(VLOOKUP(B178,INDIRECT("'"&$T$1&"'!"&"$C$2:$G$200"),4,FALSE),"") ->  | U178: =IFERROR(VLOOKUP(B178,INDIRECT("'"&$T$1&"'!"&"$C$2:$G$200"),5,FALSE),0) -> 0 | V178: =8-COUNTIF(F178:U178,"") -> 1 | W178: =E178/IF(V178>4,5,V178) -> 82.44965064
A179: 177 | B179: Stefanie Francis | C179: Forest Of Dean AC | D179: F50 | E179: =SUM(LARGE((S179,G179,I179,K179,M179,O179,Q179,U179),{1,2,3,4,5})) -> 82.39024095 | F179: =IFERROR(VLOOKUP(B179,INDIRECT("'"&$F$1&"'!"&"$C$2:$G$200"),4,FALSE),"") ->  | G179: =IFERROR(VLOOKUP(B179,INDIRECT("'"&$F$1&"'!"&"$C$2:$G$200"),5,FALSE),0) -> 0 | H179: =IFERROR(VLOOKUP(B179,INDIRECT("'"&$H$1&"'!"&"$C$2:$G$200"),4,FALSE),"") -> 0.05018518519 | I179: =IFERROR(VLOOKUP(B179,INDIRECT("'"&$H$1&"'!"&"$C$2:$G$200"),5,FALSE),0) -> 37.68810362 | J179: =IFERROR(VLOOKUP(B179,INDIRECT("'"&$J$1&"'!"&"$C$2:$G$200"),4,FALSE),"") ->  | K179: =IFERROR(VLOOKUP(B179,INDIRECT("'"&$J$1&"'!"&"$C$2:$G$200"),5,FALSE),0) -> 0 | L179: =IFERROR(VLOOKUP(B179,INDIRECT("'"&$L$1&"'!"&"$C$2:$G$200"),4,FALSE),"") ->  | M179: =IFERROR(VLOOKUP(B179,INDIRECT("'"&$L$1&"'!"&"$C$2:$G$200"),5,FALSE),0) -> 0 | N179: =IFERROR(VLOOKUP(B179,INDIRECT("'"&$N$1&"'!"&"$C$2:$G$200"),4,FALSE),"") ->  | O179: =IFERROR(VLOOKUP(B179,INDIRECT("'"&$N$1&"'!"&"$C$2:$G$200"),5,FALSE),0) -> 0 | P179: =IFERROR(VLOOKUP(B179,INDIRECT("'"&$P$1&"'!"&"$C$2:$G$200"),4,FALSE),"") ->  | Q179: =IFERROR(VLOOKUP(B179,INDIRECT("'"&$P$1&"'!"&"$C$2:$G$200"),5,FALSE),0) -> 0 | R179: =IFERROR(VLOOKUP(B179,INDIRECT("'"&$R$1&"'!"&"$C$2:$G$200"),4,FALSE),"") -> 0.03162037037 | S179: =IFERROR(VLOOKUP(B179,INDIRECT("'"&$R$1&"'!"&"$C$2:$G$200"),5,FALSE),0) -> 44.70213734 | T179: =IFERROR(VLOOKUP(B179,INDIRECT("'"&$T$1&"'!"&"$C$2:$G$200"),4,FALSE),"") ->  | U179: =IFERROR(VLOOKUP(B179,INDIRECT("'"&$T$1&"'!"&"$C$2:$G$200"),5,FALSE),0) -> 0 | V179: =8-COUNTIF(F179:U179,"") -> 2 | W179: =E179/IF(V179>4,5,V179) -> 41.19512048
A180: 178 | B180: David Wright | C180: Newbury | D180: M50 | E180: =SUM(LARGE((S180,G180,I180,K180,M180,O180,Q180,U180),{1,2,3,4,5})) -> 81.85969903 | F180: =IFERROR(VLOOKUP(B180,INDIRECT("'"&$F$1&"'!"&"$C$2:$G$200"),4,FALSE),"") ->  | G180: =IFERROR(VLOOKUP(B180,INDIRECT("'"&$F$1&"'!"&"$C$2:$G$200"),5,FALSE),0) -> 0 | H180: =IFERROR(VLOOKUP(B180,INDIRECT("'"&$H$1&"'!"&"$C$2:$G$200"),4,FALSE),"") -> 0.03652777778 | I180: =IFERROR(VLOOKUP(B180,INDIRECT("'"&$H$1&"'!"&"$C$2:$G$200"),5,FALSE),0) -> 81.85969903 | J180: =IFERROR(VLOOKUP(B180,INDIRECT("'"&$J$1&"'!"&"$C$2:$G$200"),4,FALSE),"") ->  | K180: =IFERROR(VLOOKUP(B180,INDIRECT("'"&$J$1&"'!"&"$C$2:$G$200"),5,FALSE),0) -> 0 | L180: =IFERROR(VLOOKUP(B180,INDIRECT("'"&$L$1&"'!"&"$C$2:$G$200"),4,FALSE),"") ->  | M180: =IFERROR(VLOOKUP(B180,INDIRECT("'"&$L$1&"'!"&"$C$2:$G$200"),5,FALSE),0) -> 0 | N180: =IFERROR(VLOOKUP(B180,INDIRECT("'"&$N$1&"'!"&"$C$2:$G$200"),4,FALSE),"") ->  | O180: =IFERROR(VLOOKUP(B180,INDIRECT("'"&$N$1&"'!"&"$C$2:$G$200"),5,FALSE),0) -> 0 | P180: =IFERROR(VLOOKUP(B180,INDIRECT("'"&$P$1&"'!"&"$C$2:$G$200"),4,FALSE),"") ->  | Q180: =IFERROR(VLOOKUP(B180,INDIRECT("'"&$P$1&"'!"&"$C$2:$G$200"),5,FALSE),0) -> 0 | R180: =IFERROR(VLOOKUP(B180,INDIRECT("'"&$R$1&"'!"&"$C$2:$G$200"),4,FALSE),"") ->  | S180: =IFERROR(VLOOKUP(B180,INDIRECT("'"&$R$1&"'!"&"$C$2:$G$200"),5,FALSE),0) -> 0 | T180: =IFERROR(VLOOKUP(B180,INDIRECT("'"&$T$1&"'!"&"$C$2:$G$200"),4,FALSE),"") ->  | U180: =IFERROR(VLOOKUP(B180,INDIRECT("'"&$T$1&"'!"&"$C$2:$G$200"),5,FALSE),0) -> 0 | V180: =8-COUNTIF(F180:U180,"") -> 1 | W180: =E180/IF(V180>4,5,V180) -> 81.85969903
A181: 179 | B181: Alastair Morton | C181: Unaffiliated | D181: SM | E181: =SUM(LARGE((S181,G181,I181,K181,M181,O181,Q181,U181),{1,2,3,4,5})) -> 81.82494158 | F181: =IFERROR(VLOOKUP(B181,INDIRECT("'"&$F$1&"'!"&"$C$2:$G$200"),4,FALSE),"") ->  | G181: =IFERROR(VLOOKUP(B181,INDIRECT("'"&$F$1&"'!"&"$C$2:$G$200"),5,FALSE),0) -> 0 | H181: =IFERROR(VLOOKUP(B181,INDIRECT("'"&$H$1&"'!"&"$C$2:$G$200"),4,FALSE),"") ->  | I181: =IFERROR(VLOOKUP(B181,INDIRECT("'"&$H$1&"'!"&"$C$2:$G$200"),5,FALSE),0) -> 0 | J181: =IFERROR(VLOOKUP(B181,INDIRECT("'"&$J$1&"'!"&"$C$2:$G$200"),4,FALSE),"") ->  | K181: =IFERROR(VLOOKUP(B181,INDIRECT("'"&$J$1&"'!"&"$C$2:$G$200"),5,FALSE),0) -> 0 | L181: =IFERROR(VLOOKUP(B181,INDIRECT("'"&$L$1&"'!"&"$C$2:$G$200"),4,FALSE),"") ->  | M181: =IFERROR(VLOOKUP(B181,INDIRECT("'"&$L$1&"'!"&"$C$2:$G$200"),5,FALSE),0) -> 0 | N181: =IFERROR(VLOOKUP(B181,INDIRECT("'"&$N$1&"'!"&"$C$2:$G$200"),4,FALSE),"") ->  | O181: =IFERROR(VLOOKUP(B181,INDIRECT("'"&$N$1&"'!"&"$C$2:$G$200"),5,FALSE),0) -> 0 | P181: =IFERROR(VLOOKUP(B181,INDIRECT("'"&$P$1&"'!"&"$C$2:$G$200"),4,FALSE),"") -> 0.02575231481 | Q181: =IFERROR(VLOOKUP(B181,INDIRECT("'"&$P$1&"'!"&"$C$2:$G$200"),5,FALSE),0) -> 81.82494158 | R181: =IFERROR(VLOOKUP(B181,INDIRECT("'"&$R$1&"'!"&"$C$2:$G$200"),4,FALSE),"") ->  | S181: =IFERROR(VLOOKUP(B181,INDIRECT("'"&$R$1&"'!"&"$C$2:$G$200"),5,FALSE),0) -> 0 | T181: =IFERROR(VLOOKUP(B181,INDIRECT("'"&$T$1&"'!"&"$C$2:$G$200"),4,FALSE),"") ->  | U181: =IFERROR(VLOOKUP(B181,INDIRECT("'"&$T$1&"'!"&"$C$2:$G$200"),5,FALSE),0) -> 0 | V181: =8-COUNTIF(F181:U181,"") -> 1 | W181: =E181/IF(V181>4,5,V181) -> 81.82494158
A182: 180 | B182: Matt Whipple | C182: Bristol Orienteers | D182: SM | E182: =SUM(LARGE((S182,G182,I182,K182,M182,O182,Q182,U182),{1,2,3,4,5})) -> 81.73037402 | F182: =IFERROR(VLOOKUP(B182,INDIRECT("'"&$F$1&"'!"&"$C$2:$G$200"),4,FALSE),"") ->  | G182: =IFERROR(VLOOKUP(B182,INDIRECT("'"&$F$1&"'!"&"$C$2:$G$200"),5,FALSE),0) -> 0 | H182: =IFERROR(VLOOKUP(B182,INDIRECT("'"&$H$1&"'!"&"$C$2:$G$200"),4,FALSE),"") ->  | I182: =IFERROR(VLOOKUP(B182,INDIRECT("'"&$H$1&"'!"&"$C$2:$G$200"),5,FALSE),0) -> 0 | J182: =IFERROR(VLOOKUP(B182,INDIRECT("'"&$J$1&"'!"&"$C$2:$G$200"),4,FALSE),"") ->  | K182: =IFERROR(VLOOKUP(B182,INDIRECT("'"&$J$1&"'!"&"$C$2:$G$200"),5,FALSE),0) -> 0 | L182: =IFERROR(VLOOKUP(B182,INDIRECT("'"&$L$1&"'!"&"$C$2:$G$200"),4,FALSE),"") ->  | M182: =IFERROR(VLOOKUP(B182,INDIRECT("'"&$L$1&"'!"&"$C$2:$G$200"),5,FALSE),0) -> 0 | N182: =IFERROR(VLOOKUP(B182,INDIRECT("'"&$N$1&"'!"&"$C$2:$G$200"),4,FALSE),"") -> 0.02664351852 | O182: =IFERROR(VLOOKUP(B182,INDIRECT("'"&$N$1&"'!"&"$C$2:$G$200"),5,FALSE),0) -> 81.73037402 | P182: =IFERROR(VLOOKUP(B182,INDIRECT("'"&$P$1&"'!"&"$C$2:$G$200"),4,FALSE),"") ->  | Q182: =IFERROR(VLOOKUP(B182,INDIRECT("'"&$P$1&"'!"&"$C$2:$G$200"),5,FALSE),0) -> 0 | R182: =IFERROR(VLOOKUP(B182,INDIRECT("'"&$R$1&"'!"&"$C$2:$G$200"),4,FALSE),"") ->  | S182: =IFERROR(VLOOKUP(B182,INDIRECT("'"&$R$1&"'!"&"$C$2:$G$200"),5,FALSE),0) -> 0 | T182: =IFERROR(VLOOKUP(B182,INDIRECT("'"&$T$1&"'!"&"$C$2:$G$200"),4,FALSE),"") ->  | U182: =IFERROR(VLOOKUP(B182,INDIRECT("'"&$T$1&"'!"&"$C$2:$G$200"),5,FALSE),0) -> 0 | V182: =8-COUNTIF(F182:U182,"") -> 1 | W182: =E182/IF(V182>4,5,V182) -> 81.73037402
A183: 181 | B183: Andrew Brasington | C183: Mynydd Du | D183: M50 | E183: =SUM(LARGE((S183,G183,I183,K183,M183,O183,Q183,U183),{1,2,3,4,5})) -> 81.62762022 | F183: =IFERROR(VLOOKUP(B183,INDIRECT("'"&$F$1&"'!"&"$C$2:$G$200"),4,FALSE),"") ->  | G183: =IFERROR(VLOOKUP(B183,INDIRECT("'"&$F$1&"'!"&"$C$2:$G$200"),5,FALSE),0) -> 0 | H183: =IFERROR(VLOOKUP(B183,INDIRECT("'"&$H$1&"'!"&"$C$2:$G$200"),4,FALSE),"") ->  | I183: =IFERROR(VLOOKUP(B183,INDIRECT("'"&$H$1&"'!"&"$C$2:$G$200"),5,FALSE),0) -> 0 | J183: =IFERROR(VLOOKUP(B183,INDIRECT("'"&$J$1&"'!"&"$C$2:$G$200"),4,FALSE),"") ->  | K183: =IFERROR(VLOOKUP(B183,INDIRECT("'"&$J$1&"'!"&"$C$2:$G$200"),5,FALSE),0) -> 0 | L183: =IFERROR(VLOOKUP(B183,INDIRECT("'"&$L$1&"'!"&"$C$2:$G$200"),4,FALSE),"") ->  | M183: =IFERROR(VLOOKUP(B183,INDIRECT("'"&$L$1&"'!"&"$C$2:$G$200"),5,FALSE),0) -> 0 | N183: =IFERROR(VLOOKUP(B183,INDIRECT("'"&$N$1&"'!"&"$C$2:$G$200"),4,FALSE),"") -> 0.02666666667 | O183: =IFERROR(VLOOKUP(B183,INDIRECT("'"&$N$1&"'!"&"$C$2:$G$200"),5,FALSE),0) -> 81.62762022 | P183: =IFERROR(VLOOKUP(B183,INDIRECT("'"&$P$1&"'!"&"$C$2:$G$200"),4,FALSE),"") ->  | Q183: =IFERROR(VLOOKUP(B183,INDIRECT("'"&$P$1&"'!"&"$C$2:$G$200"),5,FALSE),0) -> 0 | R183: =IFERROR(VLOOKUP(B183,INDIRECT("'"&$R$1&"'!"&"$C$2:$G$200"),4,FALSE),"") ->  | S183: =IFERROR(VLOOKUP(B183,INDIRECT("'"&$R$1&"'!"&"$C$2:$G$200"),5,FALSE),0) -> 0 | T183: =IFERROR(VLOOKUP(B183,INDIRECT("'"&$T$1&"'!"&"$C$2:$G$200"),4,FALSE),"") ->  | U183: =IFERROR(VLOOKUP(B183,INDIRECT("'"&$T$1&"'!"&"$C$2:$G$200"),5,FALSE),0) -> 0 | V183: =8-COUNTIF(F183:U183,"") -> 1 | W183: =E183/IF(V183>4,5,V183) -> 81.62762022
A184: 182 | B184: Jamie Vanstone | C184: Ogmore Phoenix Runners | D184: SM | E184: =SUM(LARGE((S184,G184,I184,K184,M184,O184,Q184,U184),{1,2,3,4,5})) -> 81.61249203 | F184: =IFERROR(VLOOKUP(B184,INDIRECT("'"&$F$1&"'!"&"$C$2:$G$200"),4,FALSE),"") ->  | G184: =IFERROR(VLOOKUP(B184,INDIRECT("'"&$F$1&"'!"&"$C$2:$G$200"),5,FALSE),0) -> 0 | H184: =IFERROR(VLOOKUP(B184,INDIRECT("'"&$H$1&"'!"&"$C$2:$G$200"),4,FALSE),"") ->  | I184: =IFERROR(VLOOKUP(B184,INDIRECT("'"&$H$1&"'!"&"$C$2:$G$200"),5,FALSE),0) -> 0 | J184: =IFERROR(VLOOKUP(B184,INDIRECT("'"&$J$1&"'!"&"$C$2:$G$200"),4,FALSE),"") ->  | K184: =IFERROR(VLOOKUP(B184,INDIRECT("'"&$J$1&"'!"&"$C$2:$G$200"),5,FALSE),0) -> 0 | L184: =IFERROR(VLOOKUP(B184,INDIRECT("'"&$L$1&"'!"&"$C$2:$G$200"),4,FALSE),"") ->  | M184: =IFERROR(VLOOKUP(B184,INDIRECT("'"&$L$1&"'!"&"$C$2:$G$200"),5,FALSE),0) -> 0 | N184: =IFERROR(VLOOKUP(B184,INDIRECT("'"&$N$1&"'!"&"$C$2:$G$200"),4,FALSE),"") ->  | O184: =IFERROR(VLOOKUP(B184,INDIRECT("'"&$N$1&"'!"&"$C$2:$G$200"),5,FALSE),0) -> 0 | P184: =IFERROR(VLOOKUP(B184,INDIRECT("'"&$P$1&"'!"&"$C$2:$G$200"),4,FALSE),"") -> 0.02579861111 | Q184: =IFERROR(VLOOKUP(B184,INDIRECT("'"&$P$1&"'!"&"$C$2:$G$200"),5,FALSE),0) -> 81.61249203 | R184: =IFERROR(VLOOKUP(B184,INDIRECT("'"&$R$1&"'!"&"$C$2:$G$200"),4,FALSE),"") ->  | S184: =IFERROR(VLOOKUP(B184,INDIRECT("'"&$R$1&"'!"&"$C$2:$G$200"),5,FALSE),0) -> 0 | U184: =IFERROR(VLOOKUP(B184,INDIRECT("'"&$T$1&"'!"&"$C$2:$G$200"),5,FALSE),0) -> 0 | V184: =8-COUNTIF(F184:U184,"") -> 1 | W184: =E184/IF(V184>4,5,V184) -> 81.61249203
A185: 183 | B185: Tom Lawson | C185: Carduro | D185: M50 | E185: =SUM(LARGE((S185,G185,I185,K185,M185,O185,Q185,U185),{1,2,3,4,5})) -> 81.41049637 | F185: =IFERROR(VLOOKUP(B185,INDIRECT("'"&$F$1&"'!"&"$C$2:$G$200"),4,FALSE),"") ->  | G185: =IFERROR(VLOOKUP(B185,INDIRECT("'"&$F$1&"'!"&"$C$2:$G$200"),5,FALSE),0) -> 0 | H185: =IFERROR(VLOOKUP(B185,INDIRECT("'"&$H$1&"'!"&"$C$2:$G$200"),4,FALSE),"") -> 0.03666666667 | I185: =IFERROR(VLOOKUP(B185,INDIRECT("'"&$H$1&"'!"&"$C$2:$G$200"),5,FALSE),0) -> 81.41049637 | J185: =IFERROR(VLOOKUP(B185,INDIRECT("'"&$J$1&"'!"&"$C$2:$G$200"),4,FALSE),"") ->  | K185: =IFERROR(VLOOKUP(B185,INDIRECT("'"&$J$1&"'!"&"$C$2:$G$200"),5,FALSE),0) -> 0 | L185: =IFERROR(VLOOKUP(B185,INDIRECT("'"&$L$1&"'!"&"$C$2:$G$200"),4,FALSE),"") ->  | M185: =IFERROR(VLOOKUP(B185,INDIRECT("'"&$L$1&"'!"&"$C$2:$G$200"),5,FALSE),0) -> 0 | N185: =IFERROR(VLOOKUP(B185,INDIRECT("'"&$N$1&"'!"&"$C$2:$G$200"),4,FALSE),"") ->  | O185: =IFERROR(VLOOKUP(B185,INDIRECT("'"&$N$1&"'!"&"$C$2:$G$200"),5,FALSE),0) -> 0 | P185: =IFERROR(VLOOKUP(B185,INDIRECT("'"&$P$1&"'!"&"$C$2:$G$200"),4,FALSE),"") ->  | Q185: =IFERROR(VLOOKUP(B185,INDIRECT("'"&$P$1&"'!"&"$C$2:$G$200"),5,FALSE),0) -> 0 | R185: =IFERROR(VLOOKUP(B185,INDIRECT("'"&$R$1&"'!"&"$C$2:$G$200"),4,FALSE),"") ->  | S185: =IFERROR(VLOOKUP(B185,INDIRECT("'"&$R$1&"'!"&"$C$2:$G$200"),5,FALSE),0) -> 0 | T185: =IFERROR(VLOOKUP(B185,INDIRECT("'"&$T$1&"'!"&"$C$2:$G$200"),4,FALSE),"") ->  | U185: =IFERROR(VLOOKUP(B185,INDIRECT("'"&$T$1&"'!"&"$C$2:$G$200"),5,FALSE),0) -> 0 | V185: =8-COUNTIF(F185:U185,"") -> 1 | W185: =E185/IF(V185>4,5,V185) -> 81.41049637
A186: 184 | B186: Katie Beecher | C186: Les Croupiers | D186: SF | E186: =SUM(LARGE((S186,G186,I186,K186,M186,O186,Q186,U186),{1,2,3,4,5})) -> 81.20702827 | F186: =IFERROR(VLOOKUP(B186,INDIRECT("'"&$F$1&"'!"&"$C$2:$G$200"),4,FALSE),"") ->  | G186: =IFERROR(VLOOKUP(B186,INDIRECT("'"&$F$1&"'!"&"$C$2:$G$200"),5,FALSE),0) -> 0 | H186: =IFERROR(VLOOKUP(B186,INDIRECT("'"&$H$1&"'!"&"$C$2:$G$200"),4,FALSE),"") ->  | I186: =IFERROR(VLOOKUP(B186,INDIRECT("'"&$H$1&"'!"&"$C$2:$G$200"),5,FALSE),0) -> 0 | J186: =IFERROR(VLOOKUP(B186,INDIRECT("'"&$J$1&"'!"&"$C$2:$G$200"),4,FALSE),"") ->  | K186: =IFERROR(VLOOKUP(B186,INDIRECT("'"&$J$1&"'!"&"$C$2:$G$200"),5,FALSE),0) -> 0 | L186: =IFERROR(VLOOKUP(B186,INDIRECT("'"&$L$1&"'!"&"$C$2:$G$200"),4,FALSE),"") ->  | M186: =IFERROR(VLOOKUP(B186,INDIRECT("'"&$L$1&"'!"&"$C$2:$G$200"),5,FALSE),0) -> 0 | N186: =IFERROR(VLOOKUP(B186,INDIRECT("'"&$N$1&"'!"&"$C$2:$G$200"),4,FALSE),"") ->  | O186: =IFERROR(VLOOKUP(B186,INDIRECT("'"&$N$1&"'!"&"$C$2:$G$200"),5,FALSE),0) -> 0 | P186: =IFERROR(VLOOKUP(B186,INDIRECT("'"&$P$1&"'!"&"$C$2:$G$200"),4,FALSE),"") ->  | Q186: =IFERROR(VLOOKUP(B186,INDIRECT("'"&$P$1&"'!"&"$C$2:$G$200"),5,FALSE),0) -> 0 | R186: =IFERROR(VLOOKUP(B186,INDIRECT("'"&$R$1&"'!"&"$C$2:$G$200"),4,FALSE),"") ->  | S186: =IFERROR(VLOOKUP(B186,INDIRECT("'"&$R$1&"'!"&"$C$2:$G$200"),5,FALSE),0) -> 0 | T186: =IFERROR(VLOOKUP(B186,INDIRECT("'"&$T$1&"'!"&"$C$2:$G$200"),4,FALSE),"") -> 0.04319444444 | U186: =IFERROR(VLOOKUP(B186,INDIRECT("'"&$T$1&"'!"&"$C$2:$G$200"),5,FALSE),0) -> 81.20702827 | V186: =8-COUNTIF(F186:U186,"") -> 1 | W186: =E186/IF(V186>4,5,V186) -> 81.20702827
A187: 185 | B187: Jake Underhill | C187: Hereford Couriers | D187: M40 | E187: =SUM(LARGE((S187,G187,I187,K187,M187,O187,Q187,U187),{1,2,3,4,5})) -> 81.08231014 | F187: =IFERROR(VLOOKUP(B187,INDIRECT("'"&$F$1&"'!"&"$C$2:$G$200"),4,FALSE),"") ->  | G187: =IFERROR(VLOOKUP(B187,INDIRECT("'"&$F$1&"'!"&"$C$2:$G$200"),5,FALSE),0) -> 0 | H187: =IFERROR(VLOOKUP(B187,INDIRECT("'"&$H$1&"'!"&"$C$2:$G$200"),4,FALSE),"") ->  | I187: =IFERROR(VLOOKUP(B187,INDIRECT("'"&$H$1&"'!"&"$C$2:$G$200"),5,FALSE),0) -> 0 | J187: =IFERROR(VLOOKUP(B187,INDIRECT("'"&$J$1&"'!"&"$C$2:$G$200"),4,FALSE),"") ->  | K187: =IFERROR(VLOOKUP(B187,INDIRECT("'"&$J$1&"'!"&"$C$2:$G$200"),5,FALSE),0) -> 0 | L187: =IFERROR(VLOOKUP(B187,INDIRECT("'"&$L$1&"'!"&"$C$2:$G$200"),4,FALSE),"") ->  | M187: =IFERROR(VLOOKUP(B187,INDIRECT("'"&$L$1&"'!"&"$C$2:$G$200"),5,FALSE),0) -> 0 | N187: =IFERROR(VLOOKUP(B187,INDIRECT("'"&$N$1&"'!"&"$C$2:$G$200"),4,FALSE),"") ->  | O187: =IFERROR(VLOOKUP(B187,INDIRECT("'"&$N$1&"'!"&"$C$2:$G$200"),5,FALSE),0) -> 0 | P187: =IFERROR(VLOOKUP(B187,INDIRECT("'"&$P$1&"'!"&"$C$2:$G$200"),4,FALSE),"") ->  | Q187: =IFERROR(VLOOKUP(B187,INDIRECT("'"&$P$1&"'!"&"$C$2:$G$200"),5,FALSE),0) -> 0 | R187: =IFERROR(VLOOKUP(B187,INDIRECT("'"&$R$1&"'!"&"$C$2:$G$200"),4,FALSE),"") -> 0.02421296296 | S187: =IFERROR(VLOOKUP(B187,INDIRECT("'"&$R$1&"'!"&"$C$2:$G$200"),5,FALSE),0) -> 81.08231014 | U187: =IFERROR(VLOOKUP(B187,INDIRECT("'"&$T$1&"'!"&"$C$2:$G$200"),5,FALSE),0) -> 0 | V187: =8-COUNTIF(F187:U187,"") -> 1 | W187: =E187/IF(V187>4,5,V187) -> 81.08231014
